Workbook

Sheet Hauptmenü
B1: institut für banken und finanzplanung
B2: www.ibf-chur.ch; max.luescher@ibf-chur.ch
B3: Max Lüscher-Marty, Feldstrasse 41, 7205 Zizers; Telefon: 081 330'82'40
B5: Black-Scholes-Rechner: Devisenoptionen | H5: Update: 17.12.2019
B7: Zum Rechner: | D7: Daten eingeben/rechnen!
B10: Tabellen und Diagramme
B12: Optionspreis | D12: Tabelle Optionspreis | F12: Diagramm Call-Optionspreis | H12: Diagramm Put-Optionspreis
B14: Delta/ | D14: Tabelle Delta/Gamma | F14: Diagramm Call-Delta | H14: Diagramm Put-Delta
B16: Gamma | F16: Diagramm Gamma
B18: Leverage | D18: Tabelle Call-Leverage | F18: Diagramm Call-Leverage
D20: Tabelle Put-Leverage | F20: Diagramm Put-Leverage
B22: Theta | D22: Tabelle Theta | F22: Diagramm Call-Theta | H22: Diagramm Put-Theta
B24: Rho | D24: Tabelle Rho | F24: Diagramm Call-Rho | H24: Diagramm Put-Rho
B26: Vega | D26: Tabelle Vega (Call/Put) | F26: Diagramm Call-Vega | H26: Diagramm Put-Vega
D28: Hilfstabelle
B31: Die kommerzielle Weitergabe dieses Tools an Dritte ist untersagt!

Sheet Eingabeseite
B2: institut für banken und finanzplanung | D2: = | E2: Eingabefelder | F2: Hauptmenü
B3: Black-Scholes-Rechner | D3: = | E3: Ergebnisfelder Call
B4: Devisenoptionen: USD/CHF usw. | D4: = | E4: Ergebnisfelder Put
B5: © Max Lüscher-Marty, ibf chur
B6: Eingaben/Bestimmungsfaktoren | E6: Vorgaben/Eingaben für Steps
B7: Devisenkurs: Kassamittelkurs CHF/FW | C7: 0.912 | E7: Devisenkurs: CHF/FW: Punkte | F7: 0.01
B8: Zinsdifferenz: CHF-Zins-% minus FW-Zins-% | C8: -0.97 | E8: Risikoloser Zinssatz: %/Jahr | F8: 0.1
B9: Restlaufzeit: Tage/360 | C9: 224 | E9: Restlaufzeit: Tage/360 | F9: 1
B10: Ausübungspreis: CHF/FW | C10: 0.9125
B11: Volatilität: %/Jahr | C11: 9.5 | E11: Volatilität: %/Jahr | F11: 0.1
B13: Call-Preis und Call-Kennzahlen | E13: Put-Preis und Put-Kennzahlen
B14: Call-Preis Black-Scholes: CHF/Rappen | C14: ='Delta+Gamma, Tabelle 1'!Q24 -> 2.44417613 | E14: Put-Preis Black-Scholes: CHF/Rappen | F14: ='Delta+Gamma, Tabelle 1'!R24 -> 3.046585948
B15: Call-Delta | C15: ='Delta+Gamma, Tabelle 1'!I24 -> 0.4799068808 | E15: Put-Delta | F15: ='Delta+Gamma, Tabelle 1'!J24 -> 0.5200931192
B16: Call-Gamma | C16: ='Delta+Gamma, Tabelle 1'!T24 -> 0.0005829984474 | E16: Put-Gamma | F16: ='Delta+Gamma, Tabelle 1'!U24 -> 0.0005829984474
B17: Call-Gearing | C17: ='Call-Leverage, Tabelle 2.1'!T21 -> 37.31318659 | E17: Put-Gearing | F17: ='Putl-Leverage, Tabelle 2.2'!T21 -> 29.93514759
B18: Call-Leverage | C18: ='Call-Leverage, Tabelle 2.1'!U21 -> 17.90685499 | E18: Put-Leverage | F18: ='Putl-Leverage, Tabelle 2.2'!U21 -> 15.56906428
B19: Call-Theta: CHF/Rappen pro Zeit-Step | C19: ='Theta, Tabelle 3'!T21 -> -0.004971428253 | E19: Put-Theta: CHF/Rappen pro Zeit-Step | F19: ='Theta, Tabelle 3'!U21 -> -0.00744495986
B20: Call-Rho: +/- CHF/Rappen pro Zins-Step | C20: ='Rho, Tabelle 4'!T21 -> 0.02562642214 | E20: Put-Rho: -/+ CHF/Rappen pro Zins-Step | F20: ='Rho, Tabelle 4'!U21 -> 0.03151285212
B21: Call-Vega | C21: ='Vega, Tabelle 5'!T21 -> 0.2866329778 | E21: Put-Vega | F21: ='Vega, Tabelle 5'!U21 -> 0.2866329778
B23: Bestimmung der impliziten Call-Volatilität | E23: Bestimmung der impliziten Put-Volaltilität
B24: Call-Preis effektiv: CHF/Rappen | C24: 2.45 | E24: Put-Preis effektiv: CHF/Rappen | F24: 3.05
B26: Implizite Call-Volatilität | C26: =VLOOKUP(C24,'Hilfstabelle für imp. Vola.'!$W$28:$Y$1029,3) -> 9.5 | E26: Implizite Put-Volatilität | F26: =VLOOKUP(F24,'Hilfstabelle für imp. Vola.'!$X$28:$Y$1029,2) -> 9.5
B27: kann +/ - 0.10 Prozentpunkte abweichen | E27: kann +/ - 0.10 Prozentpunkte abweichen

Sheet Delta+Gamma, Tabelle 1
B1: Daten eingeben/rechnen! | G1: Diagramm Call-Preis | J1: Diagramm Put-Preis | T1: Hauptmenü
G2: Diagramm Call-Delta | J2: Diagramm Put-Delta | O2: Diagramm Gamma
B4: Devisenkurs | E4: =Eingabeseite!C7 -> 0.912 | F4: =E4 -> 0.912
B5: Berechnungsstep | E5: =Eingabeseite!F7/100 -> 0.0001 | F5: =E4/500 -> 0.001824 | G5: Diagrammstep
B6: Ausübungspreis | E6: =Eingabeseite!C10 -> 0.9125
B7: Zinssatz | E7: =Eingabeseite!C8 -> -0.97 | F7: =E7/100 -> -0.0097
B8: Restlaufzeit (Tage/360) | E8: =Eingabeseite!C9 -> 224 | F8: =E8/360 -> 0.6222222222
B9: Barwert Ausübungspreis | F9: =E6*(EXP(F8*-F7)) -> 0.9180240982
B10: Volatilität Jahr | E10: =Eingabeseite!C11 -> 9.5 | F10: =E10*SQRT(E$8/360) -> 7.493701059
B11: Volatilität Jahr (0.5) | F11: =F10/2 -> 3.746850529
I13: Tabelle Optionspreis, Delta und Gamma
B15: Devisenkurs | D15: Black & Scholes-Werte für d1 und NV (Delta) | L15: Black & Scholes-Werte für d2 und NV | Q15: Options- | R15: Options- | T15: Gamma | U15: Gamma
Q16: preis | R16: preis
D17: Rendite | E17: NV-Werte | F17: STAW | G17: Devisenkurs | H17: Rendite | I17: NV-Werte | L17: STAW | M17: Devisenkurs | N17: Rendite | O17: NV-Werte
D18: stetig | E18: Verteilung | F18: d1 | G18: mit | H18: stetig | I18: Verteilung | L18: d2 | M18: mit | N18: stetig | O18: Verteilung
D19: ohne | E19: F(x) | G19: Option | H19: mit | I19: F(x) | M19: Option | N19: mit | O19: F(x)
D20: Option | H20: Option | I20: Call-Delta | J20: Put-Delta | N20: Option | O20: Delta | Q20: Call | R20: Put | T20: Call | U20: Put | W20: Call-Delta | X20: Put-Delta | Z20: Call-Gamma | AA20: Put-Gamma
B22: =B23-$E$5 -> 0.9118 | D22: =(LN(B22/F$9))*100 -> -0.6802973233 | E22: =NORMDIST(D22,0,F$10,1) -> 0.4638326862 | F22: =((LN(B22/F$9))/(F$10/100))+(F$11/100) -> -0.05331404901 | G22: =F$9+((EXP(F22*(F$10/100))-1)*F$9) -> 0.9143637293 | H22: =(LN(G22/F$9))*100 -> -0.3995195455 | I22: =NORMDIST(H22,0,F$10,1) -> 0.4787408433 | J22: =1-I22 -> 0.5212591567 | L22: =((LN(B22/F$9))/(F$10/100))-(F$11/100) -> -0.1282510596 | M22: =F$9+((EXP(L22*(F$10/100))-1)*F$9) -> 0.909243459 | N22: =(LN(M22/F$9))*100 -> -0.9610751011 | O22: =NORMDIST(N22,0,F$10,1) -> 0.448975147 | Q22: =((I22*B22)-(O22*F$9))*100 -> 2.434589653 | R22: =Q22+((F$9-B22)*100) -> 3.056999471
B23: =B24-$E$5 -> 0.9119 | D23: =(LN(B23/F$9))*100 -> -0.6693306073 | E23: =NORMDIST(D23,0,F$10,1) -> 0.464414159 | F23: =((LN(B23/F$9))/(F$10/100))+(F$11/100) -> -0.05185059111 | G23: =F$9+((EXP(F23*(F$10/100))-1)*F$9) -> 0.9144640105 | H23: =(LN(G23/F$9))*100 -> -0.3885528295 | I23: =NORMDIST(H23,0,F$10,1) -> 0.4793238719 | J23: =1-I23 -> 0.5206761281 | L23: =((LN(B23/F$9))/(F$10/100))-(F$11/100) -> -0.1267876017 | M23: =F$9+((EXP(L23*(F$10/100))-1)*F$9) -> 0.9093431786 | N23: =(LN(M23/F$9))*100 -> -0.950108385 | O23: =NORMDIST(N23,0,F$10,1) -> 0.4495542545 | Q23: =((I23*B23)-(O23*F$9))*100 -> 2.439379977 | R23: =Q23+((F$9-B23)*100) -> 3.051789794 | T23: =((I24-I22)/(B24-B22))/10000 -> 0.0005830187669 | U23: =-((J24-J22)/(B24-B22))/10000 -> 0.0005830187669 | W23: =((Q24-Q22)/(B24-B22))/100 -> 0.4793238686 | X23: =-((R24-R22)/(B24-B22))/100 -> 0.5206761314
B24: =F4 -> 0.912 | D24: =(LN(B24/F$9))*100 -> -0.6583650938 | E24: =NORMDIST(D24,0,F$10,1) -> 0.464995644 | F24: =((LN(B24/F$9))/(F$10/100))+(F$11/100) -> -0.05038729368 | G24: =F$9+((EXP(F24*(F$10/100))-1)*F$9) -> 0.9145642916 | H24: =(LN(G24/F$9))*100 -> -0.377587316 | I24: =NORMDIST(H24,0,F$10,1) -> 0.4799068808 | J24: =1-I24 -> 0.5200931192 | L24: =((LN(B24/F$9))/(F$10/100))-(F$11/100) -> -0.1253243043 | M24: =F$9+((EXP(L24*(F$10/100))-1)*F$9) -> 0.9094428982 | N24: =(LN(M24/F$9))*100 -> -0.9391428716 | O24: =NORMDIST(N24,0,F$10,1) -> 0.4501334059 | Q24: =((I24*B24)-(O24*F$9))*100 -> 2.44417613 | R24: =Q24+((F$9-B24)*100) -> 3.046585948 | T24: =((I25-I23)/(B25-B23))/10000 -> 0.0005829984474 | U24: =-((J25-J23)/(B25-B23))/10000 -> 0.0005829984474 | W24: =((Q25-Q23)/(B25-B23))/100 -> 0.4799068774 | X24: =-((R25-R23)/(B25-B23))/100 -> 0.5200931226 | Z24: =((W25-W23)/(B25-B23))/10000 -> 0.0005829982398 | AA24: =-((X25-X23)/(B25-B23))/10000 -> 0.0005829982398
B25: =B24+$E$5 -> 0.9121 | D25: =(LN(B25/F$9))*100 -> -0.6474007826 | E25: =NORMDIST(D25,0,F$10,1) -> 0.46557714 | F25: =((LN(B25/F$9))/(F$10/100))+(F$11/100) -> -0.0489241567 | G25: =F$9+((EXP(F25*(F$10/100))-1)*F$9) -> 0.9146645728 | H25: =(LN(G25/F$9))*100 -> -0.3666230048 | I25: =NORMDIST(H25,0,F$10,1) -> 0.4804898688 | J25: =1-I25 -> 0.5195101312 | L25: =((LN(B25/F$9))/(F$10/100))-(F$11/100) -> -0.1238611673 | M25: =F$9+((EXP(L25*(F$10/100))-1)*F$9) -> 0.9095426178 | N25: =(LN(M25/F$9))*100 -> -0.9281785604 | O25: =NORMDIST(N25,0,F$10,1) -> 0.4507126001 | Q25: =((I25*B25)-(O25*F$9))*100 -> 2.448978114 | R25: =Q25+((F$9-B25)*100) -> 3.041387932 | T25: =((I26-I24)/(B26-B24))/10000 -> 0.0005829768828 | U25: =-((J26-J24)/(B26-B24))/10000 -> 0.0005829768828 | W25: =((Q26-Q24)/(B26-B24))/100 -> 0.4804898651 | X25: =-((R26-R24)/(B26-B24))/100 -> 0.5195101349
B26: =B25+$E$5 -> 0.9122 | D26: =(LN(B26/F$9))*100 -> -0.6364376735 | E26: =NORMDIST(D26,0,F$10,1) -> 0.4661586457 | F26: =((LN(B26/F$9))/(F$10/100))+(F$11/100) -> -0.04746118012 | G26: =F$9+((EXP(F26*(F$10/100))-1)*F$9) -> 0.914764854 | H26: =(LN(G26/F$9))*100 -> -0.3556598957 | I26: =NORMDIST(H26,0,F$10,1) -> 0.4810728346 | J26: =1-I26 -> 0.5189271654 | L26: =((LN(B26/F$9))/(F$10/100))-(F$11/100) -> -0.1223981907 | M26: =F$9+((EXP(L26*(F$10/100))-1)*F$9) -> 0.9096423375 | N26: =(LN(M26/F$9))*100 -> -0.9172154512 | O26: =NORMDIST(N26,0,F$10,1) -> 0.4512918357 | Q26: =((I26*B26)-(O26*F$9))*100 -> 2.453785928 | R26: =Q26+((F$9-B26)*100) -> 3.036195745
B29: =E4-(50*F5) -> 0.8208 | D29: =(LN(B29/F$9))*100 -> -11.19441666 | E29: =NORMDIST(D29,0,F$10,1) -> 0.06760826368 | F29: =((LN(B29/F$9))/(F$10/100))+(F$11/100) -> -1.456375 | G29: =F$9+((EXP(F29*(F$10/100))-1)*F$9) -> 0.8231078625 | H29: =(LN(G29/F$9))*100 -> -10.91363888 | I29: =NORMDIST(H29,0,F$10,1) -> 0.0726444913 | J29: =1-I29 -> 0.9273555087 | L29: =((LN(B29/F$9))/(F$10/100))-(F$11/100) -> -1.531312011 | M29: =F$9+((EXP(L29*(F$10/100))-1)*F$9) -> 0.8184986084 | N29: =(LN(M29/F$9))*100 -> -11.47519444 | O29: =NORMDIST(N29,0,F$10,1) -> 0.06284614925 | Q29: =((I29*B29)-(O29*F$9))*100 -> 0.1932318971 | R29: =Q29+((F$9-B29)*100) -> 9.915641715
B30: =B29+F$5 -> 0.822624 | D30: =(LN(B30/F$9))*100 -> -10.97244099 | E30: =NORMDIST(D30,0,F$10,1) -> 0.07156666811 | F30: -1.426753366 | G30: 0.824936991 | H30: -10.69166321 | I30: =NORMDIST(H30,0,F$10,1) -> 0.0768254987 | J30: 0.9231745013 | L30: -1.501690376 | M30: 0.8203174942 | N30: =(LN(M30/F$9))*100 -> -11.25321876 | O30: 0.06658854521 | Q30: =((I30*B30)-(O30*F$9))*100 -> 0.2068609876 | R30: =Q30+((F$9-B30)*100) -> 9.746870805 | T30: =((I31-I29)/(B31-B29))/10000 -> 0.0002338987699 | U30: =-((J31-J29)/(B31-B29))/10000 -> 0.0002338987699 | W30: =((Q31-Q29)/(B31-B29))/100 -> 0.07685393516 | X30: =-((R31-R29)/(B31-B29))/100 -> 0.9231460648
B31: =B30+F$5 -> 0.824448 | D31: -10.75095695 | E31: 0.07569117091 | F31: -1.397197339 | G31: 0.8267661196 | H31: -10.47017918 | I31: =NORMDIST(H31,0,F$10,1) -> 0.08117711842 | J31: 0.9188228816 | L31: -1.472134349 | M31: 0.82213638 | N31: -11.03173473 | O31: 0.07049230073 | Q31: 0.2212682126 | R31: 9.57887803 | T31: =((I32-I30)/(B32-B30))/10000 -> 0.0002433241077 | U31: =-((J32-J30)/(B32-B30))/10000 -> 0.0002433241077 | W31: =((Q32-Q30)/(B32-B30))/100 -> 0.08120599024 | X31: =-((R32-R30)/(B32-B30))/100 -> 0.9187940098 | Z31: =((W32-W30)/(B32-B30))/10000 -> 0.0002433470321 | AA31: =-((X32-X30)/(B32-B30))/10000 -> 0.0002433470321
B32: 0.826272 | D32: -10.52996239 | E32: 0.07998460324 | F32: -1.367706629 | G32: 0.8285952482 | H32: -10.24918461 | I32: =NORMDIST(H32,0,F$10,1) -> 0.08570196214 | J32: 0.9142980379 | L32: -1.442643639 | M32: 0.8239552658 | N32: -10.81074017 | O32: 0.07456044179 | Q32: 0.2364849329 | R32: 9.41169475 | T32: 0.0002528869696 | U32: 0.0002528869696 | W32: 0.08573123489 | X32: 0.9142687651 | Z32: =(W33-W31)/(B33-B31) -> 2.529079522 | AA32: =-(X33-X31)/(B33-B31) -> 2.529079522
B33: 0.828096 | D33: =(LN(B33/F$9))*100 -> -10.30945513 | E33: 0.0844496078 | F33: -1.338280948 | G33: 0.8304243768 | H33: -10.02867735 | I33: =NORMDIST(H33,0,F$10,1) -> 0.09040243507 | J33: 0.9095975649 | L33: -1.413217958 | M33: 0.8257741516 | N33: -10.59023291 | O33: 0.07879582393 | Q33: 0.2525429671 | R33: 9.245352785 | T33: 0.0002625757057 | U33: 0.0002625757057 | W33: 0.09043207233 | X33: 0.9095679277 | Z33: 2.62594638 | AA33: 2.62594638
B34: 0.82992 | D34: -10.08943304 | E34: 0.08908862644 | F34: -1.30892001 | G34: 0.8322535054 | H34: -9.808655263 | I34: 0.09528072389 | J34: 0.9047192761 | L34: -1.38385702 | M34: 0.8275930374 | N34: -10.37021082 | O34: 0.08320111966 | Q34: 0.2694745529 | R34: 9.07988437 | T34: 0.000272378015 | U34: 0.000272378015 | W34: 0.09531068729 | X34: 0.9046893127 | Z34: 2.723947927 | AA34: 2.723947927
B35: 0.831744 | D35: -9.869893985 | E35: 0.0939038881 | F35: -1.279623531 | G35: 0.834082634 | H35: -9.589116207 | I35: 0.1003387851 | J35: 0.8996612149 | L35: -1.354560541 | M35: 0.8294119232 | N35: -10.15067176 | O35: 0.08777880618 | Q35: 0.2873123058 | R35: 8.915322123 | T35: 0.0002822809709 | U35: 0.0002822809709 | W35: 0.1003690344 | X35: 0.8996309656 | Z35: 2.822954945 | AA35: 2.822954945
B36: 0.833568 | D36: -9.650835847 | E36: 0.09889739727 | F36: -1.250391228 | G36: 0.8359117625 | H36: -9.370058069 | I36: 0.1055783337 | J36: 0.8944216663 | L36: -1.325328239 | M36: 0.831230809 | N36: -9.931613624 | O36: 0.09253115345 | Q36: 0.3060891766 | R36: 8.751698994 | T36: 0.0002922710495 | U36: 0.0002922710495 | W36: 0.1056088269 | X36: 0.8943911731 | Z36: 2.922832246 | AA36: 2.922832246
B37: 0.835392 | D37: -9.432256525 | E37: 0.1040709228 | F37: -1.221222821 | G37: 0.8377408911 | H37: -9.151478747 | I37: 0.1110008329 | J37: 0.8889991671 | L37: -1.296159832 | M37: 0.8330496948 | N37: -9.713034302 | O37: 0.0974602126 | Q37: 0.3258384059 | R37: 8.589048223 | T37: 0.0003023341612 | U37: 0.0003023341612 | W37: 0.1110315264 | X37: 0.8889684736 | Z37: 3.023438992 | AA37: 3.023438992
B38: 0.837216 | D38: -9.21415393 | E38: 0.1094259871 | F38: -1.192118031 | G38: 0.8395700197 | H38: -8.933376152 | I38: 0.1166074839 | J38: 0.8833925161 | L38: -1.267055042 | M38: 0.8348685806 | N38: -9.494931708 | O38: 0.1025678048 | Q38: 0.3465934774 | R38: 8.427403295 | T38: 0.0003124556849 | U38: 0.0003124556849 | W38: 0.1166383324 | X38: 0.8833616676 | Z38: 3.124629036 | AA38: 3.124629036
B39: 0.83904 | D39: -8.996525988 | E39: 0.1149638566 | F39: -1.163076581 | G39: 0.8413991483 | H39: -8.71574821 | I39: 0.1223992163 | J39: 0.8776007837 | L39: -1.238013592 | M39: 0.8366874664 | N39: -9.277303765 | O39: 0.1078555105 | Q39: 0.3683880695 | R39: 8.266797887 | T39: 0.0003226205057 | U39: 0.0003226205057 | W39: 0.1224301731 | X39: 0.8775698269 | Z39: 3.226251293 | AA39: 3.226251293
B40: 0.840864 | D40: -8.779370636 | E40: 0.1206855316 | F40: -1.134098197 | G40: 0.8432282769 | H40: -8.498592859 | I40: 0.12837668 | J40: 0.87162332 | L40: -1.209035207 | M40: 0.8385063522 | N40: -9.060148414 | O40: 0.1133246597 | Q40: 0.3912560046 | R40: 8.107265822 | T40: 0.0003328130542 | U40: 0.0003328130542 | W40: 0.1284076971 | X40: 0.8715923029 | Z40: 3.328150141 | AA40: 3.328150141
B41: 0.842688 | D41: -8.562685828 | E41: 0.1265917382 | F41: -1.105182604 | G41: 0.8450574055 | H41: -8.28190805 | I41: 0.1345402365 | J41: 0.8654597635 | L41: -1.180119615 | M41: 0.840325238 | N41: -8.843463606 | O41: 0.1189763222 | Q41: 0.4152311974 | R41: 7.948841015 | T41: 0.0003430173495 | U41: 0.0003430173495 | W41: 0.1345712648 | X41: 0.8654287352 | Z41: 3.430165845 | AA41: 3.430165845
B42: 0.844512 | D42: -8.346469527 | E42: 0.1326829197 | F42: -1.076329532 | G42: 0.846886534 | H42: -8.06569175 | I42: 0.1408899529 | J42: 0.8591100471 | L42: -1.151266542 | M42: 0.8421441238 | N42: -8.627247305 | O42: 0.1248112986 | Q42: 0.440347602 | R42: 7.79155742 | T42: 0.0003532170438 | U42: 0.0003532170438 | W42: 0.1409209421 | X42: 0.8590790579 | Z42: 3.532135005 | AA42: 3.532135005
B43: 0.846336 | D43: -8.130719713 | E43: 0.1389592299 | F43: -1.047538709 | G43: 0.8487156626 | H43: -7.849941936 | I43: 0.1474255943 | J43: 0.8525744057 | L43: -1.12247572 | M43: 0.8439630096 | N43: -8.411497491 | O43: 0.1308301127 | Q43: 0.4666391571 | R43: 7.635448975 | T43: 0.0003633954692 | U43: 0.0003633954692 | W43: 0.1474564933 | X43: 0.8525435067 | Z43: 3.633891025 | AA43: 3.633891025
B44: 0.84816 | D44: -7.915434377 | E44: 0.1454205264 | F44: -1.01880987 | G44: 0.8505447912 | H44: -7.634656599 | I44: 0.1541466196 | J44: 0.8458533804 | L44: -1.09374688 | M44: 0.8457818954 | N44: -8.196212155 | O44: 0.1370330036 | Q44: 0.4941397308 | R44: 7.480549548 | T44: 0.0003735356871 | U44: 0.0003735356871 | W44: 0.1541773765 | X44: 0.8458226235 | Z44: 3.735264602 | AA44: 3.735264602
B45: 0.849984 | D45: -7.700611523 | E45: 0.1520663647 | F45: -0.9901427462 | G45: 0.8523739198 | H45: -7.419833746 | I45: 0.1610521762 | J45: 0.8389478238 | L45: -1.065079757 | M45: 0.8476007812 | N45: -7.981389301 | O45: 0.1434199195 | Q45: 0.5228830641 | R45: 7.326892882 | T45: 0.0003836205382 | U45: 0.0003836205382 | W45: 0.1610827386 | X45: 0.8389172614 | Z45: 3.836084231 | AA45: 3.836084231
B46: 0.851808 | D46: -7.486249169 | E46: 0.1588959942 | F46: -0.9615370743 | G46: 0.8542030484 | H46: -7.205471391 | I46: 0.1681410968 | J46: 0.8318589032 | L46: -1.036474085 | M46: 0.8494196669 | N46: -7.767026947 | O46: 0.1499905117 | Q46: 0.5529027138 | R46: 7.174512531 | T46: 0.0003936326951 | U46: 0.0003936326951 | W46: 0.1681714118 | X46: 0.8318285882 | Z46: 3.936176727 | AA46: 3.936176727
B47: 0.853632 | D47: -7.272345344 | E47: 0.1659083538 | F47: -0.932992591 | G47: 0.856032177 | H47: -6.991567566 | I47: 0.1754118969 | J47: 0.8245881031 | L47: -1.007929602 | M47: 0.8512385527 | N47: =(LN(M47/F$9))*100 -> -7.553123122 | O47: 0.1567441298 | Q47: 0.5842319951 | R47: 7.023441813 | T47: 0.0004035547155 | U47: 0.0004035547155 | W47: 0.1754419113 | X47: 0.8245580887 | Z47: 4.035367757 | AA47: 4.035367757
B48: 0.855456 | D48: -7.058898091 | E48: 0.1731020694 | F48: -0.9045090351 | G48: 0.8578613055 | H48: -6.778120314 | I48: 0.1828627728 | J48: 0.8171372272 | L48: -0.9794460457 | M48: 0.8530574385 | N48: -7.339675869 | O48: 0.1636798176 | Q48: 0.6169039231 | R48: 6.873713741 | T48: 0.0004133690967 | U48: 0.0004133690967 | W48: 0.1828924334 | X48: 0.8171075666 | Z48: 4.133482386 | AA48: 4.133482386
B49: 0.85728 | D49: -6.845905466 | E49: 0.1804754519 | F49: -0.8760861471 | G49: 0.8596904341 | H49: -6.565127688 | I49: 0.1904916015 | J49: 0.8095083985 | L49: -0.9510231577 | M49: 0.8548763243 | N49: -7.126683243 | O49: 0.1707963102 | Q49: 0.6509511548 | R49: 6.725360972 | T49: 0.0004230583306 | U49: 0.0004230583306 | W49: 0.1905208551 | X49: 0.8094791449 | Z49: 4.230345625 | AA49: 4.230345625
B50: 0.859104 | D50: -6.633365534 | E50: 0.1880264961 | F50: -0.8477236691 | G50: 0.8615195627 | H50: -6.352587757 | I50: 0.1982959407 | J50: 0.8017040593 | L50: -0.9226606797 | M50: 0.8566952101 | N50: -6.914143312 | O50: 0.1780920314 | Q50: 0.686405931 | R50: 6.578415749 | T50: 0.0004326049594 | U50: 0.0004326049594 | W50: 0.1983247342 | X50: 0.8016752658 | Z50: 4.325782991 | AA50: 4.325782991
B51: 0.860928 | D51: -6.421276377 | E51: 0.1957528813 | F51: -0.8194213449 | G51: 0.8633486913 | H51: -6.1404986 | I51: 0.2062730305 | J51: 0.7937269695 | L51: -0.8943583555 | M51: 0.8585140959 | N51: -6.702054155 | O51: 0.1855650933 | Q51: 0.7233000179 | R51: 6.432909835 | T51: 0.0004419916316 | U51: 0.0004419916316 | W51: 0.2063013114 | X51: 0.7936986886 | Z51: 4.41962106 | AA51: 4.41962106
B52: 0.862752 | D52: -6.209636087 | E52: 0.2036519719 | F52: -0.7911789198 | G52: 0.8651778199 | H52: -5.928858309 | I52: 0.2144197955 | J52: 0.7855802045 | L52: -0.8661159304 | M52: 0.8603329817 | N52: -6.490413865 | O52: 0.193213295 | Q52: 0.7616646494 | R52: 6.288874467 | T52: 0.0004512011574 | U52: 0.0004512011574 | W52: 0.2144475119 | X52: 0.7855524881 | Z52: 4.511688028 | AA52: 4.511688028
B53: 0.864576 | D53: -5.998442766 | E53: 0.2117208195 | F53: -0.7629961409 | G53: 0.8670069485 | H53: -5.717664989 | I53: 0.2227328487 | J53: 0.7772671513 | L53: -0.8379331515 | M53: 0.8621518675 | N53: -6.279220544 | O53: 0.2010341243 | Q53: 0.8015304702 | R53: 6.146340288 | T53: 0.0004602165649 | U53: 0.0004602165649 | W53: 0.2227599493 | X53: 0.7772400507 | Z53: 4.601814268 | AA53: 4.601814268
B54: 0.8664 | D54: -5.787694533 | E54: 0.2199561665 | F54: -0.7348727567 | G54: 0.868836077 | H54: -5.506916755 | I54: 0.2312084957 | J54: 0.7687915043 | L54: -0.8098097673 | M54: 0.8639707533 | N54: -6.06847231 | O54: 0.2090247591 | Q54: 0.8429274789 | R54: 6.005337296 | T54: 0.0004690211545 | U54: 0.0004690211545 | W54: 0.2312349303 | X54: 0.7687650697 | Z54: 4.689832873 | AA54: 4.689832873
B55: 0.868224 | D55: -5.577389513 | E55: 0.2283544495 | F55: -0.7068085174 | G55: 0.8706652056 | H55: -5.296611735 | I55: 0.2398427404 | J55: 0.7601572596 | L55: -0.781745528 | M55: 0.8657896391 | N55: -5.858167291 | O55: 0.2171820697 | Q55: 0.8858849728 | R55: 5.86589479 | T55: 0.0004775985533 | U55: 0.0004775985533 | W55: 0.2398684597 | X55: 0.7601315403 | Z55: 4.775580202 | AA55: 4.775580202
B56: 0.870048 | D56: -5.367525847 | E56: 0.236911805 | F56: -0.6788031748 | G56: 0.8724943342 | H56: -5.086748069 | I56: 0.248631291 | J56: 0.751368709 | L56: -0.7537401854 | M56: 0.8676085249 | N56: -5.648303625 | O56: 0.2255026234 | Q56: 0.930431493 | R56: 5.728041311 | T56: 0.000485932768 | U56: 0.000485932768 | W56: 0.2486562469 | X56: 0.7513437531 | Z56: 4.85889641 | AA56: 4.85889641
B57: 0.871872 | D57: -5.158101687 | E57: 0.2456240749 | F57: -0.6508564821 | G57: 0.8743234628 | H57: -4.877323909 | I57: 0.2575695678 | J57: 0.7424304322 | L57: -0.7257934927 | M57: 0.8694274107 | N57: -5.438879465 | O57: 0.2339826884 | Q57: 0.9765947716 | R57: 5.591804589 | T57: 0.0004940082368 | U57: 0.0004940082368 | W57: 0.2575937138 | X57: 0.7424062862 | Z57: 4.939625962 | AA57: 4.939625962
B58: 0.873696 | D58: -4.949115195 | E58: 0.2544868138 | F58: -0.6229681943 | G58: 0.8761525914 | H58: -4.668337417 | I58: 0.2666527114 | J58: 0.7333472886 | L58: -0.6979052049 | M58: 0.8712462965 | N58: -5.229892973 | O58: 0.2426182396 | Q58: 1.02440168 | R58: 5.457211497 | T58: 0.0005018098795 | U58: 0.0005018098795 | W58: 0.2666760024 | X58: 0.7333239976 | Z58: 5.017618136 | AA58: 5.017618136
B59: 0.87552 | D59: -4.740564546 | E59: 0.2634952968 | F59: -0.5951380677 | G59: 0.87798172 | H59: -4.459786768 | I59: 0.2758755922 | J59: 0.7241244078 | L59: -0.6700750783 | M59: 0.8730651823 | N59: -5.021342324 | O59: 0.2514049655 | Q59: 1.073878177 | R59: 5.324287995 | T59: 0.0005093231458 | U59: 0.0005093231458 | W59: 0.2758979847 | X59: 0.7241020153 | Z59: 5.092727507 | AA59: 5.092727507
B60: 0.877344 | D60: -4.532447925 | E60: 0.2726445286 | F60: -0.5673658603 | G60: 0.8798108485 | H60: -4.251670148 | I60: 0.2852328198 | J60: 0.7147671802 | L60: -0.6423028708 | M60: 0.8748840681 | N60: -4.813225703 | O60: 0.2603382753 | Q60: 1.125049265 | R60: 5.193059082 | T60: 0.0005165340618 | U60: 0.0005165340618 | W60: 0.2852542723 | X60: 0.7147457277 | Z60: 5.164814409 | AA60: 5.164814409
B61: 0.879168 | D61: -4.324763531 | E61: 0.2819292525 | F61: -0.5396513314 | G61: 0.8816399771 | H61: -4.043985753 | I61: 0.2947187548 | J61: 0.7052812452 | L61: -0.614588342 | M61: 0.8767029539 | N61: -4.605541309 | O61: 0.2694133077 | Q61: 1.177938936 | R61: 5.063548753 | T61: 0.000523429274 | U61: 0.000523429274 | W61: 0.2947392277 | X61: 0.7052607723 | Z61: 5.233745376 | AA61: 5.233745376
B62: 0.880992 | D62: -4.117509571 | E62: 0.2913439615 | F62: -0.511994242 | G62: 0.8834691057 | H62: -3.836731793 | I62: 0.3043275197 | J62: 0.6956724803 | L62: -0.5869312525 | M62: 0.8785218397 | N62: -4.398287349 | O62: 0.2786249396 | Q62: 1.232570135 | R62: 4.935779952 | T62: 0.0005299960909 | U62: 0.0005299960909 | W62: 0.3043469755 | X62: 0.6956530245 | Z62: 5.299393559 | AA62: 5.299393559
B63: 0.882816 | D63: -3.910684264 | E63: 0.3008829096 | F63: -0.4843943544 | G63: 0.8852982343 | H63: -3.629906487 | I63: 0.3140530121 | J63: 0.6859469879 | L63: -0.559331365 | M63: 0.8803407255 | N63: -4.191462042 | O63: 0.2879677967 | Q63: 1.288964713 | R63: 4.80977453 | T63: 0.0005362225223 | U63: 0.0005362225223 | W63: 0.3140714154 | X63: 0.6859285846 | Z63: 5.361639117 | AA63: 5.361639117
B64: 0.88464 | D64: -3.704285842 | E64: 0.3105401232 | F64: -0.4568514327 | G64: 0.8871273629 | H64: -3.423508064 | I64: 0.3238889173 | J64: 0.6761110827 | L64: -0.5317884432 | M64: 0.8821596113 | N64: -3.98506362 | O64: 0.2974362639 | Q64: 1.347143387 | R64: 4.685553205 | T64: 0.0005420973157 | U64: 0.0005420973157 | W64: 0.323906235 | X64: 0.676093765 | Z64: 5.42036958 | AA64: 5.42036958
B65: 0.886464 | D65: -3.498312546 | E65: 0.3203094146 | F65: -0.429365242 | G65: 0.8889564915 | H65: -3.217534768 | I65: 0.3338287222 | J65: 0.6661712778 | L65: -0.5043022525 | M65: 0.8839784971 | N65: -3.779090324 | O65: 0.3070244974 | Q65: 1.407125707 | R65: 4.563135525 | T65: 0.0005476099894 | U65: 0.0005476099894 | W65: 0.3338449236 | X65: 0.6661550764 | Z65: 5.475480182 | AA65: 5.475480182
B66: 0.888288 | D66: -3.292762628 | E66: 0.3301843946 | F66: -0.4019355491 | G66: 0.89078562 | H66: -3.01198485 | I66: 0.3438657297 | J66: 0.6561342703 | L66: -0.4768725597 | M66: 0.8857973829 | N66: -3.573540406 | O66: 0.3167264365 | Q66: 1.468930015 | R66: 4.442539833 | T66: 0.0005527508633 | U66: 0.0005527508633 | W66: 0.3438807867 | X66: 0.6561192133 | Z66: 5.526874167 | AA66: 5.526874167
B67: 0.890112 | D67: -3.087634351 | E67: 0.3401584873 | F67: -0.3745621224 | G67: 0.8926147486 | H67: -2.806856573 | I67: 0.3539930737 | J67: 0.6460069263 | L67: -0.449499133 | M67: 0.8876162687 | N67: -3.368412128 | O67: 0.3265358167 | Q67: 1.532573418 | R67: 4.323783236 | T67: 0.0005575110858 | U67: 0.0005575110858 | W67: 0.3540069606 | X67: 0.6459930394 | Z67: 5.574463059 | AA67: 5.574463059
B68: 0.891936 | D68: -2.882925989 | E68: 0.3502249436 | F68: -0.3472447313 | G68: 0.8944438772 | H68: -2.602148211 | I68: 0.3642037342 | J68: 0.6357962658 | L68: -0.4221817419 | M68: 0.8894351545 | N68: -3.163703766 | O68: 0.3364461836 | Q68: 1.598071755 | R68: 4.206881572 | T68: 0.0005618826579 | U68: 0.0005618826579 | W68: 0.3642164279 | X68: 0.6357835721 | Z68: 5.618166902 | AA68: 5.618166902
B69: 0.89376 | D69: -2.678635826 | E69: 0.3603768572 | F69: -0.319983147 | G69: 0.8962730058 | H69: -2.397858048 | I69: 0.3744905531 | J69: 0.6255094469 | L69: -0.3949201576 | M69: 0.8912540403 | N69: -2.959413603 | O69: 0.3464509065 | Q69: 1.665439571 | R69: 4.091849389 | T69: 0.0005658584537 | U69: 0.0005658584537 | W69: 0.3745020334 | X69: 0.6254979666 | Z69: 5.657914468 | AA69: 5.657914468
B70: 0.895584 | D70: -2.474762157 | E70: 0.3706071791 | F70: -0.292777142 | G70: 0.8981021344 | H70: -2.193984379 | I70: 0.3848462506 | J70: 0.6151537494 | L70: -0.3677141526 | M70: 0.8930729261 | N70: -2.755539934 | O70: 0.3565431933 | Q70: 1.734690096 | R70: 3.978699914 | T70: 0.0005694322381 | U70: 0.0005694322381 | W70: 0.3848564999 | X70: 0.6151435001 | Z70: 5.693643426 | AA70: 5.693643426
B71: 0.897408 | D71: -2.271303287 | E71: 0.380908734 | F71: -0.26562649 | G71: 0.899931263 | H71: -1.990525509 | I71: 0.3952634411 | J71: 0.6047365589 | L71: -0.3405635005 | M71: 0.8948918119 | N71: -2.552081065 | O71: 0.3667161054 | Q71: 1.805835222 | R71: 3.86744504 | T71: 0.00057259868 | U71: 0.00057259868 | W71: 0.3952724446 | X71: 0.6047275554 | Z71: 5.725300484 | AA71: 5.725300484
B72: 0.899232 | D72: -2.068257532 | E72: 0.3912742361 | F72: -0.2385309662 | G72: 0.9017603915 | H72: -1.787479754 | I72: 0.4057346504 | J72: 0.5942653496 | L72: -0.3134679768 | M72: 0.8967106977 | N72: -2.34903531 | O72: 0.3769625732 | Q72: 1.878885484 | R72: 3.758095302 | T72: 0.0005753533631 | U72: 0.0005753533631 | W72: 0.4057423961 | X72: 0.5942576039 | Z72: 5.75284149 | AA72: 5.75284149
B73: 0.901056 | D73: -1.865623217 | E73: 0.4016963051 | F73: -0.2114903473 | G73: 0.9035895201 | H73: -1.584845439 | I73: 0.4162523318 | J73: 0.5837476682 | L73: -0.2864273579 | M73: 0.8985295835 | N73: -2.146400995 | O73: 0.3872754117 | Q73: 1.953850048 | R73: 3.650659866 | T73: 0.0005776927927 | U73: 0.0005776927927 | W73: 0.4162588104 | X73: 0.5837411896 | Z73: 5.776231503 | AA73: 5.776231503
B74: 0.90288 | D74: -1.663398679 | E74: 0.4121674835 | F74: -0.1845044112 | G74: 0.9054186487 | H74: -1.382620901 | I74: 0.4268088835 | J74: 0.5731911165 | L74: -0.2594414218 | M74: 0.9003484693 | N74: -1.944176457 | O74: 0.3976473368 | Q74: 2.030736698 | R74: 3.545146516 | T74: 0.000579614399 | U74: 0.000579614399 | W74: 0.4268140886 | X74: 0.5731859114 | Z74: 5.795444826 | AA74: 5.795444826
B75: 0.904704 | D75: -1.461582264 | E75: 0.4226802521 | F75: -0.1575729371 | G75: 0.9072477773 | H75: -1.180804486 | I75: 0.4373966651 | J75: 0.5626033349 | L75: -0.2325099477 | M75: 0.902167355 | N75: -1.742360041 | O75: 0.4080709809 | Q75: 2.109551828 | R75: 3.441561645 | T75: 0.0005811165375 | U75: 0.0005811165375 | W75: 0.4374005931 | X75: 0.5625994069 | Z75: 5.810465006 | AA75: 5.810465006
B76: 0.906528 | D76: -1.260172326 | E76: 0.4332270477 | F76: -0.1306957058 | G76: 0.9090769059 | H76: -0.9793945486 | I76: 0.4480080148 | J76: 0.5519919852 | L76: -0.2056327163 | M76: 0.9039862408 | N76: -1.540950104 | O76: 0.4185389098 | Q76: 2.190300435 | R76: 3.339910252 | T76: 0.0005821984851 | U76: 0.0005821984851 | W76: 0.4480106649 | X76: 0.5519893351 | Z76: 5.821284803 | AA76: 5.821284803
B77: 0.908352 | D77: -1.059167234 | E77: 0.443800279 | F77: -0.103872499 | G77: 0.9109060345 | H77: -0.7783894558 | I77: 0.4586352658 | J77: 0.5413647342 | L77: -0.1788095096 | M77: 0.9058051266 | N77: -1.339945011 | O77: 0.429043639 | Q77: 2.272986118 | R77: 3.240195936 | T77: 0.0005828604342 | U77: 0.0005828604342 | W77: 0.4586366401 | X77: 0.5413633599 | Z77: 5.827906124 | AA77: 5.827906124
B78: 0.910176 | D78: -0.8585653609 | E78: 0.4543923435 | F78: -0.07710310013 | G78: 0.912735163 | H78: -0.5777875831 | I78: 0.4692707634 | J78: 0.5307292366 | L78: -0.1520401107 | M78: 0.9076240124 | N78: -1.139343139 | O78: 0.4395776498 | Q78: 2.357611081 | R78: 3.142420898 | T78: 0.0005831034822 | U78: 0.0005831034822 | W78: 0.4692708665 | X78: 0.5307291335 | Z78: 5.830339921 | AA78: 5.830339921
B79: 0.912 | D79: -0.6583650938 | E79: 0.464995644 | F79: -0.05038729368 | G79: 0.9145642916 | H79: -0.377587316 | I79: 0.4799068808 | J79: 0.5200931192 | L79: -0.1253243043 | M79: 0.9094428982 | N79: -0.9391428716 | O79: 0.4501334059 | Q79: =((I79*B79)-(O79*F$9))*100 -> 2.44417613 | R79: 3.046585948 | T79: 0.0005829296188 | U79: 0.0005829296188 | W79: 0.4799057201 | X79: 0.5200942799 | Z79: 5.828606065 | AA79: 5.828606065
B80: 0.913824 | D80: -0.4585648275 | E80: 0.4756026046 | F80: -0.0237248655 | G80: 0.9163934202 | H80: -0.1777870497 | I80: 0.4905360359 | J80: 0.5094639641 | L80: -0.09866187609 | M80: 0.911261784 | N80: -0.7393426053 | O80: 0.4607033698 | Q80: 2.532680688 | R80: 2.952690505 | T80: 0.0005823417101 | U80: 0.0005823417101 | W80: 0.4905336214 | X80: 0.5094663786 | Z80: 5.822733185 | AA80: 5.822733185
B81: 0.915648 | D81: -0.2591629668 | E81: 0.4862056869 | F81: 0.002884397279 | G81: 0.9182225488 | H81: 0.02161481094 | I81: 0.5011507064 | J81: 0.4988492936 | L81: -0.07205261331 | M81: 0.9130806698 | N81: -0.5399407446 | O81: 0.4712800186 | Q81: 2.623122795 | R81: 2.860732613 | T81: 0.0005813434795 | U81: 0.0005813434795 | W81: 0.5011470508 | X81: 0.4988529492 | Z81: 5.812758479 | AA81: 5.812758479
B82: 0.917472 | D82: -0.06015792603 | E82: 0.496797406 | F82: 0.02944070627 | G82: 0.9200516774 | H82: 0.2206198517 | I82: 0.511743446 | J82: 0.488256554 | L82: -0.04549630432 | M82: 0.9148995556 | N82: -0.3409357038 | O82: 0.4818558603 | Q82: 2.715499132 | R82: 2.770708949 | T82: 0.0005799394861 | U82: 0.0005799394861 | W82: 0.5117385643 | X82: 0.4882614357 | Z82: 5.798727497 | AA82: 5.798727497
B83: 0.919296 | D83: 0.1384518711 | E83: 0.5073703451 | F83: 0.05594427181 | G83: 0.921880806 | H83: 0.4192296489 | I83: 0.5223068989 | J83: 0.4776931011 | L83: -0.01899273877 | M83: 0.9167184414 | N83: -0.1423259066 | O83: 0.492423449 | Q83: 2.809805024 | R83: 2.682614841 | T83: 0.0005781351006 | U83: 0.0005781351006 | W83: 0.5223008087 | X83: 0.4776991913 | Z83: 5.780693902 | AA83: 5.780693902
B84: 0.92112 | D84: 0.3366679915 | E84: 0.5179171715 | F84: 0.082395303 | G84: 0.9237099345 | H84: 0.6174457693 | I84: 0.5328338145 | J84: 0.4671661855 | L84: 0.007458292413 | M84: 0.9185373272 | N84: 0.05589021375 | O84: 0.5029754006 | Q84: 2.906034467 | R84: 2.596444284 | T84: 0.0005759364781 | U84: 0.0005759364781 | W84: 0.5328265357 | X84: 0.4671734643 | Z84: 5.758719197 | AA84: 5.758719197
B85: 0.922944 | D85: 0.5344919927 | E85: 0.5284306505 | F85: 0.1087940077 | G85: 0.9255390631 | H85: 0.8152697705 | I85: 0.5433170616 | J85: 0.4566829384 | L85: 0.03385699709 | M85: 0.920356213 | N85: 0.253714215 | O85: 0.5135044076 | Q85: 3.004180144 | R85: 2.512189961 | T85: 0.0005733505294 | U85: 0.0005733505294 | W85: 0.5433086163 | X85: 0.4566913837 | Z85: 5.732872438 | AA85: 5.732872438
B86: 0.924768 | D86: 0.7319254231 | E86: 0.5389036596 | F86: 0.1351405925 | G86: 0.9273681917 | H86: 1.012703201 | I86: 0.5537496418 | J86: 0.4462503582 | L86: 0.06020358189 | M86: 0.9221750988 | N86: 0.4511476453 | O86: 0.5240032535 | Q86: 3.10423345 | R86: 2.429843267 | T86: 0.00057038489 | U86: 0.00057038489 | W86: 0.5537400543 | X86: 0.4462599457 | Z86: 5.703229923 | AA86: 5.703229923
B87: 0.926592 | D87: 0.9289698218 | E87: 0.5493292022 | F87: 0.1614352628 | G87: 0.9291973203 | H87: 1.2097476 | I87: 0.5641247024 | J87: 0.4358752976 | L87: 0.0864982522 | M87: 0.9239939846 | N87: 0.6481920441 | O87: 0.5344648273 | Q87: 3.206184516 | R87: 2.349394333 | T87: 0.0005670478864 | U87: 0.0005670478864 | W87: 0.5641139991 | X87: 0.4358860009 | Z87: 5.669874861 | AA87: 5.669874861
B88: 0.928416 | D88: 1.125626719 | E88: 0.5597004203 | F88: 0.1876782228 | G88: 0.9310264489 | H88: 1.406404497 | I88: 0.5744355487 | J88: 0.4255644513 | L88: 0.1127412122 | M88: 0.9258128704 | N88: 0.8448489413 | O88: 0.5448821365 | Q88: 3.310022237 | R88: 2.270832054 | T88: 0.0005633485015 | U88: 0.0005633485015 | W88: 0.5744237578 | X88: 0.4255762422 | Z88: 5.632897019 | AA88: 5.632897019
B89: 0.93024 | D89: 1.321897636 | E89: 0.5700106073 | F89: 0.2138696755 | G89: 0.9328555775 | H89: 1.602675414 | I89: 0.5846756557 | J89: 0.4153243443 | L89: 0.1389326649 | M89: 0.9276317562 | N89: 1.041119858 | O89: 0.5552483208 | Q89: 3.415734303 | R89: 2.19414412 | T89: 0.0005592963382 | U89: 0.0005592963382 | W89: 0.5846628074 | X89: 0.4153371926 | Z89: 5.592392363 | AA89: 5.592392363
B90: 0.932064 | D90: 1.517784084 | E90: 0.5802532195 | F90: 0.2400098227 | G90: 0.934684706 | H90: 1.798561862 | I90: 0.5948386791 | J90: 0.4051613209 | L90: 0.1650728121 | M90: 0.929450642 | N90: 1.237006307 | O90: 0.5655566639 | Q90: 3.523307229 | R90: 2.119317046 | T90: 0.0005549015814 | U90: 0.0005549015814 | W90: 0.5948248052 | X90: 0.4051751948 | Z90: 5.548462677 | AA90: 5.548462677
B91: 0.933888 | D91: 1.713287568 | E91: 0.590421887 | F91: 0.2660988649 | G91: 0.9365138346 | H91: 1.994065346 | I91: 0.6049184654 | J91: 0.3950815346 | L91: 0.1911618543 | M91: 0.9312695278 | N91: 1.43250979 | O91: 0.5758006059 | Q91: 3.632726391 | R91: 2.046336209 | T91: 0.0005501749589 | U91: 0.0005501749589 | W91: 0.6049035992 | X91: 0.3950964008 | Z91: 5.501215171 | AA91: 5.501215171
B92: 0.935712 | D92: 1.908409581 | E92: 0.6005104248 | F92: 0.2921370017 | G92: 0.9383429632 | H92: 2.189187359 | I92: 0.6149090616 | J92: 0.3850909384 | L92: 0.2171999911 | M92: 0.9330884136 | N92: 1.627631803 | O92: 0.5859737542 | Q92: 3.743976062 | R92: 1.975185879 | T92: 0.0005451277011 | U92: 0.0005451277011 | W92: 0.6148932381 | X92: 0.3851067619 | Z92: 5.450762083 | AA92: 5.450762083
B93: 0.937536 | D93: =(LN(B93/F$9))*100 -> 2.10315161 | E93: 0.6105128418 | F93: =((LN(B93/F$9))/(F$10/100))+(F$11/100) -> 0.3181244313 | G93: =F$9+((EXP(F93*(F$10/100))-1)*F$9) -> 0.9401720918 | H93: =(LN(G93/F$9))*100 -> 2.383929387 | I93: =NORMDIST(H93,0,F$10,1) -> 0.624804724 | J93: =1-I93 -> 0.375195276 | L93: =((LN(B93/F$9))/(F$10/100))-(F$11/100) -> 0.2431874207 | M93: =F$9+((EXP(L93*(F$10/100))-1)*F$9) -> 0.9349072994 | N93: =(LN(M93/F$9))*100 -> 1.822373832 | O93: =NORMDIST(N93,0,F$10,1) -> 0.5960698944 | Q93: 3.857039445 | R93: 1.905849262 | T93: 0.0005397715005 | U93: 0.0005397715005 | W93: 0.6247879793 | X93: 0.3752120207 | Z93: 5.397220267 | AA93: 5.397220267
B94: 0.93936 | D94: 2.29751513 | E94: =NORMDIST(D94,0,F$10,1) -> 0.62042335 | F94: 0.3440613507 | G94: 0.9420012204 | H94: 2.578292908 | I94: 0.634599926 | J94: 0.365400074 | L94: 0.2691243401 | M94: 0.9367261852 | N94: 2.016737353 | O94: 0.6060829998 | Q94: =((I94*B94)-(O94*F$9))*100 -> 3.971898717 | R94: =Q94+((F$9-B94)*100) -> 1.838308534 | T94: 0.0005341184697 | U94: 0.0005341184697 | W94: 0.6345822976 | X94: 0.3654177024 | Z94: 5.340710779 | AA94: 5.340710779
B95: =B94+F$5 -> 0.941184 | D95: 2.491501612 | E95: 0.630236373 | F95: 0.3699479561 | G95: 0.943830349 | H95: 2.77227939 | I95: 0.6442893657 | J95: 0.3557106343 | L95: 0.2950109455 | M95: 0.938545071 | N95: 2.210723834 | O95: 0.6160072408 | Q95: 4.088535067 | R95: 1.772544884 | T95: =((I96-I94)/(B96-B94))/10000 -> 0.0005281810996 | U95: =-((J96-J94)/(B96-B94))/10000 -> 0.0005281810996 | W95: =((Q96-Q94)/(B96-B94))/100 -> 0.6442708922 | X95: =-((R96-R94)/(B96-B94))/100 -> 0.3557291078 | Z95: 5.28135846 | AA95: 5.28135846
B96: 0.943008 | D96: 2.685112515 | E96: 0.6399465535 | F96: 0.3957844421 | G96: 0.9456594775 | H96: 2.965890293 | I96: 0.6538679725 | J96: 0.3461320275 | L96: 0.3208474315 | M96: 0.9403639568 | N96: 2.404334737 | O96: 0.6258369935 | Q96: 4.206928738 | R96: 1.708538556 | T96: 0.0005219722173 | U96: 0.0005219722173 | W96: 0.6538486933 | X96: 0.3461513067 | Z96: =(W97-W95)/(B97-B95) -> 5.219291506 | AA96: =-(X97-X95)/(B97-B95) -> 5.219291506
B97: 0.944832 | D97: 2.87834929 | E97: 0.6495487597 | F97: 0.4215710025 | G97: 0.9474886061 | H97: 3.159127068 | I97: 0.6633309122 | J97: 0.3366690878 | L97: 0.3466339919 | M97: 0.9421828426 | N97: 2.597571512 | O97: 0.6355668472 | Q97: 4.32705907 | R97: 1.646268888 | T97: 0.0005155049434 | U97: 0.0005155049434 | W97: 0.6633108677 | X97: 0.3366891323 | Z97: 5.154641056 | AA97: 5.154641056
B98: 0.946656 | D98: 3.071213381 | E98: 0.6590380915 | F98: 0.4473078299 | G98: 0.9493177347 | H98: 3.351991158 | I98: 0.6726735928 | J98: 0.3273264072 | L98: 0.3723708193 | M98: 0.9440017284 | N98: 2.790435603 | O98: 0.6451916114 | Q98: 4.448904543 | R98: 1.58571436 | T98: 0.0005087926498 | U98: 0.0005087926498 | W98: 0.6726528239 | X98: 0.3273471761 | Z98: 5.087540759 | AA98: 5.087540759
B99: 0.94848 | D99: 3.263706222 | E99: 0.668409886 | F99: 0.4729951157 | G99: 0.9511468633 | H99: 3.544483999 | I99: 0.6818916681 | J99: 0.3181083319 | L99: 0.3980581051 | M99: 0.9458206142 | N99: 2.982928444 | O99: 0.6547063223 | Q99: 4.57244282 | R99: 1.526852638 | T99: 0.0005018489182 | U99: 0.0005018489182 | W99: 0.6818702163 | X99: 0.3181297837 | Z99: 5.01812636 | AA99: 5.01812636
B100: 0.950304 | D100: 3.455829239 | E100: 0.6776597216 | F100: 0.4986330503 | G100: 0.9529759919 | H100: 3.736607017 | I100: 0.6909810413 | J100: 0.3090189587 | L100: 0.4236960397 | M100: 0.9476395 | N100: 3.175051462 | O100: 0.6641062481 | Q100: 4.697650798 | R100: 1.469660615 | T100: 0.0004946874978 | U100: 0.0004946874978 | W100: 0.6909589488 | X100: 0.3090410512 | Z100: 4.946535285 | AA100: 4.946535285
B101: 0.952128 | D101: 3.647583852 | E101: 0.686783422 | F101: 0.524221823 | G101: 0.9548051205 | H101: 3.92836163 | I101: 0.699937868 | J101: 0.300062132 | L101: 0.4492848124 | M101: 0.9494583858 | N101: 3.366806074 | O101: 0.6733868938 | Q101: 4.824504645 | R101: 1.414114462 | T101: 0.0004873222648 | U101: 0.0004873222648 | W101: 0.6999151771 | X101: 0.3000848229 | Z101: 4.872906229 | AA101: 4.872906229
B102: 0.953952 | D102: 3.83897147 | E102: 0.695777059 | F102: 0.5497616219 | G102: 0.956634249 | H102: 4.119749248 | I102: 0.7087585576 | J102: 0.2912414424 | L102: 0.4748246113 | M102: 0.9512772716 | N102: 3.558193693 | O102: 0.6825440053 | Q102: 4.952979854 | R102: 1.360189672 | T102: 0.0004797671821 | U102: 0.0004797671821 | W102: 0.7087353108 | X102: 0.2912646892 | Z102: 4.797378755 | AA102: 4.797378755
B103: 0.955776 | D103: 4.029993496 | E103: 0.7046369549 | F103: 0.5752526342 | G103: 0.9584633776 | H103: 4.310771274 | I103: 0.7174397748 | J103: 0.2825602252 | L103: 0.5003156236 | M103: 0.9530961573 | N103: 3.749215718 | O103: 0.6915735726 | Q103: 5.083051286 | R103: 1.307861104 | T103: 0.0004720362599 | U103: 0.0004720362599 | W103: 0.7174160148 | X103: 0.2825839852 | Z103: 4.720092899 | AA103: 4.720092899
B104: 0.9576 | D104: 4.220651323 | E104: 0.7133596838 | F104: 0.6006950458 | G104: 0.9602925062 | H104: 4.501429101 | I104: 0.7259784403 | J104: 0.2740215597 | L104: 0.5257580353 | M104: 0.9549150431 | N104: 3.939873545 | O104: 0.7004718325 | Q104: 5.214693216 | R104: 1.257103034 | T104: 0.000464143517 | U104: 0.000464143517 | W104: 0.7259542096 | X104: 0.2740457904 | Z104: 4.64118879 | AA104: 4.64118879
B105: 0.959424 | D105: 4.410946338 | E105: 0.7219420728 | F105: 0.6260890418 | G105: 0.9621216348 | H105: 4.691724116 | I105: 0.7343717303 | J105: 0.2656282697 | L105: 0.5511520312 | M105: 0.9567339289 | N105: 4.13016856 | O105: 0.70923527 | Q105: 5.347879382 | R105: 1.2078892 | T105: 0.000456102944 | U105: 0.000456102944 | W105: 0.7343470715 | X105: 0.2656529285 | Z105: 4.560806272 | AA105: 4.560806272
B106: 0.961248 | D106: 4.600879918 | E106: 0.7303812019 | F106: 0.6514348061 | G106: 0.9639507634 | H106: 4.881657696 | I106: 0.7426170757 | J106: 0.2573829243 | L106: 0.5764977955 | M106: 0.9585528147 | N106: 4.32010214 | O106: 0.7178606202 | Q106: 5.482583028 | R106: 1.160192846 | T106: 0.0004479284669 | U106: 0.0004479284669 | W106: 0.7425920309 | X106: 0.2574079691 | Z106: 4.479084548 | AA106: 4.479084548
B107: 0.963072 | D107: 4.790453435 | E107: 0.7386744034 | F107: 0.6767325215 | G107: 0.965779892 | H107: 5.071231212 | I107: 0.7507121608 | J107: 0.2492878392 | L107: 0.6017955109 | M107: 0.9603717005 | N107: 4.509675657 | O107: 0.7263448682 | Q107: 5.618776955 | R107: 1.113986772 | T107: 0.0004396339127 | U107: 0.0004396339127 | W107: 0.7506867719 | X107: 0.2493132281 | Z107: 4.396161832 | AA107: 4.396161832
B108: 0.964896 | D108: 4.97966825 | E108: 0.7468192609 | F108: 0.7019823698 | G108: 0.9676090205 | H108: 5.260446028 | I108: 0.7586549209 | J108: 0.2413450791 | L108: 0.6270453592 | M108: 0.9621905863 | N108: 4.698890472 | O108: 0.7346852487 | Q108: 5.756433563 | R108: 1.06924338 | T108: 0.0004312329757 | U108: 0.0004312329757 | W108: 0.7586292293 | X108: 0.2413707707 | Z108: 4.312175013 | AA108: 4.312175013
B109: 0.96672 | D109: 5.168525719 | E109: 0.7548136073 | F109: 0.7271845319 | G109: 0.9694381491 | H109: 5.449303496 | I109: 0.7664435397 | J109: 0.2335564603 | L109: 0.6522475213 | M109: 0.9640094721 | N109: 4.887747941 | O109: 0.7428792459 | Q109: 5.895524898 | R109: 1.025934715 | T109: 0.000422739186 | U109: 0.000422739186 | W109: 0.7664175863 | X109: 0.2335824137 | Z109: 4.227259343 | AA109: 4.227259343
B110: 0.968544 | D110: 5.357027188 | E110: 0.7626555228 | F110: 0.7523391875 | G110: 0.9712672777 | H110: 5.637804966 | I110: 0.7740764464 | J110: 0.2259235536 | L110: 0.6774021769 | M110: 0.9658283579 | N110: 5.07624941 | O110: 0.7509245912 | Q110: 6.036022698 | R110: 0.9840325156 | T110: 0.0004141658791 | U110: 0.0004141658791 | W110: 0.7740502714 | X110: 0.2259497286 | Z110: 4.141548131 | AA110: 4.141548131
B111: 0.970368 | D111: 5.545173998 | E111: 0.7703433313 | F111: 0.7774465155 | G111: 0.9730964063 | H111: 5.825951776 | I111: 0.781552311 | J111: 0.218447689 | L111: 0.7025095049 | M111: 0.9676472437 | N111: 5.26439622 | O111: 0.7588192619 | Q111: 6.177898437 | R111: 0.9435082543 | T111: 0.0004055261677 | U111: 0.0004055261677 | W111: 0.7815259539 | X111: 0.2184740461 | Z111: 4.055172456 | AA111: 4.055172456
B112: 0.972192 | D112: 5.732967481 | E112: 0.7778755975 | F112: 0.8025066935 | G112: 0.9749255349 | H112: 6.013745258 | I112: 0.788870041 | J112: 0.211129959 | L112: 0.7275696829 | M112: 0.9694661295 | N112: 5.452189703 | O112: 0.7665614776 | Q112: 6.321123366 | R112: 0.9043331836 | T112: 0.0003968329143 | U112: 0.0003968329143 | W112: 0.7888435405 | X112: 0.2111564595 | Z112: 3.968260902 | AA112: 3.968260902
B113: 0.974016 | D113: 5.92040896 | E113: 0.7852511225 | F113: 0.8275198983 | G113: 0.9767546635 | H113: 6.201186738 | I113: 0.7960287757 | J113: 0.2039712243 | L113: 0.7525828877 | M113: 0.9712850153 | N113: 5.639631182 | O113: 0.774149698 | Q113: 6.46566856 | R113: 0.8664783778 | T113: 0.0003880987061 | U113: 0.0003880987061 | W113: 0.7960021697 | X113: 0.2039978303 | Z113: 3.880939303 | AA113: 3.880939303
B114: 0.97584 | D114: 6.107499754 | E114: 0.7924689395 | F114: 0.8524863057 | G114: 0.978583792 | H114: 6.388277531 | I114: 0.8030278818 | J114: 0.1969721182 | L114: 0.7775492951 | M114: 0.9731039011 | N114: 5.826721976 | O114: 0.7815826186 | Q114: 6.611504958 | R114: 0.8299147751 | T114: 0.0003793358322 | U114: 0.0003793358322 | W114: 0.8030012071 | X114: 0.1969987929 | Z114: 3.793330512 | AA114: 3.793330512
B115: 0.977664 | D115: 6.294241171 | E115: 0.7995283087 | F115: 0.8774060905 | G115: 0.9804129206 | H115: 6.575018949 | I115: 0.8098669469 | J115: 0.1901330531 | L115: 0.8024690799 | M115: 0.9749227869 | N115: 6.013463393 | O115: 0.7888591663 | Q115: 6.758603401 | R115: 0.7946132182 | T115: 0.0003705562611 | U115: 0.0003705562611 | W115: 0.8098402394 | X115: 0.1901597606 | Z115: 3.705554183 | AA115: 3.705554183
B116: 0.979488 | D116: 6.480634515 | E116: 0.806428712 | F116: 0.9022794264 | G116: 0.9822420492 | H116: 6.761412293 | I116: 0.8165457742 | J116: 0.1834542258 | L116: 0.8273424158 | M116: 0.9767416727 | N116: 6.199856737 | O116: 0.7959784955 | Q116: 6.906934677 | R116: 0.7605444944 | T116: 0.0003617716215 | U116: 0.0003617716215 | W116: 0.8165190687 | X116: 0.1834809313 | Z116: 3.617726573 | AA116: 3.617726573
B117: 0.981312 | D117: 6.66668108 | E117: 0.8131698474 | F117: 0.9271064863 | G117: 0.9840711778 | H117: 6.947458858 | I117: 0.8230643756 | J117: 0.1769356244 | L117: 0.8521694757 | M117: 0.9785605585 | N117: 6.385903302 | O117: 0.8029399822 | Q117: 7.056469557 | R117: 0.7276793744 | T117: 0.0003529931842 | U117: 0.0003529931842 | W117: 0.8230377059 | X117: 0.1769622941 | Z117: 3.529960362 | AA117: 3.529960362
B118: 0.983136 | D118: 6.852382155 | E118: 0.8197516225 | F118: 0.9518874421 | G118: 0.9859003064 | H118: 7.133159933 | I118: 0.8294229655 | J118: 0.1705770345 | L118: 0.8769504315 | M118: 0.9803794443 | N118: 6.571604377 | O118: 0.8097432189 | Q118: 7.207178832 | R118: 0.6959886496 | T118: 0.0003442318457 | U118: 0.0003442318457 | W118: 0.8293963641 | X118: 0.1706036359 | Z118: 3.442364491 | AA118: 3.442364491
B119: 0.98496 | D119: 7.03773902 | E119: 0.8261741483 | F119: 0.9766224647 | G119: 0.987729435 | H119: 7.318516798 | I119: 0.8356219534 | J119: 0.1643780466 | L119: 0.9016854541 | M119: 0.9821983301 | N119: 6.756961242 | O119: 0.8163880089 | Q119: 7.35903335 | R119: 0.6654431681 | T119: 0.0003354981139 | U119: 0.0003354981139 | W119: 0.8355954516 | X119: 0.1644045484 | Z119: 3.355044018 | AA119: 3.355044018
B120: 0.986784 | D120: 7.222752949 | E120: 0.8324377325 | F120: 1.001311724 | G120: 0.9895585635 | H120: 7.503530726 | I120: 0.8416619367 | J120: 0.1583380633 | L120: 0.9263747135 | M120: 0.9840172159 | N120: 6.941975171 | O120: 0.8228743598 | Q120: 7.512004053 | R120: 0.6360138703 | T120: 0.0003268020955 | U120: 0.0003268020955 | W120: 0.8416355647 | X120: 0.1583644353 | Z120: 3.268099992 | AA120: 3.268099992
B121: 0.988608 | D121: 7.407425208 | E121: 0.8385428725 | F121: 1.025955389 | G121: 0.9913876921 | H121: 7.688202986 | I121: 0.8475436938 | J121: 0.1524563062 | L121: 0.9510183786 | M121: 0.9858361017 | N121: 7.12664743 | O121: 0.8292024768 | Q121: 7.666062004 | R121: 0.6076718221 | T121: 0.0003181534851 | U121: 0.0003181534851 | W121: 0.8475174804 | X121: 0.1524825196 | Z121: 3.181629344 | AA121: 3.181629344
B122: 0.990432 | D122: 7.591757057 | E122: 0.8444902481 | F122: 1.050553628 | G122: 0.9932168207 | H122: 7.872534835 | I122: 0.8532681759 | J122: 0.1467318241 | L122: 0.9756166175 | M122: 0.9876549875 | N122: 7.31097928 | O122: 0.8353727567 | Q122: 7.82117843 | R122: 0.5803882471 | T122: 0.000309561556 | U122: 0.000309561556 | W122: 0.8532421486 | X122: 0.1467578514 | Z122: 3.095724794 | AA122: 3.095724794
B123: 0.992256 | D123: 7.77574975 | E123: 0.8502807141 | F123: 1.075106608 | G123: 0.9950459493 | H123: 8.056527527 | I123: 0.8588364994 | J123: 0.1411635006 | L123: 1.000169598 | M123: 0.9894738733 | N123: 7.494971972 | O123: 0.8413857802 | Q123: 7.97732474 | R123: 0.5541345579 | T123: 0.0003010351528 | U123: 0.0003010351528 | W123: 0.8588106844 | X123: 0.1411893156 | Z123: 3.010474779 | AA123: 3.010474779
B124: 0.99408 | D124: 7.95940453 | E124: 0.8559152928 | F124: 1.099614495 | G124: 0.9968750779 | H124: 8.240182308 | I124: 0.8642499382 | J124: 0.1357500618 | L124: 1.024677485 | M124: 0.9912927591 | N124: 7.678626753 | O124: 0.8472423049 | Q124: 8.134472567 | R124: 0.5288823848 | T124: 0.0002925826855 | U124: 0.0002925826855 | W124: 0.8642243605 | X124: 0.1357756395 | Z124: 2.925963392 | AA124: 2.925963392
B125: 0.995904 | D125: 8.142722638 | E125: 0.861395166 | F125: 1.124077455 | G125: 0.9987042065 | H125: 8.423500416 | I125: 0.8695099157 | J125: 0.1304900843 | L125: 1.049140445 | M125: 0.9931116449 | N125: 7.861944861 | O125: 0.852943258 | Q125: 8.292593787 | R125: 0.5046036046 | T125: 0.0002842121253 | U125: 0.0002842121253 | W125: 0.8694845989 | X125: 0.1305154011 | Z125: 2.842270338 | AA125: 2.842270338
B126: 0.997728 | D126: 8.325705306 | E126: 0.8667216678 | F126: 1.148495652 | G126: 1.000533335 | H126: 8.606483084 | I126: 0.8746179966 | J126: 0.1253820034 | L126: 1.073558642 | M126: 0.9949305307 | N126: 8.044927528 | O126: 0.8584897287 | Q126: 8.451660549 | R126: 0.4812703665 | T126: 0.0002759310016 | U126: 0.0002759310016 | W126: 0.8745929627 | X126: 0.1254070373 | Z126: 2.759470913 | AA126: 2.759470913
B127: 0.999552 | D127: 8.508353759 | E127: 0.871896276 | F127: 1.17286925 | G127: 1.002362464 | H127: 8.789131537 | I127: 0.8795758787 | J127: 0.1204241213 | L127: 1.097932239 | M127: 0.9967494165 | N127: 8.227575981 | O127: 0.8638829604 | Q127: 8.6116453 | R127: 0.4588551174 | T127: 0.0002677464013 | U127: 0.0002677464013 | W127: 0.8795511488 | X127: 0.1204488512 | Z127: 2.677635984 | AA127: 2.677635984
B128: 1.001376 | D128: 8.690669215 | E128: 0.8769206047 | F128: 1.19719841 | G128: 1.004191592 | H128: 8.971446993 | I128: 0.8843853853 | J128: 0.1156146147 | L128: 1.122261399 | M128: 0.9985683023 | N128: 8.409891437 | O128: 0.8691243433 | Q128: 8.772520808 | R128: 0.4373306256 | T128: 0.0002596649686 | U128: 0.0002596649686 | W128: 0.8843609788 | X128: 0.1156390212 | Z128: 2.596831995 | AA128: 2.596831995
B129: 1.0032 | D129: 8.872652887 | E129: 0.8817963959 | F129: 1.221483295 | G129: 1.006020721 | H129: 9.153430664 | I129: 0.8890484567 | J129: 0.1109515433 | L129: 1.146546285 | M129: 1.000387188 | N129: 8.591875109 | O129: 0.8742154063 | Q129: 8.934260185 | R129: 0.4166700025 | T129: 0.0002516929066 | U129: 0.0002516929066 | W129: 0.8890243919 | X129: 0.1109756081 | Z129: 2.517120982 | AA129: 2.517120982
B130: 1.005024 | D130: 9.054305979 | E130: 0.886525512 | F130: 1.245724067 | G130: 1.007849849 | H130: 9.335083757 | I130: 0.8935671425 | J130: 0.1064328575 | L130: 1.170787056 | M130: 1.002206074 | N130: 8.773528202 | O130: 0.879157809 | Q130: 9.096836906 | R130: 0.3968467237 | T130: 0.00024383598 | U130: 0.00024383598 | W130: 0.8935434362 | X130: 0.1064565638 | Z130: 2.4385606 | AA130: 2.4385606
B131: 1.006848 | D131: 9.235629692 | E131: 0.8911099274 | F131: 1.269920884 | G131: 1.009678978 | H131: 9.516407469 | I131: 0.8979435933 | J131: 0.1020564067 | L131: 1.194983873 | M131: 1.00402496 | N131: 8.954851914 | O131: 0.8839533345 | Q131: 9.26022483 | R131: 0.377834648 | T131: 0.0002360995194 | U131: 0.0002360995194 | W131: 0.897920261 | X131: 0.102079739 | Z131: 2.361204163 | AA131: 2.361204163
B132: 1.008672 | D132: 9.416625216 | E132: 0.8955517208 | F132: 1.294073905 | G132: 1.011508107 | H132: 9.697402994 | I132: 0.902180053 | J132: 0.09781994702 | L132: 1.219136895 | M132: 1.005843845 | N132: 9.135847438 | O132: 0.8886038807 | Q132: 9.424398217 | R132: 0.3596080349 | T132: 0.0002284884264 | U132: 0.0002284884264 | W132: 0.9021571089 | X132: 0.09784289106 | Z132: 2.285100698 | AA132: 2.285100698
B133: 1.010496 | D133: 9.597293739 | E133: 0.8998530676 | F133: 1.31818329 | G133: 1.013337235 | H133: 9.878071517 | I133: 0.9062788511 | J133: 0.09372114893 | L133: 1.24324628 | M133: 1.007662731 | N133: 9.316515961 | O133: 0.8931114533 | Q133: 9.589331744 | R133: 0.3421415613 | T133: 0.0002210071797 | U133: 0.0002210071797 | W133: 0.9062563083 | X133: 0.0937436917 | Z133: 2.210295002 | AA133: 2.210295002
B134: 1.01232 | D134: 9.777636439 | E134: 0.9040162319 | F134: 1.342249195 | G134: 1.015166364 | H134: 10.05841422 | I134: 0.9102423949 | J134: 0.08975760511 | L134: 1.267312185 | M134: 1.009481617 | N134: 9.496858661 | O134: 0.8974781573 | Q134: 9.755000519 | R134: 0.3254103362 | T134: 0.0002136598424 | U134: 0.0002136598424 | W134: 0.9102202651 | X134: 0.08977973489 | Z134: 2.136827721 | AA134: 2.136827721
B135: 1.014144 | D135: 9.957654489 | E135: 0.9080435589 | F135: 1.366271778 | G135: 1.016995492 | H135: 10.23843227 | I135: 0.9140731621 | J135: 0.08592683788 | L135: 1.291334767 | M135: 1.011300503 | N135: 9.676876711 | O135: 0.9017061901 | Q135: 9.921380096 | R135: 0.309389914 | T135: 0.0002064500703 | U135: 0.0002064500703 | W135: 0.9140514558 | X135: 0.08594854417 | Z135: 2.064735429 | AA135: 2.064735429
B136: 1.015968 | D136: 10.13734906 | E136: 0.9119374674 | F136: 1.390251193 | G136: 1.018824621 | H136: 10.41812683 | I136: 0.9177736935 | J136: 0.08222630655 | L136: 1.315314182 | M136: 1.013119389 | N136: 9.856571279 | O136: 0.9057978331 | Q136: 10.08844649 | R136: 0.2940563073 | T136: 0.0001993811208 | U136: 0.0001993811208 | W136: 0.91775242 | X136: 0.08224758005 | Z136: 1.994050715 | AA136: 1.994050715
B137: 1.017792 | D137: 10.3167213 | E137: 0.9157004429 | F137: 1.414187595 | G137: 1.020653749 | H137: 10.59749908 | I137: 0.9213465854 | J137: 0.07865341459 | L137: 1.339250585 | M137: 1.014938274 | N137: 10.03594352 | O137: 0.9097554451 | Q137: 10.25617618 | R137: 0.2793859968 | T137: 0.0001924558627 | U137: 0.0001924558627 | W137: 0.9213257528 | X137: 0.07867424717 | Z137: 1.924802285 | AA137: 1.924802285
B138: 1.019616 | D138: 10.49577238 | E138: 0.9193350296 | F138: 1.438081139 | G138: 1.022482878 | H138: 10.77655016 | I138: 0.9247944833 | J138: 0.07520551667 | L138: 1.363144129 | M138: 1.01675716 | N138: 10.2149946 | O138: 0.9135814543 | Q138: 10.42454612 | R138: 0.2653559419 | T138: 0.0001856767868 | U138: 0.0001856767868 | W138: 0.9247740987 | X138: 0.07522590131 | Z138: 1.857015065 | AA138: 1.857015065
B139: 1.02144 | D139: 10.67450344 | E139: 0.9228438242 | F139: 1.461931978 | G139: 1.024312007 | H139: 10.95528121 | I139: 0.9281200746 | J139: 0.07187992541 | L139: 1.386994968 | M139: 1.018576046 | N139: 10.39372566 | O139: 0.9172783514 | Q139: 10.59353377 | R139: 0.251943588 | T139: 0.0001790460169 | U139: 0.0001790460169 | W139: 0.9281001438 | X139: 0.07189985621 | Z139: 1.790710313 | AA139: 1.790710313
B140: 1.023264 | D140: 10.85291562 | E140: 0.9262294688 | F140: 1.485740265 | G140: 1.026141135 | H140: 11.13369339 | I140: 0.931326082 | J140: 0.06867391798 | L140: 1.410803254 | M140: 1.020394932 | N140: 10.57213784 | O140: 0.9208486826 | Q140: 10.76311706 | R140: 0.2391268744 | T140: 0.0001725653216 | U140: 0.0001725653216 | W140: 0.9313066099 | X140: 0.06869339009 | Z140: 1.725905734 | AA140: 1.725905734
B141: 1.025088 | D141: 11.03101005 | E141: 0.9294946438 | F141: 1.50950615 | G141: 1.027970264 | H141: 11.31178783 | I141: 0.9344152575 | J141: 0.06558474248 | L141: 1.434569139 | M141: 1.022213818 | N141: 10.75023228 | O141: 0.924295043 | Q141: 10.93327442 | R141: 0.2268842393 | T141: 0.0001662361263 | U141: 0.0001662361263 | W141: 0.9343962479 | X141: 0.06560375209 | Z141: 1.662615606 | AA141: 1.662615606
B142: 1.026912 | D142: 11.20878788 | E142: 0.9326420624 | F142: 1.533229784 | G142: 1.029799392 | H142: 11.48956566 | I142: 0.9373903759 | J142: 0.06260962409 | L142: 1.458292773 | M142: 1.024032703 | N142: 10.9280101 | O142: 0.9276200694 | Q142: 11.10398481 | R142: 0.2151946256 | T142: 0.000160059526 | U142: 0.000160059526 | W142: 0.9373718316 | X142: 0.06262816836 | Z142: 1.600850898 | AA142: 1.600850898
B143: 1.028736 | D143: 11.38625021 | E143: 0.9356744638 | F143: 1.556911318 | G143: 1.031628521 | H143: 11.66702799 | I143: 0.940254229 | J143: 0.05974577097 | L143: 1.481974307 | M143: 1.025851589 | N143: 11.10547244 | O143: 0.9308264343 | Q143: 11.27522767 | R143: 0.2040374835 | T143: 0.0001540362982 | U143: 0.0001540362982 | W143: 0.940236152 | X143: 0.05976384802 | Z143: 1.540619407 | AA143: 1.540619407
B144: 1.03056 | D144: 11.56339818 | E144: 0.9385946072 | F144: 1.580550901 | G144: 1.03345765 | H144: 11.84417596 | I144: 0.9430096201 | J144: 0.05699037993 | L144: 1.50561389 | M144: 1.027670475 | N144: 11.2826204 | O144: 0.9339168397 | Q144: 11.44698296 | R144: 0.1933927738 | T144: 0.0001481669159 | U144: 0.0001481669159 | W144: 0.9429920112 | X144: 0.05700798877 | Z144: 1.481925888 | AA144: 1.481925888
B145: 1.032384 | D145: 11.74023288 | E145: 0.9414052665 | F145: 1.60414868 | G145: 1.035286778 | H145: 12.02101066 | I145: 0.9456593581 | J145: 0.05434064188 | L145: 1.529211669 | M145: 1.029489361 | N145: 11.45945511 | O145: 0.9368940107 | Q145: 11.61923115 | R145: 0.1832409692 | T145: 0.0001424515615 | U145: 0.0001424515615 | W145: 0.9456422176 | X145: 0.05435778238 | Z145: 1.424772185 | AA145: 1.424772185
B146: 1.034208 | D146: 11.91675544 | E146: 0.9441092244 | F146: 1.627704804 | G146: 1.037115907 | H146: 12.19753321 | I146: 0.948206253 | J146: 0.05179374697 | L146: 1.552767794 | M146: 1.031308247 | N146: 11.63597766 | O146: 0.9397606902 | Q146: 11.79195324 | R146: 0.1735630548 | T146: 0.0001368901401 | U146: 0.0001368901401 | W146: 0.9481895802 | X146: 0.05181041984 | Z146: 1.369157373 | AA146: 1.369157373
B147: 1.036032 | D147: 12.09296694 | E147: 0.9467092673 | F147: 1.65121942 | G147: 1.038945035 | H147: 12.37374471 | I147: 0.9506531104 | J147: 0.04934688956 | L147: 1.576282409 | M147: 1.033127132 | N147: 11.81218916 | O147: 0.9425196331 | Q147: 11.96513071 | R147: 0.1643405281 | T147: 0.0001314822933 | U147: 0.0001314822933 | W147: 0.9506369037 | X147: 0.04936309628 | Z147: 1.315077891 | AA147: 1.315077891
B148: 1.037856 | D148: 12.26886848 | E148: 0.9492081804 | F148: 1.674692673 | G148: 1.040774164 | H148: 12.54964625 | I148: 0.9530027271 | J148: 0.04699727291 | L148: 1.599755662 | M148: 1.034946018 | N148: 11.9880907 | O148: 0.9451736008 | Q148: 12.13874558 | R148: 0.1555553973 | T148: 0.0001262274131 | U148: 0.0001262274131 | W148: 0.9529869843 | X148: 0.04701301569 | Z148: 1.262527681 | AA148: 1.262527681
B149: 1.03968 | D149: 12.44446115 | E149: 0.9516087429 | F149: 1.698124708 | G149: 1.042603292 | H149: 12.72523892 | I149: 0.9552578865 | J149: 0.04474211354 | L149: 1.623187698 | M149: 1.036764904 | N149: 12.16368337 | O149: 0.9477253566 | Q149: 12.31278036 | R149: 0.1471901799 | T149: 0.0001211246555 | U149: 0.0001211246555 | W149: 0.9552426047 | X149: 0.0447573953 | Z149: 1.211498327 | AA149: 1.211498327
B150: 1.041504 | D150: 12.61974603 | E150: 0.9539137231 | F150: 1.721515671 | G150: 1.044432421 | H150: 12.90052381 | I150: 0.9574213545 | J150: 0.04257864548 | L150: 1.646578661 | M150: 1.03858379 | N150: 12.33896825 | O150: 0.9501776602 | Q150: 12.48721808 | R150: 0.1392278995 | T150: 0.0001161729545 | U150: 0.0001161729545 | W150: 0.9574065302 | X150: 0.04259346979 | Z150: 1.161979193 | AA150: 1.161979193
B151: 1.043328 | D151: 12.7947242 | E151: 0.9561258747 | F151: 1.744865705 | G151: 1.04626155 | H151: 13.07550198 | I151: 0.9594958758 | J151: 0.04050412416 | L151: 1.669928694 | M151: 1.040402676 | N151: 12.51394642 | O151: 0.9525332638 | Q151: 12.66204226 | R151: 0.1316520822 | T151: 0.0001113710357 | U151: 0.0001113710357 | W151: 0.9594815048 | X151: 0.04051849521 | Z151: 1.113957555 | AA151: 1.113957555
B152: 1.045152 | D152: 12.96939674 | E152: 0.9582479326 | F152: 1.768174952 | G152: 1.048090678 | H152: 13.25017451 | I152: 0.9614841699 | J152: 0.03851583009 | L152: 1.693237942 | M152: 1.042221561 | N152: 12.68861896 | O152: 0.9547949074 | Q152: 12.83723693 | R152: 0.1244467525 | T152: 0.0001067174298 | U152: 0.0001067174298 | W152: 0.9614702474 | X152: 0.03852975263 | Z152: 1.067418745 | AA152: 1.067418745
B153: 1.046976 | D153: 13.1437647 | E153: 0.9602826089 | F153: 1.791443556 | G153: 1.049919807 | H153: 13.42454247 | I153: 0.9633889277 | J153: 0.03661107232 | L153: 1.716506546 | M153: 1.044040447 | N153: 12.86298692 | O153: 0.9569653145 | Q153: 13.01278661 | R153: 0.1175964284 | T153: 0.0001022104861 | U153: 0.0001022104861 | W153: 0.9633754484 | X153: 0.03662455163 | Z153: 1.022346275 | AA153: 1.022346275
B154: 1.0488 | D154: 13.31782914 | E154: 0.9622325895 | F154: 1.814671658 | G154: 1.051748935 | H154: 13.59860692 | I154: 0.9652128084 | J154: 0.03478719156 | L154: 1.739734647 | M154: 1.045859333 | N154: 13.03705137 | O154: 0.9590471887 | Q154: 13.1886763 | R154: 0.111086116 | T154: 9.784838535e-05 | U154: 9.784838535e-05 | W154: 0.9651997666 | X154: 0.03480023342 | Z154: 0.9787219755 | AA154: 0.9787219755
B155: 1.050624 | D155: 13.49159113 | E155: 0.964100531 | F155: 1.837859397 | G155: 1.053578064 | H155: 13.77236891 | I155: 0.9669584368 | J155: 0.03304156322 | L155: 1.762922387 | M155: 1.047678219 | N155: 13.21081336 | O155: 0.9610432096 | Q155: 13.36489149 | R155: 0.1049013033 | T155: 9.362915309e-05 | U155: 9.362915309e-05 | W155: 0.9669458261 | X155: 0.03305417386 | Z155: 0.9365261235 | AA155: 0.9365261235
B156: 1.052448 | D156: 13.66505171 | E156: 0.9658890574 | F156: 1.861006915 | G156: 1.055407193 | H156: 13.94582949 | I156: 0.9686283999 | J156: 0.03137160006 | L156: 1.786069905 | M156: 1.049497105 | N156: 13.38427394 | O156: 0.9629560299 | Q156: 13.54141814 | R156: 0.0990279534 | T156: 8.955067207e-05 | U156: 8.955067207e-05 | W156: 0.9686162139 | X156: 0.03138378612 | Z156: 0.8957375667 | AA156: 0.8957375667
B157: 1.054272 | D157: =(LN(B157/F$9))*100 -> 13.83821193 | E157: 0.9676007575 | F157: =((LN(B157/F$9))/(F$10/100))+(F$11/100) -> 1.884114351 | G157: =F$9+((EXP(F157*(F$10/100))-1)*F$9) -> 1.057236321 | H157: =(LN(G157/F$9))*100 -> 14.11898971 | I157: =NORMDIST(H157,0,F$10,1) -> 0.9702252453 | J157: =1-I157 -> 0.0297747547 | L157: =((LN(B157/F$9))/(F$10/100))-(F$11/100) -> 1.809177341 | M157: =F$9+((EXP(L157*(F$10/100))-1)*F$9) -> 1.05131599 | N157: =(LN(M157/F$9))*100 -> 13.55743415 | O157: =NORMDIST(N157,0,F$10,1) -> 0.9647882716 | Q157: 13.71824268 | R157: 0.09345249807 | T157: 8.561069469e-05 | U157: 8.561069469e-05 | W157: 0.9702134768 | X157: 0.02978652322 | Z157: 0.856333849 | AA157: 0.856333849
B158: 1.056096 | D158: 14.01107282 | E158: =NORMDIST(D158,0,F$10,1) -> 0.9692381819 | F158: 1.907181843 | G158: 1.05906545 | H158: 14.2918506 | I158: 0.9717514781 | J158: 0.02824852191 | L158: 1.832244833 | M158: 1.053134876 | N158: 13.73029504 | O158: 0.9665425239 | Q158: =((I158*B158)-(O158*F$9))*100 -> 13.89535201 | R158: =Q158+((F$9-B158)*100) -> 0.08816182973 | T158: 8.180685501e-05 | U158: 8.180685501e-05 | W158: 0.9717401198 | X158: 0.02825988024 | Z158: 0.8182913307 | AA158: 0.8182913307
B159: =B158+F$5 -> 1.05792 | D159: 14.18363542 | E159: 0.9708038411 | F159: 1.93020953 | G159: 1.060894578 | H159: 14.4644132 | I159: 0.9732095594 | J159: 0.02679044063 | L159: 1.855272519 | M159: 1.054953762 | N159: 13.90285764 | O159: 0.9682213398 | Q159: 14.07273348 | R159: 0.08314329376 | T159: =((I160-I158)/(B160-B158))/10000 -> 7.813668048e-05 | U159: =-((J160-J158)/(B160-B158))/10000 -> 7.813668048e-05 | W159: =((Q160-Q158)/(B160-B158))/100 -> 0.9731986036 | X159: =-((R160-R158)/(B160-B158))/100 -> 0.02680139644 | Z159: 0.781585305 | AA159: 0.781585305
B160: 1.059744 | D160: 14.35590075 | E160: 0.9723002031 | F160: 1.953197547 | G160: 1.062723707 | H160: 14.63667853 | I160: 0.9746019042 | J160: 0.02539809581 | L160: 1.878260537 | M160: 1.056772648 | N160: 14.07512297 | O160: 0.9698272338 | Q160: 14.25037486 | R160: 0.0783846803 | T160: 7.459760325e-05 | U160: 7.459760325e-05 | W160: 0.974591343 | X160: 0.02540865705 | Z160: =(W161-W159)/(B161-B159) -> 0.7461901118 | AA160: =-(X161-X159)/(B161-B159) -> 0.7461901118
B161: 1.061568 | D161: 14.52786984 | E161: 0.9737296916 | F161: 1.976146032 | G161: 1.064552835 | H161: 14.80864761 | I161: 0.9759308799 | J161: 0.02406912006 | L161: 1.901209022 | M161: 1.058591534 | N161: 14.24709206 | O161: 0.9713626801 | Q161: 14.4282644 | R161: 0.07387421567 | T161: 7.118697116e-05 | U161: 7.118697116e-05 | W161: 0.9759207051 | X161: 0.02407929491 | Z161: 0.7120792471 | AA161: 0.7120792471
B162: 1.063392 | D162: 14.6995437 | E162: 0.9750946841 | F162: 1.999055121 | G162: 1.066381964 | H162: 14.98032148 | I162: 0.9771988049 | J162: 0.0228011951 | L162: 1.92411811 | M162: 1.060410419 | N162: 14.41876592 | O162: 0.9728301097 | Q162: 14.60639074 | R162: 0.06960055352 | T162: 6.790205825e-05 | U162: 6.790205825e-05 | W162: 0.977189008 | X162: 0.02281099196 | Z162: 0.6792254683 | AA162: 0.6792254683
B163: 1.065216 | D163: 14.87092335 | E163: 0.9763975104 | F163: 2.021924948 | G163: 1.068211093 | H163: 15.15170112 | I163: 0.978407947 | J163: 0.02159205298 | L163: 1.946987938 | M163: 1.062229305 | N163: 14.59014557 | O163: 0.9742319096 | Q163: 14.78474295 | R163: 0.0655527658 | T163: 6.474007498e-05 | U163: 6.474007498e-05 | W163: 0.9783985196 | X163: 0.02160148041 | Z163: 0.647600896 | AA163: 0.647600896
B164: 1.06704 | D164: 15.04200979 | E164: 0.9776404513 | F164: 2.044755648 | G164: 1.070040221 | H164: 15.32278756 | I164: 0.9795605228 | J164: 0.02043947717 | L164: 1.969818638 | M164: 1.064048191 | N164: 14.76123201 | O164: 0.9755704201 | Q164: 14.96331052 | R164: 0.06172033347 | T164: 6.169817793e-05 | U164: 6.169817793e-05 | W164: 0.9795514561 | X164: 0.02044854389 | Z164: 0.6171771117 | AA164: 0.6171771117
B165: 1.068864 | D165: 15.21280402 | E165: 0.9788257375 | F165: 2.067547355 | G165: 1.07186935 | H165: 15.4935818 | I165: 0.9806586966 | J165: 0.01934130345 | L165: 1.992610344 | M165: 1.065867077 | N165: 14.93202624 | O165: 0.9768479342 | Q165: 15.14208332 | R165: 0.05809313699 | T165: 5.877347912e-05 | U165: 5.877347912e-05 | W165: 0.9806499817 | X165: 0.0193500183 | Z165: 0.5879252504 | AA165: 0.5879252504
B166: 1.070688 | D166: 15.38330705 | E166: 0.9799555483 | F166: 2.0903002 | G166: 1.073698478 | H166: 15.66408482 | I166: 0.9817045794 | J166: 0.01829542065 | L166: 2.01536319 | M166: 1.067685963 | N166: 15.10252927 | O166: 0.9780666958 | Q166: 15.32105163 | R166: 0.05466144679 | T166: 5.596305492e-05 | U166: 5.596305492e-05 | W166: 0.9816962074 | X166: 0.01830379257 | Z166: 0.5598160899 | AA166: 0.5598160899
B167: 1.072512 | D167: 15.55351985 | E167: 0.9810320112 | F167: 2.113014318 | G167: 1.075527607 | H167: 15.83429763 | I167: 0.9827002288 | J167: 0.0172997712 | L167: 2.038077307 | M167: 1.069504848 | N167: 15.27274208 | O167: 0.9792288989 | Q167: 15.5002061 | R167: 0.05141591346 | T167: 5.326395451e-05 | U167: 5.326395451e-05 | W167: 0.9826921908 | X167: 0.01730780921 | Z167: 0.5328201353 | AA167: 0.5328201353
B168: 1.074336 | D168: 15.72344343 | E168: 0.982057201 | F168: 2.135689839 | G168: 1.077356736 | H168: 16.00422121 | I168: 0.9836476484 | J168: 0.01635235159 | L168: 2.060752828 | M168: 1.071323734 | N168: 15.44266565 | O168: 0.9803366866 | Q168: 15.67953774 | R168: 0.04834755799 | T168: 5.067320789e-05 | U168: 5.067320789e-05 | W168: 0.9836399353 | X168: 0.01636006472 | Z168: 0.5069076996 | AA168: 0.5069076996
B169: 1.07616 | D169: 15.89307875 | E169: 0.9830331394 | F169: 2.158326894 | G169: 1.079185864 | H169: 16.17385653 | I169: 0.9845487874 | J169: 0.01545121258 | L169: 2.083389884 | M169: 1.07314262 | N169: 15.61230098 | O169: 0.9813921502 | Q169: 15.85903794 | R169: 0.04544776185 | T169: 4.818783352e-05 | U169: 4.818783352e-05 | W169: 0.9845413901 | X169: 0.01545860992 | Z169: 0.4820489789 | AA169: 0.4820489789
B170: 1.077984 | D170: 16.0624268 | E170: 0.9839617942 | F170: 2.180925614 | G170: 1.081014993 | H170: 16.34320458 | I170: 0.9854055406 | J170: 0.01459445942 | L170: 2.105988603 | M170: 1.074961506 | N170: 15.78164903 | O170: 0.9823973288 | Q170: 16.03869844 | R170: 0.04270825709 | T170: 4.580484544e-05 | U170: 4.580484544e-05 | W170: 0.98539845 | X170: 0.01460155004 | Z170: 0.4582141251 | AA170: 0.4582141251
B171: 1.079808 | D171: 16.23148855 | E171: 0.9848450798 | F171: 2.203486128 | G171: 1.082844121 | H171: 16.51226633 | I171: 0.9862197482 | J171: 0.01378025182 | L171: 2.128549117 | M171: 1.076780392 | N171: 15.95071077 | O171: 0.9833542089 | Q171: 16.2185113 | R171: 0.0401211164 | T171: 4.352126006e-05 | U171: 4.352126006e-05 | W171: 0.9862129552 | X171: 0.01378704479 | Z171: 0.4353733127 | AA171: 0.4353733127
B172: 1.081632 | D172: 16.40026496 | E172: 0.9856848567 | F172: 2.226008565 | G172: 1.08467325 | H172: 16.68104274 | I172: 0.9869931961 | J172: 0.01300680385 | L172: 2.151071555 | M172: 1.078599277 | N172: 16.11948719 | O172: 0.9842647238 | Q172: 16.39846893 | R172: 0.03767874315 | T172: 4.133410246e-05 | U172: 4.133410246e-05 | W172: 0.9869866918 | X172: 0.0130133082 | Z172: 0.4134968026 | AA172: 0.4134968026
B173: 1.083456 | D173: 16.568757 | E173: 0.9864829314 | F173: 2.248493054 | G173: 1.086502378 | H173: 16.84953478 | I173: 0.9877276162 | J173: 0.01227238376 | L173: 2.173556043 | M173: 1.080418163 | N173: 16.28797922 | O173: 0.9851307537 | Q173: 16.57856404 | R173: 0.03537386157 | T173: 3.924041231e-05 | U173: 3.924041231e-05 | W173: 0.9877213915 | X173: 0.01227860845 | Z173: 0.3925550003 | AA173: 0.3925550003
B174: 1.08528 | D174: 16.73696562 | E174: 0.9872410568 | F174: 2.270939722 | G174: 1.088331507 | H174: 17.0177434 | I174: 0.9884246864 | J174: 0.01157531361 | L174: 2.196002711 | M174: 1.082237049 | N174: 16.45618784 | O174: 0.9859541253 | Q174: 16.75878969 | R174: 0.03319950679 | T174: 3.723724935e-05 | U174: 3.723724935e-05 | W174: 0.9884187324 | X174: 0.01158126756 | Z174: 0.3725185121 | AA174: 0.3725185121
B175: 1.087104 | D175: 16.90489177 | E175: 0.9879609323 | F175: 2.293348696 | G175: 1.090160636 | H175: 17.18566955 | I175: 0.9890860311 | J175: 0.0109139689 | L175: 2.218411685 | M175: 1.084055935 | N175: 16.62411399 | O175: 0.9867366124 | Q175: 16.9391392 | R175: 0.03114901516 | T175: 3.532169856e-05 | U175: 3.532169856e-05 | W175: 0.9890803391 | X175: 0.01091966092 | Z175: 0.3533581955 | AA175: 0.3533581955
B176: 1.088928 | D176: 17.0725364 | E176: 0.9886442041 | F176: 2.315720102 | G176: 1.091989764 | H176: 17.35331418 | I176: 0.989713222 | J176: 0.01028677805 | L176: 2.240783092 | M176: 1.08587482 | N176: 16.79175863 | O176: 0.9874799356 | Q176: 17.1196062 | R176: 0.02921601449 | T176: 3.349087481e-05 | U176: 3.349087481e-05 | W176: 0.9897077831 | X176: 0.01029221686 | Z176: 0.3350452063 | AA176: 0.3350452063
B177: 1.090752 | D177: 17.23990046 | E177: 0.989292466 | F177: 2.338054067 | G177: 1.093818893 | H177: 17.52067824 | I177: 0.9903077782 | J177: 0.009692221791 | L177: 2.263117056 | M177: 1.087693706 | N177: 16.95912268 | O177: 0.9881857628 | Q177: 17.3001846 | R177: 0.02739441445 | T177: 3.174192723e-05 | U177: 3.174192723e-05 | W177: 0.990302584 | X177: 0.00969741601 | Z177: 0.3175510425 | AA177: 0.3175510425
B178: 1.092576 | D178: 17.40698488 | E178: 0.9899072595 | F178: 2.360350715 | G178: 1.095648021 | H178: 17.68776265 | I178: 0.9908711675 | J178: 0.009128832544 | L178: 2.285413705 | M178: 1.089512592 | N178: 17.1262071 | O178: 0.9888557094 | Q178: 17.48086858 | R178: 0.02567839712 | T178: 3.007204318e-05 | U178: 3.007204318e-05 | W178: 0.9908662093 | X178: 0.009133790658 | Z178: 0.3008475839 | AA178: 0.3008475839
B179: 1.0944 | D179: 17.57379059 | E179: 0.9904900743 | F179: 2.382610171 | G179: 1.09747715 | H179: 17.85456836 | I179: 0.9914048063 | J179: 0.008595193656 | L179: 2.307673161 | M179: 1.091331478 | N179: 17.29301281 | O179: 0.989491339 | Q179: 17.66165259 | R179: 0.02406240762 | T179: 2.847845186e-05 | U179: 2.847845186e-05 | W179: 0.991400076 | X179: 0.008599924024 | Z179: 0.2849071277 | AA179: 0.2849071277
B180: 1.096224 | D180: 17.74031852 | E180: 0.9910423498 | F180: 2.404832559 | G180: 1.099306279 | H180: 18.0210963 | I180: 0.9919100614 | J180: 0.00808993862 | L180: 2.329895549 | M180: 1.093150364 | N180: 17.45954074 | O180: 0.9900941638 | Q180: 17.84253133 | R180: 0.02254114484 | T180: 2.69584276e-05 | U180: 2.69584276e-05 | W180: 0.9919055505 | X180: 0.008094449456 | Z180: 0.2697024222 | AA180: 0.2697024222
B181: 1.098048 | D181: 17.90656959 | E181: 0.9915654747 | F181: 2.427018002 | G181: 1.101135407 | H181: 18.18734737 | I181: 0.9923882498 | J181: 0.007611750217 | L181: 2.352080992 | M181: 1.094969249 | N181: 17.62579182 | O181: 0.9906656452 | Q181: 18.02349973 | R181: 0.02110955246 | T181: 2.550929277e-05 | U181: 2.550929277e-05 | W181: 0.9923839504 | X181: 0.007616049588 | Z181: 0.2552066956 | AA181: 0.2552066956
B182: 1.099872 | D182: 18.07254474 | E182: 0.9920607887 | F182: 2.449166623 | G182: 1.102964536 | H182: 18.35332251 | I182: 0.9928406404 | J182: 0.00715935962 | L182: 2.374229612 | M182: 1.096788135 | N182: 17.79176696 | O182: 0.9912071946 | Q182: 18.20455299 | R182: 0.01976280995 | T182: 2.412842043e-05 | U182: 2.412842043e-05 | W182: 0.9928365446 | X182: 0.007163455431 | Z182: 0.2413936822 | AA182: 0.2413936822
B183: 1.101696 | D183: 18.23824486 | E183: 0.9925295831 | F183: 2.471278543 | G183: 1.104793664 | H183: 18.51902264 | I183: 0.9932684546 | J183: 0.00673154544 | L183: 2.396341533 | M183: 1.098607021 | N183: 17.95746708 | O183: 0.9917201739 | Q183: 18.38568651 | R183: 0.01849632391 | T183: 2.281323665e-05 | U183: 2.281323665e-05 | W183: 0.9932645546 | X183: 0.006735445435 | Z183: 0.228237646 | AA183: 0.228237646
B184: 1.10352 | D184: 18.40367087 | E184: 0.9929731013 | F184: 2.493353885 | G184: 1.106622793 | H184: 18.68444864 | I184: 0.9936728673 | J184: 0.006327132747 | L184: 2.418416874 | M184: 1.100425907 | N184: 18.12289309 | O184: 0.9922058966 | Q184: 18.5668959 | R184: 0.01730571946 | T184: 2.15612225e-05 | U184: 2.15612225e-05 | W184: 0.9936691555 | X184: 0.006330844498 | Z184: 0.2157134009 | AA184: 0.2157134009
B185: 1.105344 | D185: 18.56882367 | E185: 0.9933925403 | F185: 2.515392768 | G185: 1.108451921 | H185: 18.84960145 | I185: 0.994055008 | J185: 0.005944992043 | L185: 2.440455757 | M185: 1.102244793 | N185: 18.28804589 | O185: 0.9926656287 | Q185: 18.74817701 | R185: 0.01618683184 | T185: 2.036991585e-05 | U185: 2.036991585e-05 | W185: 0.9940514771 | X185: 0.005948522949 | Z185: 0.2037963278 | AA185: 0.2037963278
B186: 1.107168 | D186: 18.73370417 | E186: 0.9937890516 | F186: 2.537395314 | G186: 1.11028105 | H186: 19.01448195 | I186: 0.9944159618 | J186: 0.005584038217 | L186: 2.462458303 | M186: 1.104063678 | N186: 18.45292639 | O186: 0.9931005892 | Q186: 18.92952588 | R186: 0.01513569828 | T186: 1.92369128e-05 | U186: 1.92369128e-05 | W186: 0.9944126045 | X186: 0.005587395494 | Z186: 0.19246239 | AA186: 0.19246239
B187: 1.108992 | D187: 18.89831326 | E187: 0.9941637419 | F187: 2.559361641 | G187: 1.112110179 | H187: 19.17909104 | I187: 0.9947567705 | J187: 0.005243229464 | L187: 2.48442463 | M187: 1.105882564 | N187: 18.61753548 | O187: 0.9935119513 | Q187: 19.11093873 | R187: 0.01414854996 | T187: 1.815986897e-05 | U187: 1.815986897e-05 | W187: 0.9947535799 | X187: 0.00524642015 | Z187: 0.1816881451 | AA187: 0.1816881451
B188: 1.110816 | D188: 19.06265183 | E188: 0.9945176742 | F188: 2.581291869 | G188: 1.113939307 | H188: 19.34342961 | I188: 0.9950784338 | J188: 0.004921566197 | L188: 2.506354859 | M188: 1.10770145 | N188: 18.78187406 | O188: 0.9939008436 | Q188: 19.29241199 | R188: 0.01322180421 | T188: 1.713650044e-05 | U188: 1.713650044e-05 | W188: 0.9950754029 | X188: 0.004924597141 | Z188: 0.1714507553 | AA188: 0.1714507553
B189: 1.11264 | D189: 19.22672078 | E189: 0.9948518693 | F189: 2.603186117 | G189: 1.115768436 | H189: 19.50749856 | I189: 0.9953819101 | J189: 0.004618089928 | L189: 2.528249106 | M189: 1.109520336 | N189: 18.945943 | O189: 0.9942683507 | Q189: 19.47394224 | R189: 0.01235205693 | T189: 1.616458455e-05 | U189: 1.616458455e-05 | W189: 0.9953790322 | X189: 0.004620967794 | Z189: 0.1617279951 | AA189: 0.1617279951
B190: 1.114464 | D190: 19.39052098 | E190: 0.9951673064 | F190: 2.625044501 | G190: 1.117597564 | H190: 19.67129876 | I190: 0.9956681178 | J190: 0.004331882152 | L190: 2.550107491 | M190: 1.111339222 | N190: 19.1097432 | O190: 0.9946155145 | Q190: 19.65552626 | R190: 0.01153607516 | T190: 1.524196047e-05 | U190: 1.524196047e-05 | W190: 0.9956653866 | X190: 0.004334613415 | Z190: 0.1524982565 | AA190: 0.1524982565
B191: 1.116288 | D191: 19.55405332 | E191: 0.9954649243 | F191: 2.646867141 | G191: 1.119426693 | H191: 19.83483109 | I191: 0.9959379368 | J191: 0.00406206321 | L191: 2.57193013 | M191: 1.113158107 | N191: 19.27327554 | O191: 0.994943335 | Q191: 19.83716097 | R191: 0.01077078995 | T191: 1.436652954e-05 | U191: 1.436652954e-05 | W191: 0.9959353458 | X191: 0.004064654155 | Z191: 0.1437405534 | AA191: 0.1437405534
B192: 1.118112 | D192: 19.71731866 | E192: 0.9957456229 | F192: 2.668654151 | G192: 1.121255822 | H192: 19.99809644 | I192: 0.9961922088 | J192: 0.003807791155 | L192: 2.59371714 | M192: 1.114976993 | N192: 19.43654088 | O192: 0.9952527718 | Q192: 20.01884347 | R192: 0.01005328933 | T192: 1.353625546e-05 | U192: 1.353625546e-05 | W192: 0.9961897521 | X192: 0.003810247876 | Z192: 0.1354345227 | AA192: 0.1354345227
B193: 1.119936 | D193: 19.88031788 | E193: 0.9960102636 | F193: 2.690405649 | G193: 1.12308495 | H193: 20.16109566 | I193: 0.9964317394 | J193: 0.003568260611 | L193: 2.615468638 | M193: 1.116795879 | N193: 19.5995401 | O193: 0.9955447448 | Q193: 20.20057099 | R193: 0.009380811528 | T193: 1.274916429e-05 | U193: 1.274916429e-05 | W193: 0.996429411 | X193: 0.003570589016 | Z193: 0.1275604248 | AA193: 0.1275604248
B194: 1.12176 | D194: 20.04305184 | E194: 0.996259671 | F194: 2.712121749 | G194: 1.124914079 | H194: 20.32382962 | I194: 0.9966572984 | J194: 0.003342701641 | L194: 2.637184739 | M194: 1.118614765 | N194: 19.76227407 | O194: 0.9958201355 | Q194: 20.38234092 | R194: 0.008750738454 | T194: 1.200334432e-05 | U194: 1.200334432e-05 | W194: 0.9966550926 | X194: 0.003344907447 | Z194: 0.1200991421 | AA194: 0.1200991421
B195: 1.123584 | D195: 20.20552142 | E195: 0.9964946341 | F195: 2.733802568 | G195: 1.126743207 | H195: 20.4862992 | I195: 0.9968696214 | J195: 0.00313037861 | L195: 2.658865557 | M195: 1.120433651 | N195: 19.92474364 | O195: 0.9960797879 | Q195: 20.56415077 | R195: 0.008160589292 | T195: 1.129694571e-05 | U195: 1.129694571e-05 | W195: 0.9968675327 | X195: 0.003132467346 | Z195: 0.1130321754 | AA195: 0.1130321754
B196: 1.125408 | D196: 20.36772745 | E196: 0.9967159067 | F196: 2.755448219 | G196: 1.128572336 | H196: 20.64850523 | I196: 0.9970694109 | J196: 0.002930589062 | L196: 2.680511208 | M196: 1.122252536 | N196: 20.08694968 | O196: 0.9963245099 | Q196: 20.7459982 | R196: 0.007608014366 | T196: 1.062818013e-05 | U196: 1.062818013e-05 | W196: 0.9970674339 | X196: 0.002932566071 | Z196: 0.1063416406 | AA196: 0.1063416406
B197: 1.127232 | D197: 20.52967081 | E197: 0.9969242094 | F197: 2.777058816 | G197: 1.130401464 | H197: 20.81044859 | I197: 0.9972573374 | J197: 0.002742662599 | L197: 2.702121805 | M197: 1.124071422 | N197: 20.24889303 | O197: 0.9965550742 | Q197: 20.92788097 | R197: 0.007090789189 | T197: 9.995320147e-06 | U197: 9.995320147e-06 | W197: 0.997255467 | X197: 0.002744533041 | Z197: 0.1000102622 | AA197: 0.1000102622
B198: 1.129056 | D198: 20.69135233 | E198: 0.99712023 | F198: 2.798634473 | G198: 1.132230593 | H198: 20.97213011 | I198: 0.9974340402 | J198: 0.002565959783 | L198: 2.723697462 | M198: 1.125890308 | N198: 20.41057455 | O198: 0.9967722194 | Q198: 21.10979699 | R198: 0.006606808713 | T198: 9.396698544e-06 | U198: 9.396698544e-06 | W198: 0.9974322714 | X198: 0.002567728634 | Z198: 0.09402136656 | AA198: 0.09402136656
B199: 1.13088 | D199: 20.85277287 | E199: 0.9973046251 | F199: 2.820175302 | G199: 1.134059722 | H199: 21.13355065 | I199: 0.997600129 | J199: 0.002399871036 | L199: 2.745238291 | M199: 1.127709194 | N199: 20.57199509 | O199: 0.9969766513 | Q199: 21.29174426 | R199: 0.006154081783 | T199: 8.830707566e-06 | U199: 8.830707566e-06 | W199: 0.9975984569 | X199: 0.002401543096 | Z199: 0.08835887483 | AA199: 0.08835887483
B200: 1.132704 | D200: 21.01393326 | E200: 0.9974780207 | F200: 2.841681416 | G200: 1.13588885 | H200: 21.29471104 | I200: 0.9977561844 | J200: 0.002243815571 | L200: 2.766744405 | M200: 1.12952808 | N200: 20.73315548 | O200: 0.9971690437 | Q200: 21.47372091 | R200: 0.005730725792 | T200: 8.295798025e-06 | U200: 8.295798025e-06 | W200: 0.9977546045 | X200: 0.002245395459 | Z200: 0.08300729355 | AA200: 0.08300729355
B201: 1.134528 | D201: 21.17483434 | E201: 0.997641014 | F201: 2.863152926 | G201: 1.137717979 | H201: 21.45561212 | I201: 0.9979027597 | J201: 0.002097240324 | L201: 2.788215916 | M201: 1.131346965 | N201: 20.89405656 | O201: 0.9973500396 | Q201: 21.65572514 | R201: 0.00533496152 | T201: 7.790478348e-06 | U201: 7.790478348e-06 | W201: 0.9979012675 | X201: 0.002098732489 | Z201: 0.07795170522 | AA201: 0.07795170522
B202: 1.136352 | D202: 21.33547694 | E202: 0.9977941735 | F202: 2.884589944 | G202: 1.139547107 | H202: 21.61625472 | I202: 0.9980403811 | J202: 0.001959618921 | L202: 2.809652934 | M202: 1.133165851 | N202: 21.05469916 | O202: 0.9975202525 | Q202: 21.83775529 | R202: 0.00496510818 | T202: 7.313313539e-06 | U202: 7.313313539e-06 | W202: 0.9980389724 | X202: 0.001961027638 | Z202: 0.07317775795 | AA202: 0.07317775795
B203: 1.138176 | D203: 21.4958619 | E203: 0.9979380409 | F203: 2.905992581 | G203: 1.141376236 | H203: 21.77663968 | I203: 0.9981695494 | J203: 0.001830450646 | L203: 2.83105557 | M203: 1.134984737 | N203: 21.21508412 | O203: 0.997680267 | Q203: 22.01980976 | R203: 0.004619578637 | T203: 6.862924074e-06 | U203: 6.862924074e-06 | W203: 0.99816822 | X203: 0.001831780028 | Z203: 0.06867165467 | AA203: 0.06867165467
B204: 1.14 | D204: 21.65599004 | E204: 0.9980731317 | F204: 2.927360945 | G204: 1.143205365 | H204: 21.93676782 | I204: 0.9982907405 | J204: 0.00170925945 | L204: 2.852423935 | M204: 1.136803623 | N204: 21.37521226 | O204: 0.9978306403 | Q204: 22.20188706 | R204: 0.004296874826 | T204: 6.437984749e-06 | U204: 6.437984749e-06 | W204: 0.9982894866 | X204: 0.001710513442 | Z204: 0.06442014134 | AA204: 0.06442014134
B205: 1.141824 | D205: 21.81586217 | E205: 0.9981999361 | F205: 2.948695148 | G205: 1.145034493 | H205: 22.09663995 | I205: 0.998404407 | J205: 0.001595592963 | L205: 2.873758137 | M205: 1.138622509 | N205: 21.5350844 | O205: 0.9979719027 | Q205: 22.38398577 | R205: 0.003995583334 | T205: 6.03722346e-06 | U205: 6.03722346e-06 | W205: 0.9984032246 | X205: 0.001596775352 | Z205: 0.06041049477 | AA205: 0.06041049477
B206: 1.143648 | D206: 21.97547913 | E206: 0.9983189204 | F206: 2.969995298 | G206: 1.146863622 | H206: 22.25625691 | I206: 0.9985109785 | J206: 0.001489021538 | L206: 2.895058287 | M206: 1.140441394 | N206: 21.69470135 | O206: 0.9981045593 | Q206: 22.56610455 | R206: 0.003714371177 | T206: 5.659419955e-06 | U206: 5.659419955e-06 | W206: 0.998509864 | X206: 0.001490135957 | Z206: 0.05663051029 | AA206: 0.05663051029
... 824 more rows

Sheet D Call-Optionspreis
B1: Daten eingeben/rechnen! | E1: Tabelle Optionspreis | H1: Diagramm Put-Preis | K1: Hauptmenü

Sheet D Put-Optionspreis
B1: Daten eingeben/rechnen! | E1: Tabelle Optionspreis | H1: Diagramm Call-Optionspreis | K1: Hauptmenü

Sheet D Call-Delta
B1: Daten eingeben/rechnen! | E1: Tabelle Delta/Gamma | H1: Diagramm Put-Delta | K1: Hauptmenü

Sheet D Put-Delta
B1: Daten eingeben/rechnen! | E1: Tabelle Delta/Gamma | H1: Diagramm Call-Delta | K1: Hauptmenü
P32: 125

Sheet D Gamma
B1: Daten eingeben/rechnen! | F1: Tabelle Delta/Gamma | K1: Hauptmenü

Sheet Call-Leverage, Tabelle 2.1
B1: Daten eingeben/rechnen! | I1: Diagramm Call-Leverage | R1: Hauptmenü
B3: Devisenkurs | E3: =Eingabeseite!C7 -> 0.912 | F3: =Eingabeseite!C7 -> 0.912
B4: Berechnungsstep | E4: =Eingabeseite!F7 -> 0.01 | F4: =E3/500 -> 0.001824 | G4: Diagrammstep
B5: Ausübungspreis | E5: =Eingabeseite!C10 -> 0.9125
B6: Zinssatz | E6: =Eingabeseite!C8 -> -0.97 | F6: =E6/100 -> -0.0097
B7: Restlaufzeit (Tage/360) | E7: =Eingabeseite!C9 -> 224 | F7: =E7/360 -> 0.6222222222
B8: Barwert Ausübungspreis | F8: =E5*(EXP(F7*-F6)) -> 0.9180240982
B9: Volatilität Jahr | E9: =Eingabeseite!C11 -> 9.5 | F9: =E9*SQRT(E$7/360) -> 7.493701059
B10: Volatilität Jahr (0.5) | F10: =F9/2 -> 3.746850529
I12: Tabelle Call-Leverage
B14: Devisenkurs | D14: Black & Scholes-Werte für d1 und NV (Delta) | L14: Black & Scholes-Werte für d2 und NV | Q14: Options- | R14: Options- | T14: Gearing | U14: Leverage
Q15: preis | R15: preis
D16: Rendite | E16: NV-Werte | F16: STAW | G16: Devisenkurs | H16: Rendite | I16: NV-Werte | L16: STAW | M16: Devisenkurs | N16: Rendite | O16: NV-Werte
D17: stetig | E17: Verteilung | F17: d1 | G17: mit | H17: stetig | I17: Verteilung | L17: d2 | M17: mit | N17: stetig | O17: Verteilung
D18: ohne | E18: F(x) | G18: Option | H18: mit | I18: F(x) | M18: Option | N18: mit | O18: F(x)
D19: Option | H19: Option | I19: Call-Delta | J19: Put-Delta | N19: Option | O19: Delta | Q19: Call | R19: Put | T19: Call | U19: Call | W19: Call-Delta | X19: Call-Leverage
B21: =F3 -> 0.912 | D21: =(LN(B21/F$8))*100 -> -0.6583650938 | E21: =NORMDIST(D21,0,F$9,1) -> 0.464995644 | F21: =((LN(B21/F$8))/(F$9/100))+(F$10/100) -> -0.05038729368 | G21: =F$8+((EXP(F21*(F$9/100))-1)*F$8) -> 0.9145642916 | H21: =(LN(G21/F$8))*100 -> -0.377587316 | I21: =NORMDIST(H21,0,F$9,1) -> 0.4799068808 | J21: =1-I21 -> 0.5200931192 | L21: =((LN(B21/F$8))/(F$9/100))-(F$10/100) -> -0.1253243043 | M21: =F$8+((EXP(L21*(F$9/100))-1)*F$8) -> 0.9094428982 | N21: =(LN(M21/F$8))*100 -> -0.9391428716 | O21: =NORMDIST(N21,0,F$9,1) -> 0.4501334059 | Q21: =(I21*B21)-(O21*F$8) -> 0.0244417613 | R21: =Q21+F$8-B21 -> 0.03046585948 | T21: =B21/Q21 -> 37.31318659 | U21: =T21*I21 -> 17.90685499 | W21: =(Q22-Q21)*(1/$E$4) -> 0.5089705876 | X21: =T21*W21 -> 18.9913145
B22: =B21+$E$4 -> 0.922 | D22: =(LN(B22/F$8))*100 -> 0.4321582544 | E22: =NORMDIST(D22,0,F$9,1) -> 0.5229940695 | F22: =((LN(B22/F$8))/(F$9/100))+(F$10/100) -> 0.09513804015 | G22: =F$8+((EXP(F22*(F$9/100))-1)*F$8) -> 0.9245924089 | H22: =(LN(G22/F$8))*100 -> 0.7129360322 | I22: =NORMDIST(H22,0,F$9,1) -> 0.5378974083 | J22: =1-I22 -> 0.4621025917 | L22: =((LN(B22/F$8))/(F$9/100))-(F$10/100) -> 0.02020102957 | M22: =F$8+((EXP(L22*(F$9/100))-1)*F$8) -> 0.9194148598 | N22: =(LN(M22/F$8))*100 -> 0.1513804767 | O22: =NORMDIST(N22,0,F$9,1) -> 0.5080584967 | Q22: =(I22*B22)-(O22*F$8) -> 0.02953146718 | R22: =Q22+F$8-B22 -> 0.02555556535 | T22: =B22/Q22 -> 31.22093442 | U22: =T22*I22 -> 16.79365971 | W22: =(Q23-Q22)*(1/$E$4) -> 0.5663546801 | X22: =T22*W22 -> 17.68212232
B23: =B22+$E$4 -> 0.932 | D23: =(LN(B23/F$8))*100 -> 1.510917367 | E23: =NORMDIST(D23,0,F$9,1) -> 0.5798950446 | F23: =((LN(B23/F$8))/(F$9/100))+(F$10/100) -> 0.2390934908 | G23: =F$8+((EXP(F23*(F$9/100))-1)*F$8) -> 0.9346205261 | H23: =(LN(G23/F$8))*100 -> 1.791695145 | I23: =NORMDIST(H23,0,F$9,1) -> 0.5944834555 | J23: =1-I23 -> 0.4055165445 | L23: =((LN(B23/F$8))/(F$9/100))-(F$10/100) -> 0.1641564802 | M23: =F$8+((EXP(L23*(F$9/100))-1)*F$8) -> 0.9293868214 | N23: =(LN(M23/F$8))*100 -> 1.23013959 | O23: =NORMDIST(N23,0,F$9,1) -> 0.56519602 | Q23: =(I23*B23)-(O23*F$8) -> 0.03519501398 | R23: =Q23+F$8-B23 -> 0.02121911216 | T23: =B23/Q23 -> 26.48102372 | U23: =T23*I23 -> 15.74253049
B26: =E3-(50*F4) -> 0.8208 | D26: =(LN(B26/F$8))*100 -> -11.19441666 | E26: =NORMDIST(D26,G151,F$9,1) -> 0.05110900096 | F26: =((LN(B26/F$8))/(F$9/100))+(F$10/100) -> -1.456375 | G26: =F$8+((EXP(F26*(F$9/100))-1)*F$8) -> 0.8231078625 | H26: =(LN(G26/F$8))*100 -> -10.91363888 | I26: =NORMDIST(H26,0,F$9,1) -> 0.0726444913 | J26: =1-I26 -> 0.9273555087 | L26: =((LN(B26/F$8))/(F$9/100))-(F$10/100) -> -1.531312011 | M26: =F$8+((EXP(L26*(F$9/100))-1)*F$8) -> 0.8184986084 | N26: =(LN(M26/F$8))*100 -> -11.47519444 | O26: =NORMDIST(N26,0,F$9,1) -> 0.06284614925 | Q26: =(I26*B26)-(O26*F$8) -> 0.001932318971 | R26: =Q26+F$8-B26 -> 0.09915641715 | T26: =B26/Q26 -> 424.7745908 | U26: =T26*I26 -> 30.85753406 | W26: =(Q27-Q26)*(1/$F$4) -> 0.07472089134 | X26: =T26*W26 -> 31.73953604
B27: =B26+F$4 -> 0.822624 | D27: -10.97244099 | E27: =NORMDIST(D27,0,F$9,1) -> 0.07156666811 | F27: -1.426753366 | G27: 0.824936991 | H27: -10.69166321 | I27: 0.0768254987 | J27: 0.9231745013 | L27: -1.501690376 | M27: 0.8203174942 | N27: -11.25321876 | O27: 0.06658854521 | Q27: 0.002068609876 | R27: 0.09746870805 | T27: =B27/Q27 -> 397.6699567 | U27: =T27*I27 -> 30.55119274 | W27: =(Q28-Q27)*(1/$F$4) -> 0.07898697899 | X27: =T27*W27 -> 31.41074851
B28: =B27+F$4 -> 0.824448 | D28: -10.75095695 | E28: 0.07569117091 | F28: -1.397197339 | G28: 0.8267661196 | H28: -10.47017918 | I28: 0.08117711842 | J28: 0.9188228816 | L28: -1.472134349 | M28: 0.82213638 | N28: -11.03173473 | O28: 0.07049230073 | Q28: 0.002212682126 | R28: 0.0957887803 | T28: 372.6011931 | U28: 30.24669117 | W28: 0.08342500149 | X28: 31.08425508
B29: 0.826272 | D29: -10.52996239 | E29: 0.07998460324 | F29: -1.367706629 | G29: 0.8285952482 | H29: -10.24918461 | I29: 0.08570196214 | J29: 0.9142980379 | L29: -1.442643639 | M29: 0.8239552658 | N29: -10.81074017 | O29: 0.07456044179 | Q29: 0.002364849329 | R29: 0.0941169475 | T29: 349.3973125 | U29: 29.94403525 | W29: 0.0880374683 | X29: 30.76005483
B30: 0.828096 | D30: =(LN(B30/F$8))*100 -> -10.30945513 | E30: 0.0844496078 | F30: -1.338280948 | G30: 0.8304243768 | H30: -10.02867735 | I30: 0.09040243507 | J30: 0.9095975649 | L30: -1.413217958 | M30: 0.8257741516 | N30: -10.59023291 | O30: 0.07879582393 | Q30: 0.002525429671 | R30: 0.09245352785 | T30: 327.9030137 | U30: 29.64323091 | W30: 0.09282667637 | X30: 30.43814693
B31: 0.82992 | D31: -10.08943304 | E31: 0.08908862644 | F31: -1.30892001 | G31: 0.8322535054 | H31: -9.808655263 | I31: 0.09528072389 | J31: 0.9047192761 | L31: -1.38385702 | M31: 0.8275930374 | N31: -10.37021082 | O31: 0.08320111966 | Q31: 0.002694745529 | R31: 0.0907988437 | T31: 307.9771322 | U31: 29.3442841 | W31: 0.09779469821 | X31: 30.1185307
B32: 0.831744 | D32: -9.869893985 | E32: 0.0939038881 | F32: -1.279623531 | G32: 0.834082634 | H32: -9.589116207 | I32: 0.1003387851 | J32: 0.8996612149 | L32: -1.354560541 | M32: 0.8294119232 | N32: -10.15067176 | O32: 0.08777880618 | Q32: 0.002873123058 | R32: 0.08915322123 | T32: 289.491255 | U32: 29.04720082 | W32: 0.1029433705 | X32: 29.80120553
B33: 0.833568 | D33: -9.650835847 | E33: 0.09889739727 | F33: -1.250391228 | G33: 0.8359117625 | H33: -9.370058069 | I33: 0.1055783337 | J33: 0.8944216663 | L33: -1.325328239 | M33: 0.831230809 | N33: -9.931613624 | O33: 0.09253115345 | Q33: 0.003060891766 | R33: 0.08751698994 | T33: 272.3284793 | U33: 28.75198707 | W33: 0.1082742833 | X33: 29.48617093
B34: 0.835392 | D34: -9.432256525 | E34: 0.1040709228 | F34: -1.221222821 | G34: 0.8377408911 | H34: -9.151478747 | I34: 0.1110008329 | J34: 0.8889991671 | L34: -1.296159832 | M34: 0.8330496948 | N34: -9.713034302 | O34: 0.0974602126 | Q34: 0.003258384059 | R34: 0.08589048223 | T34: 256.3823002 | U34: 28.45864888 | W34: 0.1137887695 | X34: 29.17342646
B35: 0.837216 | D35: -9.21415393 | E35: 0.1094259871 | F35: -1.192118031 | G35: 0.8395700197 | H35: -8.933376152 | I35: 0.1166074839 | J35: 0.8833925161 | L35: -1.267055042 | M35: 0.8348685806 | N35: -9.494931708 | O35: 0.1025678048 | Q35: 0.003465934774 | R35: 0.08427403295 | T35: 241.5556133 | U35: 28.16719229 | W35: 0.1194878952 | X35: 28.86297182
B36: 0.83904 | D36: -8.996525988 | E36: 0.1149638566 | F36: -1.163076581 | G36: 0.8413991483 | H36: -8.71574821 | I36: 0.1223992163 | J36: 0.8776007837 | L36: -1.238013592 | M36: 0.8366874664 | N36: -9.277303765 | O36: 0.1078555105 | Q36: 0.003683880695 | R36: 0.08266797887 | T36: 227.7598189 | U36: 27.87762335 | W36: 0.125372451 | X36: 28.55480674
B37: 0.840864 | D37: -8.779370636 | E37: 0.1206855316 | F37: -1.134098197 | G37: 0.8432282769 | H37: -8.498592859 | I37: 0.12837668 | J37: 0.87162332 | L37: -1.209035207 | M37: 0.8385063522 | N37: -9.060148414 | O37: 0.1133246597 | Q37: 0.003912560046 | R37: 0.08107265822 | T37: 214.914018 | U37: 27.5899481 | W37: 0.1314429432 | X37: 28.24893105
B38: 0.842688 | D38: -8.562685828 | E38: 0.1265917382 | F38: -1.105182604 | G38: 0.8450574055 | H38: -8.28190805 | I38: 0.1345402365 | J38: 0.8654597635 | L38: -1.180119615 | M38: 0.840325238 | N38: -8.843463606 | O38: 0.1189763222 | Q38: 0.004152311974 | R38: 0.07948841015 | T38: 202.9442887 | U38: 27.30417261 | W38: 0.1376995865 | X38: 27.94534464
B39: 0.844512 | D39: -8.346469527 | E39: 0.1326829197 | F39: -1.076329532 | G39: 0.846886534 | H39: -8.06569175 | I39: 0.1408899529 | J39: 0.8591100471 | L39: -1.151266542 | M39: 0.8421441238 | N39: -8.627247305 | O39: 0.1248112986 | Q39: 0.00440347602 | R39: 0.0779155742 | T39: 191.783036 | U39: 27.0203029 | W39: 0.1441422977 | X39: 27.64404746
B40: 0.846336 | D40: -8.130719713 | E40: 0.1389592299 | F40: -1.047538709 | G40: 0.8487156626 | H40: -7.849941936 | I40: 0.1474255943 | J40: 0.8525744057 | L40: -1.12247572 | M40: 0.8439630096 | N40: -8.411497491 | O40: 0.1308301127 | Q40: 0.004666391571 | R40: 0.07635448975 | T40: 181.3684058 | U40: 26.73834501 | W40: 0.150770689 | X40: 27.34503951
B41: 0.84816 | D41: -7.915434377 | E41: 0.1454205264 | F41: -1.01880987 | G41: 0.8505447912 | H41: -7.634656599 | I41: 0.1541466196 | J41: 0.8458533804 | L41: -1.09374688 | M41: 0.8457818954 | N41: -8.196212155 | O41: 0.1370330036 | Q41: 0.004941397308 | R41: 0.07480549548 | T41: 171.6437573 | U41: 26.45830495 | W41: 0.1575840641 | X41: 27.04832084
B42: 0.849984 | D42: -7.700611523 | E42: 0.1520663647 | F42: -0.9901427462 | G42: 0.8523739198 | H42: -7.419833746 | I42: 0.1610521762 | J42: 0.8389478238 | L42: -1.065079757 | M42: 0.8476007812 | N42: -7.981389301 | O42: 0.1434199195 | Q42: 0.005228830641 | R42: 0.07326892882 | T42: 162.557187 | U42: 26.18018871 | W42: 0.1645814132 | X42: 26.75389155
B43: 0.851808 | D43: -7.486249169 | E43: 0.1588959942 | F43: -0.9615370743 | G43: 0.8542030484 | H43: -7.205471391 | I43: 0.1681410968 | J43: 0.8318589032 | L43: -1.036474085 | M43: 0.8494196669 | N43: -7.767026947 | O43: 0.1499905117 | Q43: 0.005529027138 | R43: 0.07174512531 | T43: 154.0610995 | U43: 25.90400224 | W43: 0.1717614105 | X43: 26.46175175
B44: 0.853632 | D44: -7.272345344 | E44: 0.1659083538 | F44: -0.932992591 | G44: 0.856032177 | H44: -6.991567566 | I44: 0.1754118969 | J44: 0.8245881031 | L44: -1.007929602 | M44: 0.8512385527 | N44: -7.553123122 | O44: 0.1567441298 | Q44: 0.005842319951 | R44: 0.07023441813 | T44: 146.1118198 | U44: 25.62975147 | W44: 0.1791224121 | X44: 26.17190161
B45: 0.855456 | D45: -7.058898091 | E45: 0.1731020694 | F45: -0.9045090351 | G45: 0.8578613055 | H45: -6.778120314 | I45: 0.1828627728 | J45: 0.8171372272 | L45: -0.9794460457 | M45: 0.8530574385 | N45: -7.339675869 | O45: 0.1636798176 | Q45: 0.006169039231 | R45: 0.06873713741 | T45: 138.669243 | U45: 25.35744228 | W45: 0.1866624547 | X45: 25.88434128
B46: 0.85728 | D46: -6.845905466 | E46: 0.1804754519 | F46: -0.8760861471 | G46: 0.8596904341 | H46: -6.565127688 | I46: 0.1904916015 | J46: 0.8095083985 | L46: -0.9510231577 | M46: 0.8548763243 | N46: -7.126683243 | O46: 0.1707963102 | Q46: 0.006509511548 | R46: 0.06725360972 | T46: 131.6965173 | U46: 25.08708049 | W46: 0.1943792554 | X46: 25.59907097
B47: 0.859104 | D47: -6.633365534 | E47: 0.1880264961 | F47: -0.8477236691 | G47: 0.8615195627 | H47: -6.352587757 | I47: 0.1982959407 | J47: 0.8017040593 | L47: -0.9226606797 | M47: 0.8566952101 | N47: -6.914143312 | O47: 0.1780920314 | Q47: 0.00686405931 | R47: 0.06578415749 | T47: 125.1597577 | U47: 24.81867189 | W47: 0.2022702131 | X47: 25.31609085
B48: 0.860928 | D48: -6.421276377 | E48: 0.1957528813 | F48: -0.8194213449 | G48: 0.8633486913 | H48: -6.1404986 | I48: 0.2062730305 | J48: 0.7937269695 | L48: -0.8943583555 | M48: 0.8585140959 | N48: -6.702054155 | O48: 0.1855650933 | Q48: 0.007233000179 | R48: 0.06432909835 | T48: 119.0277864 | U48: 24.5522222 | W48: 0.2103324097 | X48: 25.03540113
B49: 0.862752 | D49: -6.209636087 | E49: 0.2036519719 | F49: -0.7911789198 | G49: 0.8651778199 | H49: -5.928858309 | I49: 0.2144197955 | J49: 0.7855802045 | L49: -0.8661159304 | M49: 0.8603329817 | N49: -6.490413865 | O49: 0.193213295 | Q49: 0.007616646494 | R49: 0.06288874467 | T49: 113.2718974 | U49: 24.28773707 | W49: 0.218562614 | X49: 24.75700198
B50: 0.864576 | D50: -5.998442766 | E50: 0.2117208195 | F50: -0.7629961409 | G50: 0.8670069485 | H50: -5.717664989 | I50: 0.2227328487 | J50: 0.7772671513 | L50: -0.8379331515 | M50: 0.8621518675 | N50: -6.279220544 | O50: 0.2010341243 | Q50: 0.008015304702 | R50: 0.06146340288 | T50: 107.8656436 | U50: 24.02522207 | W50: 0.2269572847 | X50: 24.48089357
B51: 0.8664 | D51: -5.787694533 | E51: 0.2199561665 | F51: -0.7348727567 | G51: 0.868836077 | H51: -5.506916755 | I51: 0.2312084957 | J51: 0.7687915043 | L51: -0.8098097673 | M51: 0.8639707533 | N51: -6.06847231 | O51: 0.2090247591 | Q51: 0.008429274789 | R51: 0.06005337296 | T51: 102.784643 | U51: 23.7646827 | W51: 0.235512576 | X51: 24.20707604
B52: 0.868224 | D52: -5.577389513 | E52: 0.2283544495 | F52: -0.7068085174 | G52: 0.8706652056 | H52: -5.296611735 | I52: 0.2398427404 | J52: 0.7601572596 | L52: -0.781745528 | M52: 0.8657896391 | N52: -5.858167291 | O52: 0.2171820697 | Q52: 0.008858849728 | R52: 0.0586589479 | T52: 98.00640339 | U52: 23.50612437 | W52: 0.2442243433 | X52: 23.93554951
B53: 0.870048 | D53: -5.367525847 | E53: 0.236911805 | F53: -0.6788031748 | G53: 0.8724943342 | H53: -5.086748069 | I53: 0.248631291 | J53: 0.751368709 | L53: -0.7537401854 | M53: 0.8676085249 | N53: -5.648303625 | O53: 0.2255026234 | Q53: 0.00930431493 | R53: 0.05728041311 | T53: 93.51016239 | U53: 23.24955239 | W53: 0.2530881505 | X53: 23.66631405
B54: 0.871872 | D54: -5.158101687 | E54: 0.2456240749 | F54: -0.6508564821 | G54: 0.8743234628 | H54: -4.877323909 | I54: 0.2575695678 | J54: 0.7424304322 | L54: -0.7257934927 | M54: 0.8694274107 | N54: -5.438879465 | O54: 0.2339826884 | Q54: 0.009765947716 | R54: 0.05591804589 | T54: 89.27674255 | U54: 22.99497199 | W54: 0.2620992771 | X54: 23.39936968
B55: 0.873696 | D55: -4.949115195 | E55: 0.2544868138 | F55: -0.6229681943 | G55: 0.8761525914 | H55: -4.668337417 | I55: 0.2666527114 | J55: 0.7333472886 | L55: -0.6979052049 | M55: 0.8712462965 | N55: -5.229892973 | O55: 0.2426182396 | Q55: 0.0102440168 | R55: 0.05457211497 | T55: 85.2884193 | U55: 22.74238826 | W55: 0.2712527277 | X55: 23.13471638
B56: 0.87552 | D56: -4.740564546 | E56: 0.2634952968 | F56: -0.5951380677 | G56: 0.87798172 | H56: -4.459786768 | I56: 0.2758755922 | J56: 0.7241244078 | L56: -0.6700750783 | M56: 0.8730651823 | N56: -5.021342324 | O56: 0.2514049655 | Q56: 0.01073878177 | R56: 0.05324287995 | T56: 81.5288008 | U56: 22.4918062 | W56: 0.2805432417 | X56: 22.87235407
B57: 0.877344 | D57: -4.532447925 | E57: 0.2726445286 | F57: -0.5673658603 | G57: 0.8798108485 | H57: -4.251670148 | I57: 0.2852328198 | J57: 0.7147671802 | L57: -0.6423028708 | M57: 0.8748840681 | N57: -4.813225703 | O57: 0.2603382753 | Q57: 0.01125049265 | R57: 0.05193059082 | T57: 77.98271841 | U57: 22.24323067 | W57: 0.289965303 | X57: 22.61228257
B58: 0.879168 | D58: -4.324763531 | E58: 0.2819292525 | F58: -0.5396513314 | G58: 0.8816399771 | H58: -4.043985753 | I58: 0.2947187548 | J58: 0.7052812452 | L58: -0.614588342 | M58: 0.8767029539 | N58: -4.605541309 | O58: 0.2694133077 | Q58: 0.01177938936 | R58: 0.05063548753 | T58: 74.63612699 | U58: 21.99666641 | W58: 0.2995131523 | X58: 22.35450167
B59: 0.880992 | D59: -4.117509571 | E59: 0.2913439615 | F59: -0.511994242 | G59: 0.8834691057 | H59: -3.836731793 | I59: 0.3043275197 | J59: 0.6956724803 | L59: -0.5869312525 | M59: 0.8785218397 | N59: -4.398287349 | O59: 0.2786249396 | Q59: 0.01232570135 | R59: 0.04935779952 | T59: 71.47601383 | U59: 21.75211801 | W59: 0.3091807986 | X59: 22.09901104
B60: 0.882816 | D60: -3.910684264 | E60: 0.3008829096 | F60: -0.4843943544 | G60: 0.8852982343 | H60: -3.629906487 | I60: 0.3140530121 | J60: 0.6859469879 | L60: -0.559331365 | M60: 0.8803407255 | N60: -4.191462042 | O60: 0.2879677967 | Q60: 0.01288964713 | R60: 0.0480977453 | T60: 68.49031563 | U60: 21.50958993 | W60: 0.3189620321 | X60: 21.84581026
B61: 0.88464 | D61: -3.704285842 | E61: 0.3105401232 | F61: -0.4568514327 | G61: 0.8871273629 | H61: -3.423508064 | I61: 0.3238889173 | J61: 0.6761110827 | L61: -0.5317884432 | M61: 0.8821596113 | N61: -3.98506362 | O61: 0.2974362639 | Q61: 0.01347143387 | R61: 0.04685553205 | T61: 65.66784267 | U61: 21.26908647 | W61: 0.3288504378 | X61: 21.59489881
B62: 0.886464 | D62: -3.498312546 | E62: 0.3203094146 | F62: -0.429365242 | G62: 0.8889564915 | H62: -3.217534768 | I62: 0.3338287222 | J62: 0.6661712778 | L62: -0.5043022525 | M62: 0.8839784971 | N62: -3.779090324 | O62: 0.3070244974 | Q62: 0.01407125707 | R62: 0.04563135525 | T62: 62.99820944 | U62: 21.03061176 | W62: 0.3388394094 | X62: 21.34627608
B63: 0.888288 | D63: -3.292762628 | E63: 0.3301843946 | F63: -0.4019355491 | G63: 0.89078562 | H63: -3.01198485 | I63: 0.3438657297 | J63: 0.6561342703 | L63: -0.4768725597 | M63: 0.8857973829 | N63: -3.573540406 | O63: 0.3167264365 | Q63: 0.01468930015 | R63: 0.04442539833 | T63: 60.47177134 | U63: 20.79416978 | W63: 0.348922164 | X63: 21.09994131
B64: 0.890112 | D64: -3.087634351 | E64: 0.3401584873 | F64: -0.3745621224 | G64: 0.8926147486 | H64: -2.806856573 | I64: 0.3539930737 | J64: 0.6460069263 | L64: -0.449499133 | M64: 0.8876162687 | N64: -3.368412128 | O64: 0.3265358167 | Q64: 0.01532573418 | R64: 0.04323783236 | T64: 58.07956666 | U64: 20.55976432 | W64: 0.3590917572 | X64: 20.85589365
B65: 0.891936 | D65: -2.882925989 | E65: 0.3502249436 | F65: -0.3472447313 | G65: 0.8944438772 | H65: -2.602148211 | I65: 0.3642037342 | J65: 0.6357962658 | L65: -0.4221817419 | M65: 0.8894351545 | N65: -3.163703766 | O65: 0.3364461836 | Q65: 0.01598071755 | R65: 0.04206881572 | T65: 55.81326355 | U65: 20.327399 | W65: 0.3693410987 | X65: 20.61413208
B66: 0.89376 | D66: -2.678635826 | E66: 0.3603768572 | F66: -0.319983147 | G66: 0.8962730058 | H66: -2.397858048 | I66: 0.3744905531 | J66: 0.6255094469 | L66: -0.3949201576 | M66: 0.8912540403 | N66: -2.959413603 | O66: 0.3464509065 | Q66: 0.01665439571 | R66: 0.04091849389 | T66: 53.66511134 | U66: 20.09707723 | W66: 0.3796629682 | X66: 20.37465546
B67: 0.895584 | D67: -2.474762157 | E67: 0.3706071791 | F67: -0.292777142 | G67: 0.8981021344 | H67: -2.193984379 | I67: 0.3848462506 | J67: 0.6151537494 | L67: -0.3677141526 | M67: 0.8930729261 | N67: -2.755539934 | O67: 0.3565431933 | Q67: 0.01734690096 | R67: 0.03978699914 | T67: 51.62789607 | U67: 19.86880223 | W67: 0.3900500316 | X67: 20.13746249
B68: 0.897408 | D68: -2.271303287 | E68: 0.380908734 | F68: -0.26562649 | G68: 0.899931263 | H68: -1.990525509 | I68: 0.3952634411 | J68: 0.6047365589 | L68: -0.3405635005 | M68: 0.8948918119 | N68: -2.552081065 | O68: 0.3667161054 | Q68: 0.01805835222 | R68: 0.0386744504 | T68: 49.69489957 | U68: 19.64257701 | W68: 0.4004948577 | X68: 19.90255173
B69: 0.899232 | D69: -2.068257532 | E69: 0.3912742361 | F69: -0.2385309662 | G69: 0.9017603915 | H69: -1.787479754 | I69: 0.4057346504 | J69: 0.5942653496 | L69: -0.3134679768 | M69: 0.8967106977 | N69: -2.34903531 | O69: 0.3769625732 | Q69: 0.01878885484 | R69: 0.03758095302 | T69: 47.85986201 | U69: 19.41840438 | W69: 0.4109899345 | X69: 19.66992155
B70: 0.901056 | D70: -1.865623217 | E70: 0.4016963051 | F70: -0.2114903473 | G70: 0.9035895201 | H70: -1.584845439 | I70: 0.4162523318 | J70: 0.5837476682 | L70: -0.2864273579 | M70: 0.8985295835 | N70: -2.146400995 | O70: 0.3872754117 | Q70: 0.01953850048 | R70: 0.03650659866 | T70: 46.11694745 | U70: 19.19628691 | W70: 0.4215276863 | X70: 19.43957016
B71: 0.90288 | D71: -1.663398679 | E71: 0.4121674835 | F71: -0.1845044112 | G71: 0.9054186487 | H71: -1.382620901 | I71: 0.4268088835 | J71: 0.5731911165 | L71: -0.2594414218 | M71: 0.9003484693 | N71: -1.944176457 | O71: 0.3976473368 | Q71: 0.02030736698 | R71: 0.03545146516 | T71: 44.46071225 | U71: 18.97622696 | W71: 0.4321004908 | X71: 19.21149559
B72: 0.904704 | D72: -1.461582264 | E72: 0.4226802521 | F72: -0.1575729371 | G72: 0.9072477773 | H72: -1.180804486 | I72: 0.4373966651 | J72: 0.5626033349 | L72: -0.2325099477 | M72: 0.902167355 | N72: -1.742360041 | O72: 0.4080709809 | Q72: 0.02109551828 | R72: 0.03441561645 | T72: 42.886076 | U72: 18.75822662 | W72: 0.4427006954 | X72: 18.98569567
B73: 0.906528 | D73: -1.260172326 | E73: 0.4332270477 | F73: -0.1306957058 | G73: 0.9090769059 | H73: -0.9793945486 | I73: 0.4480080148 | J73: 0.5519919852 | L73: -0.2056327163 | M73: 0.9039862408 | N73: -1.540950104 | O73: 0.4185389098 | Q73: 0.02190300435 | R73: 0.03339910252 | T73: 41.38829476 | U73: 18.54228777 | W73: 0.4533206344 | X73: 18.76216804
B74: 0.908352 | D74: -1.059167234 | E74: 0.443800279 | F74: -0.103872499 | G74: 0.9109060345 | H74: -0.7783894558 | I74: 0.4586352658 | J74: 0.5413647342 | L74: -0.1788095096 | M74: 0.9058051266 | N74: -1.339945011 | O74: 0.429043639 | Q74: 0.02272986118 | R74: 0.03240195936 | T74: 39.96293654 | U74: 18.32841202 | W74: 0.4639526457 | X74: 18.54091014
B75: 0.910176 | D75: -0.8585653609 | E75: 0.4543923435 | F75: -0.07710310013 | G75: 0.912735163 | H75: -0.5777875831 | I75: 0.4692707634 | J75: 0.5307292366 | L75: -0.1520401107 | M75: 0.9076240124 | N75: -1.139343139 | O75: 0.4395776498 | Q75: 0.02357611081 | R75: 0.03142420898 | T75: 38.60585859 | U75: 18.11660073 | W75: 0.4745890872 | X75: 18.32191919
B76: 0.912 | D76: -0.6583650938 | E76: 0.464995644 | F76: -0.05038729368 | G76: 0.9145642916 | H76: -0.377587316 | I76: 0.4799068808 | J76: 0.5200931192 | L76: -0.1253243043 | M76: 0.9094428982 | N76: -0.9391428716 | O76: 0.4501334059 | Q76: 0.0244417613 | R76: 0.03046585948 | T76: 37.31318659 | U76: 17.90685499 | W76: 0.485222353 | X76: 18.10519219
B77: 0.913824 | D77: -0.4585648275 | E77: 0.4756026046 | F77: -0.0237248655 | G77: 0.9163934202 | H77: -0.1777870497 | I77: 0.4905360359 | J77: 0.5094639641 | L77: -0.09866187609 | M77: 0.911261784 | N77: -0.7393426053 | O77: 0.4607033698 | Q77: 0.02532680688 | R77: 0.02952690505 | T77: 36.08129538 | U77: 17.69917561 | W77: 0.4958448897 | X77: 17.89072593
B78: 0.915648 | D78: -0.2591629668 | E78: 0.4862056869 | F78: 0.002884397279 | G78: 0.9182225488 | H78: 0.02161481094 | I78: 0.5011507064 | J78: 0.4988492936 | L78: -0.07205261331 | M78: 0.9130806698 | N78: -0.5399407446 | O78: 0.4712800186 | Q78: 0.02623122795 | R78: 0.02860732613 | T78: 34.90679131 | U78: 17.49356312 | W78: 0.5064492118 | X78: 17.67851695
B79: 0.917472 | D79: -0.06015792603 | E79: 0.496797406 | F79: 0.02944070627 | G79: 0.9200516774 | H79: 0.2206198517 | I79: 0.511743446 | J79: 0.488256554 | L79: -0.04549630432 | M79: 0.9148995556 | N79: -0.3409357038 | O79: 0.4818558603 | Q79: 0.02715499132 | R79: 0.02770708949 | T79: 33.7864958 | U79: 17.29001779 | W79: 0.5170279168 | X79: 17.46856154
B80: 0.919296 | D80: 0.1384518711 | E80: 0.5073703451 | F80: 0.05594427181 | G80: 0.921880806 | H80: 0.4192296489 | I80: 0.5223068989 | J80: 0.4776931011 | L80: -0.01899273877 | M80: 0.9167184414 | N80: -0.1423259066 | O80: 0.492423449 | Q80: 0.02809805024 | R80: 0.02682614841 | T80: 32.71743029 | U80: 17.08853956 | W80: 0.5275737005 | X80: 17.26085577
B81: 0.92112 | D81: 0.3366679915 | E81: 0.5179171715 | F81: 0.082395303 | G81: 0.9237099345 | H81: 0.6174457693 | I81: 0.5328338145 | J81: 0.4671661855 | L81: 0.007458292413 | M81: 0.9185373272 | N81: 0.05589021375 | O81: 0.5029754006 | Q81: 0.02906034467 | R81: 0.02596444284 | T81: 31.69680231 | U81: 16.88912808 | W81: 0.5380793708 | X81: 17.05539544
B82: 0.922944 | D82: 0.5344919927 | E82: 0.5284306505 | F82: 0.1087940077 | G82: 0.9255390631 | H82: 0.8152697705 | I82: 0.5433170616 | J82: 0.4566829384 | L82: 0.03385699709 | M82: 0.920356213 | N82: 0.253714215 | O82: 0.5135044076 | Q82: 0.03004180144 | R82: 0.02512189961 | T82: 30.72199255 | U82: 16.69178272 | W82: 0.5485378618 | X82: 16.8521761
B83: 0.924768 | D83: 0.7319254231 | E83: 0.5389036596 | F83: 0.1351405925 | G83: 0.9273681917 | H83: 1.012703201 | I83: 0.5537496418 | J83: 0.4462503582 | L83: 0.06020358189 | M83: 0.9221750988 | N83: 0.4511476453 | O83: 0.5240032535 | Q83: 0.0310423345 | R83: 0.02429843267 | T83: 29.79054298 | U83: 16.4965025 | W83: 0.5589422469 | X83: 16.65119303
B84: 0.926592 | D84: 0.9289698218 | E84: 0.5493292022 | F84: 0.1614352628 | G84: 0.9291973203 | H84: 1.2097476 | I84: 0.5641247024 | J84: 0.4358752976 | L84: 0.0864982522 | M84: 0.9239939846 | N84: 0.6481920441 | O84: 0.5344648273 | Q84: 0.03206184516 | R84: 0.02349394333 | T84: 28.90014581 | U84: 16.30328615 | W84: 0.5692857513 | X84: 16.45244122
B85: 0.928416 | D85: 1.125626719 | E85: 0.5597004203 | F85: 0.1876782228 | G85: 0.9310264489 | H85: 1.406404497 | I85: 0.5744355487 | J85: 0.4255644513 | L85: 0.1127412122 | M85: 0.9258128704 | N85: 0.8448489413 | O85: 0.5448821365 | Q85: 0.03310022237 | R85: 0.02270832054 | T85: 28.04863332 | U85: 16.11213207 | W85: 0.5795617643 | X85: 16.25591541
B86: 0.93024 | D86: 1.321897636 | E86: 0.5700106073 | F86: 0.2138696755 | G86: 0.9328555775 | H86: 1.602675414 | I86: 0.5846756557 | J86: 0.4153243443 | L86: 0.1389326649 | M86: 0.9276317562 | N86: 1.041119858 | O86: 0.5552483208 | Q86: 0.03415734303 | R86: 0.0219414412 | T86: 27.23396838 | U86: 15.92303832 | W86: 0.5897638504 | X86: 16.06161006
B87: 0.932064 | D87: 1.517784084 | E87: 0.5802532195 | F87: 0.2400098227 | G87: 0.934684706 | H87: 1.798561862 | I87: 0.5948386791 | J87: 0.4051613209 | L87: 0.1650728121 | M87: 0.929450642 | N87: 1.237006307 | O87: 0.5655566639 | Q87: 0.03523307229 | R87: 0.02119317046 | T87: 26.45423574 | U87: 15.73600264 | W87: 0.5998857599 | X87: 15.86951931
B88: 0.933888 | D88: 1.713287568 | E88: 0.590421887 | F88: 0.2660988649 | G88: 0.9365138346 | H88: 1.994065346 | I88: 0.6049184654 | J88: 0.3950815346 | L88: 0.1911618543 | M88: 0.9312695278 | N88: 1.43250979 | O88: 0.5758006059 | Q88: 0.03632726391 | R88: 0.02046336209 | T88: 25.70763386 | U88: 15.55102243 | W88: 0.6099214386 | X88: 15.67963703
B89: 0.935712 | D89: 1.908409581 | E89: 0.6005104248 | F89: 0.2921370017 | G89: 0.9383429632 | H89: 2.189187359 | I89: 0.6149090616 | J89: 0.3850909384 | L89: 0.2171999911 | M89: 0.9330884136 | N89: 1.627631803 | O89: 0.5859737542 | Q89: 0.03743976062 | R89: 0.01975185879 | T89: 24.99246749 | U89: 15.36809473 | W89: 0.6198650376 | X89: 15.4919568
B90: 0.937536 | D90: =(LN(B90/F$8))*100 -> 2.10315161 | E90: 0.6105128418 | F90: =((LN(B90/F$8))/(F$9/100))+(F$10/100) -> 0.3181244313 | G90: =F$8+((EXP(F90*(F$9/100))-1)*F$8) -> 0.9401720918 | H90: =(LN(G90/F$8))*100 -> 2.383929387 | I90: =NORMDIST(H90,0,F$9,1) -> 0.624804724 | J90: =1-I90 -> 0.375195276 | L90: =((LN(B90/F$8))/(F$9/100))-(F$10/100) -> 0.2431874207 | M90: =F$8+((EXP(L90*(F$9/100))-1)*F$8) -> 0.9349072994 | N90: =(LN(M90/F$8))*100 -> 1.822373832 | O90: =NORMDIST(N90,0,F$9,1) -> 0.5960698944 | Q90: =(I90*B90)-(O90*F$8) -> 0.03857039445 | R90: =Q90+F$8-B90 -> 0.01905849262 | T90: 24.30714058 | U90: 15.18721626 | W90: 0.629710921 | X90: 15.30647188
B91: 0.93936 | D91: 2.29751513 | E91: =NORMDIST(D91,0,F$9,1) -> 0.62042335 | F91: 0.3440613507 | G91: 0.9420012204 | H91: 2.578292908 | I91: 0.634599926 | J91: 0.365400074 | L91: 0.2691243401 | M91: 0.9367261852 | N91: 2.016737353 | O91: 0.6060829998 | Q91: 0.03971898717 | R91: 0.01838308534 | T91: =B91/Q91 -> 23.65014989 | U91: =T91*I91 -> 15.00838337 | W91: =(Q92-Q91)*(1/$F$4) -> 0.6394536742 | X91: =T91*W91 -> 15.12317524
B92: =B91+F$4 -> 0.941184 | D92: 2.491501612 | E92: 0.630236373 | F92: 0.3699479561 | G92: 0.943830349 | H92: 2.77227939 | I92: 0.6442893657 | J92: 0.3557106343 | L92: 0.2950109455 | M92: 0.938545071 | N92: 2.210723834 | O92: 0.6160072408 | Q92: 0.04088535067 | R92: 0.01772544884 | T92: 23.02007894 | U92: 14.83159206 | W92: 0.6490881103 | X92: 14.94205954
B93: 0.943008 | D93: 2.685112515 | E93: 0.6399465535 | F93: 0.3957844421 | G93: 0.9456594775 | H93: 2.965890293 | I93: 0.6538679725 | J93: 0.3461320275 | L93: 0.3208474315 | M93: 0.9403639568 | N93: 2.404334737 | O93: 0.6258369935 | Q93: 0.04206928738 | R93: 0.01708538556 | T93: 22.41559244 | U93: 14.65683798 | W93: 0.6586092763 | X93: 14.76311711
B94: 0.944832 | D94: 2.87834929 | E94: 0.6495487597 | F94: 0.4215710025 | G94: 0.9474886061 | H94: 3.159127068 | I94: 0.6633309122 | J94: 0.3366690878 | L94: 0.3466339919 | M94: 0.9421828426 | N94: 2.597571512 | O94: 0.6355668472 | Q94: 0.0432705907 | R94: 0.01646268888 | T94: 21.83543106 | U94: 14.4841164 | W94: 0.668012459 | X94: 14.58633999
B95: 0.946656 | D95: 3.071213381 | E95: 0.6590380915 | F95: 0.4473078299 | G95: 0.9493177347 | H95: 3.351991158 | I95: 0.6726735928 | J95: 0.3273264072 | L95: 0.3723708193 | M95: 0.9440017284 | N95: 2.790435603 | O95: 0.6451916114 | Q95: 0.04448904543 | R95: 0.0158571436 | T95: 21.27840665 | U95: 14.31342225 | W95: 0.6772931888 | X95: 14.41171989
B96: 0.94848 | D96: 3.263706222 | E96: 0.668409886 | F96: 0.4729951157 | G96: 0.9511468633 | H96: 3.544483999 | I96: 0.6818916681 | J96: 0.3181083319 | L96: 0.3980581051 | M96: 0.9458206142 | N96: 2.982928444 | O96: 0.6547063223 | Q96: 0.0457244282 | R96: 0.01526852638 | T96: 20.74339773 | U96: 14.14475008 | W96: 0.6864472439 | X96: 14.2392482
B97: 0.950304 | D97: 3.455829239 | E97: 0.6776597216 | F97: 0.4986330503 | G97: 0.9529759919 | H97: 3.736607017 | I97: 0.6909810413 | J97: 0.3090189587 | L97: 0.4236960397 | M97: 0.9476395 | N97: 3.175051462 | O97: 0.6641062481 | Q97: 0.04697650798 | R97: 0.01469660615 | T97: 20.22934528 | U97: 13.97809407 | W97: 0.6954706537 | X97: 14.06891599
B98: 0.952128 | D98: 3.647583852 | E98: 0.686783422 | F98: 0.524221823 | G98: 0.9548051205 | H98: 3.92836163 | I98: 0.699937868 | J98: 0.300062132 | L98: 0.4492848124 | M98: 0.9494583858 | N98: 3.366806074 | O98: 0.6733868938 | Q98: 0.04824504645 | R98: 0.01414114462 | T98: 19.7352489 | U98: 13.81344804 | W98: 0.7043597004 | X98: 13.900714
B99: 0.953952 | D99: 3.83897147 | E99: 0.695777059 | F99: 0.5497616219 | G99: 0.956634249 | H99: 4.119749248 | I99: 0.7087585576 | J99: 0.2912414424 | L99: 0.4748246113 | M99: 0.9512772716 | N99: 3.558193693 | O99: 0.6825440053 | Q99: 0.04952979854 | R99: 0.01360189672 | T99: 19.26016314 | U99: 13.65080544 | W99: 0.7131109211 | X99: 13.73463267
B100: 0.955776 | D100: 4.029993496 | E100: 0.7046369549 | F100: 0.5752526342 | G100: 0.9584633776 | H100: 4.310771274 | I100: 0.7174397748 | J100: 0.2825602252 | L100: 0.5003156236 | M100: 0.9530961573 | N100: 3.749215718 | O100: 0.6915735726 | Q100: 0.05083051286 | R100: 0.01307861104 | T100: 18.80319411 | U100: 13.49015935 | W100: 0.7217211084 | X100: 13.57066209
B101: 0.9576 | D101: 4.220651323 | E101: 0.7133596838 | F101: 0.6006950458 | G101: 0.9602925062 | H101: 4.501429101 | I101: 0.7259784403 | J101: 0.2740215597 | L101: 0.5257580353 | M101: 0.9549150431 | N101: 3.939873545 | O101: 0.7004718325 | Q101: 0.05214693216 | R101: 0.01257103034 | T101: 18.36349638 | U101: 13.33150246 | W101: 0.7301873109 | X101: 13.40879204
B102: 0.959424 | D102: 4.410946338 | E102: 0.7219420728 | F102: 0.6260890418 | G102: 0.9621216348 | H102: 4.691724116 | I102: 0.7343717303 | J102: 0.2656282697 | L102: 0.5511520312 | M102: 0.9567339289 | N102: 4.13016856 | O102: 0.70923527 | Q102: 0.05347879382 | R102: 0.012078892 | T102: 17.94026999 | U102: 13.17482712 | W102: 0.7385068321 | X102: 13.24901196
B103: 0.961248 | D103: 4.600879918 | E103: 0.7303812019 | F103: 0.6514348061 | G103: 0.9639507634 | H103: 4.881657696 | I103: 0.7426170757 | J103: 0.2573829243 | L103: 0.5764977955 | M103: 0.9585528147 | N103: 4.32010214 | O103: 0.7178606202 | Q103: 0.05482583028 | R103: 0.01160192846 | T103: 17.53275774 | U103: 13.02012528 | W103: 0.7466772298 | X103: 13.09131098
B104: 0.963072 | D104: 4.790453435 | E104: 0.7386744034 | F104: 0.6767325215 | G104: 0.965779892 | H104: 5.071231212 | I104: 0.7507121608 | J104: 0.2492878392 | L104: 0.6017955109 | M104: 0.9603717005 | N104: 4.509675657 | O104: 0.7263448682 | Q104: 0.05618776955 | R104: 0.01113986772 | T104: 17.14024258 | U104: 12.86738854 | W104: 0.754696314 | X104: 12.9356779
B105: 0.964896 | D105: 4.97966825 | E105: 0.7468192609 | F105: 0.7019823698 | G105: 0.9676090205 | H105: 5.260446028 | I105: 0.7586549209 | J105: 0.2413450791 | L105: 0.6270453592 | M105: 0.9621905863 | N105: 4.698890472 | O105: 0.7346852487 | Q105: 0.05756433563 | R105: 0.0106924338 | T105: 16.76204528 | U105: 12.71660813 | W105: 0.7625621446 | X105: 12.78210119
B106: 0.96672 | D106: 5.168525719 | E106: 0.7548136073 | F106: 0.7271845319 | G106: 0.9694381491 | H106: 5.449303496 | I106: 0.7664435397 | J106: 0.2335564603 | L106: 0.6522475213 | M106: 0.9640094721 | N106: 4.887747941 | O106: 0.7428792459 | Q106: 0.05895524898 | R106: 0.01025934715 | T106: 16.39752213 | U106: 12.56777491 | W106: 0.7702730281 | X106: 12.63056903
B107: 0.968544 | D107: 5.357027188 | E107: 0.7626555228 | F107: 0.7523391875 | G107: 0.9712672777 | H107: 5.637804966 | I107: 0.7740764464 | J107: 0.2259235536 | L107: 0.6774021769 | M107: 0.9658283579 | N107: 5.07624941 | O107: 0.7509245912 | Q107: 0.06036022698 | R107: 0.009840325156 | T107: 16.04606292 | U107: 12.42087936 | W107: 0.7778275146 | X107: 12.48106924
B108: 0.970368 | D108: 5.545173998 | E108: 0.7703433313 | F108: 0.7774465155 | G108: 0.9730964063 | H108: 5.825951776 | I108: 0.781552311 | J108: 0.218447689 | L108: 0.7025095049 | M108: 0.9676472437 | N108: 5.26439622 | O108: 0.7588192619 | Q108: 0.06177898437 | R108: 0.009435082543 | T108: 15.70708891 | U108: 12.27591163 | W108: 0.7852243932 | X108: 12.33358936
B109: 0.972192 | D109: 5.732967481 | E109: 0.7778755975 | F109: 0.8025066935 | G109: 0.9749255349 | H109: 6.013745258 | I109: 0.788870041 | J109: 0.211129959 | L109: 0.7275696829 | M109: 0.9694661295 | N109: 5.452189703 | O109: 0.7665614776 | Q109: 0.06321123366 | R109: 0.009043331836 | T109: 15.38005104 | U109: 12.13286149 | W109: 0.7924626878 | X109: 12.18811659
B110: 0.974016 | D110: 5.92040896 | E110: 0.7852511225 | F110: 0.8275198983 | G110: 0.9767546635 | H110: 6.201186738 | I110: 0.7960287757 | J110: 0.2039712243 | L110: 0.7525828877 | M110: 0.9712850153 | N110: 5.639631182 | O110: 0.774149698 | Q110: 0.0646566856 | R110: 0.008664783778 | T110: 15.06442823 | U110: 11.99171836 | W110: 0.7995416516 | X110: 12.04463783
B111: 0.97584 | D111: 6.107499754 | E111: 0.7924689395 | F111: 0.8524863057 | G111: 0.978583792 | H111: 6.388277531 | I111: 0.8030278818 | J111: 0.1969721182 | L111: 0.7775492951 | M111: 0.9731039011 | N111: 5.826721976 | O111: 0.7815826186 | Q111: 0.06611504958 | R111: 0.008299147751 | T111: 14.75972575 | U111: 11.85247131 | W111: 0.8064607625 | X111: 11.90313969
B112: 0.977664 | D112: 6.294241171 | E112: 0.7995283087 | F112: 0.8774060905 | G112: 0.9804129206 | H112: 6.575018949 | I112: 0.8098669469 | J112: 0.1901330531 | L112: 0.8024690799 | M112: 0.9749227869 | N112: 6.013463393 | O112: 0.7888591663 | Q112: 0.06758603401 | R112: 0.007946132182 | T112: 14.46547374 | U112: 11.71510905 | W112: 0.8132197163 | X112: 11.76360845
B113: 0.979488 | D113: 6.480634515 | E113: 0.806428712 | F113: 0.9022794264 | G113: 0.9822420492 | H113: 6.761412293 | I113: 0.8165457742 | J113: 0.1834542258 | L113: 0.8273424158 | M113: 0.9767416727 | N113: 6.199856737 | O113: 0.7959784955 | Q113: 0.06906934677 | R113: 0.007605444944 | T113: 14.18122577 | U113: 11.57961997 | W113: 0.8198184212 | X113: 11.62603012
B114: 0.981312 | D114: 6.66668108 | E114: 0.8131698474 | F114: 0.9271064863 | G114: 0.9840711778 | H114: 6.947458858 | I114: 0.8230643756 | J114: 0.1769356244 | L114: 0.8521694757 | M114: 0.9785605585 | N114: 6.385903302 | O114: 0.8029399822 | Q114: 0.07056469557 | R114: 0.007276793744 | T114: 13.90655755 | U114: 11.44599211 | W114: 0.8262569907 | X114: 11.49039039
B115: 0.983136 | D115: 6.852382155 | E115: 0.8197516225 | F115: 0.9518874421 | G115: 0.9859003064 | H115: 7.133159933 | I115: 0.8294229655 | J115: 0.1705770345 | L115: 0.8769504315 | M115: 0.9803794443 | N115: 6.571604377 | O115: 0.8097432189 | Q115: 0.07207178832 | R115: 0.006959886496 | T115: 13.64106571 | U115: 11.31421317 | W115: 0.8325357375 | X115: 11.3566747
B116: 0.98496 | D116: 7.03773902 | E116: 0.8261741483 | F116: 0.9766224647 | G116: 0.987729435 | H116: 7.318516798 | I116: 0.8356219534 | J116: 0.1643780466 | L116: 0.9016854541 | M116: 0.9821983301 | N116: 6.756961242 | O116: 0.8163880089 | Q116: 0.0735903335 | R116: 0.006654431681 | T116: 13.38436657 | U116: 11.18427054 | W116: 0.8386551657 | X116: 11.22486817
B117: 0.986784 | D117: 7.222752949 | E117: 0.8324377325 | F117: 1.001311724 | G117: 0.9895585635 | H117: 7.503530726 | I117: 0.8416619367 | J117: 0.1583380633 | L117: 0.9263747135 | M117: 0.9840172159 | N117: 6.941975171 | O117: 0.8228743598 | Q117: 0.07512004053 | R117: 0.006360138703 | T117: 13.13609515 | U117: 11.05615128 | W117: 0.8446159637 | X117: 11.09495566
B118: 0.988608 | D118: 7.407425208 | E118: 0.8385428725 | F118: 1.025955389 | G118: 0.9913876921 | H118: 7.688202986 | I118: 0.8475436938 | J118: 0.1524563062 | L118: 0.9510183786 | M118: 0.9858361017 | N118: 7.12664743 | O118: 0.8292024768 | Q118: 0.07666062004 | R118: 0.006076718221 | T118: 12.89590404 | U118: 10.92984215 | W118: 0.850418997 | X118: 10.96692178
B119: 0.990432 | D119: 7.591757057 | E119: 0.8444902481 | F119: 1.050553628 | G119: 0.9932168207 | H119: 7.872534835 | I119: 0.8532681759 | J119: 0.1467318241 | L119: 0.9756166175 | M119: 0.9876549875 | N119: 7.31097928 | O119: 0.8353727567 | Q119: 0.0782117843 | R119: 0.005803882471 | T119: 12.66346253 | U119: 10.80532957 | W119: 0.8560653001 | X119: 10.84075085
B120: 0.992256 | D120: 7.77574975 | E120: 0.8502807141 | F120: 1.075106608 | G120: 0.9950459493 | H120: 8.056527527 | I120: 0.8588364994 | J120: 0.1411635006 | L120: 1.000169598 | M120: 0.9894738733 | N120: 7.494971972 | O120: 0.8413857802 | Q120: 0.0797732474 | R120: 0.005541345579 | T120: 12.43845565 | U120: 10.68259971 | W120: 0.8615560688 | X120: 10.71642695
B121: 0.99408 | D121: 7.95940453 | E121: 0.8559152928 | F121: 1.099614495 | G121: 0.9968750779 | H121: 8.240182308 | I121: 0.8642499382 | J121: 0.1357500618 | L121: 1.024677485 | M121: 0.9912927591 | N121: 7.678626753 | O121: 0.8472423049 | Q121: 0.08134472567 | R121: 0.005288823848 | T121: 12.22058335 | U121: 10.5616384 | W121: 0.8668926523 | X121: 10.59393391
B122: 0.995904 | D122: 8.142722638 | E122: 0.861395166 | F122: 1.124077455 | G122: 0.9987042065 | H122: 8.423500416 | I122: 0.8695099157 | J122: 0.1304900843 | L122: 1.049140445 | M122: 0.9931116449 | N122: 7.861944861 | O122: 0.852943258 | Q122: 0.08292593787 | R122: 0.005046036046 | T122: 12.00955968 | U122: 10.44243123 | W122: 0.8720765454 | X122: 10.47325532
B123: 0.997728 | D123: 8.325705306 | E123: 0.8667216678 | F123: 1.148495652 | G123: 1.000533335 | H123: 8.606483084 | I123: 0.8746179966 | J123: 0.1253820034 | L123: 1.073558642 | M123: 0.9949305307 | N123: 8.044927528 | O123: 0.8584897287 | Q123: 0.08451660549 | R123: 0.004812703665 | T123: 11.80511208 | U123: 10.32496347 | W123: 0.8771093801 | X123: 10.35437453
B124: 0.999552 | D124: 8.508353759 | E124: 0.871896276 | F124: 1.17286925 | G124: 1.002362464 | H124: 8.789131537 | I124: 0.8795758787 | J124: 0.1204241213 | L124: 1.097932239 | M124: 0.9967494165 | N124: 8.227575981 | O124: 0.8638829604 | Q124: 0.086116453 | R124: 0.004588551174 | T124: 11.60698061 | U124: 10.20922017 | W124: 0.8819929175 | X124: 10.23727469
B125: 1.001376 | D125: 8.690669215 | E125: 0.8769206047 | F125: 1.19719841 | G125: 1.004191592 | H125: 8.971446993 | I125: 0.8843853853 | J125: 0.1156146147 | L125: 1.122261399 | M125: 0.9985683023 | N125: 8.409891437 | O125: 0.8691243433 | Q125: 0.08772520808 | R125: 0.004373306256 | T125: 11.41491735 | U125: 10.09518608 | W125: 0.8867290401 | X125: 10.12193871
B126: 1.0032 | D126: 8.872652887 | E126: 0.8817963959 | F126: 1.221483295 | G126: 1.006020721 | H126: 9.153430664 | I126: 0.8890484567 | J126: 0.1109515433 | L126: 1.146546285 | M126: 1.000387188 | N126: 8.591875109 | O126: 0.8742154063 | Q126: 0.08934260185 | R126: 0.004166700025 | T126: 11.22868575 | U126: 9.982845735 | W126: 0.8913197436 | X126: 10.0083493
B127: 1.005024 | D127: 9.054305979 | E127: 0.886525512 | F127: 1.245724067 | G127: 1.007849849 | H127: 9.335083757 | I127: 0.8935671425 | J127: 0.1064328575 | L127: 1.170787056 | M127: 1.002206074 | N127: 8.773528202 | O127: 0.879157809 | Q127: 0.09096836906 | R127: 0.003968467237 | T127: 11.04806001 | U127: 9.872183409 | W127: 0.8957671287 | X127: 9.896488989
B128: 1.006848 | D128: 9.235629692 | E128: 0.8911099274 | F128: 1.269920884 | G128: 1.009678978 | H128: 9.516407469 | I128: 0.8979435933 | J128: 0.1020564067 | L128: 1.194983873 | M128: 1.00402496 | N128: 8.954851914 | O128: 0.8839533345 | Q128: 0.0926022483 | R128: 0.00377834648 | T128: 10.87282456 | U128: 9.763183158 | W128: 0.9000733932 | X128: 9.786340099
B129: 1.008672 | D129: 9.416625216 | E129: 0.8955517208 | F129: 1.294073905 | G129: 1.011508107 | H129: 9.697402994 | I129: 0.902180053 | J129: 0.09781994702 | L129: 1.219136895 | M129: 1.005843845 | N129: 9.135847438 | O129: 0.8886038807 | Q129: 0.09424398217 | R129: 0.003596080349 | T129: 10.70277355 | U129: 9.655828812 | W129: 0.9042408247 | X129: 9.677884784
B130: 1.010496 | D130: 9.597293739 | E130: 0.8998530676 | F130: 1.31818329 | G130: 1.013337235 | H130: 9.878071517 | I130: 0.9062788511 | J130: 0.09372114893 | L130: 1.24324628 | M130: 1.007662731 | N130: 9.316515961 | O130: 0.8931114533 | Q130: 0.09589331744 | R130: 0.003421415613 | T130: 10.53771031 | U130: 9.550103994 | W130: 0.908271792 | X130: 9.571105028
B131: 1.01232 | D131: 9.777636439 | E131: 0.9040162319 | F131: 1.342249195 | G131: 1.015166364 | H131: 10.05841422 | I131: 0.9102423949 | J131: 0.08975760511 | L131: 1.267312185 | M131: 1.009481617 | N131: 9.496858661 | O131: 0.8974781573 | Q131: 0.09755000519 | R131: 0.003254103362 | T131: 10.37744691 | U131: 9.445992129 | W131: 0.9121687383 | X131: 9.465982655
B132: 1.014144 | D132: 9.957654489 | E132: 0.9080435589 | F132: 1.366271778 | G132: 1.016995492 | H132: 10.23843227 | I132: 0.9140731621 | J132: 0.08592683788 | L132: 1.291334767 | M132: 1.011300503 | N132: 9.676876711 | O132: 0.9017061901 | Q132: 0.09921380096 | R132: 0.00309389914 | T132: 10.22180372 | U132: 9.343476451 | W132: 0.9159341734 | X132: 9.362499343
B133: 1.015968 | D133: 10.13734906 | E133: 0.9119374674 | F133: 1.390251193 | G133: 1.018824621 | H133: 10.41812683 | I133: 0.9177736935 | J133: 0.08222630655 | L133: 1.315314182 | M133: 1.013119389 | N133: 9.856571279 | O133: 0.9057978331 | Q133: 0.1008844649 | R133: 0.002940563073 | T133: 10.070609 | U133: 9.242540016 | W133: 0.9195706665 | X133: 9.260636629
B134: 1.017792 | D134: 10.3167213 | E134: 0.9157004429 | F134: 1.414187595 | G134: 1.020653749 | H134: 10.59749908 | I134: 0.9213465854 | J134: 0.07865341459 | L134: 1.339250585 | M134: 1.014938274 | N134: 10.03594352 | O134: 0.9097554451 | Q134: 0.1025617618 | R134: 0.002793859968 | T134: 9.923698484 | U134: 9.143165713 | W134: 0.9230808392 | X134: 9.160375924
B135: 1.019616 | D135: 10.49577238 | E135: 0.9193350296 | F135: 1.438081139 | G135: 1.022482878 | H135: 10.77655016 | I135: 0.9247944833 | J135: 0.07520551667 | L135: 1.363144129 | M135: 1.01675716 | N135: 10.2149946 | O135: 0.9135814543 | Q135: 0.1042454612 | R135: 0.002653559419 | T135: 9.780915043 | U135: 9.045336273 | W135: 0.9264673582 | X135: 9.061698521
B136: 1.02144 | D136: 10.67450344 | E136: 0.9228438242 | F136: 1.461931978 | G136: 1.024312007 | H136: 10.95528121 | I136: 0.9281200746 | J136: 0.07187992541 | L136: 1.386994968 | M136: 1.018576046 | N136: 10.39372566 | O136: 0.9172783514 | Q136: 0.1059353377 | R136: 0.00251943588 | T136: 9.64210831 | U136: 8.949034284 | W136: 0.9297329294 | X136: 8.964585604
B137: 1.023264 | D137: 10.85291562 | E137: 0.9262294688 | F137: 1.485740265 | G137: 1.026141135 | H137: 11.13369339 | I137: 0.931326082 | J137: 0.06867391798 | L137: 1.410803254 | M137: 1.020394932 | N137: 10.57213784 | O137: 0.9208486826 | Q137: 0.1076311706 | R137: 0.002391268744 | T137: 9.507134361 | U137: 8.854242196 | W137: 0.9328802905 | X137: 8.869018264
B138: 1.025088 | D138: 11.03101005 | E138: 0.9294946438 | F138: 1.50950615 | G138: 1.027970264 | H138: 11.31178783 | I138: 0.9344152575 | J138: 0.06558474248 | L138: 1.434569139 | M138: 1.022213818 | N138: 10.75023228 | O138: 0.924295043 | Q138: 0.1093327442 | R138: 0.002268842393 | T138: 9.375855398 | U138: 8.760942336 | W138: 0.9359122054 | X138: 8.774977502
B139: 1.026912 | D139: 11.20878788 | E139: 0.9326420624 | F139: 1.533229784 | G139: 1.029799392 | H139: 11.48956566 | I139: 0.9373903759 | J139: 0.06260962409 | L139: 1.458292773 | M139: 1.024032703 | N139: 10.9280101 | O139: 0.9276200694 | Q139: 0.1110398481 | R139: 0.002151946256 | T139: 9.248139454 | U139: 8.669116919 | W139: 0.9388314579 | X139: 8.682444247
B140: 1.028736 | D140: 11.38625021 | E140: 0.9356744638 | F140: 1.556911318 | G140: 1.031628521 | H140: 11.66702799 | I140: 0.940254229 | J140: 0.05974577097 | L140: 1.481974307 | M140: 1.025851589 | N140: 11.10547244 | O140: 0.9308264343 | Q140: 0.1127522767 | R140: 0.002040374835 | T140: 9.123860116 | U140: 8.578748059 | W140: 0.9416408461 | X140: 8.591399359
B141: 1.03056 | D141: 11.56339818 | E141: 0.9385946072 | F141: 1.580550901 | G141: 1.03345765 | H141: 11.84417596 | I141: 0.9430096201 | J141: 0.05699037993 | L141: 1.50561389 | M141: 1.027670475 | N141: 11.2826204 | O141: 0.9339168397 | Q141: 0.1144698296 | R141: 0.001933927738 | T141: 9.002896256 | U141: 8.489817778 | W141: 0.9443431764 | X141: 8.501823647
B142: 1.032384 | D142: 11.74023288 | E142: 0.9414052665 | F142: 1.60414868 | G142: 1.035286778 | H142: 12.02101066 | I142: 0.9456593581 | J142: 0.05434064188 | L142: 1.529211669 | M142: 1.029489361 | N142: 11.45945511 | O142: 0.9368940107 | Q142: 0.1161923115 | R142: 0.001832409692 | T142: 8.885131783 | U142: 8.402308019 | W142: 0.9469412588 | X142: 8.413697876
B143: 1.034208 | D143: 11.91675544 | E143: 0.9441092244 | F143: 1.627704804 | G143: 1.037115907 | H143: 12.19753321 | I143: 0.948206253 | J143: 0.05179374697 | L143: 1.552767794 | M143: 1.031308247 | N143: 11.63597766 | O143: 0.9397606902 | Q143: 0.1179195324 | R143: 0.001735630548 | T143: 8.770455405 | U143: 8.316200657 | W143: 0.9494379015 | X143: 8.327002774
B144: 1.036032 | D144: 12.09296694 | E144: 0.9467092673 | F144: 1.65121942 | G144: 1.038945035 | H144: 12.37374471 | I144: 0.9506531104 | J144: 0.04934688956 | L144: 1.576282409 | M144: 1.033127132 | N144: 11.81218916 | O144: 0.9425196331 | Q144: 0.1196513071 | R144: 0.001643405281 | T144: 8.658760402 | U144: 8.231477509 | W144: 0.9518359059 | X144: 8.241719052
B145: 1.037856 | D145: 12.26886848 | E145: 0.9492081804 | F145: 1.674692673 | G145: 1.040774164 | H145: 12.54964625 | I145: 0.9530027271 | J145: 0.04699727291 | L145: 1.599755662 | M145: 1.034946018 | N145: 11.9880907 | O145: 0.9451736008 | Q145: 0.1213874558 | R145: 0.001555553973 | T145: 8.549944417 | U145: 8.148120346 | W145: 0.9541380627 | X145: 8.157827402
B146: 1.03968 | D146: 12.44446115 | E146: 0.9516087429 | F146: 1.698124708 | G146: 1.042603292 | H146: 12.72523892 | I146: 0.9552578865 | J146: 0.04474211354 | L146: 1.623187698 | M146: 1.036764904 | N146: 12.16368337 | O146: 0.9477253566 | Q146: 0.1231278036 | R146: 0.001471901799 | T146: 8.44390925 | U146: 8.066110904 | W146: 0.9563471467 | X146: 8.075308519
B147: 1.041504 | D147: 12.61974603 | E147: 0.9539137231 | F147: 1.721515671 | G147: 1.044432421 | H147: 12.90052381 | I147: 0.9574213545 | J147: 0.04257864548 | L147: 1.646578661 | M147: 1.03858379 | N147: 12.33896825 | O147: 0.9501776602 | Q147: 0.1248721808 | R147: 0.001392278995 | T147: 8.340560669 | U147: 7.985430893 | W147: 0.9584659137 | X147: 7.994143102
B148: 1.043328 | D148: 12.7947242 | E148: 0.9561258747 | F148: 1.744865705 | G148: 1.04626155 | H148: 13.07550198 | I148: 0.9594958758 | J148: 0.04050412416 | L148: 1.669928694 | M148: 1.040402676 | N148: 12.51394642 | O148: 0.9525332638 | Q148: 0.1266204226 | R148: 0.001316520822 | T148: 8.239808225 | U148: 7.90606201 | W148: 0.9604970959 | X148: 7.914311871
B149: 1.045152 | D149: 12.96939674 | E149: 0.9582479326 | F149: 1.768174952 | G149: 1.048090678 | H149: 13.25017451 | I149: 0.9614841699 | J149: 0.03851583009 | L149: 1.693237942 | M149: 1.042221561 | N149: 12.68861896 | O149: 0.9547949074 | Q149: 0.1283723693 | R149: 0.001244467525 | T149: 8.141565084 | U149: 7.827985946 | W149: 0.9624433988 | X149: 7.835795571
B150: 1.046976 | D150: 13.1437647 | E150: 0.9602826089 | F150: 1.791443556 | G150: 1.049919807 | H150: 13.42454247 | I150: 0.9633889277 | J150: 0.03661107232 | L150: 1.716506546 | M150: 1.044040447 | N150: 12.86298692 | O150: 0.9569653145 | Q150: 0.1301278661 | R150: 0.001175964284 | T150: 8.045747858 | U150: 7.751184401 | W150: 0.9643074979 | X150: 7.758574986
B151: 1.0488 | D151: 13.31782914 | E151: 0.9622325895 | F151: 1.814671658 | G151: 1.051748935 | H151: 13.59860692 | I151: 0.9652128084 | J151: 0.03478719156 | L151: 1.739734647 | M151: 1.045859333 | N151: 13.03705137 | O151: 0.9590471887 | Q151: 0.131886763 | R151: 0.00111086116 | T151: 7.952276455 | U151: 7.675639091 | W151: 0.9660920353 | X151: 7.682630945
B152: 1.050624 | D152: 13.49159113 | E152: 0.964100531 | F152: 1.837859397 | G152: 1.053578064 | H152: 13.77236891 | I152: 0.9669584368 | J152: 0.03304156322 | L152: 1.762922387 | M152: 1.047678219 | N152: 13.21081336 | O152: 0.9610432096 | Q152: 0.1336489149 | R152: 0.001049013033 | T152: 7.861073927 | U152: 7.601331756 | W152: 0.967799617 | X152: 7.607944336
B153: 1.052448 | D153: 13.66505171 | E153: 0.9658890574 | F153: 1.861006915 | G153: 1.055407193 | H153: 13.94582949 | I153: 0.9686283999 | J153: 0.03137160006 | L153: 1.786069905 | M153: 1.049497105 | N153: 13.38427394 | O153: 0.9629560299 | Q153: 0.1354141814 | R153: 0.000990279534 | T153: 7.772066333 | U153: 7.528244177 | W153: 0.9694328107 | X153: 7.534496111
B154: 1.054272 | D154: =(LN(B154/F$8))*100 -> 13.83821193 | E154: 0.9676007575 | F154: =((LN(B154/F$8))/(F$9/100))+(F$10/100) -> 1.884114351 | G154: =F$8+((EXP(F154*(F$9/100))-1)*F$8) -> 1.057236321 | H154: =(LN(G154/F$8))*100 -> 14.11898971 | I154: =NORMDIST(H154,0,F$9,1) -> 0.9702252453 | J154: =1-I154 -> 0.0297747547 | L154: =((LN(B154/F$8))/(F$9/100))-(F$10/100) -> 1.809177341 | M154: =F$8+((EXP(L154*(F$9/100))-1)*F$8) -> 1.05131599 | N154: =(LN(M154/F$8))*100 -> 13.55743415 | O154: =NORMDIST(N154,0,F$9,1) -> 0.9647882716 | Q154: =(I154*B154)-(O154*F$8) -> 0.1371824268 | R154: =Q154+F$8-B154 -> 0.0009345249807 | T154: 7.685182604 | U154: 7.456358177 | W154: 0.9709941428 | X154: 7.462267295
B155: 1.056096 | D155: 14.01107282 | E155: =NORMDIST(D155,0,F$9,1) -> 0.9692381819 | F155: 1.907181843 | G155: 1.05906545 | H155: 14.2918506 | I155: 0.9717514781 | J155: 0.02824852191 | L155: 1.832244833 | M155: 1.053134876 | N155: 13.73029504 | O155: 0.9665425239 | Q155: 0.1389535201 | R155: 0.0008816182973 | T155: =B155/Q155 -> 7.600354414 | U155: =T155*I155 -> 7.385655636 | W155: =(Q156-Q155)*(1/$F$4) -> 0.9724860967 | X155: =T155*W155 -> 7.391238997
B156: =B155+F$4 -> 1.05792 | D156: 14.18363542 | E156: 0.9708038411 | F156: 1.93020953 | G156: 1.060894578 | H156: 14.4644132 | I156: 0.9732095594 | J156: 0.02679044063 | L156: 1.855272519 | M156: 1.054953762 | N156: 13.90285764 | O156: 0.9682213398 | Q156: 0.1407273348 | R156: 0.0008314329376 | T156: 7.517516066 | U156: 7.316118498 | W156: 0.9739111104 | X156: 7.32139242
B157: 1.059744 | D157: 14.35590075 | E157: 0.9723002031 | F157: 1.953197547 | G157: 1.062723707 | H157: 14.63667853 | I157: 0.9746019042 | J157: 0.02539809581 | L157: 1.878260537 | M157: 1.056772648 | N157: 14.07512297 | O157: 0.9698272338 | Q157: 0.1425037486 | R157: 0.000783846803 | T157: 7.436604372 | U157: 7.247728781 | W157: 0.9752715755 | X157: 7.252708862
B158: 1.061568 | D158: 14.52786984 | E158: 0.9737296916 | F158: 1.976146032 | G158: 1.064552835 | H158: 14.80864761 | I158: 0.9759308799 | J158: 0.02406912006 | L158: 1.901209022 | M158: 1.058591534 | N158: 14.24709206 | O158: 0.9713626801 | Q158: 0.144282644 | R158: 0.0007387421567 | T158: 7.357558544 | U158: 7.180468584 | W158: 0.9765698347 | X158: 7.185169731
B159: 1.063392 | D159: 14.6995437 | E159: 0.9750946841 | F159: 1.999055121 | G159: 1.066381964 | H159: 14.98032148 | I159: 0.9771988049 | J159: 0.0228011951 | L159: 1.92411811 | M159: 1.060410419 | N159: 14.41876592 | O159: 0.9728301097 | Q159: 0.1460639074 | R159: 0.0006960055352 | T159: 7.280320096 | U159: 7.114320097 | W159: 0.9778081814 | X159: 7.118756553
B160: 1.065216 | D160: 14.87092335 | E160: 0.9763975104 | F160: 2.021924948 | G160: 1.068211093 | H160: 15.15170112 | I160: 0.978407947 | J160: 0.02159205298 | L160: 1.946987938 | M160: 1.062229305 | N160: 14.59014557 | O160: 0.9742319096 | Q160: 0.1478474295 | R160: 0.000655527658 | T160: 7.204832737 | U160: 7.049265607 | W160: 0.9789888578 | X160: 7.053450972
B161: 1.06704 | D161: 15.04200979 | E161: 0.9776404513 | F161: 2.044755648 | G161: 1.070040221 | H161: 15.32278756 | I161: 0.9795605228 | J161: 0.02043947717 | L161: 1.969818638 | M161: 1.064048191 | N161: 14.76123201 | O161: 0.9755704201 | Q161: 0.1496331052 | R161: 0.0006172033347 | T161: 7.131042284 | U161: 6.985287508 | W161: 0.9801140544 | X161: 6.989234765
B162: 1.068864 | D162: 15.21280402 | E162: 0.9788257375 | F162: 2.067547355 | G162: 1.07186935 | H162: 15.4935818 | I162: 0.9806586966 | J162: 0.01934130345 | L162: 1.992610344 | M162: 1.065867077 | N162: 14.93202624 | O162: 0.9768479342 | Q162: 0.1514208332 | R162: 0.0005809313699 | T162: 7.05889657 | U162: 6.922368309 | W162: 0.981185909 | X162: 6.926089847
B163: 1.070688 | D163: 15.38330705 | E163: 0.9799555483 | F163: 2.0903002 | G163: 1.073698478 | H163: 15.66408482 | I163: 0.9817045794 | J163: 0.01829542065 | L163: 2.01536319 | M163: 1.067685963 | N163: 15.10252927 | O163: 0.9780666958 | Q163: 0.1532105163 | R163: 0.0005466144679 | T163: 6.988345356 | U163: 6.860490638 | W163: 0.9822065059 | X163: 6.863998274
B164: 1.072512 | D164: 15.55351985 | E164: 0.9810320112 | F164: 2.113014318 | G164: 1.075527607 | H164: 15.83429763 | I164: 0.9827002288 | J164: 0.0172997712 | L164: 2.038077307 | M164: 1.069504848 | N164: 15.27274208 | O164: 0.9792288989 | Q164: 0.155002061 | R164: 0.0005141591346 | T164: 6.919340255 | U164: 6.799637252 | W164: 0.9831778757 | X164: 6.802942253
B165: 1.074336 | D165: 15.72344343 | E165: 0.982057201 | F165: 2.135689839 | G165: 1.077356736 | H165: 16.00422121 | I165: 0.9836476484 | J165: 0.01635235159 | L165: 2.060752828 | M165: 1.071323734 | N165: 15.44266565 | O165: 0.9803366866 | Q165: 0.1567953774 | R165: 0.0004834755799 | T165: 6.851834651 | U165: 6.739791042 | W165: 0.9841019949 | X165: 6.742904148
B166: 1.07616 | D166: 15.89307875 | E166: 0.9830331394 | F166: 2.158326894 | G166: 1.079185864 | H166: 16.17385653 | I166: 0.9845487874 | J166: 0.01545121258 | L166: 2.083389884 | M166: 1.07314262 | N166: 15.61230098 | O166: 0.9813921502 | Q166: 0.1585903794 | R166: 0.0004544776185 | T166: 6.785783626 | U166: 6.68093504 | W166: 0.9849807853 | X166: 6.683866484
B167: 1.077984 | D167: 16.0624268 | E167: 0.9839617942 | F167: 2.180925614 | G167: 1.081014993 | H167: 16.34320458 | I167: 0.9854055406 | J167: 0.01459445942 | L167: 2.105988603 | M167: 1.074961506 | N167: 15.78164903 | O167: 0.9823973288 | Q167: 0.1603869844 | R167: 0.0004270825709 | T167: 6.721143889 | U167: 6.623052427 | W167: 0.9858161146 | X167: 6.625811954
B168: 1.079808 | D168: 16.23148855 | E168: 0.9848450798 | F168: 2.203486128 | G168: 1.082844121 | H168: 16.51226633 | I168: 0.9862197482 | J168: 0.01378025182 | L168: 2.128549117 | M168: 1.076780392 | N168: 15.95071077 | O168: 0.9833542089 | Q168: 0.162185113 | R168: 0.000401211164 | T168: 6.657873711 | U168: 6.566126534 | W168: 0.9866097958 | X168: 6.568723422
B169: 1.081632 | D169: 16.40026496 | E169: 0.9856848567 | F169: 2.226008565 | G169: 1.08467325 | H169: 16.68104274 | I169: 0.9869931961 | J169: 0.01300680385 | L169: 2.151071555 | M169: 1.078599277 | N169: 16.11948719 | O169: 0.9842647238 | Q169: 0.1639846893 | R169: 0.0003767874315 | T169: 6.595932858 | U169: 6.510140853 | W169: 0.9873635878 | X169: 6.512583931
B170: 1.083456 | D170: 16.568757 | E170: 0.9864829314 | F170: 2.248493054 | G170: 1.086502378 | H170: 16.84953478 | I170: 0.9877276162 | J170: 0.01227238376 | L170: 2.173556043 | M170: 1.080418163 | N170: 16.28797922 | O170: 0.9851307537 | Q170: 0.1657856404 | R170: 0.0003537386157 | T170: 6.535282532 | U170: 6.455079037 | W170: 0.9880791953 | X170: 6.457376705
B171: 1.08528 | D171: 16.73696562 | E171: 0.9872410568 | F171: 2.270939722 | G171: 1.088331507 | H171: 17.0177434 | I171: 0.9884246864 | J171: 0.01157531361 | L171: 2.196002711 | M171: 1.082237049 | N171: 16.45618784 | O171: 0.9859541253 | Q171: 0.1675878969 | R171: 0.0003319950679 | T171: 6.475885312 | U171: 6.400924909 | W171: 0.9887582696 | X171: 6.403085155
B172: 1.087104 | D172: 16.90489177 | E172: 0.9879609323 | F172: 2.293348696 | G172: 1.090160636 | H172: 17.18566955 | I172: 0.9890860311 | J172: 0.0109139689 | L172: 2.218411685 | M172: 1.084055935 | N172: 16.62411399 | O172: 0.9867366124 | Q172: 0.169391392 | R172: 0.0003114901516 | T172: 6.417705099 | U172: 6.347662465 | W172: 0.9894024086 | X172: 6.349692882
B173: 1.088928 | D173: 17.0725364 | E173: 0.9886442041 | F173: 2.315720102 | G173: 1.091989764 | H173: 17.35331418 | I173: 0.989713222 | J173: 0.01028677805 | L173: 2.240783092 | M173: 1.08587482 | N173: 16.79175863 | O173: 0.9874799356 | Q173: 0.171196062 | R173: 0.0002921601449 | T173: 6.36070706 | U173: 6.295275878 | W173: 0.9900131577 | X173: 6.297183682
B174: 1.090752 | D174: 17.23990046 | E174: 0.989292466 | F174: 2.338054067 | G174: 1.093818893 | H174: 17.52067824 | I174: 0.9903077782 | J174: 0.009692221791 | L174: 2.263117056 | M174: 1.087693706 | N174: 16.95912268 | O174: 0.9881857628 | Q174: 0.173001846 | R174: 0.0002739441445 | T174: 6.304857581 | U174: 6.243749502 | W174: 0.9905920103 | X174: 6.245541545
B175: 1.092576 | D175: 17.40698488 | E175: 0.9899072595 | F175: 2.360350715 | G175: 1.095648021 | H175: 17.68776265 | I175: 0.9908711675 | J175: 0.009128832544 | L175: 2.285413705 | M175: 1.089512592 | N175: 17.1262071 | O175: 0.9888557094 | Q175: 0.1748086858 | R175: 0.0002567839712 | T175: 6.250124215 | U175: 6.193067877 | W175: 0.9911404084 | X175: 6.194750667
B176: 1.0944 | D176: 17.57379059 | E176: 0.9904900743 | F176: 2.382610171 | G176: 1.09747715 | H176: 17.85456836 | I176: 0.9914048063 | J176: 0.008595193656 | L176: 2.307673161 | M176: 1.091331478 | N176: 17.29301281 | O176: 0.989491339 | Q176: 0.1766165259 | R176: 0.0002406240762 | T176: 6.196475638 | U176: 6.14321573 | W176: 0.9916597436 | X176: 6.144795442
B177: 1.096224 | D177: 17.74031852 | E177: 0.9910423498 | F177: 2.404832559 | G177: 1.099306279 | H177: 18.0210963 | I177: 0.9919100614 | J177: 0.00808993862 | L177: 2.329895549 | M177: 1.093150364 | N177: 17.45954074 | O177: 0.9900941638 | Q177: 0.1784253133 | R177: 0.0002254114484 | T177: 6.143881605 | U177: 6.094177979 | W177: 0.9921513575 | X177: 6.095660474
B178: 1.098048 | D178: 17.90656959 | E178: 0.9915654747 | F178: 2.427018002 | G178: 1.101135407 | H178: 18.18734737 | I178: 0.9923882498 | J178: 0.007611750217 | L178: 2.352080992 | M178: 1.094969249 | N178: 17.62579182 | O178: 0.9906656452 | Q178: 0.1802349973 | R178: 0.0002110955246 | T178: 6.092312903 | U178: 6.045939739 | W178: 0.9926165433 | X178: 6.047330575
B179: 1.099872 | D179: 18.07254474 | E179: 0.9920607887 | F179: 2.449166623 | G179: 1.102964536 | H179: 18.35332251 | I179: 0.9928406404 | J179: 0.00715935962 | L179: 2.374229612 | M179: 1.096788135 | N179: 17.79176696 | O179: 0.9912071946 | Q179: 0.1820455299 | R179: 0.0001976280995 | T179: 6.041741319 | U179: 5.99848632 | W179: 0.9930565458 | X179: 5.999790765
B180: 1.101696 | D180: 18.23824486 | E180: 0.9925295831 | F180: 2.471278543 | G180: 1.104793664 | H180: 18.51902264 | I180: 0.9932684546 | J180: 0.00673154544 | L180: 2.396341533 | M180: 1.098607021 | N180: 17.95746708 | O180: 0.9917201739 | Q180: 0.1838568651 | R180: 0.0001849632391 | T180: 5.99213959 | U180: 5.95180323 | W180: 0.9934725633 | X180: 5.953026278
B181: 1.10352 | D181: 18.40367087 | E181: 0.9929731013 | F181: 2.493353885 | G181: 1.106622793 | H181: 18.68444864 | I181: 0.9936728673 | J181: 0.006327132747 | L181: 2.418416874 | M181: 1.100425907 | N181: 18.12289309 | O181: 0.9922058966 | Q181: 0.185668959 | R181: 0.0001730571946 | T181: 5.943481376 | U181: 5.90587618 | W181: 0.9938657477 | X181: 5.907022562
B182: 1.105344 | D182: 18.56882367 | E182: 0.9933925403 | F182: 2.515392768 | G182: 1.108451921 | H182: 18.84960145 | I182: 0.994055008 | J182: 0.005944992043 | L182: 2.440455757 | M182: 1.102244793 | N182: 18.28804589 | O182: 0.9926656287 | Q182: 0.1874817701 | R182: 0.0001618683184 | T182: 5.895741219 | U182: 5.860691084 | W182: 0.9942372064 | X182: 5.861765279
B183: 1.107168 | D183: 18.73370417 | E183: 0.9937890516 | F183: 2.537395314 | G183: 1.11028105 | H183: 19.01448195 | I183: 0.9944159618 | J183: 0.005584038217 | L183: 2.462458303 | M183: 1.104063678 | N183: 18.45292639 | O183: 0.9931005892 | Q183: 0.1892952588 | R183: 0.0001513569828 | T183: 5.84889451 | U183: 5.81623406 | W183: 0.9945880026 | X183: 5.817240308
B184: 1.108992 | D184: 18.89831326 | E184: 0.9941637419 | F184: 2.559361641 | G184: 1.112110179 | H184: 19.17909104 | I184: 0.9947567705 | J184: 0.005243229464 | L184: 2.48442463 | M184: 1.105882564 | N184: 18.61753548 | O184: 0.9935119513 | Q184: 0.1911093873 | R184: 0.0001414854996 | T184: 5.802917458 | U184: 5.77249143 | W184: 0.9949191571 | X184: 5.773433745
B185: 1.110816 | D185: 19.06265183 | E185: 0.9945176742 | F185: 2.581291869 | G185: 1.113939307 | H185: 19.34342961 | I185: 0.9950784338 | J185: 0.004921566197 | L185: 2.506354859 | M185: 1.10770145 | N185: 18.78187406 | O185: 0.9939008436 | Q185: 0.1929241199 | R185: 0.0001322180421 | T185: 5.757787055 | U185: 5.729449725 | W185: 0.9952316486 | X185: 5.730331903
B186: 1.11264 | D186: 19.22672078 | E186: 0.9948518693 | F186: 2.603186117 | G186: 1.115768436 | H186: 19.50749856 | I186: 0.9953819101 | J186: 0.004618089928 | L186: 2.528249106 | M186: 1.109520336 | N186: 18.945943 | O186: 0.9942683507 | Q186: 0.1947394224 | R186: 0.0001235205693 | T186: 5.713481052 | U186: 5.687095683 | W186: 0.9955264158 | X186: 5.687921314
B187: 1.114464 | D187: 19.39052098 | E187: 0.9951673064 | F187: 2.625044501 | G187: 1.117597564 | H187: 19.67129876 | I187: 0.9956681178 | J187: 0.004331882152 | L187: 2.550107491 | M187: 1.111339222 | N187: 19.1097432 | O187: 0.9946155145 | Q187: 0.1965552626 | R187: 0.0001153607516 | T187: 5.669977926 | U187: 5.64541625 | W187: 0.9958043574 | X187: 5.646188725
B188: 1.116288 | D188: 19.55405332 | E188: 0.9954649243 | F188: 2.646867141 | G188: 1.119426693 | H188: 19.83483109 | I188: 0.9959379368 | J188: 0.00406206321 | L188: 2.57193013 | M188: 1.113158107 | N188: 19.27327554 | O188: 0.994943335 | Q188: 0.1983716097 | R188: 0.0001077078995 | T188: 5.627256852 | U188: 5.604398579 | W188: 0.9960663343 | X188: 5.605121104
B189: 1.118112 | D189: 19.71731866 | E189: 0.9957456229 | F189: 2.668654151 | G189: 1.121255822 | H189: 19.99809644 | I189: 0.9961922088 | J189: 0.003807791155 | L189: 2.59371714 | M189: 1.114976993 | N189: 19.43654088 | O189: 0.9952527718 | Q189: 0.2001884347 | R189: 0.0001005328933 | T189: 5.58529768 | U189: 5.564030033 | W189: 0.99631317 | X189: 5.564705637
B190: 1.119936 | D190: 19.88031788 | E190: 0.9960102636 | F190: 2.690405649 | G190: 1.12308495 | H190: 20.16109566 | I190: 0.9964317394 | J190: 0.003568260611 | L190: 2.615468638 | M190: 1.116795879 | N190: 19.5995401 | O190: 0.9955447448 | Q190: 0.2020057099 | R190: 9.380811528e-05 | T190: 5.544080909 | U190: 5.524298184 | W190: 0.996545652 | X190: 5.524929724
B191: 1.12176 | D191: 20.04305184 | E191: 0.996259671 | F191: 2.712121749 | G191: 1.124914079 | H191: 20.32382962 | I191: 0.9966572984 | J191: 0.003342701641 | L191: 2.637184739 | M191: 1.118614765 | N191: 19.76227407 | O191: 0.9958201355 | Q191: 0.2038234092 | R191: 8.750738454e-05 | T191: 5.503587661 | U191: 5.48519081 | W191: 0.9967645331 | X191: 5.485780986
B192: 1.123584 | D192: 20.20552142 | E192: 0.9964946341 | F192: 2.733802568 | G192: 1.126743207 | H192: 20.4862992 | I192: 0.9968696214 | J192: 0.00313037861 | L192: 2.658865557 | M192: 1.120433651 | N192: 19.92474364 | O192: 0.9960797879 | Q192: 0.2056415077 | R192: 8.160589292e-05 | T192: 5.46379966 | U192: 5.446695899 | W192: 0.9969705322 | X192: 5.447247255
B193: 1.125408 | D193: 20.36772745 | E193: 0.9967159067 | F193: 2.755448219 | G193: 1.128572336 | H193: 20.64850523 | I193: 0.9970694109 | J193: 0.002930589062 | L193: 2.680511208 | M193: 1.122252536 | N193: 20.08694968 | O193: 0.9963245099 | Q193: 0.207459982 | R193: 7.608014366e-05 | T193: 5.424699209 | U193: 5.408801644 | W193: 0.9971643357 | X193: 5.409316582
B194: 1.127232 | D194: 20.52967081 | E194: 0.9969242094 | F194: 2.777058816 | G194: 1.130401464 | H194: 20.81044859 | I194: 0.9972573374 | J194: 0.002742662599 | L194: 2.702121805 | M194: 1.124071422 | N194: 20.24889303 | O194: 0.9965550742 | Q194: 0.2092788097 | R194: 7.090789189e-05 | T194: 5.386269167 | U194: 5.371496448 | W194: 0.9973465983 | X194: 5.371977231
B195: 1.129056 | D195: 20.69135233 | E195: 0.99712023 | F195: 2.798634473 | G195: 1.132230593 | H195: 20.97213011 | I195: 0.9974340402 | J195: 0.002565959783 | L195: 2.723697462 | M195: 1.125890308 | N195: 20.41057455 | O195: 0.9967722194 | Q195: 0.2110979699 | R195: 6.606808713e-05 | T195: 5.348492932 | U195: 5.334768914 | W195: 0.9975179445 | X195: 5.335217675
B196: 1.13088 | D196: 20.85277287 | E196: 0.9973046251 | F196: 2.820175302 | G196: 1.134059722 | H196: 21.13355065 | I196: 0.997600129 | J196: 0.002399871036 | L196: 2.745238291 | M196: 1.127709194 | N196: 20.57199509 | O196: 0.9969766513 | Q196: 0.2129174426 | R196: 6.154081783e-05 | T196: 5.31135442 | U196: 5.298607854 | W196: 0.9976789693 | X196: 5.299026603
B197: 1.132704 | D197: 21.01393326 | E197: 0.9974780207 | F197: 2.841681416 | G197: 1.13588885 | H197: 21.29471104 | I197: 0.9977561844 | J197: 0.002243815571 | L197: 2.766744405 | M197: 1.12952808 | N197: 20.73315548 | O197: 0.9971690437 | Q197: 0.2147372091 | R197: 5.730725792e-05 | T197: 5.274838044 | U197: 5.263002281 | W197: 0.9978302397 | X197: 5.26339291
B198: 1.134528 | D198: 21.17483434 | E198: 0.997641014 | F198: 2.863152926 | G198: 1.137717979 | H198: 21.45561212 | I198: 0.9979027597 | J198: 0.002097240324 | L198: 2.788215916 | M198: 1.131346965 | N198: 20.89405656 | O198: 0.9973500396 | Q198: 0.2165572514 | R198: 5.33496152e-05 | T198: 5.238928701 | U198: 5.227941409 | W198: 0.9979722953 | X198: 5.228305701
B199: 1.136352 | D199: 21.33547694 | E199: 0.9977941735 | F199: 2.884589944 | G199: 1.139547107 | H199: 21.61625472 | I199: 0.9980403811 | J199: 0.001959618921 | L199: 2.809652934 | M199: 1.133165851 | N199: 21.05469916 | O199: 0.9975202525 | Q199: 0.2183775529 | R199: 4.96510818e-05 | T199: 5.203611749 | U199: 5.193414653 | W199: 0.9981056494 | X199: 5.193754284
B200: 1.138176 | D200: 21.4958619 | E200: 0.9979380409 | F200: 2.905992581 | G200: 1.141376236 | H200: 21.77663968 | I200: 0.9981695494 | J200: 0.001830450646 | L200: 2.83105557 | M200: 1.134984737 | N200: 21.21508412 | O200: 0.997680267 | Q200: 0.2201980976 | R200: 4.619578637e-05 | T200: 5.168872994 | U200: 5.159411627 | W200: 0.9982307905 | X200: 5.159728175
B201: 1.14 | D201: 21.65599004 | E201: 0.9980731317 | F201: 2.927360945 | G201: 1.143205365 | H201: 21.93676782 | I201: 0.9982907405 | J201: 0.00170925945 | L201: 2.852423935 | M201: 1.136803623 | N201: 21.37521226 | O201: 0.9978306403 | Q201: 0.2220188706 | R201: 4.296874826e-05 | T201: 5.134698673 | U201: 5.12592214 | W201: 0.9983481826 | X201: 5.126217088
B202: 1.141824 | D202: 21.81586217 | E202: 0.9981999361 | F202: 2.948695148 | G202: 1.145034493 | H202: 22.09663995 | I202: 0.998404407 | J202: 0.001595592963 | L202: 2.873758137 | M202: 1.138622509 | N202: 21.5350844 | O202: 0.9979719027 | Q202: 0.2238398577 | R202: 3.995583334e-05 | T202: 5.101075438 | U202: 5.092936198 | W202: 0.9984582667 | X202: 5.09321094
B203: 1.143648 | D203: 21.97547913 | E203: 0.9983189204 | F203: 2.969995298 | G203: 1.146863622 | H203: 22.25625691 | I203: 0.9985109785 | J203: 0.001489021538 | L203: 2.895058287 | M203: 1.140441394 | N203: 21.69470135 | O203: 0.9981045593 | Q203: 0.2256610455 | R203: 3.714371177e-05 | T203: 5.067990345 | U203: 5.060443998 | W203: 0.9985614614 | X203: 5.060699845
B204: 1.145472 | D204: 22.13484171 | E204: 0.9984305276 | F204: 2.991261503 | G204: 1.14869275 | H204: 22.41561949 | I204: 0.9986108627 | J204: 0.001389137323 | L204: 2.916324492 | M204: 1.14226028 | N204: 21.85406393 | O204: 0.9982290904 | Q204: 0.2274824216 | R204: 3.451981737e-05 | T204: 5.035430833 | U204: 5.028435929 | W204: 0.9986581641 | X204: 5.028674112
B205: 1.147296 | D205: 22.29395073 | E205: 0.9985351784 | F205: 3.012493871 | G205: 1.150521879 | H205: 22.57472851 | I205: 0.9987044467 | J205: 0.001295553341 | L205: 2.937556861 | M205: 1.144079166 | N205: 22.01317296 | O205: 0.9983459525 | Q205: 0.2293039741 | R205: 3.207230868e-05 | T205: 5.003384718 | U205: 4.996902566 | W205: 0.9987487517 | X205: 4.997124241
B206: 1.14912 | D206: 22.452807 | E206: 0.9986332722 | F206: 3.033692511 | G206: 1.152351007 | H206: 22.73358478 | I206: 0.9987920974 | J206: 0.001207902612 | L206: 2.9587555 | M206: 1.145898052 | N206: 22.17202922 | O206: 0.9984555797 | Q206: 0.2311256919 | R206: 2.979003175e-05 | T206: 4.971840174 | U206: 4.965834675 | W206: 0.9988335815 | X206: 4.966040928
... 821 more rows

Sheet D Call-Leverage
B1: Daten eingeben/rechnen! | E1: Tabelle Call-Leverage | H1: Diagramm Put-Leverage | K1: Hauptmenü

Sheet Putl-Leverage, Tabelle 2.2
B1: Daten eingeben/rechnen! | H1: Diagramm Put-Leverage | R1: Hauptmenü
B3: Devisenkurs | E3: =Eingabeseite!C7 -> 0.912 | F3: =E3 -> 0.912
B4: Berechnungsstep | E4: =Eingabeseite!F7 -> 0.01 | F4: =E3/500 -> 0.001824 | G4: Diagrammstep
B5: Ausübungspreis | E5: =Eingabeseite!C10 -> 0.9125
B6: Zinssatz | E6: =Eingabeseite!C8 -> -0.97 | F6: =E6/100 -> -0.0097
B7: Restlaufzeit (Tage/360) | E7: =Eingabeseite!C9 -> 224 | F7: =E7/360 -> 0.6222222222
B8: Barwert Ausübungspreis | F8: =E5*(EXP(F7*-F6)) -> 0.9180240982
B9: Volatilität Jahr | E9: =Eingabeseite!C11 -> 9.5 | F9: =E9*SQRT(E$7/360) -> 7.493701059
B10: Volatilität Jahr (0.5) | F10: =F9/2 -> 3.746850529
I12: Tabelle Put-Leverage
B14: Devisenkurs | D14: Black & Scholes-Werte für d1 und NV (Delta) | L14: Black & Scholes-Werte für d2 und NV | Q14: Options- | R14: Options- | T14: Gearing | U14: Leverage
Q15: preis | R15: preis
D16: Rendite | E16: NV-Werte | F16: STAW | G16: Devisenkurs | H16: Rendite | I16: NV-Werte | L16: STAW | M16: Devisenkurs | N16: Rendite | O16: NV-Werte
D17: stetig | E17: Verteilung | F17: d1 | G17: mit | H17: stetig | I17: Verteilung | L17: d2 | M17: mit | N17: stetig | O17: Verteilung
D18: ohne | E18: F(x) | G18: Option | H18: mit | I18: F(x) | M18: Option | N18: mit | O18: F(x)
D19: Option | H19: Option | I19: Call-Delta | J19: Put-Delta | N19: Option | O19: Delta | Q19: Call | R19: Put | T19: Put | U19: Put | W19: Put-Delta | X19: Put-Leverage
B21: =F3 -> 0.912 | D21: =(LN(B21/F$8))*100 -> -0.6583650938 | E21: =NORMDIST(D21,0,F$9,1) -> 0.464995644 | F21: =((LN(B21/F$8))/(F$9/100))+(F$10/100) -> -0.05038729368 | G21: =F$8+((EXP(F21*(F$9/100))-1)*F$8) -> 0.9145642916 | H21: =(LN(G21/F$8))*100 -> -0.377587316 | I21: =NORMDIST(H21,0,F$9,1) -> 0.4799068808 | J21: =1-I21 -> 0.5200931192 | L21: =((LN(B21/F$8))/(F$9/100))-(F$10/100) -> -0.1253243043 | M21: =F$8+((EXP(L21*(F$9/100))-1)*F$8) -> 0.9094428982 | N21: =(LN(M21/F$8))*100 -> -0.9391428716 | O21: =NORMDIST(N21,0,F$9,1) -> 0.4501334059 | Q21: =(I21*B21)-(O21*F$8) -> 0.0244417613 | R21: =Q21+F$8-B21 -> 0.03046585948 | T21: =B21/R21 -> 29.93514759 | U21: =T21*J21 -> 15.56906428 | W21: =(R22-R21)*(1/$E$4) -> -0.4910294124 | X21: =T21*W21 -> -14.69903793
B22: =B21+$E$4 -> 0.922 | D22: =(LN(B22/F$8))*100 -> 0.4321582544 | E22: =NORMDIST(D22,0,F$9,1) -> 0.5229940695 | F22: =((LN(B22/F$8))/(F$9/100))+(F$10/100) -> 0.09513804015 | G22: =F$8+((EXP(F22*(F$9/100))-1)*F$8) -> 0.9245924089 | H22: =(LN(G22/F$8))*100 -> 0.7129360322 | I22: =NORMDIST(H22,0,F$9,1) -> 0.5378974083 | J22: =1-I22 -> 0.4621025917 | L22: =((LN(B22/F$8))/(F$9/100))-(F$10/100) -> 0.02020102957 | M22: =F$8+((EXP(L22*(F$9/100))-1)*F$8) -> 0.9194148598 | N22: =(LN(M22/F$8))*100 -> 0.1513804767 | O22: =NORMDIST(N22,0,F$9,1) -> 0.5080584967 | Q22: =(I22*B22)-(O22*F$8) -> 0.02953146718 | R22: =Q22+F$8-B22 -> 0.02555556535 | T22: =B22/R22 -> 36.07824704 | U22: =T22*J22 -> 16.67185146 | W22: =(R23-R22)*(1/$E$4) -> -0.4336453199 | X22: =T22*W22 -> -15.64516298
B23: =B22+$E$4 -> 0.932 | D23: =(LN(B23/F$8))*100 -> 1.510917367 | E23: =NORMDIST(D23,0,F$9,1) -> 0.5798950446 | F23: =((LN(B23/F$8))/(F$9/100))+(F$10/100) -> 0.2390934908 | G23: =F$8+((EXP(F23*(F$9/100))-1)*F$8) -> 0.9346205261 | H23: =(LN(G23/F$8))*100 -> 1.791695145 | I23: =NORMDIST(H23,0,F$9,1) -> 0.5944834555 | J23: =1-I23 -> 0.4055165445 | L23: =((LN(B23/F$8))/(F$9/100))-(F$10/100) -> 0.1641564802 | M23: =F$8+((EXP(L23*(F$9/100))-1)*F$8) -> 0.9293868214 | N23: =(LN(M23/F$8))*100 -> 1.23013959 | O23: =NORMDIST(N23,0,F$9,1) -> 0.56519602 | Q23: =(I23*B23)-(O23*F$8) -> 0.03519501398 | R23: =Q23+F$8-B23 -> 0.02121911216 | T23: =B23/R23 -> 43.92266713 | U23: =T23*J23 -> 17.8113682
B26: =E3-(50*F4) -> 0.8208 | D26: =(LN(B26/F$8))*100 -> -11.19441666 | E26: =NORMDIST(D26,G151,F$9,1) -> 0.05110900096 | F26: =((LN(B26/F$8))/(F$9/100))+(F$10/100) -> -1.456375 | G26: =F$8+((EXP(F26*(F$9/100))-1)*F$8) -> 0.8231078625 | H26: =(LN(G26/F$8))*100 -> -10.91363888 | I26: =NORMDIST(H26,0,F$9,1) -> 0.0726444913 | J26: =1-I26 -> 0.9273555087 | L26: =((LN(B26/F$8))/(F$9/100))-(F$10/100) -> -1.531312011 | M26: =F$8+((EXP(L26*(F$9/100))-1)*F$8) -> 0.8184986084 | N26: =(LN(M26/F$8))*100 -> -11.47519444 | O26: =NORMDIST(N26,0,F$9,1) -> 0.06284614925 | Q26: =(I26*B26)-(O26*F$8) -> 0.001932318971 | R26: =Q26+F$8-B26 -> 0.09915641715 | T26: =B26/R26 -> 8.277830358 | U26: =T26*J26 -> 7.676491582 | W26: =(R27-R26)*(1/$F$4) -> -0.9252791087 | X26: =T26*W26 -> -7.659303495
B27: =B26+F$4 -> 0.822624 | D27: -10.97244099 | E27: =NORMDIST(D27,0,F$9,1) -> 0.07156666811 | F27: -1.426753366 | G27: 0.824936991 | H27: -10.69166321 | I27: 0.0768254987 | J27: 0.9231745013 | L27: -1.501690376 | M27: 0.8203174942 | N27: -11.25321876 | O27: 0.06658854521 | Q27: 0.002068609876 | R27: 0.09746870805 | T27: =B27/R27 -> 8.439877951 | U27: =T27*J27 -> 7.791480118 | W27: =(R28-R27)*(1/$F$4) -> -0.921013021 | X27: =T27*W27 -> -7.773237489
B28: =B27+F$4 -> 0.824448 | D28: -10.75095695 | E28: 0.07569117091 | F28: -1.397197339 | G28: 0.8267661196 | H28: -10.47017918 | I28: 0.08117711842 | J28: 0.9188228816 | L28: -1.472134349 | M28: 0.82213638 | N28: -11.03173473 | O28: 0.07049230073 | Q28: 0.002212682126 | R28: 0.0957887803 | T28: 8.606937028 | U28: 7.908250681 | W28: -0.9165749985 | X28: -7.888903293
B29: 0.826272 | D29: -10.52996239 | E29: 0.07998460324 | F29: -1.367706629 | G29: 0.8285952482 | H29: -10.24918461 | I29: 0.08570196214 | J29: 0.9142980379 | L29: -1.442643639 | M29: 0.8239552658 | N29: -10.81074017 | O29: 0.07456044179 | Q29: 0.002364849329 | R29: 0.0941169475 | T29: 8.779205254 | U29: 8.026810137 | W29: -0.9119625317 | X29: -8.00630625
B30: 0.828096 | D30: -10.30945513 | E30: 0.0844496078 | F30: -1.338280948 | G30: 0.8304243768 | H30: -10.02867735 | I30: 0.09040243507 | J30: 0.9095975649 | L30: -1.413217958 | M30: 0.8257741516 | N30: -10.59023291 | O30: 0.07879582393 | Q30: 0.002525429671 | R30: 0.09245352785 | T30: 8.956889145 | U30: 8.147164556 | W30: -0.9071733236 | X30: -8.125450895
B31: 0.82992 | D31: -10.08943304 | E31: 0.08908862644 | F31: -1.30892001 | G31: 0.8322535054 | H31: -9.808655263 | I31: 0.09528072389 | J31: 0.9047192761 | L31: -1.38385702 | M31: 0.8275930374 | N31: -10.37021082 | O31: 0.08320111966 | Q31: 0.002694745529 | R31: 0.0907988437 | T31: 9.140204502 | U31: 8.269319201 | W31: -0.9022053018 | X31: -8.246340961
B32: 0.831744 | D32: -9.869893985 | E32: 0.0939038881 | F32: -1.279623531 | G32: 0.834082634 | H32: -9.589116207 | I32: 0.1003387851 | J32: 0.8996612149 | L32: -1.354560541 | M32: 0.8294119232 | N32: -10.15067176 | O32: 0.08777880618 | Q32: 0.002873123058 | R32: 0.08915322123 | T32: 9.329376869 | U32: 8.393278529 | W32: -0.8970566295 | X32: -8.368979369
B33: 0.833568 | D33: -9.650835847 | E33: 0.09889739727 | F33: -1.250391228 | G33: 0.8359117625 | H33: -9.370058069 | I33: 0.1055783337 | J33: 0.8944216663 | L33: -1.325328239 | M33: 0.831230809 | N33: -9.931613624 | O33: 0.09253115345 | Q33: 0.003060891766 | R33: 0.08751698994 | T33: 9.524642022 | U33: 8.519046188 | W33: -0.8917257167 | X33: -8.493368233
B34: 0.835392 | D34: -9.432256525 | E34: 0.1040709228 | F34: -1.221222821 | G34: 0.8377408911 | H34: -9.151478747 | I34: 0.1110008329 | J34: 0.8889991671 | L34: -1.296159832 | M34: 0.8330496948 | N34: -9.713034302 | O34: 0.0974602126 | Q34: 0.003258384059 | R34: 0.08589048223 | T34: 9.726246474 | U34: 8.646625014 | W34: -0.8862112305 | X34: -8.619508856
B35: 0.837216 | D35: -9.21415393 | E35: 0.1094259871 | F35: -1.192118031 | G35: 0.8395700197 | H35: -8.933376152 | I35: 0.1166074839 | J35: 0.8833925161 | L35: -1.267055042 | M35: 0.8348685806 | N35: -9.494931708 | O35: 0.1025678048 | Q35: 0.003465934774 | R35: 0.08427403295 | T35: 9.934448023 | U35: 8.776017035 | W35: -0.8805121048 | X35: -8.747401738
B36: 0.83904 | D36: -8.996525988 | E36: 0.1149638566 | F36: -1.163076581 | G36: 0.8413991483 | H36: -8.71574821 | I36: 0.1223992163 | J36: 0.8776007837 | L36: -1.238013592 | M36: 0.8366874664 | N36: -9.277303765 | O36: 0.1078555105 | Q36: 0.003683880695 | R36: 0.08266797887 | T36: 10.14951631 | U36: 8.907223469 | W36: -0.874627549 | X36: -8.877046575
B37: 0.840864 | D37: -8.779370636 | E37: 0.1206855316 | F37: -1.134098197 | G37: 0.8432282769 | H37: -8.498592859 | I37: 0.12837668 | J37: 0.87162332 | L37: -1.209035207 | M37: 0.8385063522 | N37: -9.060148414 | O37: 0.1133246597 | Q37: 0.003912560046 | R37: 0.08107265822 | T37: 10.37173344 | U37: 9.040244732 | W37: -0.8685570568 | X37: -9.008442267
B38: 0.842688 | D38: -8.562685828 | E38: 0.1265917382 | F38: -1.105182604 | G38: 0.8450574055 | H38: -8.28190805 | I38: 0.1345402365 | J38: 0.8654597635 | L38: -1.180119615 | M38: 0.840325238 | N38: -8.843463606 | O38: 0.1189763222 | Q38: 0.004152311974 | R38: 0.07948841015 | T38: 10.60139457 | U38: 9.17508044 | W38: -0.8623004135 | X38: -9.141586924
B39: 0.844512 | D39: -8.346469527 | E39: 0.1326829197 | F39: -1.076329532 | G39: 0.846886534 | H39: -8.06569175 | I39: 0.1408899529 | J39: 0.8591100471 | L39: -1.151266542 | M39: 0.8421441238 | N39: -8.627247305 | O39: 0.1248112986 | Q39: 0.00440347602 | R39: 0.0779155742 | T39: 10.83880866 | U39: 9.311729415 | W39: -0.8558577023 | X39: -9.276477872
B40: 0.846336 | D40: -8.130719713 | E40: 0.1389592299 | F40: -1.047538709 | G40: 0.8487156626 | H40: -7.849941936 | I40: 0.1474255943 | J40: 0.8525744057 | L40: -1.12247572 | M40: 0.8439630096 | N40: -8.411497491 | O40: 0.1308301127 | Q40: 0.004666391571 | R40: 0.07635448975 | T40: 11.08429907 | U40: 9.450189696 | W40: -0.849229311 | X40: -9.413111665
B41: 0.84816 | D41: -7.915434377 | E41: 0.1454205264 | F41: -1.01880987 | G41: 0.8505447912 | H41: -7.634656599 | I41: 0.1541466196 | J41: 0.8458533804 | L41: -1.09374688 | M41: 0.8457818954 | N41: -8.196212155 | O41: 0.1370330036 | Q41: 0.004941397308 | R41: 0.07480549548 | T41: 11.33820443 | U41: 9.590458542 | W41: -0.8424159359 | X41: -9.551484093
B42: 0.849984 | D42: -7.700611523 | E42: 0.1520663647 | F42: -0.9901427462 | G42: 0.8523739198 | H42: -7.419833746 | I42: 0.1610521762 | J42: 0.8389478238 | L42: -1.065079757 | M42: 0.8476007812 | N42: -7.981389301 | O42: 0.1434199195 | Q42: 0.005228830641 | R42: 0.07326892882 | T42: 11.6008793 | U42: 9.732532447 | W42: -0.8354185868 | X42: -9.691590195
B43: 0.851808 | D43: -7.486249169 | E43: 0.1588959942 | F43: -0.9615370743 | G43: 0.8542030484 | H43: -7.205471391 | I43: 0.1681410968 | J43: 0.8318589032 | L43: -1.036474085 | M43: 0.8494196669 | N43: -7.767026947 | O43: 0.1499905117 | Q43: 0.005529027138 | R43: 0.07174512531 | T43: 11.87269513 | U43: 9.87640715 | W43: -0.8282385895 | X43: -9.833424269
B44: 0.853632 | D44: -7.272345344 | E44: 0.1659083538 | F44: -0.932992591 | G44: 0.856032177 | H44: -6.991567566 | I44: 0.1754118969 | J44: 0.8245881031 | L44: -1.007929602 | M44: 0.8512385527 | N44: -7.553123122 | O44: 0.1567441298 | Q44: 0.005842319951 | R44: 0.07023441813 | T44: 12.15404104 | U44: 10.02207764 | W44: -0.8208775879 | X44: -9.976979888
B45: 0.855456 | D45: -7.058898091 | E45: 0.1731020694 | F45: -0.9045090351 | G45: 0.8578613055 | H45: -6.778120314 | I45: 0.1828627728 | J45: 0.8171372272 | L45: -0.9794460457 | M45: 0.8530574385 | N45: -7.339675869 | O45: 0.1636798176 | Q45: 0.006169039231 | R45: 0.06873713741 | T45: 12.44532479 | U45: 10.16953819 | W45: -0.8133375453 | X45: -10.12224991
B46: 0.85728 | D46: -6.845905466 | E46: 0.1804754519 | F46: -0.8760861471 | G46: 0.8596904341 | H46: -6.565127688 | I46: 0.1904916015 | J46: 0.8095083985 | L46: -0.9510231577 | M46: 0.8548763243 | N46: -7.126683243 | O46: 0.1707963102 | Q46: 0.006509511548 | R46: 0.06725360972 | T46: 12.74697378 | U46: 10.31878233 | W46: -0.8056207446 | X46: -10.26922651
B47: 0.859104 | D47: -6.633365534 | E47: 0.1880264961 | F47: -0.8477236691 | G47: 0.8615195627 | H47: -6.352587757 | I47: 0.1982959407 | J47: 0.8017040593 | L47: -0.9226606797 | M47: 0.8566952101 | N47: -6.914143312 | O47: 0.1780920314 | Q47: 0.00686405931 | R47: 0.06578415749 | T47: 13.05943608 | U47: 10.46980292 | W47: -0.7977297869 | X47: -10.41790116
B48: 0.860928 | D48: -6.421276377 | E48: 0.1957528813 | F48: -0.8194213449 | G48: 0.8633486913 | H48: -6.1404986 | I48: 0.2062730305 | J48: 0.7937269695 | L48: -0.8943583555 | M48: 0.8585140959 | N48: -6.702054155 | O48: 0.1855650933 | Q48: 0.007233000179 | R48: 0.06432909835 | T48: 13.38318152 | U48: 10.62259211 | W48: -0.7896675903 | X48: -10.5682647
B49: 0.862752 | D49: -6.209636087 | E49: 0.2036519719 | F49: -0.7911789198 | G49: 0.8651778199 | H49: -5.928858309 | I49: 0.2144197955 | J49: 0.7855802045 | L49: -0.8661159304 | M49: 0.8603329817 | N49: -6.490413865 | O49: 0.193213295 | Q49: 0.007616646494 | R49: 0.06288874467 | T49: 13.71870284 | U49: 10.77714138 | W49: -0.781437386 | X49: -10.72030729
B50: 0.864576 | D50: -5.998442766 | E50: 0.2117208195 | F50: -0.7629961409 | G50: 0.8670069485 | H50: -5.717664989 | I50: 0.2227328487 | J50: 0.7772671513 | L50: -0.8379331515 | M50: 0.8621518675 | N50: -6.279220544 | O50: 0.2010341243 | Q50: 0.008015304702 | R50: 0.06146340288 | T50: 14.06651698 | U50: 10.93344158 | W50: -0.7730427153 | X50: -10.87401848
B51: 0.8664 | D51: -5.787694533 | E51: 0.2199561665 | F51: -0.7348727567 | G51: 0.868836077 | H51: -5.506916755 | I51: 0.2312084957 | J51: 0.7687915043 | L51: -0.8098097673 | M51: 0.8639707533 | N51: -6.06847231 | O51: 0.2090247591 | Q51: 0.008429274789 | R51: 0.06005337296 | T51: 14.42716632 | U51: 11.0914829 | W51: -0.764487424 | X51: -11.02938722
B52: 0.868224 | D52: -5.577389513 | E52: 0.2283544495 | F52: -0.7068085174 | G52: 0.8706652056 | H52: -5.296611735 | I52: 0.2398427404 | J52: 0.7601572596 | L52: -0.781745528 | M52: 0.8657896391 | N52: -5.858167291 | O52: 0.2171820697 | Q52: 0.008858849728 | R52: 0.0586589479 | T52: 14.80122012 | U52: 11.25125493 | W52: -0.7557756567 | X52: -11.18640186
B53: 0.870048 | D53: -5.367525847 | E53: 0.236911805 | F53: -0.6788031748 | G53: 0.8724943342 | H53: -5.086748069 | I53: 0.248631291 | J53: 0.751368709 | L53: -0.7537401854 | M53: 0.8676085249 | N53: -5.648303625 | O53: 0.2255026234 | Q53: 0.00930431493 | R53: 0.05728041311 | T53: 15.18927593 | U53: 11.41274665 | W53: -0.7469118495 | X53: -11.34505018
B54: 0.871872 | D54: -5.158101687 | E54: 0.2456240749 | F54: -0.6508564821 | G54: 0.8743234628 | H54: -4.877323909 | I54: 0.2575695678 | J54: 0.7424304322 | L54: -0.7257934927 | M54: 0.8694274107 | N54: -5.438879465 | O54: 0.2339826884 | Q54: 0.009765947716 | R54: 0.05591804589 | T54: 15.59196117 | U54: 11.57594647 | W54: -0.7379007229 | X54: -11.50531942
B55: 0.873696 | D55: -4.949115195 | E55: 0.2544868138 | F55: -0.6229681943 | G55: 0.8761525914 | H55: -4.668337417 | I55: 0.2666527114 | J55: 0.7333472886 | L55: -0.6979052049 | M55: 0.8712462965 | N55: -5.229892973 | O55: 0.2426182396 | Q55: 0.0102440168 | R55: 0.05457211497 | T55: 16.00993475 | U55: 11.74084224 | W55: -0.7287472723 | X55: -11.66719628
B56: 0.87552 | D56: -4.740564546 | E56: 0.2634952968 | F56: -0.5951380677 | G56: 0.87798172 | H56: -4.459786768 | I56: 0.2758755922 | J56: 0.7241244078 | L56: -0.6700750783 | M56: 0.8730651823 | N56: -5.021342324 | O56: 0.2514049655 | Q56: 0.01073878177 | R56: 0.05324287995 | T56: 16.44388885 | U56: 11.90742128 | W56: -0.7194567583 | X56: -11.83066697
B57: 0.877344 | D57: -4.532447925 | E57: 0.2726445286 | F57: -0.5673658603 | G57: 0.8798108485 | H57: -4.251670148 | I57: 0.2852328198 | J57: 0.7147671802 | L57: -0.6423028708 | M57: 0.8748840681 | N57: -4.813225703 | O57: 0.2603382753 | Q57: 0.01125049265 | R57: 0.05193059082 | T57: 16.89455071 | U57: 12.07567037 | W57: -0.710034697 | X57: -11.99571719
B58: 0.879168 | D58: -4.324763531 | E58: 0.2819292525 | F58: -0.5396513314 | G58: 0.8816399771 | H58: -4.043985753 | I58: 0.2947187548 | J58: 0.7052812452 | L58: -0.614588342 | M58: 0.8767029539 | N58: -4.605541309 | O58: 0.2694133077 | Q58: 0.01177938936 | R58: 0.05063548753 | T58: 17.36268461 | U58: 12.24557582 | W58: -0.7004868477 | X58: -12.16233221
B59: 0.880992 | D59: -4.117509571 | E59: 0.2913439615 | F59: -0.511994242 | G59: 0.8834691057 | H59: -3.836731793 | I59: 0.3043275197 | J59: 0.6956724803 | L59: -0.5869312525 | M59: 0.8785218397 | N59: -4.398287349 | O59: 0.2786249396 | Q59: 0.01232570135 | R59: 0.04935779952 | T59: 17.84909393 | U59: 12.41712345 | W59: -0.6908192014 | X59: -12.33049682
B60: 0.882816 | D60: -3.910684264 | E60: 0.3008829096 | F60: -0.4843943544 | G60: 0.8852982343 | H60: -3.629906487 | I60: 0.3140530121 | J60: 0.6859469879 | L60: -0.559331365 | M60: 0.8803407255 | N60: -4.191462042 | O60: 0.2879677967 | Q60: 0.01288964713 | R60: 0.0480977453 | T60: 18.35462337 | U60: 12.59029861 | W60: -0.6810379679 | X60: -12.5001954
B61: 0.88464 | D61: -3.704285842 | E61: 0.3105401232 | F61: -0.4568514327 | G61: 0.8871273629 | H61: -3.423508064 | I61: 0.3238889173 | J61: 0.6761110827 | L61: -0.5317884432 | M61: 0.8821596113 | N61: -3.98506362 | O61: 0.2974362639 | Q61: 0.01347143387 | R61: 0.04685553205 | T61: 18.88016124 | U61: 12.76508626 | W61: -0.6711495622 | X61: -12.67141195
B62: 0.886464 | D62: -3.498312546 | E62: 0.3203094146 | F62: -0.429365242 | G62: 0.8889564915 | H62: -3.217534768 | I62: 0.3338287222 | J62: 0.6661712778 | L62: -0.5043022525 | M62: 0.8839784971 | N62: -3.779090324 | O62: 0.3070244974 | Q62: 0.01407125707 | R62: 0.04563135525 | T62: 19.42664195 | U62: 12.94147089 | W62: -0.6611605906 | X62: -12.84413006
B63: 0.888288 | D63: -3.292762628 | E63: 0.3301843946 | F63: -0.4019355491 | G63: 0.89078562 | H63: -3.01198485 | I63: 0.3438657297 | J63: 0.6561342703 | L63: -0.4768725597 | M63: 0.8857973829 | N63: -3.573540406 | O63: 0.3167264365 | Q63: 0.01468930015 | R63: 0.04442539833 | T63: 19.99504863 | U63: 13.11943664 | W63: -0.651077836 | X63: -13.01833299
B64: 0.890112 | D64: -3.087634351 | E64: 0.3401584873 | F64: -0.3745621224 | G64: 0.8926147486 | H64: -2.806856573 | I64: 0.3539930737 | J64: 0.6460069263 | L64: -0.449499133 | M64: 0.8876162687 | N64: -3.368412128 | O64: 0.3265358167 | Q64: 0.01532573418 | R64: 0.04323783236 | T64: 20.58641591 | U64: 13.29896727 | W64: -0.6409082428 | X64: -13.19400365
B65: 0.891936 | D65: -2.882925989 | E65: 0.3502249436 | F65: -0.3472447313 | G65: 0.8944438772 | H65: -2.602148211 | I65: 0.3642037342 | J65: 0.6357962658 | L65: -0.4221817419 | M65: 0.8894351545 | N65: -3.163703766 | O65: 0.3364461836 | Q65: 0.01598071755 | R65: 0.04206881572 | T65: 21.20183287 | U65: 13.48004617 | W65: -0.6306589013 | X65: -13.37112462
B66: 0.89376 | D66: -2.678635826 | E66: 0.3603768572 | F66: -0.319983147 | G66: 0.8962730058 | H66: -2.397858048 | I66: 0.3744905531 | J66: 0.6255094469 | L66: -0.3949201576 | M66: 0.8912540403 | N66: -2.959413603 | O66: 0.3464509065 | Q66: 0.01665439571 | R66: 0.04091849389 | T66: 21.84244617 | U66: 13.66265642 | W66: -0.6203370318 | X66: -13.54967822
B67: 0.895584 | D67: -2.474762157 | E67: 0.3706071791 | F67: -0.292777142 | G67: 0.8981021344 | H67: -2.193984379 | I67: 0.3848462506 | J67: 0.6151537494 | L67: -0.3677141526 | M67: 0.8930729261 | N67: -2.755539934 | O67: 0.3565431933 | Q67: 0.01734690096 | R67: 0.03978699914 | T67: 22.50946338 | U67: 13.84678079 | W67: -0.6099499684 | X67: -13.72964648
B68: 0.897408 | D68: -2.271303287 | E68: 0.380908734 | F68: -0.26562649 | G68: 0.899931263 | H68: -1.990525509 | I68: 0.3952634411 | J68: 0.6047365589 | L68: -0.3405635005 | M68: 0.8948918119 | N68: -2.552081065 | O68: 0.3667161054 | Q68: 0.01805835222 | R68: 0.0386744504 | T68: 23.20415651 | U68: 14.03240176 | W68: -0.5995051423 | X68: -13.91101115
B69: 0.899232 | D69: -2.068257532 | E69: 0.3912742361 | F69: -0.2385309662 | G69: 0.9017603915 | H69: -1.787479754 | I69: 0.4057346504 | J69: 0.5942653496 | L69: -0.3134679768 | M69: 0.8967106977 | N69: -2.34903531 | O69: 0.3769625732 | Q69: 0.01878885484 | R69: 0.03758095302 | T69: 23.92786579 | U69: 14.21950153 | W69: -0.5890100655 | X69: -14.0937538
B70: 0.901056 | D70: -1.865623217 | E70: 0.4016963051 | F70: -0.2114903473 | G70: 0.9035895201 | H70: -1.584845439 | I70: 0.4162523318 | J70: 0.5837476682 | L70: -0.2864273579 | M70: 0.8985295835 | N70: -2.146400995 | O70: 0.3872754117 | Q70: 0.01953850048 | R70: 0.03650659866 | T70: 24.68200361 | U70: 14.40806206 | W70: -0.5784723137 | X70: -14.27785574
B71: 0.90288 | D71: -1.663398679 | E71: 0.4121674835 | F71: -0.1845044112 | G71: 0.9054186487 | H71: -1.382620901 | I71: 0.4268088835 | J71: 0.5731911165 | L71: -0.2594414218 | M71: 0.9003484693 | N71: -1.944176457 | O71: 0.3976473368 | Q71: 0.02030736698 | R71: 0.03545146516 | T71: 25.46805882 | U71: 14.59806507 | W71: -0.5678995092 | X71: -14.46329811
B72: 0.904704 | D72: -1.461582264 | E72: 0.4226802521 | F72: -0.1575729371 | G72: 0.9072477773 | H72: -1.180804486 | I72: 0.4373966651 | J72: 0.5626033349 | L72: -0.2325099477 | M72: 0.902167355 | N72: -1.742360041 | O72: 0.4080709809 | Q72: 0.02109551828 | R72: 0.03441561645 | T72: 26.28760119 | U72: 14.7894921 | W72: -0.5572993046 | X72: -14.65006186
B73: 0.906528 | D73: -1.260172326 | E73: 0.4332270477 | F73: -0.1306957058 | G73: 0.9090769059 | H73: -0.9793945486 | I73: 0.4480080148 | J73: 0.5519919852 | L73: -0.2056327163 | M73: 0.9039862408 | N73: -1.540950104 | O73: 0.4185389098 | Q73: 0.02190300435 | R73: 0.03339910252 | T73: 27.14228622 | U73: 14.98232445 | W73: -0.5466793656 | X73: -14.83812781
B74: 0.908352 | D74: -1.059167234 | E74: 0.443800279 | F74: -0.103872499 | G74: 0.9109060345 | H74: -0.7783894558 | I74: 0.4586352658 | J74: 0.5413647342 | L74: -0.1788095096 | M74: 0.9058051266 | N74: -1.339945011 | O74: 0.429043639 | Q74: 0.02272986118 | R74: 0.03240195936 | T74: 28.03386024 | U74: 15.17654329 | W74: -0.5360473543 | X74: -15.02747661
B75: 0.910176 | D75: -0.8585653609 | E75: 0.4543923435 | F75: -0.07710310013 | G75: 0.912735163 | H75: -0.5777875831 | I75: 0.4692707634 | J75: 0.5307292366 | L75: -0.1520401107 | M75: 0.9076240124 | N75: -1.139343139 | O75: 0.4395776498 | Q75: 0.02357611081 | R75: 0.03142420898 | T75: 28.96416583 | U75: 15.37212962 | W75: -0.5254109128 | X75: -15.21808881
B76: 0.912 | D76: -0.6583650938 | E76: 0.464995644 | F76: -0.05038729368 | G76: 0.9145642916 | H76: -0.377587316 | I76: 0.4799068808 | J76: 0.5200931192 | L76: -0.1253243043 | M76: 0.9094428982 | N76: -0.9391428716 | O76: 0.4501334059 | Q76: 0.0244417613 | R76: 0.03046585948 | T76: 29.93514759 | U76: 15.56906428 | W76: -0.514777647 | X76: -15.40994484
B77: 0.913824 | D77: -0.4585648275 | E77: 0.4756026046 | F77: -0.0237248655 | G77: 0.9163934202 | H77: -0.1777870497 | I77: 0.4905360359 | J77: 0.5094639641 | L77: -0.09866187609 | M77: 0.911261784 | N77: -0.7393426053 | O77: 0.4607033698 | Q77: 0.02532680688 | R77: 0.02952690505 | T77: 30.94885828 | U77: 15.76732803 | W77: -0.5041551103 | X77: -15.60302506
B78: 0.915648 | D78: -0.2591629668 | E78: 0.4862056869 | F78: 0.002884397279 | G78: 0.9182225488 | H78: 0.02161481094 | I78: 0.5011507064 | J78: 0.4988492936 | L78: -0.07205261331 | M78: 0.9130806698 | N78: -0.5399407446 | O78: 0.4712800186 | Q78: 0.02623122795 | R78: 0.02860732613 | T78: 32.00746535 | U78: 15.96690148 | W78: -0.4935507882 | X78: -15.79730975
B79: 0.917472 | D79: -0.06015792603 | E79: 0.496797406 | F79: 0.02944070627 | G79: 0.9200516774 | H79: 0.2206198517 | I79: 0.511743446 | J79: 0.488256554 | L79: -0.04549630432 | M79: 0.9148995556 | N79: -0.3409357038 | O79: 0.4818558603 | Q79: 0.02715499132 | R79: 0.02770708949 | T79: 33.1132579 | U79: 16.16776519 | W79: -0.4829720832 | X79: -15.99277915
B80: 0.919296 | D80: 0.1384518711 | E80: 0.5073703451 | F80: 0.05594427181 | G80: 0.921880806 | H80: 0.4192296489 | I80: 0.5223068989 | J80: 0.4776931011 | L80: -0.01899273877 | M80: 0.9167184414 | N80: -0.1423259066 | O80: 0.492423449 | Q80: 0.02809805024 | R80: 0.02682614841 | T80: 34.26865407 | U80: 16.36989963 | W80: -0.4724262995 | X80: -16.18941343
B81: 0.92112 | D81: 0.3366679915 | E81: 0.5179171715 | F81: 0.082395303 | G81: 0.9237099345 | H81: 0.6174457693 | I81: 0.5328338145 | J81: 0.4671661855 | L81: 0.007458292413 | M81: 0.9185373272 | N81: 0.05589021375 | O81: 0.5029754006 | Q81: 0.02906034467 | R81: 0.02596444284 | T81: 35.47620897 | U81: 16.57328522 | W81: -0.4619206292 | X81: -16.38719277
B82: 0.922944 | D82: 0.5344919927 | E82: 0.5284306505 | F82: 0.1087940077 | G82: 0.9255390631 | H82: 0.8152697705 | I82: 0.5433170616 | J82: 0.4566829384 | L82: 0.03385699709 | M82: 0.920356213 | N82: 0.253714215 | O82: 0.5135044076 | Q82: 0.03004180144 | R82: 0.02512189961 | T82: 36.73862304 | U82: 16.77790232 | W82: -0.4514621382 | X82: -16.58609731
B83: 0.924768 | D83: 0.7319254231 | E83: 0.5389036596 | F83: 0.1351405925 | G83: 0.9273681917 | H83: 1.012703201 | I83: 0.5537496418 | J83: 0.4462503582 | L83: 0.06020358189 | M83: 0.9221750988 | N83: 0.4511476453 | O83: 0.5240032535 | Q83: 0.0310423345 | R83: 0.02429843267 | T83: 38.05875105 | U83: 16.98373129 | W83: -0.4410577531 | X83: -16.78610722
B84: 0.926592 | D84: 0.9289698218 | E84: 0.5493292022 | F84: 0.1614352628 | G84: 0.9291973203 | H84: 1.2097476 | I84: 0.5641247024 | J84: 0.4358752976 | L84: 0.0864982522 | M84: 0.9239939846 | N84: 0.6481920441 | O84: 0.5344648273 | Q84: 0.03206184516 | R84: 0.02349394333 | T84: 39.4396116 | U84: 17.19075244 | W84: -0.4307142487 | X84: -16.98720268
B85: 0.928416 | D85: 1.125626719 | E85: 0.5597004203 | F85: 0.1876782228 | G85: 0.9310264489 | H85: 1.406404497 | I85: 0.5744355487 | J85: 0.4255644513 | L85: 0.1127412122 | M85: 0.9258128704 | N85: 0.8448489413 | O85: 0.5448821365 | Q85: 0.03310022237 | R85: 0.02270832054 | T85: 40.88439734 | U85: 17.39894612 | W85: -0.4204382357 | X85: -17.18936388
B86: 0.93024 | D86: 1.321897636 | E86: 0.5700106073 | F86: 0.2138696755 | G86: 0.9328555775 | H86: 1.602675414 | I86: 0.5846756557 | J86: 0.4153243443 | L86: 0.1389326649 | M86: 0.9276317562 | N86: 1.041119858 | O86: 0.5552483208 | Q86: 0.03415734303 | R86: 0.0219414412 | T86: 42.39648579 | U86: 17.60829266 | W86: -0.4102361496 | X86: -17.39257108
B87: 0.932064 | D87: 1.517784084 | E87: 0.5802532195 | F87: 0.2400098227 | G87: 0.934684706 | H87: 1.798561862 | I87: 0.5948386791 | J87: 0.4051613209 | L87: 0.1650728121 | M87: 0.929450642 | N87: 1.237006307 | O87: 0.5655566639 | Q87: 0.03523307229 | R87: 0.02119317046 | T87: 43.97945091 | U87: 17.81877242 | W87: -0.4001142401 | X87: -17.59680458
B88: 0.933888 | D88: 1.713287568 | E88: 0.590421887 | F88: 0.2660988649 | G88: 0.9365138346 | H88: 1.994065346 | I88: 0.6049184654 | J88: 0.3950815346 | L88: 0.1911618543 | M88: 0.9312695278 | N88: 1.43250979 | O88: 0.5758006059 | Q88: 0.03632726391 | R88: 0.02046336209 | T88: 45.63707547 | U88: 18.03036581 | W88: -0.3900785614 | X88: -17.80204474
B89: 0.935712 | D89: 1.908409581 | E89: 0.6005104248 | F89: 0.2921370017 | G89: 0.9383429632 | H89: 2.189187359 | I89: 0.6149090616 | J89: 0.3850909384 | L89: 0.2171999911 | M89: 0.9330884136 | N89: 1.627631803 | O89: 0.5859737542 | Q89: 0.03743976062 | R89: 0.01975185879 | T89: 47.37336418 | U89: 18.24305327 | W89: -0.3801349624 | X89: -18.00827201
B90: 0.937536 | D90: =(LN(B90/F$8))*100 -> 2.10315161 | E90: 0.6105128418 | F90: =((LN(B90/F$8))/(F$9/100))+(F$10/100) -> 0.3181244313 | G90: =F$8+((EXP(F90*(F$9/100))-1)*F$8) -> 0.9401720918 | H90: =(LN(G90/F$8))*100 -> 2.383929387 | I90: =NORMDIST(H90,0,F$9,1) -> 0.624804724 | J90: =1-I90 -> 0.375195276 | L90: =((LN(B90/F$8))/(F$9/100))-(F$10/100) -> 0.2431874207 | M90: =F$8+((EXP(L90*(F$9/100))-1)*F$8) -> 0.9349072994 | N90: =(LN(M90/F$8))*100 -> 1.822373832 | O90: =NORMDIST(N90,0,F$9,1) -> 0.5960698944 | Q90: =(I90*B90)-(O90*F$8) -> 0.03857039445 | R90: =Q90+F$8-B90 -> 0.01905849262 | T90: 49.1925578 | U90: 18.4568153 | W90: -0.370289079 | X90: -18.21546692
B91: 0.93936 | D91: 2.29751513 | E91: =NORMDIST(D91,0,F$9,1) -> 0.62042335 | F91: 0.3440613507 | G91: 0.9420012204 | H91: 2.578292908 | I91: 0.634599926 | J91: 0.365400074 | L91: 0.2691243401 | M91: 0.9367261852 | N91: 2.016737353 | O91: 0.6060829998 | Q91: 0.03971898717 | R91: 0.01838308534 | T91: =B91/R91 -> 51.09914807 | U91: =T91*J91 -> 18.67163249 | W91: =(R92-R91)*(1/$F$4) -> -0.3605463258 | X91: =T91*W91 -> -18.42361009
B92: =B91+F$4 -> 0.941184 | D92: 2.491501612 | E92: 0.630236373 | F92: 0.3699479561 | G92: 0.943830349 | H92: 2.77227939 | I92: 0.6442893657 | J92: 0.3557106343 | L92: 0.2950109455 | M92: 0.938545071 | N92: 2.210723834 | O92: 0.6160072408 | Q92: 0.04088535067 | R92: 0.01772544884 | T92: 53.09789378 | U92: 18.88748548 | W92: -0.3509118897 | X92: -18.63268225
B93: 0.943008 | D93: 2.685112515 | E93: 0.6399465535 | F93: 0.3957844421 | G93: 0.9456594775 | H93: 2.965890293 | I93: 0.6538679725 | J93: 0.3461320275 | L93: 0.3208474315 | M93: 0.9403639568 | N93: 2.404334737 | O93: 0.6258369935 | Q93: 0.04206928738 | R93: 0.01708538556 | T93: 55.19383784 | U93: 19.104355 | W93: -0.3413907237 | X93: -18.84266424
B94: 0.944832 | D94: 2.87834929 | E94: 0.6495487597 | F94: 0.4215710025 | G94: 0.9474886061 | H94: 3.159127068 | I94: 0.6633309122 | J94: 0.3366690878 | L94: 0.3466339919 | M94: 0.9421828426 | N94: 2.597571512 | O94: 0.6355668472 | Q94: 0.0432705907 | R94: 0.01646268888 | T94: 57.39232558 | U94: 19.3222219 | W94: -0.331987541 | X94: -19.05353704
B95: 0.946656 | D95: 3.071213381 | E95: 0.6590380915 | F95: 0.4473078299 | G95: 0.9493177347 | H95: 3.351991158 | I95: 0.6726735928 | J95: 0.3273264072 | L95: 0.3723708193 | M95: 0.9440017284 | N95: 2.790435603 | O95: 0.6451916114 | Q95: 0.04448904543 | R95: 0.0158571436 | T95: 59.69902422 | U95: 19.54106711 | W95: -0.3227068112 | X95: -19.26528174
B96: 0.94848 | D96: 3.263706222 | E96: 0.668409886 | F96: 0.4729951157 | G96: 0.9511468633 | H96: 3.544483999 | I96: 0.6818916681 | J96: 0.3181083319 | L96: 0.3980581051 | M96: 0.9458206142 | N96: 2.982928444 | O96: 0.6547063223 | Q96: 0.0457244282 | R96: 0.01526852638 | T96: 62.11994376 | U96: 19.76087169 | W96: -0.3135527561 | X96: -19.47787957
B97: 0.950304 | D97: 3.455829239 | E97: 0.6776597216 | F97: 0.4986330503 | G97: 0.9529759919 | H97: 3.736607017 | I97: 0.6909810413 | J97: 0.3090189587 | L97: 0.4236960397 | M97: 0.9476395 | N97: 3.175051462 | O97: 0.6641062481 | Q97: 0.04697650798 | R97: 0.01469660615 | T97: 64.66145926 | U97: 19.98161681 | W97: -0.3045293463 | X97: -19.69131192
B98: 0.952128 | D98: 3.647583852 | E98: 0.686783422 | F98: 0.524221823 | G98: 0.9548051205 | H98: 3.92836163 | I98: 0.699937868 | J98: 0.300062132 | L98: 0.4492848124 | M98: 0.9494583858 | N98: 3.366806074 | O98: 0.6733868938 | Q98: 0.04824504645 | R98: 0.01414114462 | T98: 67.33033466 | U98: 20.20328376 | W98: -0.2956402996 | X98: -19.90556031
B99: 0.953952 | D99: 3.83897147 | E99: 0.695777059 | F99: 0.5497616219 | G99: 0.956634249 | H99: 4.119749248 | I99: 0.7087585576 | J99: 0.2912414424 | L99: 0.4748246113 | M99: 0.9512772716 | N99: 3.558193693 | O99: 0.6825440053 | Q99: 0.04952979854 | R99: 0.01360189672 | T99: 70.13374824 | U99: 20.425854 | W99: -0.2868890789 | X99: -20.12060643
B100: 0.955776 | D100: 4.029993496 | E100: 0.7046369549 | F100: 0.5752526342 | G100: 0.9584633776 | H100: 4.310771274 | I100: 0.7174397748 | J100: 0.2825602252 | L100: 0.5003156236 | M100: 0.9530961573 | N100: 3.749215718 | O100: 0.6915735726 | Q100: 0.05083051286 | R100: 0.01307861104 | T100: 73.07931991 | U100: 20.64930909 | W100: -0.2782788916 | X100: -20.33643214
B101: 0.9576 | D101: 4.220651323 | E101: 0.7133596838 | F101: 0.6006950458 | G101: 0.9602925062 | H101: 4.501429101 | I101: 0.7259784403 | J101: 0.2740215597 | L101: 0.5257580353 | M101: 0.9549150431 | N101: 3.939873545 | O101: 0.7004718325 | Q101: 0.05214693216 | R101: 0.01257103034 | T101: 76.17514031 | U101: 20.87363076 | W101: -0.2698126891 | X101: -20.55301945
B102: 0.959424 | D102: 4.410946338 | E102: 0.7219420728 | F102: 0.6260890418 | G102: 0.9621216348 | H102: 4.691724116 | I102: 0.7343717303 | J102: 0.2656282697 | L102: 0.5511520312 | M102: 0.9567339289 | N102: 4.13016856 | O102: 0.70923527 | Q102: 0.05347879382 | R102: 0.012078892 | T102: 79.42980204 | U102: 21.09880088 | W102: -0.2614931679 | X102: -20.77035056
B103: 0.961248 | D103: 4.600879918 | E103: 0.7303812019 | F103: 0.6514348061 | G103: 0.9639507634 | H103: 4.881657696 | I103: 0.7426170757 | J103: 0.2573829243 | L103: 0.5764977955 | M103: 0.9585528147 | N103: 4.32010214 | O103: 0.7178606202 | Q103: 0.05482583028 | R103: 0.01160192846 | T103: 82.85243299 | U103: 21.32480149 | W103: -0.2533227702 | X103: -20.98840784
B104: 0.963072 | D104: 4.790453435 | E104: 0.7386744034 | F104: 0.6767325215 | G104: 0.965779892 | H104: 5.071231212 | I104: 0.7507121608 | J104: 0.2492878392 | L104: 0.6017955109 | M104: 0.9603717005 | N104: 4.509675657 | O104: 0.7263448682 | Q104: 0.05618776955 | R104: 0.01113986772 | T104: 86.4527321 | U104: 21.55161478 | W104: -0.245303686 | X104: -21.20717385
B105: 0.964896 | D105: 4.97966825 | E105: 0.7468192609 | F105: 0.7019823698 | G105: 0.9676090205 | H105: 5.260446028 | I105: 0.7586549209 | J105: 0.2413450791 | L105: 0.6270453592 | M105: 0.9621905863 | N105: 4.698890472 | O105: 0.7346852487 | Q105: 0.05756433563 | R105: 0.0106924338 | T105: 90.24100761 | U105: 21.77922312 | W105: -0.2374378554 | X105: -21.42663132
B106: 0.96672 | D106: 5.168525719 | E106: 0.7548136073 | F106: 0.7271845319 | G106: 0.9694381491 | H106: 5.449303496 | I106: 0.7664435397 | J106: 0.2335564603 | L106: 0.6522475213 | M106: 0.9640094721 | N106: 4.887747941 | O106: 0.7428792459 | Q106: 0.05895524898 | R106: 0.01025934715 | T106: 94.228218 | U106: 22.00760905 | W106: -0.2297269719 | X106: -21.64676319
B107: 0.968544 | D107: 5.357027188 | E107: 0.7626555228 | F107: 0.7523391875 | G107: 0.9712672777 | H107: 5.637804966 | I107: 0.7740764464 | J107: 0.2259235536 | L107: 0.6774021769 | M107: 0.9658283579 | N107: 5.07624941 | O107: 0.7509245912 | Q107: 0.06036022698 | R107: 0.009840325156 | T107: 98.42601587 | U107: 22.23675528 | W107: -0.2221724854 | X107: -21.86755257
B108: 0.970368 | D108: 5.545173998 | E108: 0.7703433313 | F108: 0.7774465155 | G108: 0.9730964063 | H108: 5.825951776 | I108: 0.781552311 | J108: 0.218447689 | L108: 0.7025095049 | M108: 0.9676472437 | N108: 5.26439622 | O108: 0.7588192619 | Q108: 0.06177898437 | R108: 0.009435082543 | T108: 102.846795 | U108: 22.46664469 | W108: -0.2147756068 | X108: -22.0889828
B109: 0.972192 | D109: 5.732967481 | E109: 0.7778755975 | F109: 0.8025066935 | G109: 0.9749255349 | H109: 6.013745258 | I109: 0.788870041 | J109: 0.211129959 | L109: 0.7275696829 | M109: 0.9694661295 | N109: 5.452189703 | O109: 0.7665614776 | Q109: 0.06321123366 | R109: 0.009043331836 | T109: 107.5037406 | U109: 22.69726035 | W109: -0.2075373122 | X109: -22.31103738
B110: 0.974016 | D110: 5.92040896 | E110: 0.7852511225 | F110: 0.8275198983 | G110: 0.9767546635 | H110: 6.201186738 | I110: 0.7960287757 | J110: 0.2039712243 | L110: 0.7525828877 | M110: 0.9712850153 | N110: 5.639631182 | O110: 0.774149698 | Q110: 0.0646566856 | R110: 0.008664783778 | T110: 112.4108835 | U110: 22.92858553 | W110: -0.2004583484 | X110: -22.53370005
B111: 0.97584 | D111: 6.107499754 | E111: 0.7924689395 | F111: 0.8524863057 | G111: 0.978583792 | H111: 6.388277531 | I111: 0.8030278818 | J111: 0.1969721182 | L111: 0.7775492951 | M111: 0.9731039011 | N111: 5.826721976 | O111: 0.7815826186 | Q111: 0.06611504958 | R111: 0.008299147751 | T111: 117.5831578 | U111: 23.16060367 | W111: -0.1935392375 | X111: -22.75695471
B112: 0.977664 | D112: 6.294241171 | E112: 0.7995283087 | F112: 0.8774060905 | G112: 0.9804129206 | H112: 6.575018949 | I112: 0.8098669469 | J112: 0.1901330531 | L112: 0.8024690799 | M112: 0.9749227869 | N112: 6.013463393 | O112: 0.7888591663 | Q112: 0.06758603401 | R112: 0.007946132182 | T112: 123.0364632 | U112: 23.3932984 | W112: -0.1867802837 | X112: -22.98078551
B113: 0.979488 | D113: 6.480634515 | E113: 0.806428712 | F113: 0.9022794264 | G113: 0.9822420492 | H113: 6.761412293 | I113: 0.8165457742 | J113: 0.1834542258 | L113: 0.8273424158 | M113: 0.9767416727 | N113: 6.199856737 | O113: 0.7959784955 | Q113: 0.06906934677 | R113: 0.007605444944 | T113: 128.7877313 | U113: 23.62665355 | W113: -0.1801815788 | X113: -23.20517676
B114: 0.981312 | D114: 6.66668108 | E114: 0.8131698474 | F114: 0.9271064863 | G114: 0.9840711778 | H114: 6.947458858 | I114: 0.8230643756 | J114: 0.1769356244 | L114: 0.8521694757 | M114: 0.9785605585 | N114: 6.385903302 | O114: 0.8029399822 | Q114: 0.07056469557 | R114: 0.007276793744 | T114: 134.8549972 | U114: 23.86065313 | W114: -0.1737430093 | X114: -23.43011303
B115: 0.983136 | D115: 6.852382155 | E115: 0.8197516225 | F115: 0.9518874421 | G115: 0.9859003064 | H115: 7.133159933 | I115: 0.8294229655 | J115: 0.1705770345 | L115: 0.8769504315 | M115: 0.9803794443 | N115: 6.571604377 | O115: 0.8097432189 | Q115: 0.07207178832 | R115: 0.006959886496 | T115: 141.2574761 | U115: 24.09528136 | W115: -0.1674642625 | X115: -23.65557905
B116: 0.98496 | D116: 7.03773902 | E116: 0.8261741483 | F116: 0.9766224647 | G116: 0.987729435 | H116: 7.318516798 | I116: 0.8356219534 | J116: 0.1643780466 | L116: 0.9016854541 | M116: 0.9821983301 | N116: 6.756961242 | O116: 0.8163880089 | Q116: 0.0735903335 | R116: 0.006654431681 | T116: 148.0156454 | U116: 24.33052266 | W116: -0.1613448343 | X116: -23.88155978
B117: 0.986784 | D117: 7.222752949 | E117: 0.8324377325 | F117: 1.001311724 | G117: 0.9895585635 | H117: 7.503530726 | I117: 0.8416619367 | J117: 0.1583380633 | L117: 0.9263747135 | M117: 0.9840172159 | N117: 6.941975171 | O117: 0.8228743598 | Q117: 0.07512004053 | R117: 0.006360138703 | T117: 155.1513333 | U117: 24.56636164 | W117: -0.1553840363 | X117: -24.10804041
B118: 0.988608 | D118: 7.407425208 | E118: 0.8385428725 | F118: 1.025955389 | G118: 0.9913876921 | H118: 7.688202986 | I118: 0.8475436938 | J118: 0.1524563062 | L118: 0.9510183786 | M118: 0.9858361017 | N118: 7.12664743 | O118: 0.8292024768 | Q118: 0.07666062004 | R118: 0.006076718221 | T118: 162.6878134 | U118: 24.80278309 | W118: -0.149581003 | X118: -24.3350063
B119: 0.990432 | D119: 7.591757057 | E119: 0.8444902481 | F119: 1.050553628 | G119: 0.9932168207 | H119: 7.872534835 | I119: 0.8532681759 | J119: 0.1467318241 | L119: 0.9756166175 | M119: 0.9876549875 | N119: 7.31097928 | O119: 0.8353727567 | Q119: 0.0782117843 | R119: 0.005803882471 | T119: 170.6499063 | U119: 25.03977204 | W119: -0.1439346999 | X119: -24.56244306
B120: 0.992256 | D120: 7.77574975 | E120: 0.8502807141 | F120: 1.075106608 | G120: 0.9950459493 | H120: 8.056527527 | I120: 0.8588364994 | J120: 0.1411635006 | L120: 1.000169598 | M120: 0.9894738733 | N120: 7.494971972 | O120: 0.8413857802 | Q120: 0.0797732474 | R120: 0.005541345579 | T120: 179.0640894 | U120: 25.27731369 | W120: -0.1384439312 | X120: -24.79033648
B121: 0.99408 | D121: 7.95940453 | E121: 0.8559152928 | F121: 1.099614495 | G121: 0.9968750779 | H121: 8.240182308 | I121: 0.8642499382 | J121: 0.1357500618 | L121: 1.024677485 | M121: 0.9912927591 | N121: 7.678626753 | O121: 0.8472423049 | Q121: 0.08134472567 | R121: 0.005288823848 | T121: 187.958614 | U121: 25.51539346 | W121: -0.1331073477 | X121: -25.01867258
B122: 0.995904 | D122: 8.142722638 | E122: 0.861395166 | F122: 1.124077455 | G122: 0.9987042065 | H122: 8.423500416 | I122: 0.8695099157 | J122: 0.1304900843 | L122: 1.049140445 | M122: 0.9931116449 | N122: 7.861944861 | O122: 0.852943258 | Q122: 0.08292593787 | R122: 0.005046036046 | T122: 197.3636318 | U122: 25.75399694 | W122: -0.1279234546 | X122: -25.24743758
B123: 0.997728 | D123: 8.325705306 | E123: 0.8667216678 | F123: 1.148495652 | G123: 1.000533335 | H123: 8.606483084 | I123: 0.8746179966 | J123: 0.1253820034 | L123: 1.073558642 | M123: 0.9949305307 | N123: 8.044927528 | O123: 0.8584897287 | Q123: 0.08451660549 | R123: 0.004812703665 | T123: 207.3113305 | U123: 25.99310995 | W123: -0.1228906199 | X123: -25.47661792
B124: 0.999552 | D124: 8.508353759 | E124: 0.871896276 | F124: 1.17286925 | G124: 1.002362464 | H124: 8.789131537 | I124: 0.8795758787 | J124: 0.1204241213 | L124: 1.097932239 | M124: 0.9967494165 | N124: 8.227575981 | O124: 0.8638829604 | Q124: 0.086116453 | R124: 0.004588551174 | T124: 217.8360799 | U124: 26.23271851 | W124: -0.1180070825 | X124: -25.70620025
B125: 1.001376 | D125: 8.690669215 | E125: 0.8769206047 | F125: 1.19719841 | G125: 1.004191592 | H125: 8.971446993 | I125: 0.8843853853 | J125: 0.1156146147 | L125: 1.122261399 | M125: 0.9985683023 | N125: 8.409891437 | O125: 0.8691243433 | Q125: 0.08772520808 | R125: 0.004373306256 | T125: 228.9745884 | U125: 26.47280882 | W125: -0.1132709599 | X125: -25.93617142
B126: 1.0032 | D126: 8.872652887 | E126: 0.8817963959 | F126: 1.221483295 | G126: 1.006020721 | H126: 9.153430664 | I126: 0.8890484567 | J126: 0.1109515433 | L126: 1.146546285 | M126: 1.000387188 | N126: 8.591875109 | O126: 0.8742154063 | Q126: 0.08934260185 | R126: 0.004166700025 | T126: 240.7660724 | U126: 26.7133673 | W126: -0.1086802564 | X126: -26.16651848
B127: 1.005024 | D127: 9.054305979 | E127: 0.886525512 | F127: 1.245724067 | G127: 1.007849849 | H127: 9.335083757 | I127: 0.8935671425 | J127: 0.1064328575 | L127: 1.170787056 | M127: 1.002206074 | N127: 8.773528202 | O127: 0.879157809 | Q127: 0.09096836906 | R127: 0.003968467237 | T127: 253.2524373 | U127: 26.95438056 | W127: -0.1042328713 | X127: -26.3972287
B128: 1.006848 | D128: 9.235629692 | E128: 0.8911099274 | F128: 1.269920884 | G128: 1.009678978 | H128: 9.516407469 | I128: 0.8979435933 | J128: 0.1020564067 | L128: 1.194983873 | M128: 1.00402496 | N128: 8.954851914 | O128: 0.8839533345 | Q128: 0.0926022483 | R128: 0.00377834648 | T128: 266.4784729 | U128: 27.19583541 | W128: -0.09992660677 | X128: -26.62828957
B129: 1.008672 | D129: 9.416625216 | E129: 0.8955517208 | F129: 1.294073905 | G129: 1.011508107 | H129: 9.697402994 | I129: 0.902180053 | J129: 0.09781994702 | L129: 1.219136895 | M129: 1.005843845 | N129: 9.135847438 | O129: 0.8886038807 | Q129: 0.09424398217 | R129: 0.003596080349 | T129: 280.4920642 | U129: 27.43771886 | W129: -0.09575917535 | X129: -26.85968876
B130: 1.010496 | D130: 9.597293739 | E130: 0.8998530676 | F130: 1.31818329 | G130: 1.013337235 | H130: 9.878071517 | I130: 0.9062788511 | J130: 0.09372114893 | L130: 1.24324628 | M130: 1.007662731 | N130: 9.316515961 | O130: 0.8931114533 | Q130: 0.09589331744 | R130: 0.003421415613 | T130: 295.3444171 | U130: 27.6800181 | W130: -0.09172820805 | X130: -27.09141414
B131: 1.01232 | D131: 9.777636439 | E131: 0.9040162319 | F131: 1.342249195 | G131: 1.015166364 | H131: 10.05841422 | I131: 0.9102423949 | J131: 0.08975760511 | L131: 1.267312185 | M131: 1.009481617 | N131: 9.496858661 | O131: 0.8974781573 | Q131: 0.09755000519 | R131: 0.003254103362 | T131: 311.0903027 | U131: 27.92272055 | W131: -0.08783126173 | X131: -27.3234538
B132: 1.014144 | D132: 9.957654489 | E132: 0.9080435589 | F132: 1.366271778 | G132: 1.016995492 | H132: 10.23843227 | I132: 0.9140731621 | J132: 0.08592683788 | L132: 1.291334767 | M132: 1.011300503 | N132: 9.676876711 | O132: 0.9017061901 | Q132: 0.09921380096 | R132: 0.00309389914 | T132: 327.7883195 | U132: 28.16581379 | W132: -0.08406582661 | X132: -27.55579603
B133: 1.015968 | D133: 10.13734906 | E133: 0.9119374674 | F133: 1.390251193 | G133: 1.018824621 | H133: 10.41812683 | I133: 0.9177736935 | J133: 0.08222630655 | L133: 1.315314182 | M133: 1.013119389 | N133: 9.856571279 | O133: 0.9057978331 | Q133: 0.1008844649 | R133: 0.002940563073 | T133: 345.5011761 | U133: 28.40928562 | W133: -0.08042933348 | X133: -27.78842931
B134: 1.017792 | D134: 10.3167213 | E134: 0.9157004429 | F134: 1.414187595 | G134: 1.020653749 | H134: 10.59749908 | I134: 0.9213465854 | J134: 0.07865341459 | L134: 1.339250585 | M134: 1.014938274 | N134: 10.03594352 | O134: 0.9097554451 | Q134: 0.1025617618 | R134: 0.002793859968 | T134: 364.295996 | U134: 28.65312401 | W134: -0.07691916085 | X134: -28.02134231
B135: 1.019616 | D135: 10.49577238 | E135: 0.9193350296 | F135: 1.438081139 | G135: 1.022482878 | H135: 10.77655016 | I135: 0.9247944833 | J135: 0.07520551667 | L135: 1.363144129 | M135: 1.01675716 | N135: 10.2149946 | O135: 0.9135814543 | Q135: 0.1042454612 | R135: 0.002653559419 | T135: 384.2446461 | U135: 28.89731714 | W135: -0.07353264178 | X135: -28.25452392
B136: 1.02144 | D136: 10.67450344 | E136: 0.9228438242 | F136: 1.461931978 | G136: 1.024312007 | H136: 10.95528121 | I136: 0.9281200746 | J136: 0.07187992541 | L136: 1.386994968 | M136: 1.018576046 | N136: 10.39372566 | O136: 0.9172783514 | Q136: 0.1059353377 | R136: 0.00251943588 | T136: 405.4240903 | U136: 29.14185337 | W136: -0.07026707064 | X136: -28.48796319
B137: 1.023264 | D137: 10.85291562 | E137: 0.9262294688 | F137: 1.485740265 | G137: 1.026141135 | H137: 11.13369339 | I137: 0.931326082 | J137: 0.06867391798 | L137: 1.410803254 | M137: 1.020394932 | N137: 10.57213784 | O137: 0.9208486826 | Q137: 0.1076311706 | R137: 0.002391268744 | T137: 427.9167713 | U137: 29.38672125 | W137: -0.06711970955 | X137: -28.7216494
B138: 1.025088 | D138: 11.03101005 | E138: 0.9294946438 | F138: 1.50950615 | G138: 1.027970264 | H138: 11.31178783 | I138: 0.9344152575 | J138: 0.06558474248 | L138: 1.434569139 | M138: 1.022213818 | N138: 10.75023228 | O138: 0.924295043 | Q138: 0.1093327442 | R138: 0.002268842393 | T138: 451.8110218 | U138: 29.63190951 | W138: -0.06408779463 | X138: -28.95557198
B139: 1.026912 | D139: 11.20878788 | E139: 0.9326420624 | F139: 1.533229784 | G139: 1.029799392 | H139: 11.48956566 | I139: 0.9373903759 | J139: 0.06260962409 | L139: 1.458292773 | M139: 1.024032703 | N139: 10.9280101 | O139: 0.9276200694 | Q139: 0.1110398481 | R139: 0.002151946256 | T139: 477.2015087 | U139: 29.87740707 | W139: -0.06116854209 | X139: -29.18972057
B140: 1.028736 | D140: 11.38625021 | E140: 0.9356744638 | F140: 1.556911318 | G140: 1.031628521 | H140: 11.66702799 | I140: 0.940254229 | J140: 0.05974577097 | L140: 1.481974307 | M140: 1.025851589 | N140: 11.10547244 | O140: 0.9308264343 | Q140: 0.1127522767 | R140: 0.002040374835 | T140: 504.1897117 | U140: 30.12320304 | W140: -0.05835915394 | X140: -29.424085
B141: 1.03056 | D141: 11.56339818 | E141: 0.9385946072 | F141: 1.580550901 | G141: 1.03345765 | H141: 11.84417596 | I141: 0.9430096201 | J141: 0.05699037993 | L141: 1.50561389 | M141: 1.027670475 | N141: 11.2826204 | O141: 0.9339168397 | Q141: 0.1144698296 | R141: 0.001933927738 | T141: 532.88444 | U141: 30.3692867 | W141: -0.05565682359 | X141: -29.65865528
B142: 1.032384 | D142: 11.74023288 | E142: 0.9414052665 | F142: 1.60414868 | G142: 1.035286778 | H142: 12.02101066 | I142: 0.9456593581 | J142: 0.05434064188 | L142: 1.529211669 | M142: 1.029489361 | N142: 11.45945511 | O142: 0.9368940107 | Q142: 0.1161923115 | R142: 0.001832409692 | T142: 563.40239 | U142: 30.61564751 | W142: -0.05305874116 | X142: -29.89342158
B143: 1.034208 | D143: 11.91675544 | E143: 0.9441092244 | F143: 1.627704804 | G143: 1.037115907 | H143: 12.19753321 | I143: 0.948206253 | J143: 0.05179374697 | L143: 1.552767794 | M143: 1.031308247 | N143: 11.63597766 | O143: 0.9397606902 | Q143: 0.1179195324 | R143: 0.001735630548 | T143: 595.8687469 | U143: 30.8622751 | W143: -0.05056209851 | X143: -30.12837428
B144: 1.036032 | D144: 12.09296694 | E144: 0.9467092673 | F144: 1.65121942 | G144: 1.038945035 | H144: 12.37374471 | I144: 0.9506531104 | J144: 0.04934688956 | L144: 1.576282409 | M144: 1.033127132 | N144: 11.81218916 | O144: 0.9425196331 | Q144: 0.1196513071 | R144: 0.001643405281 | T144: 630.4178356 | U144: 31.10915931 | W144: -0.04816409405 | X144: -30.36350393
B145: 1.037856 | D145: 12.26886848 | E145: 0.9492081804 | F145: 1.674692673 | G145: 1.040774164 | H145: 12.54964625 | I145: 0.9530027271 | J145: 0.04699727291 | L145: 1.599755662 | M145: 1.034946018 | N145: 11.9880907 | O145: 0.9451736008 | Q145: 0.1213874558 | R145: 0.001555553973 | T145: 667.1938216 | U145: 31.35629011 | W145: -0.04586193733 | X145: -30.59880123
B146: 1.03968 | D146: 12.44446115 | E146: 0.9516087429 | F146: 1.698124708 | G146: 1.042603292 | H146: 12.72523892 | I146: 0.9552578865 | J146: 0.04474211354 | L146: 1.623187698 | M146: 1.036764904 | N146: 12.16368337 | O146: 0.9477253566 | Q146: 0.1231278036 | R146: 0.001471901799 | T146: 706.3514702 | U146: 31.60365768 | W146: -0.04365285328 | X146: -30.83425709
B147: 1.041504 | D147: 12.61974603 | E147: 0.9539137231 | F147: 1.721515671 | G147: 1.044432421 | H147: 12.90052381 | I147: 0.9574213545 | J147: 0.04257864548 | L147: 1.646578661 | M147: 1.03858379 | N147: 12.33896825 | O147: 0.9501776602 | Q147: 0.1248721808 | R147: 0.001392278995 | T147: 748.0569654 | U147: 31.85125232 | W147: -0.04153408631 | X147: -31.06986256
B148: 1.043328 | D148: 12.7947242 | E148: 0.9561258747 | F148: 1.744865705 | G148: 1.04626155 | H148: 13.07550198 | I148: 0.9594958758 | J148: 0.04050412416 | L148: 1.669928694 | M148: 1.040402676 | N148: 12.51394642 | O148: 0.9525332638 | Q148: 0.1266204226 | R148: 0.001316520822 | T148: 792.4887954 | U148: 32.09906456 | W148: -0.0395029041 | X148: -31.30560889
B149: 1.045152 | D149: 12.96939674 | E149: 0.9582479326 | F149: 1.768174952 | G149: 1.048090678 | H149: 13.25017451 | I149: 0.9614841699 | J149: 0.03851583009 | L149: 1.693237942 | M149: 1.042221561 | N149: 12.68861896 | O149: 0.9547949074 | Q149: 0.1283723693 | R149: 0.001244467525 | T149: 839.8387096 | U149: 32.34708505 | W149: -0.03755660116 | X149: -31.54148745
B150: 1.046976 | D150: 13.1437647 | E150: 0.9602826089 | F150: 1.791443556 | G150: 1.049919807 | H150: 13.42454247 | I150: 0.9633889277 | J150: 0.03661107232 | L150: 1.716506546 | M150: 1.044040447 | N150: 12.86298692 | O150: 0.9569653145 | Q150: 0.1301278661 | R150: 0.001175964284 | T150: 890.3127537 | U150: 32.59530461 | W150: -0.0356925021 | X150: -31.77748983
B151: 1.0488 | D151: 13.31782914 | E151: 0.9622325895 | F151: 1.814671658 | G151: 1.051748935 | H151: 13.59860692 | I151: 0.9652128084 | J151: 0.03478719156 | L151: 1.739734647 | M151: 1.045859333 | N151: 13.03705137 | O151: 0.9590471887 | Q151: 0.131886763 | R151: 0.00111086116 | T151: 944.1323881 | U151: 32.84371424 | W151: -0.03390796475 | X151: -32.01360773
B152: 1.050624 | D152: 13.49159113 | E152: 0.964100531 | F152: 1.837859397 | G152: 1.053578064 | H152: 13.77236891 | I152: 0.9669584368 | J152: 0.03304156322 | L152: 1.762922387 | M152: 1.047678219 | N152: 13.21081336 | O152: 0.9610432096 | Q152: 0.1336489149 | R152: 0.001049013033 | T152: 1001.535698 | U152: 33.09230509 | W152: -0.03220038297 | X152: -32.24983305
B153: 1.052448 | D153: 13.66505171 | E153: 0.9658890574 | F153: 1.861006915 | G153: 1.055407193 | H153: 13.94582949 | I153: 0.9686283999 | J153: 0.03137160006 | L153: 1.786069905 | M153: 1.049497105 | N153: 13.38427394 | O153: 0.9629560299 | Q153: 0.1354141814 | R153: 0.000990279534 | T153: 1062.778704 | U153: 33.34106846 | W153: -0.03056718927 | X153: -32.48615781
B154: 1.054272 | D154: =(LN(B154/F$8))*100 -> 13.83821193 | E154: 0.9676007575 | F154: =((LN(B154/F$8))/(F$9/100))+(F$10/100) -> 1.884114351 | G154: =F$8+((EXP(F154*(F$9/100))-1)*F$8) -> 1.057236321 | H154: =(LN(G154/F$8))*100 -> 14.11898971 | I154: =NORMDIST(H154,0,F$9,1) -> 0.9702252453 | J154: =1-I154 -> 0.0297747547 | L154: =((LN(B154/F$8))/(F$9/100))-(F$10/100) -> 1.809177341 | M154: =F$8+((EXP(L154*(F$9/100))-1)*F$8) -> 1.05131599 | N154: =(LN(M154/F$8))*100 -> 13.55743415 | O154: =NORMDIST(N154,0,F$9,1) -> 0.9647882716 | Q154: =(I154*B154)-(O154*F$8) -> 0.1371824268 | R154: =Q154+F$8-B154 -> 0.0009345249807 | T154: 1128.136777 | U154: 33.58999581 | W154: -0.02900585716 | X154: -32.72257422
B155: 1.056096 | D155: 14.01107282 | E155: =NORMDIST(D155,0,F$9,1) -> 0.9692381819 | F155: 1.907181843 | G155: 1.05906545 | H155: 14.2918506 | I155: 0.9717514781 | J155: 0.02824852191 | L155: 1.832244833 | M155: 1.053134876 | N155: 13.73029504 | O155: 0.9665425239 | Q155: 0.1389535201 | R155: 0.0008816182973 | T155: =B155/R155 -> 1197.906172 | U155: =T155*J155 -> 33.83907876 | W155: =(R156-R155)*(1/$F$4) -> -0.02751390332 | X155: =T155*W155 -> -32.95907462
B156: =B155+F$4 -> 1.05792 | D156: 14.18363542 | E156: 0.9708038411 | F156: 1.93020953 | G156: 1.060894578 | H156: 14.4644132 | I156: 0.9732095594 | J156: 0.02679044063 | L156: 1.855272519 | M156: 1.054953762 | N156: 13.90285764 | O156: 0.9682213398 | Q156: 0.1407273348 | R156: 0.0008314329376 | T156: 1272.405689 | U156: 34.08830907 | W156: -0.02608888956 | X156: -33.1956515
B157: 1.059744 | D157: 14.35590075 | E157: 0.9723002031 | F157: 1.953197547 | G157: 1.062723707 | H157: 14.63667853 | I157: 0.9746019042 | J157: 0.02539809581 | L157: 1.878260537 | M157: 1.056772648 | N157: 14.07512297 | O157: 0.9698272338 | Q157: 0.1425037486 | R157: 0.000783846803 | T157: 1351.978468 | U157: 34.33767866 | W157: -0.02472842454 | X157: -33.43229752
B158: 1.061568 | D158: 14.52786984 | E158: 0.9737296916 | F158: 1.976146032 | G158: 1.064552835 | H158: 14.80864761 | I158: 0.9759308799 | J158: 0.02406912006 | L158: 1.901209022 | M158: 1.058591534 | N158: 14.24709206 | O158: 0.9713626801 | Q158: 0.144282644 | R158: 0.0007387421567 | T158: 1436.993937 | U158: 34.58717959 | W158: -0.02343016529 | X158: -33.66900546
B159: 1.063392 | D159: 14.6995437 | E159: 0.9750946841 | F159: 1.999055121 | G159: 1.066381964 | H159: 14.98032148 | I159: 0.9771988049 | J159: 0.0228011951 | L159: 1.92411811 | M159: 1.060410419 | N159: 14.41876592 | O159: 0.9728301097 | Q159: 0.1460639074 | R159: 0.0006960055352 | T159: 1527.849918 | U159: 34.83680407 | W159: -0.02219181862 | X159: -33.90576826
B160: 1.065216 | D160: 14.87092335 | E160: 0.9763975104 | F160: 2.021924948 | G160: 1.068211093 | H160: 15.15170112 | I160: 0.978407947 | J160: 0.02159205298 | L160: 1.946987938 | M160: 1.062229305 | N160: 14.59014557 | O160: 0.9742319096 | Q160: 0.1478474295 | R160: 0.000655527658 | T160: 1624.974914 | U160: 35.08654444 | W160: -0.02101114219 | X160: -34.14257899
B161: 1.06704 | D161: 15.04200979 | E161: 0.9776404513 | F161: 2.044755648 | G161: 1.070040221 | H161: 15.32278756 | I161: 0.9795605228 | J161: 0.02043947717 | L161: 1.969818638 | M161: 1.064048191 | N161: 14.76123201 | O161: 0.9755704201 | Q161: 0.1496331052 | R161: 0.0006172033347 | T161: 1728.830582 | U161: 35.33639319 | W161: -0.01988594558 | X161: -34.37943086
B162: 1.068864 | D162: 15.21280402 | E162: 0.9788257375 | F162: 2.067547355 | G162: 1.07186935 | H162: 15.4935818 | I162: 0.9806586966 | J162: 0.01934130345 | L162: 1.992610344 | M162: 1.065867077 | N162: 14.93202624 | O162: 0.9768479342 | Q162: 0.1514208332 | R162: 0.0005809313699 | T162: 1839.914412 | U162: 35.58634296 | W162: -0.01881409103 | X162: -34.61631723
B163: 1.070688 | D163: 15.38330705 | E163: 0.9799555483 | F163: 2.0903002 | G163: 1.073698478 | H163: 15.66408482 | I163: 0.9817045794 | J163: 0.01829542065 | L163: 2.01536319 | M163: 1.067685963 | N163: 15.10252927 | O163: 0.9780666958 | Q163: 0.1532105163 | R163: 0.0005466144679 | T163: 1958.762643 | U163: 35.83638651 | W163: -0.01779349412 | X163: -34.85323158
B164: 1.072512 | D164: 15.55351985 | E164: 0.9810320112 | F164: 2.113014318 | G164: 1.075527607 | H164: 15.83429763 | I164: 0.9827002288 | J164: 0.0172997712 | L164: 2.038077307 | M164: 1.069504848 | N164: 15.27274208 | O164: 0.9792288989 | Q164: 0.155002061 | R164: 0.0005141591346 | T164: 2085.95341 | U164: 36.08651673 | W164: -0.01682212429 | X164: -35.09016753
B165: 1.074336 | D165: 15.72344343 | E165: 0.982057201 | F165: 2.135689839 | G165: 1.077356736 | H165: 16.00422121 | I165: 0.9836476484 | J165: 0.01635235159 | L165: 2.060752828 | M165: 1.071323734 | N165: 15.44266565 | O165: 0.9803366866 | Q165: 0.1567953774 | R165: 0.0004834755799 | T165: 2222.110164 | U165: 36.33672666 | W165: -0.01589800515 | X165: -35.32711882
B166: 1.07616 | D166: 15.89307875 | E166: 0.9830331394 | F166: 2.158326894 | G166: 1.079185864 | H166: 16.17385653 | I166: 0.9845487874 | J166: 0.01545121258 | L166: 2.083389884 | M166: 1.07314262 | N166: 15.61230098 | O166: 0.9813921502 | Q166: 0.1585903794 | R166: 0.0004544776185 | T166: 2367.905384 | U166: 36.58700946 | W166: -0.01501921469 | X166: -35.56407933
B167: 1.077984 | D167: 16.0624268 | E167: 0.9839617942 | F167: 2.180925614 | G167: 1.081014993 | H167: 16.34320458 | I167: 0.9854055406 | J167: 0.01459445942 | L167: 2.105988603 | M167: 1.074961506 | N167: 15.78164903 | O167: 0.9823973288 | Q167: 0.1603869844 | R167: 0.0004270825709 | T167: 2524.064603 | U167: 36.83735843 | W167: -0.0141838854 | X167: -35.80104307
B168: 1.079808 | D168: 16.23148855 | E168: 0.9848450798 | F168: 2.203486128 | G168: 1.082844121 | H168: 16.51226633 | I168: 0.9862197482 | J168: 0.01378025182 | L168: 2.128549117 | M168: 1.076780392 | N168: 15.95071077 | O168: 0.9833542089 | Q168: 0.162185113 | R168: 0.000401211164 | T168: 2691.370772 | U168: 37.08776697 | W168: -0.01339020418 | X168: -36.03800416
B169: 1.081632 | D169: 16.40026496 | E169: 0.9856848567 | F169: 2.226008565 | G169: 1.08467325 | H169: 16.68104274 | I169: 0.9869931961 | J169: 0.01300680385 | L169: 2.151071555 | M169: 1.078599277 | N169: 16.11948719 | O169: 0.9842647238 | Q169: 0.1639846893 | R169: 0.0003767874315 | T169: 2870.669002 | U169: 37.33822864 | W169: -0.01263641222 | X169: -36.27495685
B170: 1.083456 | D170: 16.568757 | E170: 0.9864829314 | F170: 2.248493054 | G170: 1.086502378 | H170: 16.84953478 | I170: 0.9877276162 | J170: 0.01227238376 | L170: 2.173556043 | M170: 1.080418163 | N170: 16.28797922 | O170: 0.9851307537 | Q170: 0.1657856404 | R170: 0.0003537386157 | T170: 3062.871714 | U170: 37.58873708 | W170: -0.01192080469 | X170: -36.5118955
B171: 1.08528 | D171: 16.73696562 | E171: 0.9872410568 | F171: 2.270939722 | G171: 1.088331507 | H171: 17.0177434 | I171: 0.9884246864 | J171: 0.01157531361 | L171: 2.196002711 | M171: 1.082237049 | N171: 16.45618784 | O171: 0.9859541253 | Q171: 0.1675878969 | R171: 0.0003319950679 | T171: 3268.964225 | U171: 37.8392861 | W171: -0.01124173043 | X171: -36.74881459
B172: 1.087104 | D172: 16.90489177 | E172: 0.9879609323 | F172: 2.293348696 | G172: 1.090160636 | H172: 17.18566955 | I172: 0.9890860311 | J172: 0.0109139689 | L172: 2.218411685 | M172: 1.084055935 | N172: 16.62411399 | O172: 0.9867366124 | Q172: 0.169391392 | R172: 0.0003114901516 | T172: 3490.010822 | U172: 38.08986959 | W172: -0.01059759142 | X172: -36.98570874
B173: 1.088928 | D173: 17.0725364 | E173: 0.9886442041 | F173: 2.315720102 | G173: 1.091989764 | H173: 17.35331418 | I173: 0.989713222 | J173: 0.01028677805 | L173: 2.240783092 | M173: 1.08587482 | N173: 16.79175863 | O173: 0.9874799356 | Q173: 0.171196062 | R173: 0.0002921601449 | T173: 3727.16135 | U173: 38.34048156 | W173: -0.009986842304 | X173: -37.22257265
B174: 1.090752 | D174: 17.23990046 | E174: 0.989292466 | F174: 2.338054067 | G174: 1.093818893 | H174: 17.52067824 | I174: 0.9903077782 | J174: 0.009692221791 | L174: 2.263117056 | M174: 1.087693706 | N174: 16.95912268 | O174: 0.9881857628 | Q174: 0.173001846 | R174: 0.0002739441445 | T174: 3981.658385 | U174: 38.59111617 | W174: -0.009407989716 | X174: -37.45940114
B175: 1.092576 | D175: 17.40698488 | E175: 0.9899072595 | F175: 2.360350715 | G175: 1.095648021 | H175: 17.68776265 | I175: 0.9908711675 | J175: 0.009128832544 | L175: 2.285413705 | M175: 1.089512592 | N175: 17.1262071 | O175: 0.9888557094 | Q175: 0.1748086858 | R175: 0.0002567839712 | T175: 4254.845015 | U175: 38.84176764 | W175: -0.008859591601 | X175: -37.69618916
B176: 1.0944 | D176: 17.57379059 | E176: 0.9904900743 | F176: 2.382610171 | G176: 1.09747715 | H176: 17.85456836 | I176: 0.9914048063 | J176: 0.008595193656 | L176: 2.307673161 | M176: 1.091331478 | N176: 17.29301281 | O176: 0.989491339 | Q176: 0.1766165259 | R176: 0.0002406240762 | T176: 4548.173306 | U176: 39.09243035 | W176: -0.008340256447 | X176: -37.93293174
B177: 1.096224 | D177: 17.74031852 | E177: 0.9910423498 | F177: 2.404832559 | G177: 1.099306279 | H177: 18.0210963 | I177: 0.9919100614 | J177: 0.00808993862 | L177: 2.329895549 | M177: 1.093150364 | N177: 17.45954074 | O177: 0.9900941638 | Q177: 0.1784253133 | R177: 0.0002254114484 | T177: 4863.213505 | U177: 39.34309875 | W177: -0.007848642466 | X177: -38.16962403
B178: 1.098048 | D178: 17.90656959 | E178: 0.9915654747 | F178: 2.427018002 | G178: 1.101135407 | H178: 18.18734737 | I178: 0.9923882498 | J178: 0.007611750217 | L178: 2.352080992 | M178: 1.094969249 | N178: 17.62579182 | O178: 0.9906656452 | Q178: 0.1802349973 | R178: 0.0002110955246 | T178: 5201.664044 | U178: 39.59376742 | W178: -0.00738345671 | X178: -38.40626129
B179: 1.099872 | D179: 18.07254474 | E179: 0.9920607887 | F179: 2.449166623 | G179: 1.102964536 | H179: 18.35332251 | I179: 0.9928406404 | J179: 0.00715935962 | L179: 2.374229612 | M179: 1.096788135 | N179: 17.79176696 | O179: 0.9912071946 | Q179: 0.1820455299 | R179: 0.0001976280995 | T179: 5565.362429 | U179: 39.84443104 | W179: -0.006943454152 | X179: -38.64283887
B180: 1.101696 | D180: 18.23824486 | E180: 0.9925295831 | F180: 2.471278543 | G180: 1.104793664 | H180: 18.51902264 | I180: 0.9932684546 | J180: 0.00673154544 | L180: 2.396341533 | M180: 1.098607021 | N180: 17.95746708 | O180: 0.9917201739 | Q180: 0.1838568651 | R180: 0.0001849632391 | T180: 5956.297074 | U180: 40.0950844 | W180: -0.006527436718 | X180: -38.87935222
B181: 1.10352 | D181: 18.40367087 | E181: 0.9929731013 | F181: 2.493353885 | G181: 1.106622793 | H181: 18.68444864 | I181: 0.9936728673 | J181: 0.006327132747 | L181: 2.418416874 | M181: 1.100425907 | N181: 18.12289309 | O181: 0.9922058966 | Q181: 0.185668959 | R181: 0.0001730571946 | T181: 6376.620185 | U181: 40.34572238 | W181: -0.006134252279 | X181: -39.1157969
B182: 1.105344 | D182: 18.56882367 | E182: 0.9933925403 | F182: 2.515392768 | G182: 1.108451921 | H182: 18.84960145 | I182: 0.994055008 | J182: 0.005944992043 | L182: 2.440455757 | M182: 1.102244793 | N182: 18.28804589 | O182: 0.9926656287 | Q182: 0.1874817701 | R182: 0.0001618683184 | T182: 6828.661784 | U182: 40.59633997 | W182: -0.005762793619 | X182: -39.35216855
B183: 1.107168 | D183: 18.73370417 | E183: 0.9937890516 | F183: 2.537395314 | G183: 1.11028105 | H183: 19.01448195 | I183: 0.9944159618 | J183: 0.005584038217 | L183: 2.462458303 | M183: 1.104063678 | N183: 18.45292639 | O183: 0.9931005892 | Q183: 0.1892952588 | R183: 0.0001513569828 | T183: 7314.944968 | U183: 40.84693225 | W183: -0.00541199737 | X183: -39.58846293
B184: 1.108992 | D184: 18.89831326 | E184: 0.9941637419 | F184: 2.559361641 | G184: 1.112110179 | H184: 19.17909104 | I184: 0.9947567705 | J184: 0.005243229464 | L184: 2.48442463 | M184: 1.105882564 | N184: 18.61753548 | O184: 0.9935119513 | Q184: 0.1911093873 | R184: 0.0001414854996 | T184: 7838.202521 | U184: 41.0974944 | W184: -0.00508084293 | X184: -39.82467586
B185: 1.110816 | D185: 19.06265183 | E185: 0.9945176742 | F185: 2.581291869 | G185: 1.113939307 | H185: 19.34342961 | I185: 0.9950784338 | J185: 0.004921566197 | L185: 2.506354859 | M185: 1.10770145 | N185: 18.78187406 | O185: 0.9939008436 | Q185: 0.1929241199 | R185: 0.0001322180421 | T185: 8401.395014 | U185: 41.34802171 | W185: -0.004768351352 | X185: -40.06080328
B186: 1.11264 | D186: 19.22672078 | E186: 0.9948518693 | F186: 2.603186117 | G186: 1.115768436 | H186: 19.50749856 | I186: 0.9953819101 | J186: 0.004618089928 | L186: 2.528249106 | M186: 1.109520336 | N186: 18.945943 | O186: 0.9942683507 | Q186: 0.1947394224 | R186: 0.0001235205693 | T186: 9007.730506 | U186: 41.59850953 | W186: -0.004473584236 | X186: -40.2968412
B187: 1.114464 | D187: 19.39052098 | E187: 0.9951673064 | F187: 2.625044501 | G187: 1.117597564 | H187: 19.67129876 | I187: 0.9956681178 | J187: 0.004331882152 | L187: 2.550107491 | M187: 1.111339222 | N187: 19.1097432 | O187: 0.9946155145 | Q187: 0.1965552626 | R187: 0.0001153607516 | T187: 9660.686016 | U187: 41.84895333 | W187: -0.004195642594 | X187: -40.53278573
B188: 1.116288 | D188: 19.55405332 | E188: 0.9954649243 | F188: 2.646867141 | G188: 1.119426693 | H188: 19.83483109 | I188: 0.9959379368 | J188: 0.00406206321 | L188: 2.57193013 | M188: 1.113158107 | N188: 19.27327554 | O188: 0.994943335 | Q188: 0.1983716097 | R188: 0.0001077078995 | T188: 10364.03091 | U188: 42.09934867 | W188: -0.003933665716 | X188: -40.76863307
B189: 1.118112 | D189: 19.71731866 | E189: 0.9957456229 | F189: 2.668654151 | G189: 1.121255822 | H189: 19.99809644 | I189: 0.9961922088 | J189: 0.003807791155 | L189: 2.59371714 | M189: 1.114976993 | N189: 19.43654088 | O189: 0.9952527718 | Q189: 0.2001884347 | R189: 0.0001005328933 | T189: 11121.8524 | U189: 42.34969118 | W189: -0.003686830037 | X189: -41.00437948
B190: 1.119936 | D190: 19.88031788 | E190: 0.9960102636 | F190: 2.690405649 | G190: 1.12308495 | H190: 20.16109566 | I190: 0.9964317394 | J190: 0.003568260611 | L190: 2.615468638 | M190: 1.116795879 | N190: 19.5995401 | O190: 0.9955447448 | Q190: 0.2020057099 | R190: 9.380811528e-05 | T190: 11938.58332 | U190: 42.5999766 | W190: -0.003454347995 | X190: -41.24002134
B191: 1.12176 | D191: 20.04305184 | E191: 0.996259671 | F191: 2.712121749 | G191: 1.124914079 | H191: 20.32382962 | I191: 0.9966572984 | J191: 0.003342701641 | L191: 2.637184739 | M191: 1.118614765 | N191: 19.76227407 | O191: 0.9958201355 | Q191: 0.2038234092 | R191: 8.750738454e-05 | T191: 12819.03243 | U191: 42.85020073 | W191: -0.003235466898 | X191: -41.47555508
B192: 1.123584 | D192: 20.20552142 | E192: 0.9964946341 | F192: 2.733802568 | G192: 1.126743207 | H192: 20.4862992 | I192: 0.9968696214 | J192: 0.00313037861 | L192: 2.658865557 | M192: 1.120433651 | N192: 19.92474364 | O192: 0.9960797879 | Q192: 0.2056415077 | R192: 8.160589292e-05 | T192: 13768.41745 | U192: 43.10035948 | W192: -0.003029467794 | X192: -41.71097723
B193: 1.125408 | D193: 20.36772745 | E193: 0.9967159067 | F193: 2.755448219 | G193: 1.128572336 | H193: 20.64850523 | I193: 0.9970694109 | J193: 0.002930589062 | L193: 2.680511208 | M193: 1.122252536 | N193: 20.08694968 | O193: 0.9963245099 | Q193: 0.207459982 | R193: 7.608014366e-05 | T193: 14792.40109 | U193: 43.35044883 | W193: -0.002835664348 | X193: -41.94628439
B194: 1.127232 | D194: 20.52967081 | E194: 0.9969242094 | F194: 2.777058816 | G194: 1.130401464 | H194: 20.81044859 | I194: 0.9972573374 | J194: 0.002742662599 | L194: 2.702121805 | M194: 1.124071422 | N194: 20.24889303 | O194: 0.9965550742 | Q194: 0.2092788097 | R194: 7.090789189e-05 | T194: 15897.13035 | U194: 43.60046483 | W194: -0.002653401734 | X194: -42.18147323
B195: 1.129056 | D195: 20.69135233 | E195: 0.99712023 | F195: 2.798634473 | G195: 1.132230593 | H195: 20.97213011 | I195: 0.9974340402 | J195: 0.002565959783 | L195: 2.723697462 | M195: 1.125890308 | N195: 20.41057455 | O195: 0.9967722194 | Q195: 0.2110979699 | R195: 6.606808713e-05 | T195: 17089.27939 | U195: 43.85040364 | W195: -0.002482055535 | X195: -42.41654051
B196: 1.13088 | D196: 20.85277287 | E196: 0.9973046251 | F196: 2.820175302 | G196: 1.134059722 | H196: 21.13355065 | I196: 0.997600129 | J196: 0.002399871036 | L196: 2.745238291 | M196: 1.127709194 | N196: 20.57199509 | O196: 0.9969766513 | Q196: 0.2129174426 | R196: 6.154081783e-05 | T196: 18376.09638 | U196: 44.10026147 | W196: -0.002321030656 | X196: -42.65148305
B197: 1.132704 | D197: 21.01393326 | E197: 0.9974780207 | F197: 2.841681416 | G197: 1.13588885 | H197: 21.29471104 | I197: 0.9977561844 | J197: 0.002243815571 | L197: 2.766744405 | M197: 1.12952808 | N197: 20.73315548 | O197: 0.9971690437 | Q197: 0.2147372091 | R197: 5.730725792e-05 | T197: 19765.45452 | U197: 44.35003461 | W197: -0.002169760262 | X197: -42.88629777
B198: 1.134528 | D198: 21.17483434 | E198: 0.997641014 | F198: 2.863152926 | G198: 1.137717979 | H198: 21.45561212 | I198: 0.9979027597 | J198: 0.002097240324 | L198: 2.788215916 | M198: 1.131346965 | N198: 20.89405656 | O198: 0.9973500396 | Q198: 0.2165572514 | R198: 5.33496152e-05 | T198: 21265.90784 | U198: 44.59971945 | W198: -0.002027704716 | X198: -43.12098161
B199: 1.136352 | D199: 21.33547694 | E199: 0.9977941735 | F199: 2.884589944 | G199: 1.139547107 | H199: 21.61625472 | I199: 0.9980403811 | J199: 0.001959618921 | L199: 2.809652934 | M199: 1.133165851 | N199: 21.05469916 | O199: 0.9975202525 | Q199: 0.2183775529 | R199: 4.96510818e-05 | T199: 22886.75209 | U199: 44.84931242 | W199: -0.001894350561 | X199: -43.35553165
B200: 1.138176 | D200: 21.4958619 | E200: 0.9979380409 | F200: 2.905992581 | G200: 1.141376236 | H200: 21.77663968 | I200: 0.9981695494 | J200: 0.001830450646 | L200: 2.83105557 | M200: 1.134984737 | N200: 21.21508412 | O200: 0.997680267 | Q200: 0.2201980976 | R200: 4.619578637e-05 | T200: 24638.09125 | U200: 45.09881005 | W200: -0.001769209495 | X200: -43.58994497
B201: 1.14 | D201: 21.65599004 | E201: 0.9980731317 | F201: 2.927360945 | G201: 1.143205365 | H201: 21.93676782 | I201: 0.9982907405 | J201: 0.00170925945 | L201: 2.852423935 | M201: 1.136803623 | N201: 21.37521226 | O201: 0.9978306403 | Q201: 0.2220188706 | R201: 4.296874826e-05 | T201: 26530.91017 | U201: 45.34820893 | W201: -0.001651817389 | X201: -43.82421877
B202: 1.141824 | D202: 21.81586217 | E202: 0.9981999361 | F202: 2.948695148 | G202: 1.145034493 | H202: 22.09663995 | I202: 0.998404407 | J202: 0.001595592963 | L202: 2.873758137 | M202: 1.138622509 | N202: 21.5350844 | O202: 0.9979719027 | Q202: 0.2238398577 | R202: 3.995583334e-05 | T202: 28577.15394 | U202: 45.59750572 | W202: -0.001541733315 | X202: -44.05835028
B203: 1.143648 | D203: 21.97547913 | E203: 0.9983189204 | F203: 2.969995298 | G203: 1.146863622 | H203: 22.25625691 | I203: 0.9985109785 | J203: 0.001489021538 | L203: 2.895058287 | M203: 1.140441394 | N203: 21.69470135 | O203: 0.9981045593 | Q203: 0.2256610455 | R203: 3.714371177e-05 | T203: 30789.81463 | U203: 45.84669714 | W203: -0.001438538599 | X203: -44.29233681
B204: 1.145472 | D204: 22.13484171 | E204: 0.9984305276 | F204: 2.991261503 | G204: 1.14869275 | H204: 22.41561949 | I204: 0.9986108627 | J204: 0.001389137323 | L204: 2.916324492 | M204: 1.14226028 | N204: 21.85406393 | O204: 0.9982290904 | Q204: 0.2274824216 | R204: 3.451981737e-05 | T204: 33183.02608 | U204: 46.09578001 | W204: -0.001341835902 | X204: -44.52617573
B205: 1.147296 | D205: 22.29395073 | E205: 0.9985351784 | F205: 3.012493871 | G205: 1.150521879 | H205: 22.57472851 | I205: 0.9987044467 | J205: 0.001295553341 | L205: 2.937556861 | M205: 1.144079166 | N205: 22.01317296 | O205: 0.9983459525 | Q205: 0.2293039741 | R205: 3.207230868e-05 | T205: 35772.16755 | U205: 46.34475118 | W205: -0.001251248318 | X205: -44.75986449
B206: 1.14912 | D206: 22.452807 | E206: 0.9986332722 | F206: 3.033692511 | G206: 1.152351007 | H206: 22.73358478 | I206: 0.9987920974 | J206: 0.001207902612 | L206: 2.9587555 | M206: 1.145898052 | N206: 22.17202922 | O206: 0.9984555797 | Q206: 0.2311256919 | R206: 2.979003175e-05 | T206: 38573.97702 | U206: 46.59360759 | W206: -0.001166418504 | X206: -44.99340056
... 821 more rows

Sheet D Put-Leverage
B1: Daten eingeben/rechnen! | E1: Tabelle Put-Leverage | H1: Diagramm Call-Leverage | K1: Hauptmenü
D10: Putl-Leverage, Tabelle 2.2'!A1

Sheet Theta, Tabelle 3
B1: Daten eingeben/berechnen! | H1: Diagramm Call-Theta | M1: Diagramm Put-Theta | R1: Hauptmenü
B3: Devisenkurs | E3: =Eingabeseite!C7 -> 0.912
B4: Ausübungspreis | E4: =Eingabeseite!C10 -> 0.9125
B5: Zinssatz | E5: =Eingabeseite!C8 -> -0.97 | F5: =E5/100 -> -0.0097
B6: Restlaufzeit (Tage/360) | E6: =Eingabeseite!C9 -> 224 | F6: =E6/360 -> 0.6222222222
B7: Abstufung (Tage) | E7: =Eingabeseite!F9 -> 1
B8: Barwert Ausübungspreis | F8: =E4*(EXP(F6*-F5)) -> 0.9180240982
B9: Volatilität Jahr | E9: =Eingabeseite!C11 -> 9.5 | F9: =E9*SQRT(E$6/360) -> 7.493701059
B10: Volatilität Jahr (0.5) | F10: =F9/2 -> 3.746850529
I12: Tabelle Theta
F14: Black & Scholes-Werte für d1 und NV (Delta) | L14: Black & Scholes-Werte für d2 und NV | Q14: Options- | R14: Options- | T14: Theta | U14: Theta
Q15: preis | R15: preis | T15: bei minus | U15: bei minus
E16: Devisenkurs | F16: STAW | G16: Devisenkurs | H16: Rendite | I16: NV-Werte | L16: STAW | M16: Devisenkurs | N16: Rendite | O16: NV-Werte | T16: =E7 -> 1 | U16: =E7 -> 1
F17: d1 | G17: mit | H17: stetig | I17: Verteilung | L17: d2 | M17: mit | N17: stetig | O17: Verteilung | T17: Tag/en | U17: Tag/en
G18: Option | H18: mit | I18: F(x) | M18: Option | N18: mit | O18: F(x)
H19: Option | I19: Call-Delta | J19: Put-Delta | N19: Option | O19: Delta | Q19: Call | R19: Put | T19: Call | U19: Put
E21: =E3 -> 0.912 | F21: =((LN(E$21/F$8))/(F$9/100))+(F$10/100) -> -0.05038729368 | G21: =F$8+((EXP(F21*(F$9/100))-1)*F$8) -> 0.9145642916 | H21: =(LN(G21/F$8))*100 -> -0.377587316 | I21: =NORMDIST(H21,0,F$9,1) -> 0.4799068808 | J21: =1-I21 -> 0.5200931192 | L21: =((LN(E$21/F$8))/(F$9/100))-(F$10/100) -> -0.1253243043 | M21: =F$8+((EXP(L21*(F$9/100))-1)*F$8) -> 0.9094428982 | N21: =(LN(M21/F$8))*100 -> -0.9391428716 | O21: =NORMDIST(N21,0,F$9,1) -> 0.4501334059 | Q21: =((I21*E21)-(O21*F$8))*100 -> 2.44417613 | R21: =Q21+((F$8-E21)*100) -> 3.046585948 | T21: =T22 -> -0.004971428253 | U21: =U22 -> -0.00744495986
B22: =E$6 -> 224 | D22: =E$4*(EXP(-$F$5*(B22/360))) -> 0.9180240982 | E22: =E$9*SQRT(B22/360) -> 7.493701059 | F22: =((LN(E$21/D22))/(E22/100))+((E22/100)/2) -> -0.05038729368 | G22: =D22+((EXP(F22*(E22/100))-1)*D22) -> 0.9145642916 | H22: =(LN(G22/D22))*100 -> -0.377587316 | I22: =NORMDIST(H22,0,E22,1) -> 0.4799068808 | J22: =1-I22 -> 0.5200931192 | L22: =((LN(E$21/D22))/(E22/100))-((E22/100)/2) -> -0.1253243043 | M22: =D22+((EXP(L22*(E22/100))-1)*D22) -> 0.9094428982 | N22: =(LN(M22/D22))*100 -> -0.9391428716 | O22: =NORMDIST(N22,0,E22,1) -> 0.4501334059 | Q22: =((I22*E$21)-(O22*D22))*100 -> 2.44417613 | R22: =Q22+((D22-E$21)*100) -> 3.046585948 | T22: =Q23-Q22 -> -0.004971428253 | U22: =R23-R22 -> -0.00744495986
B23: =B22-E$7 -> 223 | D23: =E$4*(EXP(-$F$5*(B23/360))) -> 0.9179993629 | E23: =E$9*SQRT(B23/360) -> 7.476955337 | F23: =((LN(E$21/D23))/(E23/100))+((E23/100)/2) -> -0.05030742152 | G23: =D23+((EXP(F23*(E23/100))-1)*D23) -> 0.9145528279 | H23: =(LN(G23/D23))*100 -> -0.3761463438 | I23: =NORMDIST(H23,0,E23,1) -> 0.4799387049 | J23: =1-I23 -> 0.5200612951 | L23: =((LN(E$21/D23))/(E23/100))-((E23/100)/2) -> -0.1250769749 | M23: =D23+((EXP(L23*(E23/100))-1)*D23) -> 0.9094542979 | N23: =(LN(M23/D23))*100 -> -0.9351949549 | O23: =NORMDIST(N23,0,E23,1) -> 0.4502313058 | Q23: =((I23*E$21)-(O23*D23))*100 -> 2.439204702 | R23: =Q23+((D23-E$21)*100) -> 3.039140988
B25: Restlauf- | D25: Barwert | E25: Volatilität
B26: zeit | E26: Jahr
B29: 360 | D29: =E$4*(EXP(-$F$5*(B29/360))) -> 0.9213943177 | E29: =E$9*SQRT(B29/360) -> 9.5 | F29: =((LN(E$21/D29))/(E29/100))+((E29/100)/2) -> -0.06037468823 | G29: =D29+((EXP(F29*(E29/100))-1)*D29) -> 0.9161246994 | H29: =(LN(G29/D29))*100 -> -0.5735595382 | I29: =NORMDIST(H29,0,E29,1) -> 0.4759286089 | J29: =1-I29 -> 0.5240713911 | L29: =((LN(E$21/D29))/(E29/100))-((E29/100)/2) -> -0.1553746882 | M29: =D29+((EXP(L29*(E29/100))-1)*D29) -> 0.9078938714 | N29: =(LN(M29/D29))*100 -> -1.476059538 | O29: =NORMDIST(N29,0,E29,1) -> 0.4382629688 | Q29: =((I29*E$21)-(O29*D29))*100 -> 3.023388214 | R29: =Q29+((D29-E$21)*100) -> 3.962819984 | T29: =Q30-Q29 -> -0.003707071347 | U29: =R30-R29 -> -0.006189683701
B30: 359 | D30: =E$4*(EXP(-$F$5*(B30/360))) -> 0.9213694916 | E30: 9.48679638 | F30: -0.06030682467 | G30: =D30+((EXP(F30*(E30/100))-1)*D30) -> 0.9161132161 | H30: -0.572118566 | I30: =NORMDIST(H30,0,E30,1) -> 0.4759556333 | J30: =1-I30 -> 0.5240443667 | L30: -0.1551747885 | M30: 0.9079052517 | N30: -1.472111622 | O30: 0.4383417617 | Q30: =((I30*E$21)-(O30*D30))*100 -> 3.019681143 | R30: =Q30+((D30-E$21)*100) -> 3.9566303 | T30: =Q31-Q30 -> -0.003713607817 | U30: =R31-R30 -> -0.00619615328
B31: 358 | D31: 0.9213446661 | E31: 9.473574358 | F31: -0.06023888896 | G31: 0.9161017329 | H31: -0.5706775938 | I31: 0.4759826865 | J31: =1-I31 -> 0.5240173135 | L31: -0.1549746325 | M31: 0.9079166321 | N31: -1.468163705 | O31: 0.438420658 | Q31: 3.015967535 | R31: 3.950434147 | T31: -0.003720172116 | U31: -0.006202650689
B32: 357 | D32: 0.9213198413 | E32: 9.460333856 | F32: -0.06017088088 | G32: 0.9160902499 | H32: -0.5692366216 | I32: 0.4760097687 | J32: =1-I32 -> 0.5239902313 | L32: -0.1547742194 | M32: 0.9079280127 | N32: -1.464215788 | O32: 0.4384996581 | Q32: 3.012247363 | R32: 3.944231496 | T32: -0.003726764439 | U32: -0.006209176123
B33: 356 | D33: 0.9212950172 | E33: 9.447074797 | F33: -0.06010280024 | G33: 0.916078767 | H33: -0.5677956493 | I33: 0.4760368799 | J33: 0.5239631201 | L33: -0.1545735482 | M33: 0.9079393934 | N33: -1.460267872 | O33: 0.4385787624 | Q33: 3.008520598 | R33: 3.93802232 | T33: -0.003733384983 | U33: -0.006215729781
B34: 355 | D34: 0.9212701938 | E34: 9.433797103 | F34: -0.06003464681 | G34: 0.9160672843 | H34: -0.5663546771 | I34: 0.4760640201 | J34: 0.5239359799 | L34: -0.1543726178 | M34: 0.9079507742 | N34: -1.456319955 | O34: 0.4386579713 | Q34: 3.004787213 | R34: 3.931806591 | T34: -0.003740033949 | U34: -0.006222311863
B35: 354 | D35: 0.921245371 | E35: 9.420500694 | F35: -0.05996642039 | G35: 0.9160558017 | H35: -0.5649137049 | I35: 0.4760911896 | J35: 0.5239088104 | L35: -0.1541714273 | M35: 0.9079621552 | N35: -1.452372038 | O35: 0.4387372852 | Q35: 3.001047179 | R35: 3.925584279 | T35: -0.003746711538 | U35: -0.006228922569
B36: 353 | D36: 0.9212205489 | E36: 9.407185492 | F36: -0.05989812076 | G36: 0.9160443193 | H36: -0.5634727327 | I36: 0.4761183883 | J36: 0.5238816117 | L36: -0.1539699757 | M36: 0.9079735363 | N36: -1.448424122 | O36: 0.4388167046 | Q36: 2.997300468 | R36: 3.919355356 | T36: -0.003753417953 | U36: -0.006235562103
B37: 352 | D37: 0.9211957274 | E37: 9.393851417 | F37: -0.05982974773 | G37: 0.916032837 | H37: -0.5620317605 | I37: 0.4761456164 | J37: 0.5238543836 | L37: -0.1537682619 | M37: 0.9079849176 | N37: -1.444476205 | O37: 0.4388962298 | Q37: 2.99354705 | R37: 3.913119794 | T37: -0.003760153401 | U37: -0.006242230672
B38: 351 | D38: 0.9211709067 | E38: 9.380498388 | F38: -0.05976130106 | G38: 0.9160213549 | H38: -0.5605907882 | I38: 0.4761728739 | J38: 0.5238271261 | L38: -0.1535662849 | M38: 0.907996299 | N38: -1.440528288 | O38: 0.4389758611 | Q38: 2.989786896 | R38: 3.906877563 | T38: -0.003766918088 | U38: -0.006248928482
B39: 350 | D39: 0.9211460866 | E39: 9.367126323 | F39: -0.05969278055 | G39: 0.9160098729 | H39: -0.559149816 | I39: 0.4762001609 | J39: 0.5237998391 | L39: -0.1533640438 | M39: 0.9080076805 | N39: -1.436580372 | O39: 0.4390555992 | Q39: 2.986019978 | R39: 3.900628635 | T39: -0.003773712225 | U39: -0.006255655743
B40: 349 | D40: 0.9211212671 | E40: 9.353735142 | F40: -0.05962418599 | G40: 0.915998391 | H40: -0.5577088438 | I40: 0.4762274775 | J40: 0.5237725225 | L40: -0.1531615374 | M40: 0.9080190622 | N40: -1.432632455 | O40: 0.4391354442 | Q40: 2.982246266 | R40: 3.894372979 | T40: -0.003780536024 | U40: -0.006262412668
B41: 348 | D41: 0.9210964484 | E41: 9.340324762 | F41: -0.05955551715 | G41: 0.9159869093 | H41: -0.5562678716 | I41: 0.4762548238 | J41: 0.5237451762 | L41: -0.1529587648 | M41: 0.9080304441 | N41: -1.428684538 | O41: 0.4392153967 | Q41: 2.97846573 | R41: 3.888110566 | T41: -0.003787389698 | U41: -0.00626919947
B42: 347 | D42: 0.9210716303 | E42: 9.326895101 | F42: -0.05948677382 | G42: 0.9159754277 | H42: -0.5548268993 | I42: 0.4762821999 | J42: 0.5237178001 | L42: -0.1527557248 | M42: 0.908041826 | N42: -1.424736622 | O42: 0.4392954572 | Q42: 2.97467834 | R42: 3.881841367 | T42: -0.003794273463 | U42: -0.006276016366
B43: 346 | D43: 0.9210468128 | E43: 9.313446074 | F43: -0.05941795579 | G43: 0.9159639463 | H43: -0.5533859271 | I43: 0.4763096058 | J43: 0.5236903942 | L43: -0.1525524165 | M43: 0.9080532082 | N43: -1.420788705 | O43: 0.4393756259 | Q43: 2.970884067 | R43: 3.875565351 | T43: -0.00380118754 | U43: -0.006282863574
B44: 345 | D44: 0.9210219961 | E44: 9.299977599 | F44: -0.05934906284 | G44: 0.915952465 | H44: -0.5519449549 | I44: 0.4763370417 | J44: 0.5236629583 | L44: -0.1523488388 | M44: 0.9080645904 | N44: -1.416840788 | O44: 0.4394559033 | Q44: 2.967082879 | R44: 3.869282487 | T44: -0.003808132146 | U44: -0.006289741314
B45: 344 | D45: 0.92099718 | E45: 9.286489589 | F45: -0.05928009474 | G45: 0.9159409839 | H45: -0.5505039827 | I45: 0.4763645077 | J45: 0.5236354923 | L45: -0.1521449906 | M45: 0.9080759728 | N45: -1.412892872 | O45: 0.4395362899 | Q45: 2.963274747 | R45: 3.862992746 | T45: -0.003815107506 | U45: -0.006296649809
B46: 343 | D46: 0.9209723646 | E46: 9.272981961 | F46: -0.05921105129 | G46: 0.9159295029 | H46: -0.5490630105 | I46: 0.4763920037 | J46: 0.5236079963 | L46: -0.1519408709 | M46: 0.9080873554 | N46: -1.408944955 | O46: 0.4396167861 | Q46: 2.95945964 | R46: 3.856696096 | T46: -0.003822113845 | U46: -0.006303589285
B47: 342 | D47: 0.9209475498 | E47: 9.259454628 | F47: -0.05914193225 | G47: 0.915918022 | H47: -0.5476220382 | I47: 0.47641953 | J47: 0.52358047 | L47: -0.1517364785 | M47: 0.9080987381 | N47: -1.404997038 | O47: 0.4396973923 | Q47: 2.955637526 | R47: 3.850392507 | T47: -0.00382915139 | U47: -0.006310559969
B48: 341 | D48: 0.9209227357 | E48: 9.245907503 | F48: -0.05907273741 | G48: 0.9159065413 | H48: -0.546181066 | I48: 0.4764470866 | J48: 0.5235529134 | L48: -0.1515318124 | M48: 0.9081101209 | N48: -1.401049122 | O48: 0.4397781089 | Q48: 2.951808374 | R48: 3.844081947 | T48: -0.003836220371 | U48: -0.006317562091
B49: 340 | D49: 0.9208979223 | E49: 9.2323405 | F49: -0.05900346654 | G49: 0.9158950608 | H49: -0.5447400938 | I49: 0.4764746735 | J49: 0.5235253265 | L49: -0.1513268715 | M49: 0.9081215039 | N49: -1.397101205 | O49: 0.4398589365 | Q49: 2.947972154 | R49: 3.837764385 | T49: -0.00384332102 | U49: -0.006324595882
B50: 339 | D50: 0.9208731096 | E50: 9.218753531 | F50: -0.05893411943 | G50: 0.9158835803 | H50: -0.5432991216 | I50: 0.4765022909 | J50: 0.5234977091 | L50: -0.1511216547 | M50: 0.908132887 | N50: -1.393153288 | O50: 0.4399398753 | Q50: 2.944128833 | R50: 3.831439789 | T50: -0.003850453571 | U50: -0.006331661578
B51: 338 | D51: 0.9208482975 | E51: 9.205146507 | F51: -0.05886469584 | G51: 0.9158721001 | H51: -0.5418581493 | I51: 0.476529939 | J51: 0.523470061 | L51: -0.1509161609 | M51: 0.9081442703 | N51: -1.389205372 | O51: 0.440020926 | Q51: 2.940278379 | R51: 3.825108127 | T51: -0.003857618262 | U51: -0.006338759415
B52: 337 | D52: 0.9208234861 | E52: 9.19151934 | F52: -0.05879519556 | G52: 0.9158606199 | H52: -0.5404171771 | I52: 0.4765576176 | J52: 0.5234423824 | L52: -0.150710389 | M52: 0.9081556537 | N52: -1.385257455 | O52: 0.4401020888 | Q52: 2.936420761 | R52: 3.818769368 | T52: -0.003864815332 | U52: -0.006345889633
B53: 336 | D53: 0.9207986753 | E53: 9.177871939 | F53: -0.05872561836 | G53: 0.91584914 | H53: -0.5389762049 | I53: 0.476585327 | J53: 0.523414673 | L53: -0.1505043378 | M53: 0.9081670372 | N53: -1.381309538 | O53: 0.4401833643 | Q53: 2.932555946 | R53: 3.812423478 | T53: -0.003872045023 | U53: -0.006353052474
B54: 335 | D54: 0.9207738652 | E54: 9.164204215 | F54: -0.05865596402 | G54: 0.9158376601 | H54: -0.5375352327 | I54: 0.4766130673 | J54: 0.5233869327 | L54: -0.1502980062 | M54: 0.9081784209 | N54: -1.377361622 | O54: 0.440264753 | Q54: 2.928683901 | R54: 3.806070426 | T54: -0.00387930758 | U54: -0.006360248182
B55: 334 | D55: 0.9207490558 | E55: 9.150516075 | F55: -0.0585862323 | G55: 0.9158261804 | H55: -0.5360942605 | I55: 0.4766408384 | J55: 0.5233591616 | L55: -0.1500913931 | M55: 0.9081898048 | N55: -1.373413705 | O55: 0.4403462552 | Q55: 2.924804593 | R55: 3.799710177 | T55: -0.003886603249 | U55: -0.006367477004
B56: 333 | D56: 0.9207242471 | E56: 9.136807429 | F56: -0.05851642298 | G56: 0.9158147009 | H56: -0.5346532882 | I56: 0.4766686406 | J56: 0.5233313594 | L56: -0.1498844973 | M56: 0.9082011888 | N56: -1.369465788 | O56: 0.4404278715 | Q56: 2.92091799 | R56: 3.7933427 | T56: -0.003893932279 | U56: -0.00637473919
B57: 332 | D57: 0.920699439 | E57: 9.123078184 | F57: -0.05844653583 | G57: 0.9158032215 | H57: -0.533212316 | I57: 0.4766964739 | J57: 0.5233035261 | L57: -0.1496773177 | M57: 0.9082125729 | N57: -1.365517872 | O57: 0.4405096022 | Q57: 2.917024058 | R57: 3.786967961 | T57: -0.003901294925 | U57: -0.006382034992
B58: 331 | D58: 0.9206746316 | E58: 9.109328247 | F58: -0.05837657063 | G58: 0.9157917422 | H58: -0.5317713438 | I58: 0.4767243384 | J58: 0.5232756616 | L58: -0.1494698531 | M58: 0.9082239571 | N58: -1.361569955 | O58: 0.4405914479 | Q58: 2.913122763 | R58: 3.780585926 | T58: -0.00390869144 | U58: -0.006389364666
B59: 330 | D59: 0.9206498249 | E59: 9.095557524 | F59: -0.05830652714 | G59: 0.9157802631 | H59: -0.5303303716 | I59: 0.4767522342 | J59: 0.5232477658 | L59: -0.1492621024 | M59: 0.9082353415 | N59: -1.357622038 | O59: 0.4406734091 | Q59: 2.909214071 | R59: 3.774196562 | T59: -0.003916122082 | U59: -0.006396728468
B60: 329 | D60: 0.9206250188 | E60: 9.08176592 | F60: -0.05823640512 | G60: 0.9157687841 | H60: -0.5288893993 | I60: 0.4767801614 | J60: 0.5232198386 | L60: -0.1490540643 | M60: 0.9082467261 | N60: -1.353674122 | O60: 0.4407554861 | Q60: 2.905297949 | R60: 3.767799833 | T60: -0.003923587111 | U60: -0.00640412666
B61: 328 | D61: 0.9206002134 | E61: 9.06795334 | F61: -0.05816620436 | G61: 0.9157573052 | H61: -0.5274484271 | I61: 0.4768081201 | J61: 0.5231918799 | L61: -0.1488457378 | M61: 0.9082581108 | N61: -1.349726205 | O61: 0.4408376795 | Q61: 2.901374362 | R61: 3.761395706 | T61: -0.003931086791 | U61: -0.006411559504
B62: 327 | D62: 0.9205754087 | E62: 9.054119688 | F62: -0.05809592462 | G62: 0.9157458266 | H62: -0.5260074549 | I62: 0.4768361103 | J62: 0.5231638897 | L62: -0.1486371215 | M62: 0.9082694956 | N62: -1.345778288 | O62: 0.4409199898 | Q62: 2.897443275 | R62: 3.754984147 | T62: -0.003938621387 | U62: -0.006419027266
B63: 326 | D63: 0.9205506047 | E63: 9.040264868 | F63: -0.05802556566 | G63: 0.915734348 | H63: -0.5245664827 | I63: 0.4768641322 | J63: 0.5231358678 | L63: -0.1484282143 | M63: 0.9082808806 | N63: -1.341830372 | O63: 0.4410024174 | Q63: 2.893504654 | R63: 3.74856512 | T63: -0.00394619117 | U63: -0.006426530216
B64: 325 | D64: 0.9205258013 | E64: 9.026388782 | F64: -0.05795512725 | G64: 0.9157228696 | H64: -0.5231255105 | I64: 0.4768921858 | J64: 0.5231078142 | L64: -0.1482190151 | M64: 0.9082922657 | N64: -1.337882455 | O64: 0.4410849629 | Q64: 2.889558463 | R64: 3.742138589 | T64: -0.003953796409 | U64: -0.006434068626
B65: 324 | D65: 0.9205009985 | E65: 9.012491331 | F65: -0.05788460915 | G65: 0.9157113913 | H65: -0.5216845382 | I65: 0.4769202713 | J65: 0.5230797287 | L65: -0.1480095225 | M65: 0.908303651 | N65: -1.333934538 | O65: 0.4411676266 | Q65: 2.885604666 | R65: 3.735704521 | T65: -0.003961437381 | U65: -0.006441642769
B66: 323 | D66: 0.9204761965 | E66: 8.998572418 | F66: -0.05781401114 | G66: 0.9156999132 | H66: -0.520243566 | I66: 0.4769483888 | J66: 0.5230516112 | L66: -0.1477997353 | M66: 0.9083150364 | N66: -1.329986622 | O66: 0.4412504091 | Q66: 2.881643229 | R66: 3.729262878 | T66: -0.003969114363 | U66: -0.006449252923
B67: 322 | D67: 0.9204513951 | E67: 8.984631941 | F67: -0.05774333297 | G67: 0.9156884353 | H67: -0.5188025938 | I67: 0.4769765383 | J67: 0.5230234617 | L67: -0.1475896524 | M67: 0.9083264219 | N67: -1.326038705 | O67: 0.4413333109 | Q67: 2.877674115 | R67: 3.722813625 | T67: -0.003976827635 | U67: -0.00645689937
B68: 321 | D68: 0.9204265944 | E68: 8.9706698 | F68: -0.05767257441 | G68: 0.9156769574 | H68: -0.5173616216 | I68: 0.4770047199 | J68: 0.5229952801 | L68: -0.1473792724 | M68: 0.9083378076 | N68: -1.322090788 | O68: 0.4414163325 | Q68: 2.873697287 | R68: 3.716356726 | T68: -0.003984577481 | U68: -0.006464582394
B69: 320 | D69: 0.9204017943 | E69: 8.956685895 | F69: -0.05760173522 | G69: 0.9156654797 | H69: -0.5159206493 | I69: 0.4770329337 | J69: 0.5229670663 | L69: -0.1471685942 | M69: 0.9083491935 | N69: -1.318142872 | O69: 0.4414994744 | Q69: 2.86971271 | R69: 3.709892143 | T69: -0.003992364189 | U69: -0.00647230228
B70: 319 | D70: 0.920376995 | E70: 8.942680123 | F70: -0.05753081515 | G70: 0.9156540022 | H70: -0.5144796771 | I70: 0.4770611799 | J70: 0.5229388201 | L70: -0.1469576164 | M70: 0.9083605794 | N70: -1.314194955 | O70: 0.4415827371 | Q70: 2.865720345 | R70: 3.703419841 | T70: -0.004000188049 | U70: -0.00648005932
B71: 318 | D71: 0.9203521962 | E71: 8.928652381 | F71: -0.05745981398 | G71: 0.9156425248 | H71: -0.5130387049 | I71: 0.4770894585 | J71: 0.5229105415 | L71: -0.1467463378 | M71: 0.9083719656 | N71: -1.310247038 | O71: 0.4416661211 | Q71: 2.861720157 | R71: 3.696939782 | T71: -0.004008049352 | U71: -0.006487853806
B72: 317 | D72: 0.9203273982 | E72: 8.914602565 | F72: -0.05738873146 | G72: 0.9156310476 | H72: -0.5115977327 | I72: 0.4771177696 | J72: 0.5228822304 | L72: -0.1465347571 | M72: 0.9083833518 | N72: -1.306299122 | O72: 0.4417496269 | Q72: 2.857712108 | R72: 3.690451928 | T72: -0.004015948398 | U72: -0.006495686035
B73: 316 | D73: 0.9203026008 | E73: 8.900530571 | F73: -0.05731756735 | G73: 0.9156195704 | H73: -0.5101567605 | I73: 0.4771461133 | J73: 0.5228538867 | L73: -0.1463228731 | M73: 0.9083947382 | N73: -1.302351205 | O73: 0.441833255 | Q73: 2.85369616 | R73: 3.683956242 | T73: -0.004023885484 | U73: -0.006503556307
B74: 315 | D74: 0.9202778041 | E74: 8.886436294 | F74: -0.05724632141 | G74: 0.9156080935 | H74: -0.5087157882 | I74: 0.4771744897 | J74: 0.5228255103 | L74: -0.1461106843 | M74: 0.9084061248 | N74: -1.298403288 | O74: 0.441917006 | Q74: 2.849672274 | R74: 3.677452686 | T74: -0.004031860914 | U74: -0.006511464925
B75: 314 | D75: 0.9202530081 | E75: 8.872319627 | F75: -0.05717499339 | G75: 0.9155966167 | H75: -0.507274816 | I75: 0.477202899 | J75: 0.522797101 | L75: -0.1458981897 | M75: 0.9084175115 | N75: -1.294455372 | O75: 0.4420008804 | Q75: 2.845640413 | R75: 3.670941221 | T75: -0.004039874995 | U75: -0.006519412195
B76: 313 | D76: 0.9202282127 | E76: 8.858180463 | F76: -0.05710358306 | G76: 0.91558514 | H76: -0.5058338438 | I76: 0.4772313411 | J76: 0.5227686589 | L76: -0.1456853877 | M76: 0.9084288983 | N76: -1.290507455 | O76: 0.4420848786 | Q76: 2.841600538 | R76: 3.664421808 | T76: -0.004047928037 | U76: -0.006527398428
B77: 312 | D77: 0.920203418 | E77: 8.844018694 | F77: -0.05703209016 | G77: 0.9155736634 | H77: -0.5043928716 | I77: 0.4772598162 | J77: 0.5227401838 | L77: -0.1454722771 | M77: 0.9084402853 | N77: -1.286559538 | O77: 0.4421690013 | Q77: 2.83755261 | R77: 3.65789441 | T77: -0.004056020353 | U77: -0.006535423937
B78: 311 | D78: 0.920178624 | E78: 8.829834213 | F78: -0.05696051446 | G78: 0.9155621871 | H78: -0.5029518993 | I78: 0.4772883245 | J78: 0.5227116755 | L78: -0.1452588566 | M78: 0.9084516724 | N78: -1.282611622 | O78: 0.4422532489 | Q78: 2.83349659 | R78: 3.651358986 | T78: -0.00406415226 | U78: -0.006543489039
B79: 310 | D79: 0.9201538306 | E79: 8.815626908 | F79: -0.05688885571 | G79: 0.9155507108 | H79: -0.5015109271 | I79: 0.4773168659 | J79: 0.5226831341 | L79: -0.1450451248 | M79: 0.9084630596 | N79: -1.278663705 | O79: 0.442337622 | Q79: 2.829432438 | R79: 3.644815497 | T79: -0.004072324079 | U79: -0.006551594054
B80: 309 | D80: 0.9201290379 | E80: 8.801396669 | F80: -0.05681711366 | G80: 0.9155392347 | H80: -0.5000699549 | I80: 0.4773454406 | J80: 0.5226545594 | L80: -0.1448310804 | M80: 0.908474447 | N80: -1.274715788 | O80: 0.4424221212 | Q80: 2.825360113 | R80: 3.638263903 | T80: -0.004080536133 | U80: -0.006559739307
B81: 308 | D81: 0.9201042459 | E81: 8.787143386 | F81: -0.05674528806 | G81: 0.9155277588 | H81: -0.4986289827 | I81: 0.4773740487 | J81: 0.5226259513 | L81: -0.1446167219 | M81: 0.9084858346 | N81: -1.270767872 | O81: 0.4425067469 | Q81: 2.821279577 | R81: 3.631704164 | T81: -0.004088788752 | U81: -0.006567925126
B82: 307 | D82: 0.9200794545 | E82: 8.772866946 | F82: -0.05667337867 | G82: 0.9155162829 | H82: -0.4971880105 | I82: 0.4774026903 | J82: 0.5225973097 | L82: -0.1444020481 | M82: 0.9084972223 | N82: -1.266819955 | O82: 0.4425914998 | Q82: 2.817190789 | R82: 3.625136239 | T82: -0.004097082266 | U82: -0.006576151842
B83: 306 | D83: 0.9200546638 | E83: 8.758567234 | F83: -0.05660138525 | G83: 0.9155048073 | H83: -0.4957470382 | I83: 0.4774313655 | J83: 0.5225686345 | L83: -0.1441870576 | M83: 0.9085086101 | N83: -1.262872038 | O83: 0.4426763803 | Q83: 2.813093706 | R83: 3.618560087 | T83: -0.004105417011 | U83: -0.006584419791
B84: 305 | D84: 0.9200298738 | E84: 8.744244139 | F84: -0.05652930753 | G84: 0.9154933317 | H84: -0.494306066 | I84: 0.4774600744 | J84: 0.5225399256 | L84: -0.1439717489 | M84: 0.9085199981 | N84: -1.258924122 | O84: 0.4427613891 | Q84: 2.808988289 | R84: 3.611975667 | T84: -0.004113793326 | U84: -0.006592729312
B85: 304 | D85: 0.9200050844 | E85: 8.729897543 | F85: -0.05645714527 | G85: 0.9154818564 | H85: -0.4928650938 | I85: 0.4774888171 | J85: 0.5225111829 | L85: -0.1437561207 | M85: 0.9085313862 | N85: -1.254976205 | O85: 0.4428465267 | Q85: 2.804874496 | R85: 3.605382938 | T85: -0.004122211555 | U85: -0.006601080748
B86: 303 | D86: 0.9199802957 | E86: 8.715527332 | F86: -0.05638489822 | G86: 0.9154703811 | H86: -0.4914241216 | I86: 0.4775175936 | J86: 0.5224824064 | L86: -0.1435401715 | M86: 0.9085427745 | N86: -1.251028288 | O86: 0.4429317937 | Q86: 2.800752284 | R86: 3.598781857 | T86: -0.004130672045 | U86: -0.006609474447
B87: 302 | D87: 0.9199555077 | E87: 8.701133387 | F87: -0.05631256614 | G87: 0.915458906 | H87: -0.4899831493 | I87: 0.4775464042 | J87: 0.5224535958 | L87: -0.1433239 | M87: 0.9085541629 | N87: -1.247080372 | O87: 0.4430171906 | Q87: 2.796621612 | R87: 3.592172382 | T87: -0.004139175147 | U87: -0.00661791076
B88: 301 | D88: 0.9199307203 | E88: 8.686715592 | F88: -0.05624014876 | G88: 0.9154474311 | H88: -0.4885421771 | I88: 0.4775752488 | J88: 0.5224247512 | L88: -0.1431073047 | M88: 0.9085655514 | N88: -1.243132455 | O88: 0.443102718 | Q88: 2.792482437 | R88: 3.585554472 | T88: -0.004147721216 | U88: -0.006626390041
B89: 300 | D89: 0.9199059337 | E89: 8.672273827 | F89: -0.05616764583 | G89: 0.9154359563 | H89: -0.4871012049 | I89: 0.4776041277 | J89: 0.5223958723 | L89: -0.1428903841 | M89: 0.9085769401 | N89: -1.239184538 | O89: 0.4431883765 | Q89: 2.788334716 | R89: 3.578928082 | T89: -0.004156310612 | U89: -0.006634912652
B90: 299 | D90: 0.9198811476 | E90: 8.657807973 | F90: -0.05609505711 | G90: 0.9154244816 | H90: -0.4856602327 | I90: 0.4776330408 | J90: 0.5223669592 | L90: -0.1426731368 | M90: 0.9085883289 | N90: -1.235236622 | O90: 0.4432741667 | Q90: 2.784178405 | R90: 3.572293169 | T90: -0.004164943698 | U90: -0.006643478955
B91: 298 | D91: 0.9198563623 | E91: 8.643317907 | F91: -0.05602238234 | G91: 0.9154130071 | H91: -0.4842192605 | I91: 0.4776619883 | J91: 0.5223380117 | L91: -0.1424555614 | M91: 0.9085997179 | N91: -1.231288705 | O91: 0.4433600891 | Q91: 2.780013462 | R91: 3.56564969 | T91: -0.004173620843 | U91: -0.006652089318
B92: 297 | D92: 0.9198315776 | E92: 8.628803509 | F92: -0.05594962126 | G92: 0.9154015327 | H92: -0.4827782882 | I92: 0.4776909703 | J92: 0.5223090297 | L92: -0.1422376563 | M92: 0.908611107 | N92: -1.227340788 | O92: 0.4434461443 | Q92: 2.775839841 | R92: 3.558997601 | T92: -0.004182342419 | U92: -0.006660744113
B93: 296 | D93: 0.9198067936 | E93: =E$9*SQRT(B93/360) -> 8.614264656 | F93: =((LN(E$21/D93))/(E93/100))+((E93/100)/2) -> -0.05587677361 | G93: 0.9153900585 | H93: =(LN(G93/D93))*100 -> -0.481337316 | I93: 0.4777199869 | J93: 0.5222800131 | L93: =((LN(E$21/D93))/(E93/100))-((E93/100)/2) -> -0.1420194202 | M93: =D93+((EXP(L93*(E93/100))-1)*D93) -> 0.9086224963 | N93: =(LN(M93/D93))*100 -> -1.223392872 | O93: =NORMDIST(N93,0,E93,1) -> 0.443532333 | Q93: 2.771657498 | R93: 3.552336857 | T93: -0.004191108803 | U93: -0.006669443719
B94: 295 | D94: =E$4*(EXP(-$F$5*(B94/360))) -> 0.9197820102 | E94: 8.599701222 | F94: -0.05580383916 | G94: =D94+((EXP(F94*(E94/100))-1)*D94) -> 0.9153785844 | H94: -0.4798963438 | I94: =NORMDIST(H94,0,E94,1) -> 0.4777490383 | J94: 0.5222509617 | L94: -0.1418008514 | M94: 0.9086338857 | N94: -1.219444955 | O94: 0.4436186558 | Q94: =((I94*E$21)-(O94*D94))*100 -> 2.76746639 | R94: =Q94+((D94-E$21)*100) -> 3.545667413 | T94: =Q95-Q94 -> -0.004199920375 | U94: =R95-R94 -> -0.006678188515
B95: 294 | D95: 0.9197572276 | E95: 8.585113084 | F95: -0.05573081762 | G95: 0.9153671104 | H95: -0.4784553716 | I95: 0.4777781244 | J95: 0.5222218756 | L95: -0.1415819485 | M95: 0.9086452752 | N95: -1.215497038 | O95: 0.4437051132 | Q95: 2.763266469 | R95: 3.538989224 | T95: -0.004208777522 | U95: -0.006686978887
B96: 293 | D96: 0.9197324455 | E96: 8.570500115 | F96: -0.05565770876 | G96: 0.9153556366 | H96: -0.4770143993 | I96: 0.4778072454 | J96: =1-I96 -> 0.5221927546 | L96: -0.1413627099 | M96: 0.9086566649 | N96: -1.211549122 | O96: 0.4437917058 | Q96: 2.759057692 | R96: 3.532302245 | T96: -0.004217680634 | U96: -0.006695815226
B97: 292 | D97: 0.9197076642 | E97: 8.555862188 | F97: -0.05558451231 | G97: 0.915344163 | H97: -0.4755734271 | I97: 0.4778364014 | J97: 0.5221635986 | L97: -0.1411431342 | M97: 0.9086680547 | N97: -1.207601205 | O97: 0.4438784343 | Q97: 2.754840011 | R97: 3.52560643 | T97: -0.004226630106 | U97: -0.006704697927
B98: 291 | D98: 0.9196828835 | E98: 8.541199174 | F98: -0.05551122802 | G98: 0.9153326895 | H98: -0.4741324549 | I98: 0.4778655925 | J98: 0.5221344075 | L98: -0.1409232198 | M98: 0.9086794447 | N98: -1.203653288 | O98: 0.4439652992 | Q98: 2.750613381 | R98: 3.518901732 | T98: -0.004235626338 | U98: -0.00671362739
B99: 290 | D99: 0.9196581035 | E99: 8.526510945 | F99: -0.05543785562 | G99: 0.9153212161 | H99: -0.4726914827 | I99: 0.4778948189 | J99: 0.5221051811 | L99: -0.1407029651 | M99: 0.9086908348 | N99: -1.199705372 | O99: 0.4440523013 | Q99: 2.746377755 | R99: 3.512188105 | T99: -0.004244669735 | U99: -0.006722604019
B100: 289 | D100: 0.9196333242 | E100: 8.511797369 | F100: -0.05536439486 | G100: 0.9153097429 | H100: -0.4712505105 | I100: 0.4779240805 | J100: 0.5220759195 | L100: -0.1404823685 | M100: 0.9087022251 | N100: -1.195757455 | O100: 0.4441394411 | Q100: 2.742133085 | R100: 3.505465501 | T100: -0.004253760706 | U100: -0.006731628224
B101: 288 | D101: 0.9196085455 | E101: 8.497058314 | F101: -0.05529084547 | G101: 0.9152982698 | H101: -0.4698095382 | I101: 0.4779533776 | J101: 0.5220466224 | L101: -0.1402614286 | M101: 0.9087136155 | N101: -1.191809538 | O101: 0.4442267193 | Q101: 2.737879324 | R101: 3.498733873 | T101: -0.004262899665 | U101: -0.00674070042
B102: 287 | D102: 0.9195837675 | E102: 8.482293649 | F102: -0.0552172072 | G102: 0.9152867969 | H102: -0.468368566 | I102: 0.4779827102 | J102: 0.5220172898 | L102: -0.1400401437 | M102: 0.908725006 | N102: -1.187861622 | O102: 0.4443141364 | Q102: 2.733616425 | R102: 3.491993172 | T102: -0.004272087033 | U102: -0.006749821026
B103: 286 | D103: 0.9195589901 | E103: 8.46750324 | F103: -0.05514347979 | G103: 0.9152753241 | H103: -0.4669275938 | I103: 0.4780120785 | J103: 0.5219879215 | L103: -0.1398185122 | M103: 0.9087363967 | N103: -1.183913705 | O103: 0.4444016932 | Q103: 2.729344337 | R103: 3.485243351 | T103: -0.004281323235 | U103: -0.006758990467
B104: 285 | D104: 0.9195342135 | E104: 8.45268695 | F104: -0.05506966298 | G104: 0.9152638514 | H104: -0.4654866216 | I104: 0.4780414824 | J104: 0.5219585176 | L104: -0.1395965325 | M104: 0.9087477876 | N104: -1.179965788 | O104: 0.4444893902 | Q104: 2.725063014 | R104: 3.478484361 | T104: -0.004290608699 | U104: -0.006768209173
B105: 284 | D105: 0.9195094375 | E105: 8.437844643 | F105: -0.0549957565 | G105: 0.9152523789 | H105: -0.4640456493 | I105: 0.4780709223 | J105: 0.5219290777 | L105: -0.1393742029 | M105: 0.9087591785 | N105: -1.176017872 | O105: 0.4445772282 | Q105: 2.720772406 | R105: 3.471716152 | T105: -0.004299943863 | U105: -0.00677747758
B106: 283 | D106: 0.9194846621 | E106: 8.422976183 | F106: -0.05492176009 | G106: 0.9152409065 | H106: -0.4626046771 | I106: 0.478100398 | J106: 0.521899602 | L106: -0.1391515219 | M106: 0.9087705696 | N106: -1.172069955 | O106: 0.4446652078 | Q106: 2.716472462 | R106: 3.464938674 | T106: -0.004309329165 | U106: -0.006786796128
B107: 282 | D107: 0.9194598875 | E107: 8.40808143 | F107: -0.05484767348 | G107: 0.9152294343 | H107: -0.4611637049 | I107: 0.4781299098 | J107: 0.5218700902 | L107: -0.1389284878 | M107: 0.9087819609 | N107: -1.168122038 | O107: 0.4447533296 | Q107: 2.712163133 | R107: 3.458151878 | T107: -0.004318765053 | U107: -0.006796165263
B108: 281 | D108: 0.9194351135 | E108: 8.393160244 | F108: -0.05477349643 | G108: 0.9152179623 | H108: -0.4597227327 | I108: 0.4781594577 | J108: 0.5218405423 | L108: -0.1387050989 | M108: 0.9087933523 | N108: -1.164174122 | O108: 0.4448415944 | Q108: 2.707844367 | R108: 3.451355713 | T108: -0.004328251979 | U108: -0.006805585437
B109: 280 | D109: 0.9194103401 | E109: 8.378212485 | F109: -0.05469922866 | G109: 0.9152064903 | H109: -0.4582817605 | I109: 0.4781890419 | J109: 0.5218109581 | L109: -0.1384813535 | M109: 0.9088047438 | N109: -1.160226205 | O109: 0.4449300027 | Q109: 2.703516115 | R109: 3.444550127 | T109: -0.004337790399 | U109: -0.006815057108
B110: 279 | D110: 0.9193855674 | E110: 8.363238009 | F110: -0.0546248699 | G110: 0.9151950185 | H110: -0.4568407882 | I110: 0.4782186625 | J110: 0.5217813375 | L110: -0.13825725 | M110: 0.9088161355 | N110: -1.156278288 | O110: 0.4450185553 | Q110: 2.699178325 | R110: 3.43773507 | T110: -0.004347380777 | U110: -0.006824580738
B111: 278 | D111: 0.9193607955 | E111: 8.348236673 | F111: -0.05455041991 | G111: 0.9151835469 | H111: -0.455399816 | I111: 0.4782483195 | J111: 0.5217516805 | L111: -0.1380327866 | M111: 0.9088275274 | N111: -1.152330372 | O111: 0.4451072528 | Q111: 2.694830944 | R111: 3.430910489 | T111: -0.004357023583 | U111: -0.006834156798
B112: 277 | D112: 0.9193360241 | E112: 8.333208332 | F112: -0.0544758784 | G112: 0.9151720754 | H112: -0.4539588438 | I112: 0.4782780131 | J112: 0.5217219869 | L112: -0.1378079617 | M112: 0.9088389193 | N112: -1.148382455 | O112: 0.4451960959 | Q112: 2.690473921 | R112: 3.424076333 | T112: -0.00436671929 | U112: -0.006843785761
B113: 276 | D113: 0.9193112535 | E113: 8.31815284 | F113: -0.05440124512 | G113: 0.915160604 | H113: -0.4525178716 | I113: 0.4783077434 | J113: 0.5216922566 | L113: -0.1375827735 | M113: 0.9088503114 | N113: -1.144434538 | O113: 0.4452850854 | Q113: 2.686107201 | R113: 3.417232547 | T113: -0.00437646838 | U113: -0.006853468109
B114: 275 | D114: 0.9192864835 | E114: 8.303070048 | F114: -0.0543265198 | G114: 0.9151491328 | H114: -0.4510768993 | I114: 0.4783375105 | J114: 0.5216624895 | L114: -0.1373572203 | M114: 0.9088617037 | N114: -1.140486622 | O114: 0.4453742219 | Q114: 2.681730733 | R114: 3.410379079 | T114: -0.00438627134 | U114: -0.006863204329
B115: 274 | D115: 0.9192617141 | E115: 8.287959808 | F115: -0.05425170217 | G115: 0.9151376618 | H115: -0.4496359271 | I115: 0.4783673145 | J115: 0.5216326855 | L115: -0.1371313003 | M115: 0.9088730961 | N115: -1.136538705 | O115: 0.4454635061 | Q115: 2.677344462 | R115: 3.403515874 | T115: -0.004396128664 | U115: -0.006872994914
B116: 273 | D116: 0.9192369455 | E116: 8.272821969 | F116: -0.05417679198 | G116: 0.9151261908 | H116: -0.4481949549 | I116: 0.4783971554 | J116: 0.5216028446 | L116: -0.1369050117 | M116: 0.9088844886 | N116: -1.132590788 | O116: 0.4455529387 | Q116: 2.672948333 | R116: 3.396642879 | T116: -0.004406040852 | U116: -0.006882840364
B117: 272 | D117: 0.9192121775 | E117: 8.25765638 | F117: -0.05410178895 | G117: 0.91511472 | H117: -0.4467539827 | I117: 0.4784270335 | J117: 0.5215729665 | L117: -0.1366783527 | M117: 0.9088958813 | N117: -1.128642872 | O117: 0.4456425205 | Q117: 2.668542292 | R117: 3.389760039 | T117: -0.004416008408 | U117: -0.006892741186
B118: 271 | D118: 0.9191874101 | E118: 8.242462887 | F118: -0.05402669282 | G118: 0.9151032494 | H118: -0.4453130105 | I118: 0.4784569488 | J118: 0.5215430512 | L118: -0.1364513217 | M118: 0.9089072742 | N118: -1.124694955 | O118: 0.4457322521 | Q118: 2.664126284 | R118: 3.382867298 | T118: -0.004426031847 | U118: -0.006902697891
B119: 270 | D119: 0.9191626435 | E119: 8.227241336 | F119: -0.05395150332 | G119: 0.9150917789 | H119: -0.4438720382 | I119: 0.4784869013 | J119: 0.5215130987 | L119: -0.1362239167 | M119: 0.9089186671 | N119: -1.120747038 | O119: 0.4458221343 | Q119: 2.659700252 | R119: 3.3759646 | T119: -0.004436111687 | U119: -0.006912711
B120: 269 | D120: 0.9191378775 | E120: 8.211991571 | F120: -0.05387622018 | G120: 0.9150803086 | H120: -0.442431066 | I120: 0.4785168913 | J120: 0.5214831087 | L120: -0.1359961359 | M120: 0.9089300602 | N120: -1.116799122 | O120: 0.4459121678 | Q120: 2.65526414 | R120: 3.369051889 | T120: -0.004446248455 | U120: -0.006922781038
B121: 268 | D121: 0.9191131122 | E121: 8.196713434 | F121: -0.05380084315 | G121: 0.9150688384 | H121: -0.4409900938 | I121: 0.4785469189 | J121: 0.5214530811 | L121: -0.1357679775 | M121: 0.9089414535 | N121: -1.112851205 | O121: 0.4460023534 | Q121: 2.650817892 | R121: 3.362129108 | T121: -0.004456442684 | U121: -0.006932908539
B122: 267 | D122: 0.9190883475 | E122: 8.181406766 | F122: -0.05372537195 | G122: 0.9150573683 | H122: -0.4395491216 | I122: 0.478576984 | J122: 0.521423016 | L122: -0.1355394396 | M122: 0.9089528469 | N122: -1.108903288 | O122: 0.4460926918 | Q122: 2.646361449 | R122: 3.355196199 | T122: -0.004466694913 | U122: -0.006943094042
B123: 266 | D123: 0.9190635835 | E123: 8.166071407 | F123: -0.05364980632 | G123: 0.9150458984 | H123: -0.4381081493 | I123: 0.478607087 | J123: 0.521392913 | L123: -0.1353105204 | M123: 0.9089642404 | N123: -1.104955372 | O123: 0.4461831838 | Q123: 2.641894754 | R123: 3.348253105 | T123: -0.00447700569 | U123: -0.006953338095
B124: 265 | D124: 0.9190388202 | E124: 8.150707195 | F124: -0.05357414598 | G124: 0.9150344286 | H124: -0.4366671771 | I124: 0.4786372277 | J124: 0.5213627723 | L124: -0.1350812179 | M124: 0.9089756341 | N124: -1.101007455 | O124: 0.44627383 | Q124: 2.637417749 | R124: 3.341299767 | T124: -0.00448737557 | U124: -0.006963641252
B125: 264 | D125: 0.9190140575 | E125: 8.135313966 | F125: -0.05349839068 | G125: 0.915022959 | H125: -0.4352262049 | I125: 0.4786674064 | J125: 0.5213325936 | L125: -0.1348515303 | M125: 0.908987028 | N125: -1.097059538 | O125: 0.4463646313 | Q125: 2.632930373 | R125: 3.334336126 | T125: -0.004497805114 | U125: -0.006974004075
B126: 263 | D126: 0.9189892955 | E126: 8.119891556 | F126: -0.05342254015 | G126: 0.9150114895 | H126: -0.4337852327 | I126: 0.4786976232 | J126: 0.5213023768 | L126: -0.1346214557 | M126: 0.9089984219 | N126: -1.093111622 | O126: 0.4464555884 | Q126: 2.628432568 | R126: 3.327362122 | T126: -0.00450829489 | U126: -0.006984427133
B127: 262 | D127: 0.9189645342 | E127: 8.104439798 | F127: -0.05334659412 | G127: 0.9150000201 | H127: -0.4323442605 | I127: 0.4787278781 | J127: 0.5212721219 | L127: -0.1343909921 | M127: 0.909009816 | N127: -1.089163705 | O127: 0.4465467021 | Q127: 2.623924273 | R127: 3.320377695 | T127: -0.004518845478 | U127: -0.006994911003
B128: 261 | D128: 0.9189397736 | E128: 8.088958524 | F128: -0.05327055232 | G128: 0.914988551 | H128: -0.4309032882 | I128: 0.4787581714 | J128: 0.5212418286 | L128: -0.1341601376 | M128: 0.9090212103 | N128: -1.085215788 | O128: 0.4466379733 | Q128: 2.619405427 | R128: 3.313382784 | T128: -0.00452945746 | U128: -0.00700545627
B129: 260 | D129: 0.9189150136 | E129: 8.073447563 | F129: -0.05319441449 | G129: 0.9149770819 | H129: -0.429462316 | I129: 0.478788503 | J129: 0.521211497 | L129: -0.1339288901 | M129: 0.9090326047 | N129: -1.081267872 | O129: 0.4467294025 | Q129: 2.61487597 | R129: 3.306377328 | T129: -0.004540131429 | U129: -0.007016063526
B130: 259 | D130: 0.9188902543 | E130: 8.057906745 | F130: -0.05311818036 | G130: 0.914965613 | H130: -0.4280213438 | I130: 0.478818873 | J130: 0.521181127 | L130: -0.1336972478 | M130: 0.9090439992 | N130: -1.077319955 | O130: 0.4468209908 | Q130: 2.610335839 | R130: 3.299361264 | T130: -0.004550867987 | U130: -0.007026733372
B131: 258 | D131: 0.9188654956 | E131: 8.042335896 | F131: -0.05304184967 | G131: 0.9149541442 | H131: -0.4265803716 | I131: 0.4788492817 | J131: 0.5211507183 | L131: -0.1334652086 | M131: 0.9090553939 | N131: -1.073372038 | O131: 0.4469127388 | Q131: 2.605784971 | R131: 3.292334531 | T131: -0.00456166774 | U131: -0.007037466416
B132: 257 | D132: 0.9188407376 | E132: 8.026734842 | F132: -0.05296542214 | G132: 0.9149426756 | H132: -0.4251393993 | I132: 0.4788797291 | J132: 0.5211202709 | L132: -0.1332327706 | M132: 0.9090667888 | N132: -1.069424122 | O132: 0.4470046474 | Q132: 2.601223303 | R132: 3.285297064 | T132: -0.004572531308 | U132: -0.007048263275
B133: 256 | D133: 0.9188159803 | E133: 8.011103406 | F133: -0.05288889753 | G133: 0.9149312071 | H133: -0.4236984271 | I133: 0.4789102153 | J133: 0.5210897847 | L133: -0.1329999316 | M133: 0.9090781837 | N133: -1.065476205 | O133: 0.4470967173 | Q133: 2.596650772 | R133: 3.278248801 | T133: -0.004583459315 | U133: -0.007059124576
B134: 255 | D134: 0.9187912236 | E134: 7.99544141 | F134: -0.05281227555 | G134: 0.9149197388 | H134: -0.4222574549 | I134: 0.4789407403 | J134: 0.5210592597 | L134: -0.1327666896 | M134: 0.9090895788 | N134: -1.061528288 | O134: 0.4471889495 | Q134: 2.592067312 | R134: 3.271189676 | T134: -0.004594452395 | U134: -0.007070050951
B135: 254 | D135: 0.9187664677 | E135: 7.979748673 | F135: -0.05273555596 | G135: 0.9149082706 | H135: -0.4208164827 | I135: 0.4789713044 | J135: 0.5210286956 | L135: -0.1325330427 | M135: 0.9091009741 | N135: -1.057580372 | O135: 0.4472813446 | Q135: 2.58747286 | R135: 3.264119625 | T135: -0.004605511191 | U135: -0.007081043044
B136: 253 | D136: 0.9187417123 | E136: 7.964025015 | F136: -0.05265873847 | G136: 0.9148968025 | H136: -0.4193755105 | I136: 0.4790019077 | J136: 0.5209980923 | L136: -0.1322989886 | M136: 0.9091123695 | N136: -1.053632455 | O136: 0.4473739037 | Q136: 2.582867349 | R136: 3.257038582 | T136: -0.004616636354 | U136: -0.007092101507
B137: 252 | D137: 0.9187169577 | E137: 7.948270252 | F137: -0.05258182283 | G137: 0.9148853346 | H137: -0.4179345382 | I137: 0.4790325501 | J137: 0.5209674499 | L137: -0.1320645254 | M137: 0.909123765 | N137: -1.049684538 | O137: 0.4474666274 | Q137: 2.578250712 | R137: 3.249946481 | T137: -0.004627828547 | U137: -0.007103227
B138: 251 | D138: 0.9186922037 | E138: 7.932484198 | F138: -0.05250480878 | G138: 0.9148738669 | H138: -0.416493566 | I138: 0.4790632319 | J138: 0.5209367681 | L138: -0.1318296508 | M138: 0.9091351607 | N138: -1.045736622 | O138: 0.4475595167 | Q138: 2.573622884 | R138: 3.242843254 | T138: -0.004639088438 | U138: -0.007114420194
B139: 250 | D139: 0.9186674504 | E139: 7.916666667 | F139: -0.05242769606 | G139: 0.9148623992 | H139: -0.4150525938 | I139: 0.4790939531 | J139: 0.5209060469 | L139: -0.1315943627 | M139: 0.9091465566 | N139: -1.041788705 | O139: 0.4476525723 | Q139: 2.568983795 | R139: 3.235728834 | T139: -0.004650416706 | U139: -0.007125681767
B140: 249 | D140: 0.9186426977 | E140: 7.900817468 | F140: -0.05235048439 | G140: 0.9148509318 | H140: -0.4136116216 | I140: 0.4791247139 | J140: 0.5208752861 | L140: -0.1313586591 | M140: 0.9091579525 | N140: -1.037840788 | O140: 0.4477457953 | Q140: 2.564333379 | R140: 3.228603152 | T140: -0.004661814042 | U140: -0.007137012409
B141: 248 | D141: 0.9186179457 | E141: 7.884936412 | F141: -0.05227317353 | G141: 0.9148394644 | H141: -0.4121706493 | I141: 0.4791555143 | J141: 0.5208444857 | L141: -0.1311225377 | M141: 0.9091693486 | N141: -1.033892872 | O141: 0.4478391863 | Q141: 2.559671565 | R141: 3.221466139 | T141: -0.004673281144 | U141: -0.007148412819
B142: 247 | D142: 0.9185931944 | E142: 7.869023305 | F142: -0.05219576321 | G142: 0.9148279973 | H142: -0.4107296771 | I142: 0.4791863544 | J142: 0.5208136456 | L142: -0.1308859963 | M142: 0.9091807449 | N142: -1.029944955 | O142: 0.4479327464 | Q142: 2.554998283 | R142: 3.214317727 | T142: -0.004684818721 | U142: -0.007159883705
B143: 246 | D143: 0.9185684438 | E143: 7.853077953 | F143: -0.05211825317 | G143: 0.9148165302 | H143: -0.4092887049 | I143: 0.4792172344 | J143: 0.5207827656 | L143: -0.1306490327 | M143: 0.9091921413 | N143: -1.025997038 | O143: 0.4480264763 | Q143: 2.550313465 | R143: 3.207157843 | T143: -0.00469642749 | U143: -0.007171425786
B144: 245 | D144: 0.9185436938 | E144: 7.837100158 | F144: -0.05204064315 | G144: 0.9148050633 | H144: -0.4078477327 | I144: 0.4792481544 | J144: 0.5207518456 | L144: -0.1304116447 | M144: 0.9092035378 | N144: -1.022049122 | O144: 0.4481203771 | Q144: 2.545617037 | R144: 3.199986417 | T144: -0.004708108182 | U144: -0.007183039792
B145: 244 | D145: 0.9185189445 | E145: 7.821089722 | F145: -0.0519629329 | G145: 0.9147935966 | H145: -0.4064067605 | I145: 0.4792791144 | J145: 0.5207208856 | L145: -0.1301738301 | M145: 0.9092149345 | N145: -1.018101205 | O145: 0.4482144495 | Q145: 2.540908929 | R145: 3.192803377 | T145: -0.004719861536 | U145: -0.007194726461
B146: 243 | D146: 0.9184941958 | E146: 7.805046444 | F146: -0.05188512216 | G146: 0.9147821299 | H146: -0.4049657882 | I146: 0.4793101146 | J146: 0.5206898854 | L146: -0.1299355866 | M146: 0.9092263314 | N146: -1.014153288 | O146: 0.4483086945 | Q146: 2.536189067 | R146: 3.185608651 | T146: -0.004731688302 | U146: -0.007206486544
B147: 242 | D147: 0.9184694479 | E147: 7.788970122 | F147: -0.05180721067 | G147: 0.9147706635 | H147: -0.403524816 | I147: 0.479341155 | J147: 0.520658845 | L147: -0.1296969119 | M147: 0.9092377283 | N147: -1.010205372 | O147: 0.4484031129 | Q147: 2.531457379 | R147: 3.178402164 | T147: -0.004743589242 | U147: -0.007218320803
B148: 241 | D148: 0.9184447005 | E148: 7.772860549 | F148: -0.05172919818 | G148: 0.9147591972 | H148: -0.4020838438 | I148: 0.4793722358 | J148: 0.5206277642 | L148: -0.1294578037 | M148: 0.9092491254 | N148: -1.006257455 | O148: 0.4484977059 | Q148: 2.52671379 | R148: 3.171183844 | T148: -0.004755565127 | U148: -0.007230230008
B149: 240 | D149: 0.9184199539 | E149: 7.756717519 | F149: -0.05165108444 | G149: 0.914747731 | H149: -0.4006428716 | I149: 0.4794033571 | J149: 0.5205966429 | L149: -0.1292182596 | M149: 0.9092605227 | N149: -1.002309538 | O149: 0.4485924741 | Q149: 2.521958225 | R149: 3.163953614 | T149: -0.004767616741 | U149: -0.007242214945
B150: 239 | D150: 0.9183952079 | E150: 7.740540822 | F150: -0.0515728692 | G150: 0.9147362649 | H150: -0.3992018993 | I150: 0.4794345189 | J150: 0.5205654811 | L150: -0.1289782774 | M150: 0.9092719201 | N150: -0.9983616216 | O150: 0.4486874187 | Q150: 2.517190608 | R150: 3.156711399 | T150: -0.004779744879 | U150: -0.007254276407
B151: 238 | D151: 0.9183704626 | E151: 7.724330248 | F151: -0.0514945522 | G151: 0.914724799 | H151: -0.3977609271 | I151: 0.4794657214 | J151: 0.5205342786 | L151: -0.1287378547 | M151: 0.9092833176 | N151: -0.9944137049 | O151: 0.4487825405 | Q151: 2.512410863 | R151: 3.149457122 | T151: -0.004791950347 | U151: -0.007266415201
B152: 237 | D152: 0.9183457179 | E152: 7.708085582 | F152: -0.05141613319 | G152: 0.9147133333 | H152: -0.3963199549 | I152: 0.4794969647 | J152: 0.5205030353 | L152: -0.128496989 | M152: 0.9092947153 | N152: -0.9904657882 | O152: 0.4488778404 | Q152: 2.507618913 | R152: 3.142190707 | T152: -0.004804233965 | U152: -0.007278632147
B153: 236 | D153: 0.918320974 | E153: 7.691806608 | F153: -0.05133761193 | G153: 0.9147018677 | H153: -0.3948789827 | I153: 0.4795282488 | J153: 0.5204717512 | L153: -0.128255678 | M153: 0.9093061132 | N153: -0.9865178716 | O153: 0.4489733196 | Q153: 2.502814679 | R153: 3.134912075 | T153: -0.004816596562 | U153: -0.007290928074
B154: 235 | D154: 0.9182962306 | E154: 7.675493108 | F154: -0.05125898818 | G154: 0.9146904022 | H154: -0.3934380105 | I154: 0.4795595739 | J154: 0.5204404261 | L154: -0.1280139193 | M154: 0.9093175111 | N154: -0.9825699549 | O154: 0.4490689789 | Q154: 2.497998082 | R154: 3.127621147 | T154: -0.004829038983 | U154: -0.007303303826
B155: 234 | D155: 0.918271488 | E155: 7.659144861 | F155: -0.05118026168 | G155: 0.9146789369 | H155: -0.3919970382 | I155: 0.4795909401 | J155: 0.5204090599 | L155: -0.1277717103 | M155: 0.9093289092 | N155: -0.9786220382 | O155: 0.4491648192 | Q155: 2.493169043 | R155: 3.120317843 | T155: -0.004841562083 | U155: -0.007315760259
B156: 233 | D156: 0.918246746 | E156: 7.642761645 | F156: -0.0511014322 | G156: 0.9146674717 | H156: -0.390556066 | I156: 0.4796223474 | J156: 0.5203776526 | L156: -0.1275290486 | M156: 0.9093403075 | N156: -0.9746741216 | O156: 0.4492608417 | Q156: 2.488327481 | R156: 3.113002083 | T156: -0.004854166731 | U156: -0.007328298242
B157: 232 | D157: 0.9182220047 | E157: =E$9*SQRT(B157/360) -> 7.626343233 | F157: =((LN(E$21/D157))/(E157/100))+((E157/100)/2) -> -0.0510224995 | G157: 0.9146560067 | H157: =(LN(G157/D157))*100 -> -0.3891150938 | I157: 0.4796537959 | J157: 0.5203462041 | L157: =((LN(E$21/D157))/(E157/100))-((E157/100)/2) -> -0.1272859318 | M157: =D157+((EXP(L157*(E157/100))-1)*D157) -> 0.9093517059 | N157: =(LN(M157/D157))*100 -> -0.9707262049 | O157: =NORMDIST(N157,0,E157,1) -> 0.4493570473 | Q157: 2.483473315 | R157: 3.105673784 | T157: -0.004866853808 | U157: -0.007340918656
B158: 231 | D158: =E$4*(EXP(-$F$5*(B158/360))) -> 0.9181972641 | E158: 7.609889399 | F158: -0.05094346333 | G158: =D158+((EXP(F158*(E158/100))-1)*D158) -> 0.9146445418 | H158: -0.3876741216 | I158: =NORMDIST(H158,0,E158,1) -> 0.4796852859 | J158: 0.5203147141 | L158: -0.1270423573 | M158: 0.9093631044 | N158: -0.9667782882 | O158: 0.4494534369 | Q158: =((I158*E$21)-(O158*D158))*100 -> 2.478606461 | R158: =Q158+((D158-E$21)*100) -> 3.098332866 | T158: =Q159-Q158 -> -0.00487962421 | U158: =R159-R158 -> -0.007353622396
B159: 230 | D159: 0.9181725241 | E159: 7.593399912 | F159: -0.05086432347 | G159: 0.9146330771 | H159: -0.3862331493 | I159: 0.4797168172 | J159: 0.5202831828 | L159: -0.1267983226 | M159: 0.9093745031 | N159: -0.9628303716 | O159: 0.4495500117 | Q159: 2.473726837 | R159: 3.090979243 | T159: -0.004892478845 | U159: -0.007366410372
B160: 229 | D160: 0.9181477848 | E160: 7.576874539 | F160: -0.05078507967 | G160: 0.9146216125 | H160: -0.3847921771 | I160: 0.4797483901 | J160: =1-I160 -> 0.5202516099 | L160: -0.1265538251 | M160: 0.9093859019 | N160: -0.9588824549 | O160: 0.4496467726 | Q160: 2.468834358 | R160: 3.083612833 | T160: -0.004905418637 | U160: -0.007379283507
B161: 228 | D161: 0.9181230461 | E161: 7.560313045 | F161: -0.05070573171 | G161: 0.914610148 | H161: -0.3833512049 | I161: 0.4797800046 | J161: 0.5202199954 | L161: -0.1263088622 | M161: 0.9093973009 | N161: -0.9549345382 | O161: 0.4497437207 | Q161: 2.463928939 | R161: 3.07623355 | T161: -0.004918444523 | U161: -0.007392242736
B162: 227 | D162: 0.9180983081 | E162: 7.543715191 | F162: -0.05062627936 | G162: 0.9145986837 | H162: -0.3819102327 | I162: 0.4798116609 | J162: 0.5201883391 | L162: -0.1260634313 | M162: 0.9094087 | N162: -0.9509866216 | O162: 0.4498408571 | Q162: 2.459010495 | R162: 3.068841307 | T162: -0.004931557454 | U162: -0.007405289013
B163: 226 | D163: 0.9180735708 | E163: 7.527080739 | F163: -0.05054672238 | G163: 0.9145872195 | H163: -0.3804692605 | I163: 0.4798433589 | J163: 0.5201566411 | L163: -0.1258175298 | M163: 0.9094200993 | N163: -0.9470387049 | O163: 0.4499381826 | Q163: 2.454078937 | R163: 3.061436018 | T163: -0.004944758395 | U163: -0.007418423302
B164: 225 | D164: 0.9180488342 | E164: 7.510409443 | F164: -0.05046706057 | G164: 0.9145757555 | H164: -0.3790282882 | I164: 0.4798750989 | J164: 0.5201249011 | L164: -0.125571155 | M164: 0.9094314987 | N164: -0.9430907882 | O164: 0.4500356986 | Q164: 2.449134179 | R164: 3.054017594 | T164: -0.00495804833 | U164: -0.007431646586
B165: 224 | D165: 0.9180240982 | E165: 7.493701059 | F165: -0.05038729368 | G165: 0.9145642916 | H165: -0.377587316 | I165: 0.4799068808 | J165: 0.5200931192 | L165: -0.1253243043 | M165: 0.9094428982 | N165: -0.9391428716 | O165: 0.4501334059 | Q165: 2.44417613 | R165: 3.046585948 | T165: -0.004971428253 | U165: -0.00744495986
B166: 223 | D166: 0.9179993629 | E166: 7.476955337 | F166: -0.05030742152 | G166: 0.9145528279 | H166: -0.3761463438 | I166: 0.4799387049 | J166: 0.5200612951 | L166: -0.1250769749 | M166: 0.9094542979 | N166: -0.9351949549 | O166: 0.4502313058 | Q166: 2.439204702 | R166: 3.039140988 | T166: -0.004984899178 | U166: -0.007458364138
B167: 222 | D167: 0.9179746282 | E167: 7.460172027 | F167: -0.05022744385 | G167: 0.9145413643 | H167: -0.3747053716 | I167: 0.4799705711 | J167: 0.5200294289 | L167: -0.1248291641 | M167: 0.9094656977 | N167: -0.9312470382 | O167: 0.4503293992 | Q167: 2.434219803 | R167: 3.031682624 | T167: -0.004998462133 | U167: -0.007471860448
B168: 221 | D168: 0.9179498942 | E168: 7.443350873 | F168: -0.05014736047 | G168: 0.9145299008 | H168: -0.3732643993 | I168: 0.4800024795 | J168: 0.5199975205 | L168: -0.1245808692 | M168: 0.9094770977 | N168: -0.9272991216 | O168: 0.4504276873 | Q168: 2.429221341 | R168: 3.024210763 | T168: -0.005012118163 | U168: -0.007485449834
B169: 220 | D169: 0.9179251609 | E169: 7.42649162 | F169: -0.05006717117 | G169: 0.9145184375 | H169: -0.3718234271 | I169: 0.4800344303 | J169: 0.5199655697 | L169: -0.1243320874 | M169: 0.9094884978 | N169: -0.9233512049 | O169: 0.4505261712 | Q169: 2.424209223 | R169: 3.016725314 | T169: -0.005025868328 | U169: -0.007499133358
B170: 219 | D170: 0.9179004283 | E170: 7.409594006 | F170: -0.04998687575 | G170: 0.9145069744 | H170: -0.3703824549 | I170: 0.4800664234 | J170: 0.5199335766 | L170: -0.1240828158 | M170: 0.9094998981 | N170: -0.9194032882 | O170: 0.450624852 | Q170: 2.419183354 | R170: 3.00922618 | T170: -0.005039713707 | U170: -0.007512912097
B171: 218 | D171: 0.9178756963 | E171: 7.392657769 | F171: -0.04990647399 | G171: 0.9144955114 | H171: -0.3689414827 | I171: 0.4800984591 | J171: 0.5199015409 | L171: -0.1238330517 | M171: 0.9095112985 | N171: -0.9154553716 | O171: 0.4507237309 | Q171: 2.414143641 | R171: 3.001713268 | T171: -0.005053655397 | U171: -0.007526787148
B172: 217 | D172: 0.917850965 | E172: 7.375682643 | F172: -0.04982596571 | G172: 0.9144840485 | H172: -0.3675005105 | I172: 0.4801305374 | J172: 0.5198694626 | L172: -0.1235827921 | M172: 0.909522699 | N172: -0.9115074549 | O172: 0.450822809 | Q172: 2.409089985 | R172: 2.994186481 | T172: -0.005067694509 | U172: -0.007540759625
B173: 216 | D173: 0.9178262343 | E173: 7.358668358 | F173: -0.04974535071 | G173: 0.9144725858 | H173: -0.3660595382 | I173: 0.4801626583 | J173: 0.5198373417 | L173: -0.1233320343 | M173: 0.9095340997 | N173: -0.9075595382 | O173: 0.4509220874 | Q173: 2.404022291 | R173: 2.986645721 | T173: -0.005081832176 | U173: -0.007554830657
B174: 215 | D174: 0.9178015043 | E174: 7.341614642 | F174: -0.0496646288 | G174: 0.9144611232 | H174: -0.364618566 | I174: 0.4801948219 | J174: 0.5198051781 | L174: -0.1230807752 | M174: 0.9095455005 | N174: -0.9036116216 | O174: 0.4510215673 | Q174: 2.398940458 | R174: 2.979090891 | T174: -0.005096069548 | U174: -0.007569001396
B175: 214 | D175: 0.917776775 | E175: 7.324521221 | F175: -0.04958379979 | G175: 0.9144496607 | H175: -0.3631775938 | I175: 0.4802270283 | J175: 0.5197729717 | L175: -0.122829012 | M175: 0.9095569015 | N175: -0.8996637049 | O175: 0.45112125 | Q175: 2.393844389 | R175: 2.971521889 | T175: -0.005110407793 | U175: -0.00758327301
B176: 213 | D176: 0.9177520464 | E176: 7.307387814 | F176: -0.04950286351 | G176: 0.9144381984 | H176: -0.3617366216 | I176: 0.4802592776 | J176: 0.5197407224 | L176: -0.1225767416 | M176: 0.9095683026 | N176: -0.8957157882 | O176: 0.4512211365 | Q176: 2.388733981 | R176: 2.963938616 | T176: -0.005124848099 | U176: -0.007597646688
B177: 212 | D177: 0.9177273184 | E177: 7.290214141 | F177: -0.04942181977 | G177: 0.9144267363 | H177: -0.3602956493 | I177: 0.4802915699 | J177: 0.5197084301 | L177: -0.1223239612 | M177: 0.9095797039 | N177: -0.8917678716 | O177: 0.4513212281 | Q177: 2.383609133 | R177: 2.95634097 | T177: -0.005139391675 | U177: -0.007612123636
B178: 211 | D178: 0.917702591 | E178: 7.272999916 | F178: -0.0493406684 | G178: 0.9144152742 | H178: -0.3588546771 | I178: 0.4803239051 | J178: 0.5196760949 | L178: -0.1220706676 | M178: 0.9095911053 | N178: -0.8878199549 | O178: 0.451421526 | Q178: 2.378469741 | R178: 2.948728846 | T178: -0.005154039747 | U178: -0.007626705082
B179: 210 | D179: 0.9176778644 | E179: 7.25574485 | F179: -0.04925940924 | G179: 0.9144038124 | H179: -0.3574137049 | I179: 0.4803562835 | J179: 0.5196437165 | L179: -0.1218168577 | M179: 0.9096025068 | N179: -0.8838720382 | O179: 0.4515220314 | Q179: 2.373315702 | R179: 2.941102141 | T179: -0.005168793564 | U179: -0.007641392276
B180: 209 | D180: 0.9176531384 | E180: 7.238448652 | F180: -0.04917804212 | G180: 0.9143923507 | H180: -0.3559727327 | I180: 0.480388705 | J180: 0.519611295 | L180: -0.1215625286 | M180: 0.9096139085 | N180: -0.8799241216 | O180: 0.4516227456 | Q180: 2.368146908 | R180: 2.933460749 | T180: -0.005183654395 | U180: -0.007656186485
B181: 208 | D181: 0.9176284131 | E181: 7.221111026 | F181: -0.04909656688 | G181: 0.9143808891 | H181: -0.3545317605 | I181: 0.4804211697 | J181: 0.5195788303 | L181: -0.1213076771 | M181: 0.9096253104 | N181: -0.8759762049 | O181: 0.4517236697 | Q181: 2.362963254 | R181: 2.925804562 | T181: -0.005198623531 | U181: -0.007671089001
B182: 207 | D182: 0.9176036884 | E182: 7.203731672 | F182: -0.04901498339 | G182: 0.9143694276 | H182: -0.3530907882 | I182: 0.4804536776 | J182: 0.5195463224 | L182: -0.1210523001 | M182: 0.9096367123 | N182: -0.8720282882 | O182: 0.4518248051 | Q182: 2.35776463 | R182: 2.918133473 | T182: -0.005213702284 | U182: -0.007686101136
B183: 206 | D183: 0.9175789644 | E183: 7.186310288 | F183: -0.04893329148 | G183: 0.9143579663 | H183: -0.351649816 | I183: 0.4804862289 | J183: 0.5195137711 | L183: -0.1207963944 | M183: 0.9096481144 | N183: -0.8680803716 | O183: 0.451926153 | Q183: 2.352550928 | R183: 2.910447372 | T183: -0.005228891989 | U183: -0.007701224225
B184: 205 | D184: 0.9175542411 | E184: 7.168846568 | F184: -0.04885149103 | G184: 0.9143465052 | H184: -0.3502088438 | I184: 0.4805188236 | J184: 0.5194811764 | L184: -0.1205399567 | M184: 0.9096595167 | N184: -0.8641324549 | O184: 0.4520277148 | Q184: 2.347322036 | R184: 2.902746148 | T184: -0.005244194004 | U184: -0.007716459625
B185: 204 | D185: 0.9175295185 | E185: 7.151340201 | F185: -0.04876958189 | G185: 0.9143350442 | H185: -0.3487678716 | I185: 0.4805514617 | J185: 0.5194485383 | L185: -0.1202829839 | M185: 0.9096709191 | N185: -0.8601845382 | O185: 0.4521294916 | Q185: 2.342077842 | R185: 2.895029688 | T185: -0.00525960971 | U185: -0.007731808717
B186: 203 | D186: 0.9175047965 | E186: 7.133790873 | F186: -0.04868756395 | G186: 0.9143235833 | H186: -0.3473268993 | I186: 0.4805841433 | J186: 0.5194158567 | L186: -0.1200254727 | M186: 0.9096823216 | N186: -0.8562366216 | O186: 0.4522314848 | Q186: 2.336818232 | R186: 2.887297879 | T186: -0.00527514051 | U186: -0.007747272907
B187: 202 | D187: 0.9174800751 | E187: 7.116198267 | F187: -0.04860543708 | G187: 0.9143121226 | H187: -0.3458859271 | I187: 0.4806168685 | J187: 0.5193831315 | L187: -0.1197674198 | M187: 0.9096937243 | N187: -0.8522887049 | O187: 0.4523336957 | Q187: 2.331543092 | R187: 2.879550607 | T187: -0.005290787836 | U187: -0.007762853623
B188: 201 | D188: 0.9174553545 | E188: 7.098562061 | F188: -0.04852320117 | G188: 0.914300662 | H188: -0.3444449549 | I188: 0.4806496372 | J188: 0.5193503628 | L188: -0.1195088218 | M188: 0.9097051272 | N188: -0.8483407882 | O188: 0.4524361257 | Q188: 2.326252304 | R188: 2.871787753 | T188: -0.005306553141 | U188: -0.00777855232
B189: 200 | D189: 0.9174306345 | E189: 7.080881929 | F189: -0.04844085611 | G189: 0.9142892016 | H189: -0.3430039827 | I189: 0.4806824495 | J189: 0.5193175505 | L189: -0.1192496754 | M189: 0.9097165301 | N189: -0.8443928716 | O189: 0.4525387761 | Q189: 2.320945751 | R189: 2.864009201 | T189: -0.005322437904 | U189: -0.007794370477
B190: 199 | D190: 0.9174059152 | E190: 7.063157541 | F190: -0.04835840182 | G190: 0.9142777413 | H190: -0.3415630105 | I190: 0.4807153055 | J190: 0.5192846945 | L190: -0.1189899772 | M190: 0.9097279332 | N190: -0.8404449549 | O190: 0.4526416482 | Q190: 2.315623313 | R190: 2.85621483 | T190: -0.005338443631 | U190: -0.007810309601
B191: 198 | D191: 0.9173811965 | E191: 7.045388563 | F191: -0.04827583819 | G191: 0.9142662811 | H191: -0.3401220382 | I191: 0.4807482052 | J191: 0.5192517948 | L191: -0.1187297238 | M191: 0.9097393365 | N191: -0.8364970382 | O191: 0.4527447435 | Q191: 2.310284869 | R191: 2.848404521 | T191: -0.005354571855 | U191: -0.007826371223
B192: 197 | D192: 0.9173564785 | E192: 7.027574657 | F192: -0.04819316515 | G192: 0.9142548211 | H192: -0.338681066 | I192: 0.4807811486 | J192: 0.5192188514 | L192: -0.1184689117 | M192: 0.9097507399 | N192: -0.8325491216 | O192: 0.4528480632 | Q192: 2.304930297 | R192: 2.840578149 | T192: -0.005370824136 | U192: -0.007842556903
B193: 196 | D193: 0.9173317612 | E193: 7.00971548 | F193: -0.04811038262 | G193: 0.9142433613 | H193: -0.3372400938 | I193: 0.4808141358 | J193: 0.5191858642 | L193: -0.1182075374 | M193: 0.9097621434 | N193: -0.8286012049 | O193: 0.4529516089 | Q193: 2.299559473 | R193: 2.832735592 | T193: -0.005387202061 | U193: -0.00785886823
B194: 195 | D194: 0.9173070445 | E194: 6.991810686 | F194: -0.04802749054 | G194: 0.9142319016 | H194: -0.3357991216 | I194: 0.4808471668 | J194: 0.5191528332 | L194: -0.1179455974 | M194: 0.9097735471 | N194: -0.8246532882 | O194: 0.4530553819 | Q194: 2.294172271 | R194: 2.824876724 | T194: -0.005403707246 | U194: -0.007875306818
B195: 194 | D195: 0.9172823285 | E195: 6.973859923 | F195: -0.04794448885 | G195: 0.914220442 | H195: -0.3343581493 | I195: 0.4808802416 | J195: 0.5191197584 | L195: -0.1176830881 | M195: 0.909784951 | N195: -0.8207053716 | O195: 0.4531593837 | Q195: 2.288768564 | R195: 2.817001417 | T195: -0.005420341337 | U195: -0.007891874314
B196: 193 | D196: 0.9172576132 | E196: 6.955862835 | F196: -0.04786137752 | G196: 0.9142089826 | H196: -0.3329171771 | I196: 0.4809133602 | J196: 0.5190866398 | L196: -0.1174200059 | M196: 0.9097963549 | N196: -0.8167574549 | O196: 0.4532636157 | Q196: 2.283348222 | R196: 2.809109543 | T196: -0.005437106009 | U196: -0.007908572392
B197: 192 | D197: 0.9172328985 | E197: 6.937819062 | F197: -0.0477781565 | G197: 0.9141975233 | H197: -0.3314762049 | I197: 0.4809465226 | J197: 0.5190534774 | L197: -0.1171563471 | M197: 0.9098077591 | N197: -0.8128095382 | O197: 0.4533680793 | Q197: 2.277911116 | R197: 2.801200971 | T197: -0.005454002967 | U197: -0.00792540276
B198: 191 | D198: 0.9172081845 | E198: 6.919728238 | F198: -0.04769482577 | G198: 0.9141860642 | H198: -0.3300352327 | I198: 0.4809797289 | J198: 0.5190202711 | L198: -0.1168921081 | M198: 0.9098191633 | N198: -0.8088616216 | O198: 0.453472776 | Q198: 2.272457114 | R198: 2.793275568 | T198: -0.005471033951 | U198: -0.007942367153
B199: 190 | D199: 0.9171834712 | E199: 6.901589994 | F199: -0.04761138531 | G199: 0.9141746052 | H199: -0.3285942605 | I199: 0.4810129791 | J199: 0.5189870209 | L199: -0.1166272852 | M199: 0.9098305677 | N199: -0.8049137049 | O199: 0.4535777074 | Q199: 2.26698608 | R199: 2.785333201 | T199: -0.005488200727 | U199: -0.007959467342
B200: 189 | D200: 0.9171587585 | E200: 6.883403954 | F200: -0.04752783512 | G200: 0.9141631463 | H200: -0.3271532882 | I200: 0.4810462731 | J200: 0.5189537269 | L200: -0.1163618747 | M200: 0.9098419723 | N200: -0.8009657882 | O200: 0.4536828748 | Q200: 2.261497879 | R200: 2.777373733 | T200: -0.005505505099 | U200: -0.007976705128
B201: 188 | D201: 0.9171340465 | E201: 6.86516974 | F201: -0.04744417521 | G201: 0.9141516876 | H201: -0.325712316 | I201: 0.481079611 | J201: 0.518920389 | L201: -0.1160958726 | M201: 0.9098533769 | N201: -0.7970178716 | O201: 0.4537882799 | Q201: 2.255992374 | R201: 2.769397028 | T201: -0.005522948903 | U201: -0.007994082348
B202: 187 | D202: 0.9171093352 | E202: 6.846886965 | F202: -0.0473604056 | G202: 0.914140229 | H202: -0.3242713438 | I202: 0.4811129927 | J202: 0.5188870073 | L202: -0.1158292753 | M202: 0.9098647818 | N202: -0.7930699549 | O202: 0.4538939242 | Q202: 2.250469425 | R202: 2.761402946 | T202: -0.005540534008 | U202: -0.008011600871
B203: 186 | D203: 0.9170846245 | E203: 6.82855524 | F203: -0.04727652632 | G203: 0.9141287706 | H203: -0.3228303716 | I203: 0.4811464182 | J203: 0.5188535818 | L203: -0.1155620787 | M203: 0.9098761868 | N203: -0.7891220382 | O203: 0.4539998091 | Q203: 2.244928891 | R203: 2.753391345 | T203: -0.005558262321 | U203: -0.008029262603
B204: 185 | D204: 0.9170599145 | E204: 6.81017417 | F204: -0.04719253742 | G204: 0.9141173123 | H204: -0.3213893993 | I204: 0.4811798876 | J204: 0.5188201124 | L204: -0.1152942791 | M204: 0.9098875919 | N204: -0.7851741216 | O204: 0.4541059364 | Q204: 2.239370628 | R204: 2.745362082 | T204: -0.005576135782 | U204: -0.008047069485
B205: 184 | D205: 0.9170352052 | E205: 6.791743353 | F205: -0.04710843895 | G205: 0.9141058542 | H205: -0.3199484271 | I205: 0.4812134007 | J205: 0.5187865993 | L205: -0.1150258725 | M205: 0.9098989971 | N205: -0.7812262049 | O205: 0.4542123074 | Q205: 2.233794493 | R205: 2.737315013 | T205: -0.005594156371 | U205: -0.008065023497
B206: 183 | D206: 0.9170104965 | E206: 6.773262385 | F206: -0.04702423098 | G206: 0.9140943962 | H206: -0.3185074549 | I206: 0.4812469577 | J206: 0.5187530423 | L206: -0.1147568548 | M206: 0.9099104025 | N206: -0.7772782882 | O206: 0.454318924 | Q206: 2.228200336 | R206: 2.729249989 | T206: -0.005612326103 | U206: -0.008083126654
B207: 182 | D207: 0.9169857885 | E207: 6.754730852 | F207: -0.04693991361 | G207: 0.9140829384 | H207: -0.3170664827 | I207: 0.4812805583 | J207: 0.5187194417 | L207: -0.1144872221 | M207: 0.9099218081 | N207: -0.7733303716 | O207: 0.4544257875 | Q207: 2.22258801 | R207: 2.721166863 | T207: -0.005630647035 | U207: -0.008101381012
... 182 more rows

Sheet D Call-Theta
B1: Daten eingeben/rechnen! | E1: Tabelle Theta | G1: Diagramm Put-Theta | K1: Hauptmenü

Sheet D Put-Theta
B1: Daten eingeben/rechnen! | E1: Tabelle Theta | G1: Diagramm Call-Theta | K1: Hauptmenü

Sheet Rho, Tabelle 4
B1: Daten eingeben/rechnen! | H1: Diagramm Call-Rho | M1: Diagramm Put-Rho | R1: Hauptmenü
B3: Devisenkurs | E3: =Eingabeseite!C7 -> 0.912
B4: Ausübungspreis | E4: =Eingabeseite!C10 -> 0.9125
B5: Zinssatz | E5: =Eingabeseite!C8 -> -0.97 | F5: =E5/100 -> -0.0097
B6: Abstufung Zinssatz | E6: =Eingabeseite!F8 -> 0.1
B7: Restlaufzeit (Tage/360) | E7: =Eingabeseite!C9 -> 224 | F7: =E7/360 -> 0.6222222222
B8: Barwert Ausübungspreis | F8: =E4*(EXP(F7*-F5)) -> 0.9180240982
B9: Volatilität Jahr | E9: =Eingabeseite!C11 -> 9.5 | F9: =E9*SQRT(E$7/360) -> 7.493701059
B10: Volatilität Jahr (0.5) | F10: =F9/2 -> 3.746850529
I12: Tabelle Rho
F14: Black & Scholes-Werte für d1 und NV (Delta) | L14: Black & Scholes-Werte für d2 und NV | Q14: Options- | R14: Options- | T14: Rho | U14: Rho
Q15: preis | R15: preis | T15: bei minus | U15: bei minus
E16: Devisenkurs | F16: STAW | G16: Devisenkurs | H16: Rendite | I16: NV-Werte | L16: STAW | M16: Devisenkurs | N16: Rendite | O16: NV-Werte | T16: =E6 -> 0.1 | U16: =E6 -> 0.1
F17: d1 | G17: mit | H17: stetig | I17: Verteilung | L17: d2 | M17: mit | N17: stetig | O17: Verteilung | T17: Prozent- | U17: Prozent-
G18: Option | H18: mit | I18: F(x) | M18: Option | N18: mit | O18: F(x) | T18: punkt/en | U18: punkt/en
H19: Option | I19: Call-Delta | J19: Put-Delta | N19: Option | O19: Delta | Q19: Call | R19: Put | T19: Call | U19: Put
E21: =E3 -> 0.912 | F21: =((LN(E$21/F$8))/(F$9/100))+(F$10/100) -> -0.05038729368 | G21: =F$8+((EXP(F21*(F$9/100))-1)*F$8) -> 0.9145642916 | H21: =(LN(G21/F$8))*100 -> -0.377587316 | I21: =NORMDIST(H21,0,F$9,1) -> 0.4799068808 | J21: =1-I21 -> 0.5200931192 | L21: =((LN(E$21/F$8))/(F$9/100))-(F$10/100) -> -0.1253243043 | M21: =F$8+((EXP(L21*(F$9/100))-1)*F$8) -> 0.9094428982 | N21: =(LN(M21/F$8))*100 -> -0.9391428716 | O21: =NORMDIST(N21,0,F$9,1) -> 0.4501334059 | Q21: =((I21*E21)-(O21*F$8))*100 -> 2.44417613 | R21: =Q21+((F8-E21)*100) -> 3.046585948 | T21: =T22 -> 0.02562642214 | U21: =U22 -> 0.03151285212
B22: =E$5 -> -0.97 | D22: =B22/100 -> -0.0097 | E22: =E$4*(EXP(-D22*$F$7)) -> 0.9180240982 | F22: =((LN(E$21/E22))/(F$9/100))+(F$10/100) -> -0.05038729368 | G22: =E22+((EXP(F22*(F$9/100))-1)*E22) -> 0.9145642916 | H22: =(LN(G22/E22))*100 -> -0.377587316 | I22: =NORMDIST(H22,0,F$9,1) -> 0.4799068808 | J22: =1-I22 -> 0.5200931192 | L22: =((LN(E$21/E22))/(F$9/100))-(F$10/100) -> -0.1253243043 | M22: =F$8+((EXP(L22*(F$9/100))-1)*F$8) -> 0.9094428982 | N22: =(LN(M22/F$8))*100 -> -0.9391428716 | O22: =NORMDIST(N22,0,F$9,1) -> 0.4501334059 | Q22: =((I22*E$21)-(O22*E22))*100 -> 2.44417613 | R22: =Q22+((E22-E$21)*100) -> 3.046585948 | T22: =-(Q23-Q22) -> 0.02562642214 | U22: =R23-R22 -> 0.03151285212
B23: =B22-E$6 -> -1.07 | D23: =B23/100 -> -0.0107 | E23: =E$4*(EXP(-D23*$F$7)) -> 0.9185954909 | F23: =((LN(E$21/E23))/(F$9/100))+(F$10/100) -> -0.05869056355 | G23: =E23+((EXP(F23*(F$9/100))-1)*E23) -> 0.9145642916 | H23: =(LN(G23/E23))*100 -> -0.4398095382 | I23: =NORMDIST(H23,0,F$9,1) -> 0.4765992878 | J23: =1-I23 -> 0.5234007122 | L23: =((LN(E$21/E23))/(F$9/100))-(F$10/100) -> -0.1336275741 | M23: =F$8+((EXP(L23*(F$9/100))-1)*F$8) -> 0.9088771987 | N23: =(LN(M23/F$8))*100 -> -1.001365094 | O23: =NORMDIST(N23,0,F$9,1) -> 0.4468485394 | Q23: =((I23*E$21)-(O23*E23))*100 -> 2.418549708 | R23: =Q23+((E23-E$21)*100) -> 3.0780988
B25: Zinssatz | D25: Zinssatz | E25: Barwert
D26: math
B29: =B79+5 -> 4.03 | D29: =B29/100 -> 0.0403 | E29: =E$4*(EXP(-D29*$F$7)) -> 0.8899030551 | F29: =((LN(E$21/E29))/(F$9/100))+(F$10/100) -> 0.3647761999 | G29: =E29+((EXP(F29*(F$9/100))-1)*E29) -> 0.9145642916 | H29: =(LN(G29/E29))*100 -> 2.733523795 | I29: =NORMDIST(H29,0,F$9,1) -> 0.6423607638 | J29: =1-I29 -> 0.3576392362 | L29: =((LN(E$21/E29))/(F$9/100))-(F$10/100) -> 0.2898391893 | M29: =F$8+((EXP(L29*(F$9/100))-1)*F$8) -> 0.9381814027 | N29: =(LN(M29/F$8))*100 -> 2.17196824 | O29: =NORMDIST(N29,0,F$9,1) -> 0.6140303673 | Q29: =((I29*E$21)-(O29*E29))*100 -> 3.940551676 | R29: =Q29+((E29-E$21)*100) -> 1.730857183 | T29: =-(Q30-Q29) -> 0.03392246887 | U29: =R30-R29 -> 0.02146650712 | V29: 0
B30: =B29-(5/50) -> 3.93 | D30: =B30/100 -> 0.0393 | E30: =E$4*(EXP(-D30*$F$7)) -> 0.8904569448 | F30: =((LN(E$21/E30))/(F$9/100))+(F$10/100) -> 0.35647293 | G30: =E30+((EXP(F30*(F$9/100))-1)*E30) -> 0.9145642916 | H30: =(LN(G30/E30))*100 -> 2.671301573 | I30: =NORMDIST(H30,0,F$9,1) -> 0.6392567894 | J30: =1-I30 -> 0.3607432106 | L30: =((LN(E$21/E30))/(F$9/100))-(F$10/100) -> 0.2815359194 | M30: =F$8+((EXP(L30*(F$9/100))-1)*F$8) -> 0.937597827 | N30: =(LN(M30/F$8))*100 -> 2.109746017 | O30: =NORMDIST(N30,0,F$9,1) -> 0.610850309 | Q30: =((I30*E$21)-(O30*E30))*100 -> 3.906629208 | R30: =Q30+((E30-E$21)*100) -> 1.75232369 | T30: =-(Q31-Q30) -> 0.03376712574 | U30: =R31-R30 -> 0.02165632522 | V30: 1
B31: =B30-(5/50) -> 3.83 | D31: 0.0383 | E31: 0.8910111793 | F31: 0.3481696601 | G31: 0.9145642916 | H31: 2.609079351 | I31: 0.6361436141 | J31: 0.3638563859 | L31: 0.2732326495 | M31: 0.9370146142 | N31: 2.047523795 | O31: 0.6076628081 | Q31: 3.872862082 | R31: 1.773980015 | T31: 0.03361116897 | U31: 0.02184677843 | V31: 2
B32: 3.73 | D32: 0.0373 | E32: 0.8915657588 | F32: 0.3398663903 | G32: 0.9145642916 | H32: 2.546857128 | I32: 0.6330214259 | J32: 0.3669785741 | L32: 0.2649293797 | M32: 0.9364317643 | N32: 1.985301573 | O32: 0.6044680675 | Q32: 3.839250913 | R32: 1.795826794 | T32: 0.03345460888 | U32: 0.02203785642 | V32: 3
B33: 3.63 | D33: 0.0363 | E33: 0.8921206835 | F33: 0.3315631204 | G33: 0.9145642916 | H33: 2.484634906 | I33: 0.6298904144 | J33: 0.3701095856 | L33: 0.2566261098 | M33: 0.9358492769 | N33: 1.923079351 | O33: 0.6012662914 | Q33: 3.805796304 | R33: 1.81786465 | T33: 0.03329745594 | U33: 0.02222954875 | V33: 4
B34: 3.53 | D34: 0.0353 | E34: 0.8926759535 | F34: 0.3232598505 | G34: 0.9145642916 | H34: 2.422412684 | I34: 0.6267507712 | J34: 0.3732492288 | L34: 0.2483228399 | M34: 0.9352671518 | N34: 1.860857128 | O34: 0.5980576857 | Q34: 3.772498848 | R34: 1.840094199 | T34: 0.03313972068 | U34: 0.0224218449 | V34: 5
B35: 3.43 | D35: 0.0343 | E35: 0.8932315692 | F35: 0.3149565806 | G35: 0.9145642916 | H35: 2.360190462 | I35: 0.6236026895 | J35: 0.3763973105 | L35: 0.2400195701 | M35: 0.9346853888 | N35: 1.798634906 | O35: 0.5948424574 | Q35: 3.739359127 | R35: 1.862516044 | T35: 0.03298141377 | U35: 0.02261473421 | V35: 6
B36: 3.33 | D36: 0.0333 | E36: 0.8937875306 | F36: 0.3066533108 | G36: 0.9145642916 | H36: 2.29796824 | I36: 0.6204463644 | J36: 0.3795536356 | L36: 0.2317163002 | M36: 0.9341039877 | N36: 1.736412684 | O36: 0.5916208149 | Q36: 3.706377714 | R36: 1.885130778 | T36: 0.03282254596 | U36: 0.02280820594 | V36: 7
B37: 3.23 | D37: 0.0323 | E37: 0.8943438382 | F37: 0.2983500409 | G37: 0.9145642916 | H37: 2.235746017 | I37: 0.6172819924 | J37: 0.3827180076 | L37: 0.2234130303 | M37: 0.9335229482 | N37: 1.674190462 | O37: 0.5883929681 | Q37: 3.673555168 | R37: 1.907938984 | T37: 0.03266312811 | U37: 0.02300224925 | V37: 8
B38: 3.13 | D38: 0.0313 | E38: 0.8949004919 | F38: 0.290046771 | G38: 0.9145642916 | H38: 2.173523795 | I38: 0.6141097717 | J38: 0.3858902283 | L38: 0.2151097604 | M38: 0.9329422701 | N38: 1.61196824 | O38: 0.5851591279 | Q38: 3.640892039 | R38: 1.930941233 | T38: 0.03250317117 | U38: 0.0231968532 | V38: 9
B39: 3.03 | D39: 0.0303 | E39: 0.8954574922 | F39: 0.2817435012 | G39: 0.9145642916 | H39: 2.111301573 | I39: 0.610929902 | J39: 0.389070098 | L39: 0.2068064906 | M39: 0.9323619533 | N39: 1.549746017 | O39: 0.5819195065 | Q39: 3.608388868 | R39: 1.954138086 | T39: 0.03234268619 | U39: 0.02339200676 | V39: 10
B40: 2.93 | D40: 0.0293 | E40: 0.8960148391 | F40: 0.2734402313 | G40: 0.9145642916 | H40: 2.049079351 | I40: 0.6077425847 | J40: 0.3922574153 | L40: 0.1985032207 | M40: 0.9317819974 | N40: 1.487523795 | O40: 0.5786743174 | Q40: 3.576046182 | R40: 1.977530093 | T40: 0.03218168431 | U40: 0.02358769879 | V40: 11
B41: 2.83 | D41: 0.0283 | E41: 0.8965725329 | F41: 0.2651369614 | G41: 0.9145642916 | H41: 1.986857128 | I41: 0.6045480226 | J41: 0.3954519774 | L41: 0.1901999508 | M41: 0.9312024023 | N41: 1.425301573 | O41: 0.5754237752 | Q41: 3.543864498 | R41: 2.001117792 | T41: 0.03202017677 | U41: 0.02378391809 | V41: 12
B42: 2.73 | D42: 0.0273 | E42: 0.8971305739 | F42: 0.2568336915 | G42: 0.9145642916 | H42: 1.924634906 | I42: 0.6013464199 | J42: 0.3986535801 | L42: 0.181896681 | M42: 0.9306231677 | N42: 1.363079351 | O42: 0.5721680954 | Q42: 3.511844321 | R42: 2.02490171 | T42: 0.03185817488 | U42: 0.02398065333 | V42: 13
B43: 2.63 | D43: 0.0263 | E43: 0.8976889622 | F43: 0.2485304217 | G43: 0.9145642916 | H43: 1.862412684 | I43: 0.5981379824 | J43: 0.4018620176 | L43: 0.1735934111 | M43: 0.9300442934 | N43: 1.300857128 | O43: 0.5689074947 | Q43: 3.479986146 | R43: 2.048882363 | T43: 0.03169569004 | U43: 0.02417789314 | V43: 14
B44: 2.53 | D44: 0.0253 | E44: 0.898247698 | F44: 0.2402271518 | G44: 0.9145642916 | H44: 1.800190462 | I44: 0.5949229171 | J44: 0.4050770829 | L44: 0.1652901412 | M44: 0.9294657791 | N44: 1.238634906 | O44: 0.5656421909 | Q44: 3.448290456 | R44: 2.073060257 | T44: 0.03153273377 | U44: 0.02437562602 | V44: 15
B45: 2.43 | D45: 0.0243 | E45: 0.8988067816 | F45: 0.2319238819 | G45: 0.9145642916 | H45: 1.73796824 | I45: 0.5917014325 | J45: 0.4082985675 | L45: 0.1569868713 | M45: 0.9288876248 | N45: 1.176412684 | O45: 0.5623724025 | Q45: 3.416757722 | R45: 2.097435883 | T45: 0.03136931762 | U45: 0.02457384041 | V45: 16
B46: 2.33 | D46: 0.0233 | E46: 0.8993662132 | F46: 0.2236206121 | G46: 0.9145642916 | H46: 1.675746017 | I46: 0.5884737382 | J46: 0.4115262618 | L46: 0.1486836015 | M46: 0.92830983 | N46: 1.114190462 | O46: 0.5590983492 | Q46: 3.385388405 | R46: 2.122009723 | T46: 0.03120545325 | U46: 0.02477252469 | V46: 17
B47: 2.23 | D47: 0.0223 | E47: 0.899925993 | F47: 0.2153173422 | G47: 0.9145642916 | H47: 1.613523795 | I47: 0.5852400452 | J47: 0.4147599548 | L47: 0.1403803316 | M47: 0.9277323947 | N47: 1.05196824 | O47: 0.5558202515 | Q47: 3.354182951 | R47: 2.146782248 | T47: 0.0310411524 | U47: 0.02497166712 | V47: 18
B48: 2.13 | D48: 0.0213 | E48: 0.9004861212 | F48: 0.2070140723 | G48: 0.9145642916 | H48: 1.551301573 | I48: 0.5820005658 | J48: 0.4179994342 | L48: 0.1320770617 | M48: 0.9271553185 | N48: 0.9897460173 | O48: 0.5525383305 | Q48: 3.323141799 | R48: 2.171753915 | T48: 0.03087642688 | U48: 0.02517125591 | V48: 19
B49: 2.03 | D49: 0.0203 | E49: 0.901046598 | F49: 0.1987108024 | G49: 0.9145642916 | H49: 1.489079351 | I49: 0.5787555133 | J49: 0.4212444867 | L49: 0.1237737919 | M49: 0.9265786013 | N49: 0.9275237951 | O49: 0.5492528084 | Q49: 3.292265372 | R49: 2.196925171 | T49: 0.03071128855 | U49: 0.0253712792 | V49: 20
B50: 1.93 | D50: 0.0193 | E50: 0.9016074237 | F50: 0.1904075326 | G50: 0.9145642916 | H50: 1.426857128 | I50: 0.5755051022 | J50: 0.4244948978 | L50: 0.115470522 | M50: 0.9260022429 | N50: 0.8653015729 | O50: 0.5459639079 | Q50: 3.261554084 | R50: 2.22229645 | T50: 0.03054574938 | U50: 0.02557172505 | V50: 21
